Workbook

Sheet Sample Report (hidden)
A2: Date
A3: Hen
A4: Program
A5: Start at 999999
A6: Sequence component 1 | B6: Time 1 | C6: Seqeunce Component 2 | D6: Time 2 | E6: Seqeunce Component 3 | F6: Time 3 | G6: Correct 0 = No 1=Yes | J6: Seqeunce | K6: Time
A7: 12 | B7: 7 | C7: 12 | D7: 42 | E7: 13 | F7: 18 | G7: if 77 new line, if 31 or 41 = yes new line on 77, | J7: =string of Seqeunce compponent 1, 2 & 3 | K7: =time 3
A8: This continues until ther is a 1 on its own to indicate start of summary data
J9: 10-19 =1
A10: Summary Data | J10: 20-29 =2
A11: Correct | B11: Incorrect | C11: Rft | D11: total | E11: Av Correct | F11: Av Incorrect | G11: Percent correct | H11: Time | J11: in this example the seqeunce would be 111
A12: 40 | B12: 33 | C12: 40 | D12: 73 | E12: 23.95 | F12: 15 | G12: 54 | H12: 806

Sheet Summary
A2: Day | B2: Date | C2: Average Response Rate | D2: Target % | E2: RF for non correct sequence | F2: U Value | K2: Block 1 | L2: Block 2 | M2: Block 3 | N2: Block 4 | O2: Block 5 | P2: Block 6
A3: 1 | B3: ='!2011-05-19_09h50m.Subject 53'!B2:C2 -> 2011-05-19 | C3: =('!2011-05-19_09h50m.Subject 53'!F79/60)/'!2011-05-19_09h50m.Subject 53'!Q3 -> 4.089954338 | D3: ='!2011-05-19_09h50m.Subject 53'!N20/'!2011-05-19_09h50m.Subject 53'!Q3 -> 0.01369863014 | E3: =SUM('!2011-05-19_09h50m.Subject 53'!L20:Q20)/'!2011-05-19_09h50m.Subject 53'!Q3 -> 3.383561644 | F3: ='!2011-05-19_09h50m.Subject 53'!Q16 -> 0.2340007084 | J3: Average Response Rate | K3: =AVERAGE(C3:C7) -> 3.33702319 | L3: =AVERAGE(C8:C12) -> 3.448403433 | M3: =AVERAGE(C13:C17) -> 2.495591772 | N3: =AVERAGE(C18:C22) -> 1.948057011 | O3: =AVERAGE(C23:C27) -> 1.925437453 | P3: =AVERAGE(C28:C32) -> 1.980610527
A4: 2 | B4: ='!2011-05-21_09h42m.Subject 53'!B2:C2 -> 2011-05-21 | C4: =('!2011-05-21_09h42m.Subject 53'!F100/60)/'!2011-05-21_09h42m.Subject 53'!Q3 -> 2.569148936 | D4: ='!2011-05-21_09h42m.Subject 53'!N20/'!2011-05-21_09h42m.Subject 53'!Q3 -> 0.02127659574 | E4: =SUM('!2011-05-21_09h42m.Subject 53'!L20:Q20)/'!2011-05-21_09h42m.Subject 53'!Q3 -> 1.64893617 | F4: ='!2011-05-21_09h42m.Subject 53'!Q16 -> 0.3500368271 | J4: Target % | K4: =AVERAGE(D3:D7) -> 0.01012407365 | L4: =AVERAGE(D8:D12) -> 0.1100595701 | M4: =AVERAGE(D13:D17) -> 0.3122795185 | N4: =AVERAGE(D18:D22) -> 0.6796076692 | O4: =AVERAGE(D23:D27) -> 0.737685074 | P4: =AVERAGE(D28:D32) -> 0.6096339299
A5: 3 | B5: ='!2011-05-22_09h18m.Subject 53'!B2:C2 -> 2011-05-22 | C5: =('!2011-05-22_09h18m.Subject 53'!F167/60)/'!2011-05-22_09h18m.Subject 53'!Q3 -> 2.478985507 | D5: ='!2011-05-22_09h18m.Subject 53'!N20/'!2011-05-22_09h18m.Subject 53'!Q3 -> 0.006211180124 | E5: =SUM('!2011-05-22_09h18m.Subject 53'!L20:Q20)/'!2011-05-22_09h18m.Subject 53'!Q3 -> 1.099378882 | F5: ='!2011-05-22_09h18m.Subject 53'!Q16 -> 0.2971020691 | J5: CCRF | K5: =AVERAGE(E3:E7) -> 1.821259603 | L5: =AVERAGE(E8:E12) -> 1.459435749 | M5: =AVERAGE(E13:E17) -> 1.934221396 | N5: =AVERAGE(E18:E22) -> 4.340935212 | O5: =AVERAGE(E23:E27) -> 4.742635387 | P5: =AVERAGE(E28:E32) -> 4.291886729
A6: 4 | B6: ='!2011-05-26_09h17m.Subject 53'!B2:C2 -> 2011-05-26 | C6: =('!2011-05-26_09h17m.Subject 53'!F112/60)/'!2011-05-26_09h17m.Subject 53'!Q3 -> 3.446855346 | D6: ='!2011-05-26_09h17m.Subject 53'!N20/'!2011-05-26_09h17m.Subject 53'!Q3 -> 0.009433962264 | E6: =SUM('!2011-05-26_09h17m.Subject 53'!L20:Q20)/'!2011-05-26_09h17m.Subject 53'!Q3 -> 1.386792453 | F6: ='!2011-05-26_09h17m.Subject 53'!Q16 -> 0.3738219449 | J6: U Value | K6: =AVERAGE(F3:F7) -> 0.3214233326 | L6: =AVERAGE(F8:F12) -> 0.3429157427 | M6: =AVERAGE(F13:F17) -> 0.2748020235 | N6: =AVERAGE(F18:F22) -> 0.2488457585 | O6: =AVERAGE(F23:F27) -> 0.2407337719 | P6: =AVERAGE(F28:F32) -> 0.2362691524
A7: 5 | B7: ='!2011-05-28_14h16m.Subject 53'!B2:C2 -> 2011-05-28 | C7: =('!2011-05-28_14h16m.Subject 53'!F103/60)/'!2011-05-28_14h16m.Subject 53'!Q3 -> 4.100171821 | D7: ='!2011-05-28_14h16m.Subject 53'!N20/'!2011-05-28_14h16m.Subject 53'!Q3 -> 0 | E7: =SUM('!2011-05-28_14h16m.Subject 53'!L20:Q20)/'!2011-05-28_14h16m.Subject 53'!Q3 -> 1.587628866 | F7: ='!2011-05-28_14h16m.Subject 53'!Q16 -> 0.3521551135
A8: 6 | B8: ='!2011-05-29_08h34m.Subject 53'!B2:C2 -> 2011-05-29 | C8: =('!2011-05-29_08h34m.Subject 53'!F62/60)/'!2011-05-29_08h34m.Subject 53'!Q3 -> 6.991964286 | D8: ='!2011-05-29_08h34m.Subject 53'!N20/'!2011-05-29_08h34m.Subject 53'!Q3 -> 0 | E8: =SUM('!2011-05-29_08h34m.Subject 53'!L20:Q20)/'!2011-05-29_08h34m.Subject 53'!Q3 -> 2.321428571 | F8: ='!2011-05-29_08h34m.Subject 53'!Q16 -> 0.3438913033
A9: 7 | B9: ='!2011-06-01_08h42m.Subject 53'!B2:C2 -> 2011-06-01 | C9: =('!2011-06-01_08h42m.Subject 53'!F160/60)/'!2011-06-01_08h42m.Subject 53'!Q3 -> 2.585606061 | D9: ='!2011-06-01_08h42m.Subject 53'!N20/'!2011-06-01_08h42m.Subject 53'!Q3 -> 0.04545454545 | E9: =SUM('!2011-06-01_08h42m.Subject 53'!L20:Q20)/'!2011-06-01_08h42m.Subject 53'!Q3 -> 1.097402597 | F9: ='!2011-06-01_08h42m.Subject 53'!Q16 -> 0.2792262013
A10: 8 | B10: ='!2011-06-02_11h29m.Subject 53'!B2:C2 -> 2011-06-02 | C10: =('!2011-06-02_11h29m.Subject 53'!F162/60)/'!2011-06-02_11h29m.Subject 53'!Q3 -> 2.556623932 | D10: ='!2011-06-02_11h29m.Subject 53'!N20/'!2011-06-02_11h29m.Subject 53'!Q3 -> 0.07051282051 | E10: =SUM('!2011-06-02_11h29m.Subject 53'!L20:Q20)/'!2011-06-02_11h29m.Subject 53'!Q3 -> 1.179487179 | F10: ='!2011-06-02_11h29m.Subject 53'!Q16 -> 0.3763366927
A11: 9 | B11: ='!2011-06-03_11h25m.Subject 53'!B2:C2 -> 2011-06-03 | C11: =('!2011-06-03_11h25m.Subject 53'!F162/60)/'!2011-06-03_11h25m.Subject 53'!Q3 -> 2.558440171 | D11: ='!2011-06-03_11h25m.Subject 53'!N20/'!2011-06-03_11h25m.Subject 53'!Q3 -> 0.1602564103 | E11: =SUM('!2011-06-03_11h25m.Subject 53'!L20:Q20)/'!2011-06-03_11h25m.Subject 53'!Q3 -> 1.269230769 | F11: ='!2011-06-03_11h25m.Subject 53'!Q16 -> 0.4065768449
A12: 10 | B12: ='!2011-06-04_11h08m.Subject 53'!B2:C2 -> 2011-06-04 | C12: =('!2011-06-04_11h08m.Subject 53'!F141/60)/'!2011-06-04_11h08m.Subject 53'!Q3 -> 2.549382716 | D12: ='!2011-06-04_11h08m.Subject 53'!N20/'!2011-06-04_11h08m.Subject 53'!Q3 -> 0.2740740741 | E12: =SUM('!2011-06-04_11h08m.Subject 53'!L20:Q20)/'!2011-06-04_11h08m.Subject 53'!Q3 -> 1.42962963 | F12: ='!2011-06-04_11h08m.Subject 53'!Q16 -> 0.3085476715
A13: 11 | B13: ='!2011-06-05_10h17m.Subject 53'!B2:C2 -> 2011-06-05 | C13: =('!2011-06-05_10h17m.Subject 53'!F115/60)/'!2011-06-05_10h17m.Subject 53'!Q3 -> 2.312079511 | D13: ='!2011-06-05_10h17m.Subject 53'!N20/'!2011-06-05_10h17m.Subject 53'!Q3 -> 0.3211009174 | E13: =SUM('!2011-06-05_10h17m.Subject 53'!L20:Q20)/'!2011-06-05_10h17m.Subject 53'!Q3 -> 2.587155963 | F13: ='!2011-06-05_10h17m.Subject 53'!Q16 -> 0.3599012133
A14: 12 | B14: ='!2011-06-06_09h20m.Subject 53'!B2:C2 -> 2011-06-06 | C14: =('!2011-06-06_09h20m.Subject 53'!F138/60)/'!2011-06-06_09h20m.Subject 53'!Q3 -> 2.782449495 | D14: ='!2011-06-06_09h20m.Subject 53'!N20/'!2011-06-06_09h20m.Subject 53'!Q3 -> 0.2878787879 | E14: =SUM('!2011-06-06_09h20m.Subject 53'!L20:Q20)/'!2011-06-06_09h20m.Subject 53'!Q3 -> 1.537878788 | F14: ='!2011-06-06_09h20m.Subject 53'!Q16 -> 0.2422529825
A15: 13 | B15: ='!2011-06-07_08h59m.Subject 53'!B2:C2 -> 2011-06-07 | C15: =('!2011-06-07_08h59m.Subject 53'!F142/60)/'!2011-06-07_08h59m.Subject 53'!Q3 -> 2.706862745 | D15: ='!2011-06-07_08h59m.Subject 53'!N20/'!2011-06-07_08h59m.Subject 53'!Q3 -> 0.2426470588 | E15: =SUM('!2011-06-07_08h59m.Subject 53'!L20:Q20)/'!2011-06-07_08h59m.Subject 53'!Q3 -> 1.389705882 | F15: ='!2011-06-07_08h59m.Subject 53'!Q16 -> 0.2597146902
A16: 14 | B16: ='!2011-06-08_08h28m.Subject 53'!B2:C2 -> 2011-06-08 | C16: =('!2011-06-08_08h28m.Subject 53'!F159/60)/'!2011-06-08_08h28m.Subject 53'!Q3 -> 2.596187364 | D16: ='!2011-06-08_08h28m.Subject 53'!N20/'!2011-06-08_08h28m.Subject 53'!Q3 -> 0.2287581699 | E16: =SUM('!2011-06-08_08h28m.Subject 53'!L20:Q20)/'!2011-06-08_08h28m.Subject 53'!Q3 -> 1.941176471 | F16: ='!2011-06-08_08h28m.Subject 53'!Q16 -> 0.2174489631
A17: 15 | B17: ='!2011-06-09_09h18m.Subject 53'!B2:C2 -> 2011-06-09 | C17: =('!2011-06-09_09h18m.Subject 53'!F85/60)/'!2011-06-09_09h18m.Subject 53'!Q3 -> 2.080379747 | D17: ='!2011-06-09_09h18m.Subject 53'!N20/'!2011-06-09_09h18m.Subject 53'!Q3 -> 0.4810126582 | E17: =SUM('!2011-06-09_09h18m.Subject 53'!L20:Q20)/'!2011-06-09_09h18m.Subject 53'!Q3 -> 2.215189873 | F17: ='!2011-06-09_09h18m.Subject 53'!Q16 -> 0.2946922685
A18: 16 | B18: ='!2011-06-10_09h48m.Subject 53'!B2:C2 -> 2011-06-10 | C18: =('!2011-06-10_09h48m.Subject 53'!F69/60)/'!2011-06-10_09h48m.Subject 53'!Q3 -> 2.004761905 | D18: ='!2011-06-10_09h48m.Subject 53'!N20/'!2011-06-10_09h48m.Subject 53'!Q3 -> 0.6031746032 | E18: =SUM('!2011-06-10_09h48m.Subject 53'!L20:Q20)/'!2011-06-10_09h48m.Subject 53'!Q3 -> 4.285714286 | F18: ='!2011-06-10_09h48m.Subject 53'!Q16 -> 0.2604803759
A19: 17 | B19: ='!2011-06-11_09h25m.Subject 53'!B2:C2 -> 2011-06-11 | C19: =('!2011-06-11_09h25m.Subject 53'!F67/60)/'!2011-06-11_09h25m.Subject 53'!Q3 -> 1.932513661 | D19: ='!2011-06-11_09h25m.Subject 53'!N20/'!2011-06-11_09h25m.Subject 53'!Q3 -> 0.6393442623 | E19: =SUM('!2011-06-11_09h25m.Subject 53'!L20:Q20)/'!2011-06-11_09h25m.Subject 53'!Q3 -> 4.426229508 | F19: ='!2011-06-11_09h25m.Subject 53'!Q16 -> 0.2596335846
A20: 18 | B20: ='!2011-06-12_09h33m.Subject 53'!B2:C2 -> 2011-06-12 | C20: =('!2011-06-12_09h33m.Subject 53'!F58/60)/'!2011-06-12_09h33m.Subject 53'!Q3 -> 1.909935897 | D20: ='!2011-06-12_09h33m.Subject 53'!N20/'!2011-06-12_09h33m.Subject 53'!Q3 -> 0.75 | E20: =SUM('!2011-06-12_09h33m.Subject 53'!L20:Q20)/'!2011-06-12_09h33m.Subject 53'!Q3 -> 5.134615385 | F20: ='!2011-06-12_09h33m.Subject 53'!Q16 -> 0.2359050499
A21: 19 | B21: ='!2011-06-13_09h14m.Subject 53'!B2:C2 -> 2011-06-13 | C21: =('!2011-06-13_09h14m.Subject 53'!F61/60)/'!2011-06-13_09h14m.Subject 53'!Q3 -> 1.945454545 | D21: ='!2011-06-13_09h14m.Subject 53'!N20/'!2011-06-13_09h14m.Subject 53'!Q3 -> 0.7090909091 | E21: =SUM('!2011-06-13_09h14m.Subject 53'!L20:Q20)/'!2011-06-13_09h14m.Subject 53'!Q3 -> 3.054545455 | F21: ='!2011-06-13_09h14m.Subject 53'!Q16 -> 0.2435341719
A22: 20 | B22: ='!2011-06-14_08h49m.Subject 53'!B2:C2 -> 2011-06-14 | C22: =('!2011-06-14_08h49m.Subject 53'!F62/60)/'!2011-06-14_08h49m.Subject 53'!Q3 -> 1.947619048 | D22: ='!2011-06-14_08h49m.Subject 53'!N20/'!2011-06-14_08h49m.Subject 53'!Q3 -> 0.6964285714 | E22: =SUM('!2011-06-14_08h49m.Subject 53'!L20:Q20)/'!2011-06-14_08h49m.Subject 53'!Q3 -> 4.803571429 | F22: ='!2011-06-14_08h49m.Subject 53'!Q16 -> 0.2446756101
A23: 21 | B23: ='!2011-06-15_11h11m.Subject 53'!B2:C2 -> 2011-06-15 | C23: =('!2011-06-15_11h11m.Subject 53'!F57/60)/'!2011-06-15_11h11m.Subject 53'!Q3 -> 1.854248366 | D23: ='!2011-06-15_11h11m.Subject 53'!N20/'!2011-06-15_11h11m.Subject 53'!Q3 -> 0.7647058824 | E23: =SUM('!2011-06-15_11h11m.Subject 53'!L20:Q20)/'!2011-06-15_11h11m.Subject 53'!Q3 -> 3.274509804 | F23: ='!2011-06-15_11h11m.Subject 53'!Q16 -> 0.2057131663
A24: 22 | B24: ='!2011-06-16_09h17m.Subject 53'!B2:C2 -> 2011-06-16 | C24: =('!2011-06-16_09h17m.Subject 53'!F55/60)/'!2011-06-16_09h17m.Subject 53'!Q3 -> 1.856122449 | D24: ='!2011-06-16_09h17m.Subject 53'!N20/'!2011-06-16_09h17m.Subject 53'!Q3 -> 0.7959183673 | E24: =SUM('!2011-06-16_09h17m.Subject 53'!L20:Q20)/'!2011-06-16_09h17m.Subject 53'!Q3 -> 5.428571429 | F24: ='!2011-06-16_09h17m.Subject 53'!Q16 -> 0.1912816887
A25: 23 | B25: ='!2011-06-17_08h26m.Subject 53'!B2:C2 -> 2011-06-17 | C25: =('!2011-06-17_08h26m.Subject 53'!F57/60)/'!2011-06-17_08h26m.Subject 53'!Q3 -> 1.834640523 | D25: ='!2011-06-17_08h26m.Subject 53'!N20/'!2011-06-17_08h26m.Subject 53'!Q3 -> 0.7647058824 | E25: =SUM('!2011-06-17_08h26m.Subject 53'!L20:Q20)/'!2011-06-17_08h26m.Subject 53'!Q3 -> 5.235294118 | F25: ='!2011-06-17_08h26m.Subject 53'!Q16 -> 0.2364659866
A26: 24 | B26: ='!2011-06-18_09h25m.Subject 53'!B2:C2 -> 2011-06-18 | C26: =('!2011-06-18_09h25m.Subject 53'!F54/60)/'!2011-06-18_09h25m.Subject 53'!Q3 -> 1.917361111 | D26: ='!2011-06-18_09h25m.Subject 53'!N20/'!2011-06-18_09h25m.Subject 53'!Q3 -> 0.7916666667 | E26: =SUM('!2011-06-18_09h25m.Subject 53'!L20:Q20)/'!2011-06-18_09h25m.Subject 53'!Q3 -> 5.520833333 | F26: ='!2011-06-18_09h25m.Subject 53'!Q16 -> 0.220634052
A27: 25 | B27: ='!2011-06-19_14h06m.Subject 53'!B2:C2 -> 2011-06-19 | C27: =('!2011-06-19_14h06m.Subject 53'!F69/60)/'!2011-06-19_14h06m.Subject 53'!Q3 -> 2.164814815 | D27: ='!2011-06-19_14h06m.Subject 53'!N20/'!2011-06-19_14h06m.Subject 53'!Q3 -> 0.5714285714 | E27: =SUM('!2011-06-19_14h06m.Subject 53'!L20:Q20)/'!2011-06-19_14h06m.Subject 53'!Q3 -> 4.253968254 | F27: ='!2011-06-19_14h06m.Subject 53'!Q16 -> 0.3495739659
A28: 26 | B28: ='!2011-06-20_09h24m.Subject 53'!B2:C2 -> 2011-06-20 | C28: =('!2011-06-20_09h24m.Subject 53'!F137/60)/'!2011-06-20_09h24m.Subject 53'!Q3 -> 2.156615776 | D28: ='!2011-06-20_09h24m.Subject 53'!N20/'!2011-06-20_09h24m.Subject 53'!Q3 -> 0.2900763359 | E28: =SUM('!2011-06-20_09h24m.Subject 53'!L20:Q20)/'!2011-06-20_09h24m.Subject 53'!Q3 -> 2.236641221 | F28: ='!2011-06-20_09h24m.Subject 53'!Q16 -> 0.2609159216
A29: 27 | B29: ='!2011-06-23_09h08m.Subject 53'!B2:C2 -> 2011-06-23 | C29: =('!2011-06-23_09h08m.Subject 53'!F69/60)/'!2011-06-23_09h08m.Subject 53'!Q3 -> 1.945238095 | D29: ='!2011-06-23_09h08m.Subject 53'!N20/'!2011-06-23_09h08m.Subject 53'!Q3 -> 0.619047619 | E29: =SUM('!2011-06-23_09h08m.Subject 53'!L20:Q20)/'!2011-06-23_09h08m.Subject 53'!Q3 -> 4.46031746 | F29: ='!2011-06-23_09h08m.Subject 53'!Q16 -> 0.3141498577
A30: 28 | B30: ='!2011-06-24_08h19m.Subject 53'!B2:C2 -> 2011-06-24 | C30: =('!2011-06-24_08h19m.Subject 53'!F57/60)/'!2011-06-24_08h19m.Subject 53'!Q3 -> 1.878104575 | D30: ='!2011-06-24_08h19m.Subject 53'!N20/'!2011-06-24_08h19m.Subject 53'!Q3 -> 0.7647058824 | E30: =SUM('!2011-06-24_08h19m.Subject 53'!L20:Q20)/'!2011-06-24_08h19m.Subject 53'!Q3 -> 5.235294118 | F30: ='!2011-06-24_08h19m.Subject 53'!Q16 -> 0.1724157653
A31: 29 | B31: ='!2011-06-25_08h05m.Subject 53'!B2:C2 -> 2011-06-25 | C31: =('!2011-06-25_08h05m.Subject 53'!F57/60)/'!2011-06-25_08h05m.Subject 53'!Q3 -> 1.94248366 | D31: ='!2011-06-25_08h05m.Subject 53'!N20/'!2011-06-25_08h05m.Subject 53'!Q3 -> 0.7647058824 | E31: =SUM('!2011-06-25_08h05m.Subject 53'!L20:Q20)/'!2011-06-25_08h05m.Subject 53'!Q3 -> 5.235294118 | F31: ='!2011-06-25_08h05m.Subject 53'!Q16 -> 0.1975950648
A32: 30

Sheet Start
F1: Use Folder 51 | H1: Auto Clean Up | J1: Correct sequence
F2: FALSE | H2: TRUE | J2: 211
A4: Working with Folder | G4: Process All/Or Pick A number: ALL or an integer
A5: G:\Hen Chapter\Raw Data\53\Phase 1 var\ | G5: ALL
A6: Filenames:
A7: !2011-05-19_09h50m.Subject 53 | G7: Paint Cells
A8: !2011-05-21_09h42m.Subject 53 | G8: FALSE
A9: !2011-05-22_09h18m.Subject 53
A10: !2011-05-26_09h17m.Subject 53
A11: !2011-05-28_14h16m.Subject 53
A12: !2011-05-29_08h34m.Subject 53
A13: !2011-06-01_08h42m.Subject 53
A14: !2011-06-02_11h29m.Subject 53
A15: !2011-06-03_11h25m.Subject 53
A16: !2011-06-04_11h08m.Subject 53
A17: !2011-06-05_10h17m.Subject 53
A18: !2011-06-06_09h20m.Subject 53
A19: !2011-06-07_08h59m.Subject 53
A20: !2011-06-08_08h28m.Subject 53
A21: !2011-06-09_09h18m.Subject 53
A22: !2011-06-10_09h48m.Subject 53
A23: !2011-06-11_09h25m.Subject 53
A24: !2011-06-12_09h33m.Subject 53
A25: !2011-06-13_09h14m.Subject 53
A26: !2011-06-14_08h49m.Subject 53
A27: !2011-06-15_11h11m.Subject 53
A28: !2011-06-16_09h17m.Subject 53
A29: !2011-06-17_08h26m.Subject 53
A30: !2011-06-18_09h25m.Subject 53
A31: !2011-06-19_14h06m.Subject 53
A32: !2011-06-20_09h24m.Subject 53
A33: !2011-06-23_09h08m.Subject 53
A34: !2011-06-24_08h19m.Subject 53
A35: !2011-06-25_08h05m.Subject 53

Sheet !2011-05-19_09h50m.Subject 53
A1: Report for:!2011-05-19_09h50m.Subject 53
A2: Date | B2: 2011-05-19 | F2: Group | G2: 0
A3: Hen | B3: 53 | F3: Correct Sequence | G3: =Start!J2 -> 211 | P3: Total Sequences in Data | Q3: =4994-COUNTBLANK(L7:L5000) -> 73 | V3: Total Sequences in Block Data | W3: =COUNTA(L7:L18) -> 12 | AA3: Total Sequences in Block Data | AB3: =COUNTA(L19:L30) -> 12 | AF3: Total Sequences in Block Data | AG3: =COUNTA(L31:L43) -> 13 | AK3: Total Sequences in Block Data | AL3: =COUNTA(L44:L55) -> 12 | AP3: Total Sequences in Block Data | AQ3: =COUNTA(L56:L67) -> 12 | AU3: Total Sequences in Block Data | AV3: =COUNTA(L68:L79) -> 12
A4: Program | B4: 0 | P4: Total Sequences in Summary | Q4: =SUM(O7:O14) -> 73 | V4: Total Sequences in Block Summary | W4: =SUM(U7:U14) -> 12 | AA4: Total Sequences in Block Summary | AB4: =SUM(Z7:Z14) -> 12 | AF4: Total Sequences in Block Summary | AG4: =SUM(AE7:AE14) -> 13 | AK4: Total Sequences in Block Summary | AL4: =SUM(AJ7:AJ14) -> 12 | AP4: Total Sequences in Block Summary | AQ4: =SUM(AO7:AO14) -> 12 | AU4: Total Sequences in Block Summary | AV4: =SUM(AT7:AT14) -> 12
T5: Block 1 | Y5: Block 2 | AD5: Block 3 | AI5: Block 4 | AN5: Block 5 | AS5: Block 6
A6: Sequence Component 1 | B6: Time 1 | C6: Sequence Component 2 | D6: Time 2 | E6: Sequence Component 3 | F6: Time 3 | G6: Sequence Component 4 | H6: Time 4 | I6: Sequence Component 5 | J6: Time 5 | K6: Correct? 0=No 1=Yes | L6: Sequence | N6: Frequency | P6: Relative Frequency | Q6: Variability | T6: Frequency | V6: Relative Frequency | W6: Variability | Y6: Frequency | AA6: Relative Frequency | AB6: Variability | AD6: Frequency | AF6: Relative Frequency | AG6: Variability | AI6: Frequency | AK6: Relative Frequency | AL6: Variability | AN6: Frequency | AP6: Relative Frequency | AQ6: Variability | AS6: Frequency | AU6: Relative Frequency | AV6: Variability
A7: 21 | B7: 26 | C7: 22 | D7: 35 | E7: 24 | F7: 44 | K7: 0 | L7: 222 | N7: 111 | O7: =COUNTIF($L$7:$L$500,N7) -> 0 | P7: =O7/$Q$4 -> 0 | Q7: =IF(P7=0,0,(P7*((LOG(P7))/LOG(2)))) -> 0 | T7: =N7 -> 111 | U7: =COUNTIF(L7:L18,T7) -> 0 | V7: =U7/(W4-U11) -> 0 | W7: =IF(V7=0,0,(V7*((LOG(V7))/LOG(2)))) -> 0 | Y7: =N7 -> 111 | Z7: =COUNTIF(L19:L30,Y7) -> 0 | AA7: =Z7/(AB4-Z11) -> 0 | AB7: =IF(AA7=0,0,(AA7*((LOG(AA7))/LOG(2)))) -> 0 | AD7: =N7 -> 111 | AE7: =COUNTIF(L31:L43,AD7) -> 0 | AF7: =AE7/(AG4-AE11) -> 0 | AG7: =IF(AF7=0,0,(AF7*((LOG(AF7))/LOG(2)))) -> 0 | AI7: =N7 -> 111 | AJ7: =COUNTIF(L44:L55,AI7) -> 0 | AK7: =AJ7/(AL4-AJ11) -> 0 | AL7: =IF(AK7=0,0,(AK7*((LOG(AK7))/LOG(2)))) -> 0 | AN7: =N7 -> 111 | AO7: =COUNTIF(L56:L67,AN7) -> 0 | AP7: =AO7/(AQ4-AO11) -> 0 | AQ7: =IF(AP7=0,0,(AP7*((LOG(AP7))/LOG(2)))) -> 0 | AS7: =N7 -> 111 | AT7: =COUNTIF(L68:L79,AS7) -> 0 | AU7: =AT7/(AV4-AT11) -> 0 | AV7: =IF(AU7=0,0,(AU7*((LOG(AU7))/LOG(2)))) -> 0
A8: 21 | B8: 150 | C8: 22 | D8: 160 | E8: 24 | F8: 165 | K8: 0 | L8: 222 | N8: 112 | O8: =COUNTIF($L$7:$L$500,N8) -> 5 | P8: =O8/$Q$4 -> 0.06849315068 | Q8: =IF(P8=0,0,(P8*((LOG(P8))/LOG(2)))) -> -0.2649244153 | T8: =N8 -> 112 | U8: =COUNTIF(L7:L18,T8) -> 2 | V8: =U8/(W4-U11) -> 0.1666666667 | W8: =IF(V8=0,0,(V8*((LOG(V8))/LOG(2)))) -> -0.4308270835 | Y8: =N8 -> 112 | Z8: =COUNTIF(L19:L30,Y8) -> 2 | AA8: =Z8/(AB4-Z11) -> 0.1666666667 | AB8: =IF(AA8=0,0,(AA8*((LOG(AA8))/LOG(2)))) -> -0.4308270835 | AD8: =N8 -> 112 | AE8: =COUNTIF(L31:L43,AD8) -> 0 | AF8: =AE8/(AG4-AE11) -> 0 | AG8: =IF(AF8=0,0,(AF8*((LOG(AF8))/LOG(2)))) -> 0 | AI8: =N8 -> 112 | AJ8: =COUNTIF(L44:L55,AI8) -> 1 | AK8: =AJ8/(AL4-AJ11) -> 0.08333333333 | AL8: =IF(AK8=0,0,(AK8*((LOG(AK8))/LOG(2)))) -> -0.2987468751 | AN8: =N8 -> 112 | AO8: =COUNTIF(L56:L67,AN8) -> 0 | AP8: =AO8/(AQ4-AO11) -> 0 | AQ8: =IF(AP8=0,0,(AP8*((LOG(AP8))/LOG(2)))) -> 0 | AS8: =N8 -> 112 | AT8: =COUNTIF(L68:L79,AS8) -> 0 | AU8: =AT8/(AV4-AT11) -> 0 | AV8: =IF(AU8=0,0,(AU8*((LOG(AU8))/LOG(2)))) -> 0
A9: 12 | B9: 270 | C9: 24 | D9: 285 | E9: 24 | F9: 293 | K9: 0 | L9: 122 | N9: 121 | O9: =COUNTIF($L$7:$L$500,N9) -> 0 | P9: =O9/$Q$4 -> 0 | Q9: =IF(P9=0,0,(P9*((LOG(P9))/LOG(2)))) -> 0 | T9: =N9 -> 121 | U9: =COUNTIF(L7:L18,T9) -> 0 | V9: =U9/(W4-U11) -> 0 | W9: =IF(V9=0,0,(V9*((LOG(V9))/LOG(2)))) -> 0 | Y9: =N9 -> 121 | Z9: =COUNTIF(L19:L30,Y9) -> 0 | AA9: =Z9/(AB4-Z11) -> 0 | AB9: =IF(AA9=0,0,(AA9*((LOG(AA9))/LOG(2)))) -> 0 | AD9: =N9 -> 121 | AE9: =COUNTIF(L31:L43,AD9) -> 0 | AF9: =AE9/(AG4-AE11) -> 0 | AG9: =IF(AF9=0,0,(AF9*((LOG(AF9))/LOG(2)))) -> 0 | AI9: =N9 -> 121 | AJ9: =COUNTIF(L44:L55,AI9) -> 0 | AK9: =AJ9/(AL4-AJ11) -> 0 | AL9: =IF(AK9=0,0,(AK9*((LOG(AK9))/LOG(2)))) -> 0 | AN9: =N9 -> 121 | AO9: =COUNTIF(L56:L67,AN9) -> 0 | AP9: =AO9/(AQ4-AO11) -> 0 | AQ9: =IF(AP9=0,0,(AP9*((LOG(AP9))/LOG(2)))) -> 0 | AS9: =N9 -> 121 | AT9: =COUNTIF(L68:L79,AS9) -> 0 | AU9: =AT9/(AV4-AT11) -> 0 | AV9: =IF(AU9=0,0,(AU9*((LOG(AU9))/LOG(2)))) -> 0
A10: 21 | B10: 398 | C10: 22 | D10: 406 | E10: 24 | F10: 415 | K10: 0 | L10: 222 | N10: 122 | O10: =COUNTIF($L$7:$L$500,N10) -> 27 | P10: =O10/$Q$4 -> 0.3698630137 | Q10: =IF(P10=0,0,(P10*((LOG(P10))/LOG(2)))) -> -0.5307301443 | T10: =N10 -> 122 | U10: =COUNTIF(L7:L18,T10) -> 3 | V10: =U10/(W4-U11) -> 0.25 | W10: =IF(V10=0,0,(V10*((LOG(V10))/LOG(2)))) -> -0.5 | Y10: =N10 -> 122 | Z10: =COUNTIF(L19:L30,Y10) -> 4 | AA10: =Z10/(AB4-Z11) -> 0.3333333333 | AB10: =IF(AA10=0,0,(AA10*((LOG(AA10))/LOG(2)))) -> -0.5283208336 | AD10: =N10 -> 122 | AE10: =COUNTIF(L31:L43,AD10) -> 4 | AF10: =AE10/(AG4-AE11) -> 0.3076923077 | AG10: =IF(AF10=0,0,(AF10*((LOG(AF10))/LOG(2)))) -> -0.523212221 | AI10: =N10 -> 122 | AJ10: =COUNTIF(L44:L55,AI10) -> 3 | AK10: =AJ10/(AL4-AJ11) -> 0.25 | AL10: =IF(AK10=0,0,(AK10*((LOG(AK10))/LOG(2)))) -> -0.5 | AN10: =N10 -> 122 | AO10: =COUNTIF(L56:L67,AN10) -> 7 | AP10: =AO10/(AQ4-AO11) -> 0.6363636364 | AQ10: =IF(AP10=0,0,(AP10*((LOG(AP10))/LOG(2)))) -> -0.4149578978 | AS10: =N10 -> 122 | AT10: =COUNTIF(L68:L79,AS10) -> 6 | AU10: =AT10/(AV4-AT11) -> 0.5 | AV10: =IF(AU10=0,0,(AU10*((LOG(AU10))/LOG(2)))) -> -0.5
A11: 12 | B11: 515 | C11: 13 | D11: 522 | E11: 24 | F11: 536 | K11: 0 | L11: 112 | N11: 211 | O11: =COUNTIF($L$7:$L$500,N11) -> 1 | P11: =O11/$Q$4 -> 0.01369863014 | Q11: =IF(P11=0,0,(P11*((LOG(P11))/LOG(2)))) -> -0.08479211724 | T11: =N11 -> 211 | U11: =COUNTIF(L7:L18,T11) -> 0 | Y11: =N11 -> 211 | Z11: =COUNTIF(L19:L30,Y11) -> 0 | AD11: =N11 -> 211 | AE11: =COUNTIF(L31:L43,AD11) -> 0 | AI11: =N11 -> 211 | AJ11: =COUNTIF(L44:L55,AI11) -> 0 | AN11: =N11 -> 211 | AO11: =COUNTIF(L56:L67,AN11) -> 1 | AS11: =N11 -> 211 | AT11: =COUNTIF(L68:L79,AS11) -> 0
A12: 21 | B12: 639 | C12: 22 | D12: 644 | E12: 24 | F12: 649 | K12: 0 | L12: 222 | N12: 212 | O12: =COUNTIF($L$7:$L$500,N12) -> 1 | P12: =O12/$Q$4 -> 0.01369863014 | Q12: =IF(P12=0,0,(P12*((LOG(P12))/LOG(2)))) -> -0.08479211724 | T12: =N12 -> 212 | U12: =COUNTIF(L7:L18,T12) -> 0 | V12: =U12/(W4-U11) -> 0 | W12: =IF(V12=0,0,(V12*((LOG(V12))/LOG(2)))) -> 0 | Y12: =N12 -> 212 | Z12: =COUNTIF(L19:L30,Y12) -> 0 | AA12: =Z12/(AB4-Z11) -> 0 | AB12: =IF(AA12=0,0,(AA12*((LOG(AA12))/LOG(2)))) -> 0 | AD12: =N12 -> 212 | AE12: =COUNTIF(L31:L43,AD12) -> 0 | AF12: =AE12/(AG4-AE11) -> 0 | AG12: =IF(AF12=0,0,(AF12*((LOG(AF12))/LOG(2)))) -> 0 | AI12: =N12 -> 212 | AJ12: =COUNTIF(L44:L55,AI12) -> 0 | AK12: =AJ12/(AL4-AJ11) -> 0 | AL12: =IF(AK12=0,0,(AK12*((LOG(AK12))/LOG(2)))) -> 0 | AN12: =N12 -> 212 | AO12: =COUNTIF(L56:L67,AN12) -> 0 | AP12: =AO12/(AQ4-AO11) -> 0 | AQ12: =IF(AP12=0,0,(AP12*((LOG(AP12))/LOG(2)))) -> 0 | AS12: =N12 -> 212 | AT12: =COUNTIF(L68:L79,AS12) -> 1 | AU12: =AT12/(AV4-AT11) -> 0.08333333333 | AV12: =IF(AU12=0,0,(AU12*((LOG(AU12))/LOG(2)))) -> -0.2987468751
A13: 21 | B13: 755 | C13: 22 | D13: 761 | E13: 24 | F13: 767 | K13: 0 | L13: 222 | N13: 221 | O13: =COUNTIF($L$7:$L$500,N13) -> 0 | P13: =O13/$Q$4 -> 0 | Q13: =IF(P13=0,0,(P13*((LOG(P13))/LOG(2)))) -> 0 | T13: =N13 -> 221 | U13: =COUNTIF(L7:L18,T13) -> 0 | V13: =U13/(W4-U11) -> 0 | W13: =IF(V13=0,0,(V13*((LOG(V13))/LOG(2)))) -> 0 | Y13: =N13 -> 221 | Z13: =COUNTIF(L19:L30,Y13) -> 0 | AA13: =Z13/(AB4-Z11) -> 0 | AB13: =IF(AA13=0,0,(AA13*((LOG(AA13))/LOG(2)))) -> 0 | AD13: =N13 -> 221 | AE13: =COUNTIF(L31:L43,AD13) -> 0 | AF13: =AE13/(AG4-AE11) -> 0 | AG13: =IF(AF13=0,0,(AF13*((LOG(AF13))/LOG(2)))) -> 0 | AI13: =N13 -> 221 | AJ13: =COUNTIF(L44:L55,AI13) -> 0 | AK13: =AJ13/(AL4-AJ11) -> 0 | AL13: =IF(AK13=0,0,(AK13*((LOG(AK13))/LOG(2)))) -> 0 | AN13: =N13 -> 221 | AO13: =COUNTIF(L56:L67,AN13) -> 0 | AP13: =AO13/(AQ4-AO11) -> 0 | AQ13: =IF(AP13=0,0,(AP13*((LOG(AP13))/LOG(2)))) -> 0 | AS13: =N13 -> 221 | AT13: =COUNTIF(L68:L79,AS13) -> 0 | AU13: =AT13/(AV4-AT11) -> 0 | AV13: =IF(AU13=0,0,(AU13*((LOG(AU13))/LOG(2)))) -> 0
A14: 21 | B14: 891 | C14: 22 | D14: 901 | E14: 24 | F14: 909 | K14: 0 | L14: 222 | N14: 222 | O14: =COUNTIF($L$7:$L$500,N14) -> 39 | P14: =O14/$Q$4 -> 0.5342465753 | Q14: =IF(P14=0,0,(P14*((LOG(P14))/LOG(2)))) -> -0.4831845378 | T14: =N14 -> 222 | U14: =COUNTIF(L7:L18,T14) -> 7 | V14: =U14/(W4-U11) -> 0.5833333333 | W14: =IF(V14=0,0,(V14*((LOG(V14))/LOG(2)))) -> -0.4536044209 | Y14: =N14 -> 222 | Z14: =COUNTIF(L19:L30,Y14) -> 6 | AA14: =Z14/(AB4-Z11) -> 0.5 | AB14: =IF(AA14=0,0,(AA14*((LOG(AA14))/LOG(2)))) -> -0.5 | AD14: =N14 -> 222 | AE14: =COUNTIF(L31:L43,AD14) -> 9 | AF14: =AE14/(AG4-AE11) -> 0.6923076923 | AG14: =IF(AF14=0,0,(AF14*((LOG(AF14))/LOG(2)))) -> -0.3672794193 | AI14: =N14 -> 222 | AJ14: =COUNTIF(L44:L55,AI14) -> 8 | AK14: =AJ14/(AL4-AJ11) -> 0.6666666667 | AL14: =IF(AK14=0,0,(AK14*((LOG(AK14))/LOG(2)))) -> -0.3899750005 | AN14: =N14 -> 222 | AO14: =COUNTIF(L56:L67,AN14) -> 4 | AP14: =AO14/(AQ4-AO11) -> 0.3636363636 | AQ14: =IF(AP14=0,0,(AP14*((LOG(AP14))/LOG(2)))) -> -0.5307024068 | AS14: =N14 -> 222 | AT14: =COUNTIF(L68:L79,AS14) -> 5 | AU14: =AT14/(AV4-AT11) -> 0.4166666667 | AV14: =IF(AU14=0,0,(AU14*((LOG(AU14))/LOG(2)))) -> -0.5262643358
A15: 21 | B15: 1028 | C15: 22 | D15: 1037 | E15: 24 | F15: 1046 | K15: 0 | L15: 222 | P15: =SUM(P7:P14) -> 1 | Q15: =-SUM(Q7:Q14) -> 1.448423332 | V15: =SUM(V7:V14) -> 1 | W15: =-SUM(W7:W14) -> 1.384431504 | AA15: =SUM(AA7:AA14) -> 1 | AB15: =-SUM(AB7:AB14) -> 1.459147917 | AF15: =SUM(AF7:AF14) -> 1 | AG15: =-SUM(AG7:AG14) -> 0.8904916402 | AK15: =SUM(AK7:AK14) -> 1 | AL15: =-SUM(AL7:AL14) -> 1.188721876 | AP15: =SUM(AP7:AP14) -> 1 | AQ15: =-SUM(AQ7:AQ14) -> 0.9456603046 | AU15: =SUM(AU7:AU14) -> 1 | AV15: =-SUM(AV7:AV14) -> 1.325011211
A16: 12 | B16: 1145 | C16: 24 | D16: 1159 | E16: 24 | F16: 1169 | K16: 0 | L16: 122 | P16: U= | Q16: =Q15/(LOG(Q4)/LOG(2)) -> 0.2340007084 | V16: U1= | W16: =W15/(LOG(W4)/LOG(2)) -> 0.3861774019 | AA16: U2= | AB16: =AB15/(LOG(AB4)/LOG(2)) -> 0.4070190181 | AF16: U3= | AG16: =AG15/(LOG(AG4)/LOG(2)) -> 0.2406448174 | AK16: U4= | AL16: =AL15/(LOG(AL4)/LOG(2)) -> 0.3315855815 | AP16: U5= | AQ16: =AQ15/(LOG(AQ4)/LOG(2)) -> 0.263785271 | AU16: U6= | AV16: =AV15/(LOG(AV4)/LOG(2)) -> 0.3696025302
A17: 12 | B17: 1272 | C17: 24 | D17: 1285 | E17: 24 | F17: 1295 | K17: 0 | L17: 122
A18: 12 | B18: 1403 | C18: 13 | D18: 1405 | E18: 24 | F18: 1420 | K18: 0 | L18: 112
A19: 21 | B19: 1535 | C19: 22 | D19: 1544 | E19: 24 | F19: 1554 | K19: 0 | L19: 222 | N19: Total Target Seq
A20: 21 | B20: 1666 | C20: 22 | D20: 1674 | E20: 24 | F20: 1681 | K20: 0 | L20: 222 | N20: =COUNTIF(L7:L79,G3) -> 1 | P20: 12 | Q20: 12 | R20: 13 | S20: 12 | T20: 12 | U20: 12
A21: 12 | B21: 1782 | C21: 24 | D21: 1795 | E21: 24 | F21: 1804 | K21: 0 | L21: 122 | P21: % of reinforcement given in 6 equal intervals based on number of trials
A22: 21 | B22: 1911 | C22: 22 | D22: 1919 | E22: 24 | F22: 1927 | K22: 0 | L22: 222 | P22: %_1 | Q22: %_2 | R22: %_3 | S22: %_4 | T22: %_5 | U22: %_6
A23: 12 | B23: 2026 | C23: 24 | D23: 2040 | E23: 24 | F23: 2048 | K23: 0 | L23: 122 | O23: target sequence | P23: =$G$3 -> 211 | Q23: =$G$3 -> 211 | R23: =$G$3 -> 211 | S23: =$G$3 -> 211 | T23: =$G$3 -> 211 | U23: =$G$3 -> 211
A24: 12 | B24: 2149 | C24: 13 | D24: 2150 | E24: 24 | F24: 2163 | K24: 0 | L24: 112 | O24: total reinforcement | P24: =U11 -> 0 | Q24: =Z11 -> 0 | R24: =AE11 -> 0 | S24: =AJ11 -> 0 | T24: =AO11 -> 1 | U24: =AT11 -> 0
A25: 21 | B25: 2278 | C25: 22 | D25: 2286 | E25: 24 | F25: 2294 | K25: 0 | L25: 222 | O25: % target
A26: 12 | B26: 2398 | C26: 13 | D26: 2399 | E26: 24 | F26: 2413 | K26: 0 | L26: 112 | O26: CCRF
A27: 12 | B27: 2513 | C27: 24 | D27: 2527 | E27: 24 | F27: 2535 | K27: 0 | L27: 122 | O27: % CCRf
A28: 21 | B28: 2657 | C28: 22 | D28: 2666 | E28: 24 | F28: 2675 | K28: 0 | L28: 222 | O28: average response rate | P28: =F18/P20 -> 118.3333333 | Q28: =(F30-F18)/Q20 -> 125.5 | R28: =(F43-F30)/R20 -> 140.0769231 | S28: =(F55-F43)/S20 -> 273.4166667 | T28: =(F67-F55)/T20 -> 549 | U28: =(F79-F67)/U20 -> 274.8333333
A29: 12 | B29: 2777 | C29: 24 | D29: 2790 | E29: 24 | F29: 2798 | K29: 0 | L29: 122
A30: 21 | B30: 2910 | C30: 22 | D30: 2915 | E30: 24 | F30: 2926 | K30: 0 | L30: 222
A31: 21 | B31: 3042 | C31: 22 | D31: 3050 | E31: 24 | F31: 3060 | K31: 0 | L31: 222
A32: 21 | B32: 3180 | C32: 22 | D32: 3239 | E32: 24 | F32: 3248 | K32: 0 | L32: 222
A33: 21 | B33: 3375 | C33: 22 | D33: 3384 | E33: 24 | F33: 3392 | K33: 0 | L33: 222
A34: 21 | B34: 3509 | C34: 22 | D34: 3517 | E34: 24 | F34: 3525 | K34: 0 | L34: 222
A35: 21 | B35: 3642 | C35: 22 | D35: 3651 | E35: 24 | F35: 3658 | K35: 0 | L35: 222
A36: 12 | B36: 3761 | C36: 24 | D36: 3797 | E36: 24 | F36: 3807 | K36: 0 | L36: 122
A37: 21 | B37: 3918 | C37: 22 | D37: 3927 | E37: 24 | F37: 3935 | K37: 0 | L37: 222
A38: 21 | B38: 4057 | C38: 22 | D38: 4066 | E38: 24 | F38: 4075 | K38: 0 | L38: 222
A39: 12 | B39: 4177 | C39: 24 | D39: 4190 | E39: 24 | F39: 4198 | K39: 0 | L39: 122
A40: 21 | B40: 4343 | C40: 22 | D40: 4351 | E40: 24 | F40: 4360 | K40: 0 | L40: 222
A41: 12 | B41: 4458 | C41: 24 | D41: 4472 | E41: 24 | F41: 4481 | K41: 0 | L41: 122
A42: 21 | B42: 4596 | C42: 22 | D42: 4605 | E42: 24 | F42: 4614 | K42: 0 | L42: 222
A43: 12 | B43: 4723 | C43: 24 | D43: 4738 | E43: 24 | F43: 4747 | K43: 0 | L43: 122
A44: 12 | B44: 4854 | C44: 24 | D44: 4872 | E44: 24 | F44: 4880 | K44: 0 | L44: 122
A45: 21 | B45: 4997 | C45: 22 | D45: 5018 | E45: 24 | F45: 5027 | K45: 0 | L45: 222
A46: 21 | B46: 5146 | C46: 22 | D46: 5153 | E46: 24 | F46: 5161 | K46: 0 | L46: 222
A47: 21 | B47: 5583 | C47: 22 | D47: 5591 | E47: 24 | F47: 5603 | K47: 0 | L47: 222
A48: 21 | B48: 5767 | C48: 22 | D48: 5776 | E48: 24 | F48: 5784 | K48: 0 | L48: 222
A49: 21 | B49: 5991 | C49: 22 | D49: 6001 | E49: 24 | F49: 6010 | K49: 0 | L49: 222
A50: 21 | B50: 6164 | C50: 22 | D50: 6171 | E50: 24 | F50: 6210 | K50: 0 | L50: 222
A51: 21 | B51: 6925 | C51: 22 | D51: 6935 | E51: 24 | F51: 6945 | K51: 0 | L51: 222
A52: 21 | B52: 7183 | C52: 22 | D52: 7241 | E52: 24 | F52: 7250 | K52: 0 | L52: 222
A53: 12 | B53: 7406 | C53: 24 | D53: 7435 | E53: 24 | F53: 7441 | K53: 0 | L53: 122
A54: 12 | B54: 7811 | C54: 24 | D54: 7844 | E54: 24 | F54: 7854 | K54: 0 | L54: 122
A55: 12 | B55: 7976 | C55: 13 | D55: 8004 | E55: 24 | F55: 8028 | K55: 0 | L55: 112
A56: 12 | B56: 8165 | C56: 24 | D56: 8183 | E56: 24 | F56: 8191 | K56: 0 | L56: 122
A57: 12 | B57: 8540 | C57: 24 | D57: 8558 | E57: 24 | F57: 8565 | K57: 0 | L57: 122
A58: 21 | B58: 12762 | C58: 11 | D58: 12802 | E58: 11 | F58: 12934 | K58: 0 | L58: 211
A59: 12 | B59: 13149 | C59: 24 | D59: 13166 | E59: 24 | F59: 13174 | K59: 0 | L59: 122
A60: 12 | B60: 13326 | C60: 24 | D60: 13343 | E60: 24 | F60: 13352 | K60: 0 | L60: 122
A61: 21 | B61: 13728 | C61: 22 | D61: 13736 | E61: 24 | F61: 13746 | K61: 0 | L61: 222
A62: 12 | B62: 13893 | C62: 24 | D62: 13910 | E62: 24 | F62: 13918 | K62: 0 | L62: 122
A63: 12 | B63: 14035 | C63: 24 | D63: 14048 | E63: 24 | F63: 14058 | K63: 0 | L63: 122
A64: 21 | B64: 14201 | C64: 22 | D64: 14209 | E64: 24 | F64: 14217 | K64: 0 | L64: 222
A65: 21 | B65: 14327 | C65: 22 | D65: 14335 | E65: 24 | F65: 14344 | K65: 0 | L65: 222
A66: 12 | B66: 14455 | C66: 24 | D66: 14472 | E66: 24 | F66: 14482 | K66: 0 | L66: 122
A67: 21 | B67: 14599 | C67: 22 | D67: 14607 | E67: 24 | F67: 14616 | K67: 0 | L67: 222
A68: 12 | B68: 14739 | C68: 24 | D68: 14753 | E68: 24 | F68: 14762 | K68: 0 | L68: 122
A69: 21 | B69: 14870 | C69: 22 | D69: 14878 | E69: 24 | F69: 14887 | K69: 0 | L69: 222
A70: 21 | B70: 15006 | C70: 22 | D70: 15016 | E70: 24 | F70: 15026 | K70: 0 | L70: 222
A71: 12 | B71: 15154 | C71: 24 | D71: 15167 | E71: 24 | F71: 15177 | K71: 0 | L71: 122
A72: 12 | B72: 15286 | C72: 24 | D72: 15300 | E72: 24 | F72: 15309 | K72: 0 | L72: 122
A73: 21 | B73: 15427 | C73: 22 | D73: 15435 | E73: 24 | F73: 15445 | K73: 0 | L73: 222
A74: 12 | B74: 15610 | C74: 24 | D74: 15624 | E74: 24 | F74: 15634 | K74: 0 | L74: 122
A75: 12 | B75: 15846 | C75: 24 | D75: 15891 | E75: 24 | F75: 15901 | K75: 0 | L75: 122
A76: 12 | B76: 16639 | C76: 24 | D76: 16656 | E76: 24 | F76: 16665 | K76: 0 | L76: 122
A77: 21 | B77: 16779 | C77: 22 | D77: 16790 | E77: 24 | F77: 16801 | K77: 0 | L77: 222
A78: 21 | B78: 17251 | C78: 11 | D78: 17269 | E78: 22 | F78: 17285 | K78: 0 | L78: 212
A79: 21 | B79: 17460 | C79: 22 | D79: 17470 | E79: 24 | F79: 17914 | K79: 0 | L79: 222

Sheet !2011-05-21_09h42m.Subject 53
A1: Report for:!2011-05-21_09h42m.Subject 53
A2: Date | B2: 2011-05-21 | F2: Group | G2: 0
A3: Hen | B3: 53 | F3: Correct Sequence | G3: =Start!J2 -> 211 | P3: Total Sequences in Data | Q3: =4994-COUNTBLANK(L7:L5000) -> 94 | V3: Total Sequences in Block Data | W3: =COUNTA(L7:L22) -> 16 | AA3: Total Sequences in Block Data | AB3: =COUNTA(L23:L37) -> 15 | AF3: Total Sequences in Block Data | AG3: =COUNTA(L38:L53) -> 16 | AK3: Total Sequences in Block Data | AL3: =COUNTA(L54:L69) -> 16 | AP3: Total Sequences in Block Data | AQ3: =COUNTA(L70:L84) -> 15 | AU3: Total Sequences in Block Data | AV3: =COUNTA(L85:L100) -> 16
A4: Program | B4: 0 | P4: Total Sequences in Summary | Q4: =SUM(O7:O14) -> 94 | V4: Total Sequences in Block Summary | W4: =SUM(U7:U14) -> 16 | AA4: Total Sequences in Block Summary | AB4: =SUM(Z7:Z14) -> 15 | AF4: Total Sequences in Block Summary | AG4: =SUM(AE7:AE14) -> 16 | AK4: Total Sequences in Block Summary | AL4: =SUM(AJ7:AJ14) -> 16 | AP4: Total Sequences in Block Summary | AQ4: =SUM(AO7:AO14) -> 15 | AU4: Total Sequences in Block Summary | AV4: =SUM(AT7:AT14) -> 16
T5: Block 1 | Y5: Block 2 | AD5: Block 3 | AI5: Block 4 | AN5: Block 5 | AS5: Block 6
A6: Sequence Component 1 | B6: Time 1 | C6: Sequence Component 2 | D6: Time 2 | E6: Sequence Component 3 | F6: Time 3 | G6: Sequence Component 4 | H6: Time 4 | I6: Sequence Component 5 | J6: Time 5 | K6: Correct? 0=No 1=Yes | L6: Sequence | N6: Frequency | P6: Relative Frequency | Q6: Variability | T6: Frequency | V6: Relative Frequency | W6: Variability | Y6: Frequency | AA6: Relative Frequency | AB6: Variability | AD6: Frequency | AF6: Relative Frequency | AG6: Variability | AI6: Frequency | AK6: Relative Frequency | AL6: Variability | AN6: Frequency | AP6: Relative Frequency | AQ6: Variability | AS6: Frequency | AU6: Relative Frequency | AV6: Variability
A7: 21 | B7: 32 | C7: 22 | D7: 40 | E7: 24 | F7: 47 | K7: 0 | L7: 222 | N7: 111 | O7: =COUNTIF($L$7:$L$500,N7) -> 11 | P7: =O7/$Q$4 -> 0.1170212766 | Q7: =IF(P7=0,0,(P7*((LOG(P7))/LOG(2)))) -> -0.3621992507 | T7: =N7 -> 111 | U7: =COUNTIF(L7:L22,T7) -> 0 | V7: =U7/(W4-U11) -> 0 | W7: =IF(V7=0,0,(V7*((LOG(V7))/LOG(2)))) -> 0 | Y7: =N7 -> 111 | Z7: =COUNTIF(L23:L37,Y7) -> 0 | AA7: =Z7/(AB4-Z11) -> 0 | AB7: =IF(AA7=0,0,(AA7*((LOG(AA7))/LOG(2)))) -> 0 | AD7: =N7 -> 111 | AE7: =COUNTIF(L38:L53,AD7) -> 2 | AF7: =AE7/(AG4-AE11) -> 0.1333333333 | AG7: =IF(AF7=0,0,(AF7*((LOG(AF7))/LOG(2)))) -> -0.3875854127 | AI7: =N7 -> 111 | AJ7: =COUNTIF(L54:L69,AI7) -> 1 | AK7: =AJ7/(AL4-AJ11) -> 0.06666666667 | AL7: =IF(AK7=0,0,(AK7*((LOG(AK7))/LOG(2)))) -> -0.260459373 | AN7: =N7 -> 111 | AO7: =COUNTIF(L70:L84,AN7) -> 1 | AP7: =AO7/(AQ4-AO11) -> 0.06666666667 | AQ7: =IF(AP7=0,0,(AP7*((LOG(AP7))/LOG(2)))) -> -0.260459373 | AS7: =N7 -> 111 | AT7: =COUNTIF(L85:L100,AS7) -> 7 | AU7: =AT7/(AV4-AT11) -> 0.4375 | AV7: =IF(AU7=0,0,(AU7*((LOG(AU7))/LOG(2)))) -> -0.5217822216
A8: 12 | B8: 148 | C8: 24 | D8: 161 | E8: 24 | F8: 168 | K8: 0 | L8: 122 | N8: 112 | O8: =COUNTIF($L$7:$L$500,N8) -> 19 | P8: =O8/$Q$4 -> 0.2021276596 | Q8: =IF(P8=0,0,(P8*((LOG(P8))/LOG(2)))) -> -0.4662400577 | T8: =N8 -> 112 | U8: =COUNTIF(L7:L22,T8) -> 1 | V8: =U8/(W4-U11) -> 0.0625 | W8: =IF(V8=0,0,(V8*((LOG(V8))/LOG(2)))) -> -0.25 | Y8: =N8 -> 112 | Z8: =COUNTIF(L23:L37,Y8) -> 3 | AA8: =Z8/(AB4-Z11) -> 0.2 | AB8: =IF(AA8=0,0,(AA8*((LOG(AA8))/LOG(2)))) -> -0.464385619 | AD8: =N8 -> 112 | AE8: =COUNTIF(L38:L53,AD8) -> 0 | AF8: =AE8/(AG4-AE11) -> 0 | AG8: =IF(AF8=0,0,(AF8*((LOG(AF8))/LOG(2)))) -> 0 | AI8: =N8 -> 112 | AJ8: =COUNTIF(L54:L69,AI8) -> 6 | AK8: =AJ8/(AL4-AJ11) -> 0.4 | AL8: =IF(AK8=0,0,(AK8*((LOG(AK8))/LOG(2)))) -> -0.528771238 | AN8: =N8 -> 112 | AO8: =COUNTIF(L70:L84,AN8) -> 4 | AP8: =AO8/(AQ4-AO11) -> 0.2666666667 | AQ8: =IF(AP8=0,0,(AP8*((LOG(AP8))/LOG(2)))) -> -0.5085041588 | AS8: =N8 -> 112 | AT8: =COUNTIF(L85:L100,AS8) -> 5 | AU8: =AT8/(AV4-AT11) -> 0.3125 | AV8: =IF(AU8=0,0,(AU8*((LOG(AU8))/LOG(2)))) -> -0.5243974703
A9: 12 | B9: 267 | C9: 24 | D9: 280 | E9: 24 | F9: 288 | K9: 0 | L9: 122 | N9: 121 | O9: =COUNTIF($L$7:$L$500,N9) -> 6 | P9: =O9/$Q$4 -> 0.06382978723 | Q9: =IF(P9=0,0,(P9*((LOG(P9))/LOG(2)))) -> -0.2533804054 | T9: =N9 -> 121 | U9: =COUNTIF(L7:L22,T9) -> 0 | V9: =U9/(W4-U11) -> 0 | W9: =IF(V9=0,0,(V9*((LOG(V9))/LOG(2)))) -> 0 | Y9: =N9 -> 121 | Z9: =COUNTIF(L23:L37,Y9) -> 0 | AA9: =Z9/(AB4-Z11) -> 0 | AB9: =IF(AA9=0,0,(AA9*((LOG(AA9))/LOG(2)))) -> 0 | AD9: =N9 -> 121 | AE9: =COUNTIF(L38:L53,AD9) -> 4 | AF9: =AE9/(AG4-AE11) -> 0.2666666667 | AG9: =IF(AF9=0,0,(AF9*((LOG(AF9))/LOG(2)))) -> -0.5085041588 | AI9: =N9 -> 121 | AJ9: =COUNTIF(L54:L69,AI9) -> 2 | AK9: =AJ9/(AL4-AJ11) -> 0.1333333333 | AL9: =IF(AK9=0,0,(AK9*((LOG(AK9))/LOG(2)))) -> -0.3875854127 | AN9: =N9 -> 121 | AO9: =COUNTIF(L70:L84,AN9) -> 0 | AP9: =AO9/(AQ4-AO11) -> 0 | AQ9: =IF(AP9=0,0,(AP9*((LOG(AP9))/LOG(2)))) -> 0 | AS9: =N9 -> 121 | AT9: =COUNTIF(L85:L100,AS9) -> 0 | AU9: =AT9/(AV4-AT11) -> 0 | AV9: =IF(AU9=0,0,(AU9*((LOG(AU9))/LOG(2)))) -> 0
A10: 12 | B10: 394 | C10: 24 | D10: 408 | E10: 24 | F10: 416 | K10: 0 | L10: 122 | N10: 122 | O10: =COUNTIF($L$7:$L$500,N10) -> 39 | P10: =O10/$Q$4 -> 0.414893617 | Q10: =IF(P10=0,0,(P10*((LOG(P10))/LOG(2)))) -> -0.5265774328 | T10: =N10 -> 122 | U10: =COUNTIF(L7:L22,T10) -> 10 | V10: =U10/(W4-U11) -> 0.625 | W10: =IF(V10=0,0,(V10*((LOG(V10))/LOG(2)))) -> -0.4237949407 | Y10: =N10 -> 122 | Z10: =COUNTIF(L23:L37,Y10) -> 7 | AA10: =Z10/(AB4-Z11) -> 0.4666666667 | AB10: =IF(AA10=0,0,(AA10*((LOG(AA10))/LOG(2)))) -> -0.5131166477 | AD10: =N10 -> 122 | AE10: =COUNTIF(L38:L53,AD10) -> 6 | AF10: =AE10/(AG4-AE11) -> 0.4 | AG10: =IF(AF10=0,0,(AF10*((LOG(AF10))/LOG(2)))) -> -0.528771238 | AI10: =N10 -> 122 | AJ10: =COUNTIF(L54:L69,AI10) -> 5 | AK10: =AJ10/(AL4-AJ11) -> 0.3333333333 | AL10: =IF(AK10=0,0,(AK10*((LOG(AK10))/LOG(2)))) -> -0.5283208336 | AN10: =N10 -> 122 | AO10: =COUNTIF(L70:L84,AN10) -> 8 | AP10: =AO10/(AQ4-AO11) -> 0.5333333333 | AQ10: =IF(AP10=0,0,(AP10*((LOG(AP10))/LOG(2)))) -> -0.4836749843 | AS10: =N10 -> 122 | AT10: =COUNTIF(L85:L100,AS10) -> 3 | AU10: =AT10/(AV4-AT11) -> 0.1875 | AV10: =IF(AU10=0,0,(AU10*((LOG(AU10))/LOG(2)))) -> -0.4528195311
A11: 21 | B11: 527 | C11: 22 | D11: 549 | E11: 24 | F11: 556 | K11: 0 | L11: 222 | N11: 211 | O11: =COUNTIF($L$7:$L$500,N11) -> 2 | P11: =O11/$Q$4 -> 0.02127659574 | Q11: =IF(P11=0,0,(P11*((LOG(P11))/LOG(2)))) -> -0.1181827415 | T11: =N11 -> 211 | U11: =COUNTIF(L7:L22,T11) -> 0 | Y11: =N11 -> 211 | Z11: =COUNTIF(L23:L37,Y11) -> 0 | AD11: =N11 -> 211 | AE11: =COUNTIF(L38:L53,AD11) -> 1 | AI11: =N11 -> 211 | AJ11: =COUNTIF(L54:L69,AI11) -> 1 | AN11: =N11 -> 211 | AO11: =COUNTIF(L70:L84,AN11) -> 0 | AS11: =N11 -> 211 | AT11: =COUNTIF(L85:L100,AS11) -> 0
A12: 12 | B12: 661 | C12: 24 | D12: 673 | E12: 24 | F12: 681 | K12: 0 | L12: 122 | N12: 212 | O12: =COUNTIF($L$7:$L$500,N12) -> 3 | P12: =O12/$Q$4 -> 0.03191489362 | Q12: =IF(P12=0,0,(P12*((LOG(P12))/LOG(2)))) -> -0.1586050963 | T12: =N12 -> 212 | U12: =COUNTIF(L7:L22,T12) -> 0 | V12: =U12/(W4-U11) -> 0 | W12: =IF(V12=0,0,(V12*((LOG(V12))/LOG(2)))) -> 0 | Y12: =N12 -> 212 | Z12: =COUNTIF(L23:L37,Y12) -> 1 | AA12: =Z12/(AB4-Z11) -> 0.06666666667 | AB12: =IF(AA12=0,0,(AA12*((LOG(AA12))/LOG(2)))) -> -0.260459373 | AD12: =N12 -> 212 | AE12: =COUNTIF(L38:L53,AD12) -> 0 | AF12: =AE12/(AG4-AE11) -> 0 | AG12: =IF(AF12=0,0,(AF12*((LOG(AF12))/LOG(2)))) -> 0 | AI12: =N12 -> 212 | AJ12: =COUNTIF(L54:L69,AI12) -> 1 | AK12: =AJ12/(AL4-AJ11) -> 0.06666666667 | AL12: =IF(AK12=0,0,(AK12*((LOG(AK12))/LOG(2)))) -> -0.260459373 | AN12: =N12 -> 212 | AO12: =COUNTIF(L70:L84,AN12) -> 0 | AP12: =AO12/(AQ4-AO11) -> 0 | AQ12: =IF(AP12=0,0,(AP12*((LOG(AP12))/LOG(2)))) -> 0 | AS12: =N12 -> 212 | AT12: =COUNTIF(L85:L100,AS12) -> 1 | AU12: =AT12/(AV4-AT11) -> 0.0625 | AV12: =IF(AU12=0,0,(AU12*((LOG(AU12))/LOG(2)))) -> -0.25
A13: 21 | B13: 787 | C13: 22 | D13: 794 | E13: 24 | F13: 800 | K13: 0 | L13: 222 | N13: 221 | O13: =COUNTIF($L$7:$L$500,N13) -> 0 | P13: =O13/$Q$4 -> 0 | Q13: =IF(P13=0,0,(P13*((LOG(P13))/LOG(2)))) -> 0 | T13: =N13 -> 221 | U13: =COUNTIF(L7:L22,T13) -> 0 | V13: =U13/(W4-U11) -> 0 | W13: =IF(V13=0,0,(V13*((LOG(V13))/LOG(2)))) -> 0 | Y13: =N13 -> 221 | Z13: =COUNTIF(L23:L37,Y13) -> 0 | AA13: =Z13/(AB4-Z11) -> 0 | AB13: =IF(AA13=0,0,(AA13*((LOG(AA13))/LOG(2)))) -> 0 | AD13: =N13 -> 221 | AE13: =COUNTIF(L38:L53,AD13) -> 0 | AF13: =AE13/(AG4-AE11) -> 0 | AG13: =IF(AF13=0,0,(AF13*((LOG(AF13))/LOG(2)))) -> 0 | AI13: =N13 -> 221 | AJ13: =COUNTIF(L54:L69,AI13) -> 0 | AK13: =AJ13/(AL4-AJ11) -> 0 | AL13: =IF(AK13=0,0,(AK13*((LOG(AK13))/LOG(2)))) -> 0 | AN13: =N13 -> 221 | AO13: =COUNTIF(L70:L84,AN13) -> 0 | AP13: =AO13/(AQ4-AO11) -> 0 | AQ13: =IF(AP13=0,0,(AP13*((LOG(AP13))/LOG(2)))) -> 0 | AS13: =N13 -> 221 | AT13: =COUNTIF(L85:L100,AS13) -> 0 | AU13: =AT13/(AV4-AT11) -> 0 | AV13: =IF(AU13=0,0,(AU13*((LOG(AU13))/LOG(2)))) -> 0
A14: 12 | B14: 910 | C14: 24 | D14: 926 | E14: 24 | F14: 934 | K14: 0 | L14: 122 | N14: 222 | O14: =COUNTIF($L$7:$L$500,N14) -> 14 | P14: =O14/$Q$4 -> 0.1489361702 | Q14: =IF(P14=0,0,(P14*((LOG(P14))/LOG(2)))) -> -0.4091625002 | T14: =N14 -> 222 | U14: =COUNTIF(L7:L22,T14) -> 5 | V14: =U14/(W4-U11) -> 0.3125 | W14: =IF(V14=0,0,(V14*((LOG(V14))/LOG(2)))) -> -0.5243974703 | Y14: =N14 -> 222 | Z14: =COUNTIF(L23:L37,Y14) -> 4 | AA14: =Z14/(AB4-Z11) -> 0.2666666667 | AB14: =IF(AA14=0,0,(AA14*((LOG(AA14))/LOG(2)))) -> -0.5085041588 | AD14: =N14 -> 222 | AE14: =COUNTIF(L38:L53,AD14) -> 3 | AF14: =AE14/(AG4-AE11) -> 0.2 | AG14: =IF(AF14=0,0,(AF14*((LOG(AF14))/LOG(2)))) -> -0.464385619 | AI14: =N14 -> 222 | AJ14: =COUNTIF(L54:L69,AI14) -> 0 | AK14: =AJ14/(AL4-AJ11) -> 0 | AL14: =IF(AK14=0,0,(AK14*((LOG(AK14))/LOG(2)))) -> 0 | AN14: =N14 -> 222 | AO14: =COUNTIF(L70:L84,AN14) -> 2 | AP14: =AO14/(AQ4-AO11) -> 0.1333333333 | AQ14: =IF(AP14=0,0,(AP14*((LOG(AP14))/LOG(2)))) -> -0.3875854127 | AS14: =N14 -> 222 | AT14: =COUNTIF(L85:L100,AS14) -> 0 | AU14: =AT14/(AV4-AT11) -> 0 | AV14: =IF(AU14=0,0,(AU14*((LOG(AU14))/LOG(2)))) -> 0
A15: 12 | B15: 1064 | C15: 24 | D15: 1078 | E15: 24 | F15: 1085 | K15: 0 | L15: 122 | P15: =SUM(P7:P14) -> 1 | Q15: =-SUM(Q7:Q14) -> 2.294347485 | V15: =SUM(V7:V14) -> 1 | W15: =-SUM(W7:W14) -> 1.198192411 | AA15: =SUM(AA7:AA14) -> 1 | AB15: =-SUM(AB7:AB14) -> 1.746465799 | AF15: =SUM(AF7:AF14) -> 1 | AG15: =-SUM(AG7:AG14) -> 1.889246429 | AK15: =SUM(AK7:AK14) -> 1 | AL15: =-SUM(AL7:AL14) -> 1.96559623 | AP15: =SUM(AP7:AP14) -> 1 | AQ15: =-SUM(AQ7:AQ14) -> 1.640223929 | AU15: =SUM(AU7:AU14) -> 1 | AV15: =-SUM(AV7:AV14) -> 1.748999223
A16: 12 | B16: 1198 | C16: 24 | D16: 1212 | E16: 24 | F16: 1219 | K16: 0 | L16: 122 | P16: U= | Q16: =Q15/(LOG(Q4)/LOG(2)) -> 0.3500368271 | V16: U1= | W16: =W15/(LOG(W4)/LOG(2)) -> 0.2995481028 | AA16: U2= | AB16: =AB15/(LOG(AB4)/LOG(2)) -> 0.4470219362 | AF16: U3= | AG16: =AG15/(LOG(AG4)/LOG(2)) -> 0.4723116071 | AK16: U4= | AL16: =AL15/(LOG(AL4)/LOG(2)) -> 0.4913990576 | AP16: U5= | AQ16: =AQ15/(LOG(AQ4)/LOG(2)) -> 0.4198284771 | AU16: U6= | AV16: =AV15/(LOG(AV4)/LOG(2)) -> 0.4372498058
A17: 12 | B17: 1318 | C17: 24 | D17: 1334 | E17: 24 | F17: 1342 | K17: 0 | L17: 122
A18: 12 | B18: 1448 | C18: 24 | D18: 1464 | E18: 24 | F18: 1472 | K18: 0 | L18: 122
A19: 12 | B19: 1582 | C19: 13 | D19: 1585 | E19: 24 | F19: 1599 | K19: 0 | L19: 112 | N19: Total Target Seq
A20: 12 | B20: 1690 | C20: 24 | D20: 1705 | E20: 24 | F20: 1733 | K20: 0 | L20: 122 | N20: =COUNTIF(L7:L100,G3) -> 2 | P20: 16 | Q20: 15 | R20: 16 | S20: 16 | T20: 15 | U20: 16
A21: 21 | B21: 1843 | C21: 22 | D21: 1852 | E21: 24 | F21: 1860 | K21: 0 | L21: 222 | P21: % of reinforcement given in 6 equal intervals based on number of trials
A22: 21 | B22: 1975 | C22: 22 | D22: 1984 | E22: 24 | F22: 1992 | K22: 0 | L22: 222 | P22: %_1 | Q22: %_2 | R22: %_3 | S22: %_4 | T22: %_5 | U22: %_6
A23: 12 | B23: 2098 | C23: 24 | D23: 2122 | E23: 24 | F23: 2131 | K23: 0 | L23: 122 | O23: target sequence | P23: =$G$3 -> 211 | Q23: =$G$3 -> 211 | R23: =$G$3 -> 211 | S23: =$G$3 -> 211 | T23: =$G$3 -> 211 | U23: =$G$3 -> 211
A24: 12 | B24: 2234 | C24: 24 | D24: 2250 | E24: 24 | F24: 2259 | K24: 0 | L24: 122 | O24: total reinforcement | P24: =U11 -> 0 | Q24: =Z11 -> 0 | R24: =AE11 -> 1 | S24: =AJ11 -> 1 | T24: =AO11 -> 0 | U24: =AT11 -> 0
A25: 21 | B25: 2373 | C25: 22 | D25: 2380 | E25: 24 | F25: 2389 | K25: 0 | L25: 222 | O25: % target
A26: 12 | B26: 2491 | C26: 13 | D26: 2493 | E26: 24 | F26: 2507 | K26: 0 | L26: 112 | O26: CCRF
A27: 12 | B27: 2610 | C27: 24 | D27: 2626 | E27: 24 | F27: 2636 | K27: 0 | L27: 122 | O27: % CCRf
A28: 21 | B28: 2746 | C28: 22 | D28: 2754 | E28: 24 | F28: 2762 | K28: 0 | L28: 222 | O28: average response rate | P28: =F22/P20 -> 124.5 | Q28: =(F37-F22)/Q20 -> 128.6 | R28: =(F53-F37)/R20 -> 153.3125 | S28: =(F69-F53)/S20 -> 192.25 | T28: =(F84-F69)/T20 -> 142.6 | U28: =(F100-F84)/U20 -> 181.3125
A29: 21 | B29: 2867 | C29: 11 | D29: 2885 | E29: 22 | F29: 2900 | K29: 0 | L29: 212
A30: 12 | B30: 3004 | C30: 24 | D30: 3021 | E30: 24 | F30: 3029 | K30: 0 | L30: 122
A31: 21 | B31: 3151 | C31: 22 | D31: 3160 | E31: 24 | F31: 3168 | K31: 0 | L31: 222
A32: 12 | B32: 3280 | C32: 13 | D32: 3281 | E32: 24 | F32: 3295 | K32: 0 | L32: 112
A33: 21 | B33: 3405 | C33: 22 | D33: 3413 | E33: 24 | F33: 3424 | K33: 0 | L33: 222
A34: 12 | B34: 3523 | C34: 24 | D34: 3538 | E34: 24 | F34: 3545 | K34: 0 | L34: 122
A35: 12 | B35: 3650 | C35: 24 | D35: 3666 | E35: 24 | F35: 3675 | K35: 0 | L35: 122
A36: 12 | B36: 3774 | C36: 24 | D36: 3792 | E36: 24 | F36: 3801 | K36: 0 | L36: 122
A37: 12 | B37: 3904 | C37: 13 | D37: 3906 | E37: 24 | F37: 3921 | K37: 0 | L37: 112
A38: 12 | B38: 4021 | C38: 24 | D38: 4075 | E38: 24 | F38: 4084 | K38: 0 | L38: 122
A39: 12 | B39: 4185 | C39: 24 | D39: 4202 | E39: 24 | F39: 4211 | K39: 0 | L39: 122
A40: 12 | B40: 4324 | C40: 24 | D40: 4339 | E40: 13 | F40: 4359 | K40: 0 | L40: 121
A41: 12 | B41: 4457 | C41: 13 | D41: 4502 | E41: 13 | F41: 4527 | K41: 0 | L41: 111
A42: 12 | B42: 4699 | C42: 24 | D42: 4720 | E42: 13 | F42: 4731 | K42: 0 | L42: 121
A43: 12 | B43: 4856 | C43: 24 | D43: 4872 | E43: 24 | F43: 4881 | K43: 0 | L43: 122
A44: 12 | B44: 4993 | C44: 24 | D44: 5010 | E44: 24 | F44: 5019 | K44: 0 | L44: 122
A45: 12 | B45: 5119 | C45: 24 | D45: 5134 | E45: 13 | F45: 5144 | K45: 0 | L45: 121
A46: 12 | B46: 5243 | C46: 24 | D46: 5259 | E46: 24 | F46: 5268 | K46: 0 | L46: 122
A47: 21 | B47: 5378 | C47: 22 | D47: 5386 | E47: 24 | F47: 5388 | K47: 0 | L47: 222
A48: 12 | B48: 5487 | C48: 13 | D48: 5500 | E48: 13 | F48: 5516 | K48: 0 | L48: 111
A49: 21 | B49: 5624 | C49: 11 | D49: 5635 | E49: 11 | F49: 5636 | K49: 0 | L49: 211
A50: 12 | B50: 5805 | C50: 24 | D50: 5843 | E50: 24 | F50: 5849 | K50: 0 | L50: 122
A51: 12 | B51: 6004 | C51: 24 | D51: 6020 | E51: 13 | F51: 6037 | K51: 0 | L51: 121
A52: 21 | B52: 6229 | C52: 22 | D52: 6237 | E52: 24 | F52: 6245 | K52: 0 | L52: 222
A53: 21 | B53: 6358 | C53: 22 | D53: 6365 | E53: 24 | F53: 6374 | K53: 0 | L53: 222
A54: 12 | B54: 6473 | C54: 13 | D54: 6474 | E54: 24 | F54: 6489 | K54: 0 | L54: 112
A55: 12 | B55: 6587 | C55: 24 | D55: 6616 | E55: 24 | F55: 6625 | K55: 0 | L55: 122
A56: 12 | B56: 6725 | C56: 13 | D56: 6749 | E56: 24 | F56: 6765 | K56: 0 | L56: 112
A57: 12 | B57: 6867 | C57: 24 | D57: 6886 | E57: 13 | F57: 6912 | K57: 0 | L57: 121
A58: 12 | B58: 7014 | C58: 24 | D58: 7032 | E58: 24 | F58: 7041 | K58: 0 | L58: 122
A59: 12 | B59: 7142 | C59: 13 | D59: 7143 | E59: 24 | F59: 7157 | K59: 0 | L59: 112
A60: 12 | B60: 7282 | C60: 24 | D60: 7299 | E60: 24 | F60: 7308 | K60: 0 | L60: 122
A61: 12 | B61: 7422 | C61: 13 | D61: 7466 | E61: 24 | F61: 7485 | K61: 0 | L61: 112
A62: 12 | B62: 7588 | C62: 13 | D62: 7613 | E62: 13 | F62: 7628 | K62: 0 | L62: 111
A63: 12 | B63: 7755 | C63: 24 | D63: 7812 | E63: 24 | F63: 7820 | K63: 0 | L63: 122
A64: 12 | B64: 8545 | C64: 24 | D64: 8559 | E64: 13 | F64: 8616 | K64: 0 | L64: 121
A65: 12 | B65: 8739 | C65: 13 | D65: 8759 | E65: 24 | F65: 8803 | K65: 0 | L65: 112
A66: 21 | B66: 8930 | C66: 11 | D66: 8945 | E66: 11 | F66: 8970 | K66: 0 | L66: 211
A67: 12 | B67: 9154 | C67: 24 | D67: 9170 | E67: 24 | F67: 9178 | K67: 0 | L67: 122
A68: 21 | B68: 9284 | C68: 11 | D68: 9295 | E68: 22 | F68: 9308 | K68: 0 | L68: 212
A69: 12 | B69: 9419 | C69: 13 | D69: 9434 | E69: 24 | F69: 9450 | K69: 0 | L69: 112
A70: 12 | B70: 9571 | C70: 24 | D70: 9584 | E70: 24 | F70: 9592 | K70: 0 | L70: 122
A71: 21 | B71: 9712 | C71: 22 | D71: 9720 | E71: 24 | F71: 9728 | K71: 0 | L71: 222
A72: 12 | B72: 9827 | C72: 24 | D72: 9911 | E72: 24 | F72: 9921 | K72: 0 | L72: 122
A73: 12 | B73: 10038 | C73: 24 | D73: 10054 | E73: 24 | F73: 10062 | K73: 0 | L73: 122
A74: 12 | B74: 10163 | C74: 24 | D74: 10176 | E74: 24 | F74: 10185 | K74: 0 | L74: 122
A75: 12 | B75: 10282 | C75: 24 | D75: 10295 | E75: 24 | F75: 10304 | K75: 0 | L75: 122
A76: 21 | B76: 10420 | C76: 22 | D76: 10428 | E76: 24 | F76: 10441 | K76: 0 | L76: 222
A77: 12 | B77: 10561 | C77: 24 | D77: 10576 | E77: 24 | F77: 10585 | K77: 0 | L77: 122
A78: 12 | B78: 10687 | C78: 13 | D78: 10689 | E78: 24 | F78: 10703 | K78: 0 | L78: 112
A79: 12 | B79: 10825 | C79: 13 | D79: 10848 | E79: 24 | F79: 10872 | K79: 0 | L79: 112
A80: 12 | B80: 10971 | C80: 24 | D80: 10990 | E80: 24 | F80: 10999 | K80: 0 | L80: 122
A81: 12 | B81: 11099 | C81: 13 | D81: 11144 | E81: 13 | F81: 11172 | K81: 0 | L81: 111
A82: 12 | B82: 11270 | C82: 13 | D82: 11291 | E82: 24 | F82: 11308 | K82: 0 | L82: 112
A83: 12 | B83: 11409 | C83: 24 | D83: 11424 | E83: 24 | F83: 11434 | K83: 0 | L83: 122
A84: 12 | B84: 11544 | C84: 13 | D84: 11567 | E84: 24 | F84: 11589 | K84: 0 | L84: 112
A85: 12 | B85: 11688 | C85: 13 | D85: 11708 | E85: 24 | F85: 11724 | K85: 0 | L85: 112
A86: 21 | B86: 11842 | C86: 11 | D86: 11853 | E86: 22 | F86: 11880 | K86: 0 | L86: 212
A87: 12 | B87: 12005 | C87: 13 | D87: 12015 | E87: 24 | F87: 12028 | K87: 0 | L87: 112
A88: 12 | B88: 12130 | C88: 13 | D88: 12153 | E88: 13 | F88: 12176 | K88: 0 | L88: 111
A89: 12 | B89: 12275 | C89: 13 | D89: 12277 | E89: 13 | F89: 12301 | K89: 0 | L89: 111
A90: 12 | B90: 12408 | C90: 24 | D90: 12424 | E90: 24 | F90: 12438 | K90: 0 | L90: 122
A91: 12 | B91: 12582 | C91: 24 | D91: 12604 | E91: 24 | F91: 12606 | K91: 0 | L91: 122
A92: 12 | B92: 12734 | C92: 13 | D92: 12762 | E92: 24 | F92: 12783 | K92: 0 | L92: 112
A93: 12 | B93: 12899 | C93: 13 | D93: 12933 | E93: 13 | F93: 12955 | K93: 0 | L93: 111
A94: 12 | B94: 13073 | C94: 13 | D94: 13092 | E94: 13 | F94: 13101 | K94: 0 | L94: 111
A95: 12 | B95: 13231 | C95: 13 | D95: 13252 | E95: 13 | F95: 13261 | K95: 0 | L95: 111
A96: 12 | B96: 13387 | C96: 13 | D96: 13417 | E96: 24 | F96: 13432 | K96: 0 | L96: 112
A97: 12 | B97: 13897 | C97: 13 | D97: 13908 | E97: 24 | F97: 13928 | K97: 0 | L97: 112
A98: 12 | B98: 14048 | C98: 13 | D98: 14080 | E98: 13 | F98: 14107 | K98: 0 | L98: 111
A99: 12 | B99: 14291 | C99: 24 | D99: 14307 | E99: 24 | F99: 14316 | K99: 0 | L99: 122
A100: 12 | B100: 14459 | C100: 13 | D100: 14480 | E100: 13 | F100: 14490 | K100: 0 | L100: 111

Sheet !2011-05-22_09h18m.Subject 53
A1: Report for:!2011-05-22_09h18m.Subject 53
A2: Date | B2: 2011-05-22 | F2: Group | G2: 0
A3: Hen | B3: 53 | F3: Correct Sequence | G3: =Start!J2 -> 211 | P3: Total Sequences in Data | Q3: =4994-COUNTBLANK(L7:L5000) -> 161 | V3: Total Sequences in Block Data | W3: =COUNTA(L7:L33) -> 27 | AA3: Total Sequences in Block Data | AB3: =COUNTA(L34:L60) -> 27 | AF3: Total Sequences in Block Data | AG3: =COUNTA(L61:L86) -> 26 | AK3: Total Sequences in Block Data | AL3: =COUNTA(L87:L113) -> 27 | AP3: Total Sequences in Block Data | AQ3: =COUNTA(L114:L140) -> 27 | AU3: Total Sequences in Block Data | AV3: =COUNTA(L141:L167) -> 27
A4: Program | B4: 0 | P4: Total Sequences in Summary | Q4: =SUM(O7:O14) -> 161 | V4: Total Sequences in Block Summary | W4: =SUM(U7:U14) -> 27 | AA4: Total Sequences in Block Summary | AB4: =SUM(Z7:Z14) -> 27 | AF4: Total Sequences in Block Summary | AG4: =SUM(AE7:AE14) -> 26 | AK4: Total Sequences in Block Summary | AL4: =SUM(AJ7:AJ14) -> 27 | AP4: Total Sequences in Block Summary | AQ4: =SUM(AO7:AO14) -> 27 | AU4: Total Sequences in Block Summary | AV4: =SUM(AT7:AT14) -> 27
T5: Block 1 | Y5: Block 2 | AD5: Block 3 | AI5: Block 4 | AN5: Block 5 | AS5: Block 6
A6: Sequence Component 1 | B6: Time 1 | C6: Sequence Component 2 | D6: Time 2 | E6: Sequence Component 3 | F6: Time 3 | G6: Sequence Component 4 | H6: Time 4 | I6: Sequence Component 5 | J6: Time 5 | K6: Correct? 0=No 1=Yes | L6: Sequence | N6: Frequency | P6: Relative Frequency | Q6: Variability | T6: Frequency | V6: Relative Frequency | W6: Variability | Y6: Frequency | AA6: Relative Frequency | AB6: Variability | AD6: Frequency | AF6: Relative Frequency | AG6: Variability | AI6: Frequency | AK6: Relative Frequency | AL6: Variability | AN6: Frequency | AP6: Relative Frequency | AQ6: Variability | AS6: Frequency | AU6: Relative Frequency | AV6: Variability
A7: 12 | B7: 84 | C7: 13 | D7: 100 | E7: 13 | F7: 160 | K7: 0 | L7: 111 | N7: 111 | O7: =COUNTIF($L$7:$L$500,N7) -> 43 | P7: =O7/$Q$4 -> 0.2670807453 | Q7: =IF(P7=0,0,(P7*((LOG(P7))/LOG(2)))) -> -0.5086959087 | T7: =N7 -> 111 | U7: =COUNTIF(L7:L33,T7) -> 3 | V7: =U7/(W4-U11) -> 0.1111111111 | W7: =IF(V7=0,0,(V7*((LOG(V7))/LOG(2)))) -> -0.352213889 | Y7: =N7 -> 111 | Z7: =COUNTIF(L34:L60,Y7) -> 10 | AA7: =Z7/(AB4-Z11) -> 0.3846153846 | AB7: =IF(AA7=0,0,(AA7*((LOG(AA7))/LOG(2)))) -> -0.5301967782 | AD7: =N7 -> 111 | AE7: =COUNTIF(L61:L86,AD7) -> 6 | AF7: =AE7/(AG4-AE11) -> 0.2307692308 | AG7: =IF(AF7=0,0,(AF7*((LOG(AF7))/LOG(2)))) -> -0.4881870502 | AI7: =N7 -> 111 | AJ7: =COUNTIF(L87:L113,AI7) -> 7 | AK7: =AJ7/(AL4-AJ11) -> 0.2592592593 | AL7: =IF(AK7=0,0,(AK7*((LOG(AK7))/LOG(2)))) -> -0.5049158541 | AN7: =N7 -> 111 | AO7: =COUNTIF(L114:L140,AN7) -> 7 | AP7: =AO7/(AQ4-AO11) -> 0.2592592593 | AQ7: =IF(AP7=0,0,(AP7*((LOG(AP7))/LOG(2)))) -> -0.5049158541 | AS7: =N7 -> 111 | AT7: =COUNTIF(L141:L167,AS7) -> 10 | AU7: =AT7/(AV4-AT11) -> 0.3703703704 | AV7: =IF(AU7=0,0,(AU7*((LOG(AU7))/LOG(2)))) -> -0.5307257064
A8: 12 | B8: 279 | C8: 13 | D8: 295 | E8: 13 | F8: 316 | K8: 0 | L8: 111 | N8: 112 | O8: =COUNTIF($L$7:$L$500,N8) -> 45 | P8: =O8/$Q$4 -> 0.2795031056 | Q8: =IF(P8=0,0,(P8*((LOG(P8))/LOG(2)))) -> -0.5140240384 | T8: =N8 -> 112 | U8: =COUNTIF(L7:L33,T8) -> 11 | V8: =U8/(W4-U11) -> 0.4074074074 | W8: =IF(V8=0,0,(V8*((LOG(V8))/LOG(2)))) -> -0.5277783229 | Y8: =N8 -> 112 | Z8: =COUNTIF(L34:L60,Y8) -> 7 | AA8: =Z8/(AB4-Z11) -> 0.2692307692 | AB8: =IF(AA8=0,0,(AA8*((LOG(AA8))/LOG(2)))) -> -0.5096766759 | AD8: =N8 -> 112 | AE8: =COUNTIF(L61:L86,AD8) -> 7 | AF8: =AE8/(AG4-AE11) -> 0.2692307692 | AG8: =IF(AF8=0,0,(AF8*((LOG(AF8))/LOG(2)))) -> -0.5096766759 | AI8: =N8 -> 112 | AJ8: =COUNTIF(L87:L113,AI8) -> 7 | AK8: =AJ8/(AL4-AJ11) -> 0.2592592593 | AL8: =IF(AK8=0,0,(AK8*((LOG(AK8))/LOG(2)))) -> -0.5049158541 | AN8: =N8 -> 112 | AO8: =COUNTIF(L114:L140,AN8) -> 8 | AP8: =AO8/(AQ4-AO11) -> 0.2962962963 | AQ8: =IF(AP8=0,0,(AP8*((LOG(AP8))/LOG(2)))) -> -0.5199666673 | AS8: =N8 -> 112 | AT8: =COUNTIF(L141:L167,AS8) -> 5 | AU8: =AT8/(AV4-AT11) -> 0.1851851852 | AV8: =IF(AU8=0,0,(AU8*((LOG(AU8))/LOG(2)))) -> -0.4505480384
A9: 12 | B9: 418 | C9: 24 | D9: 435 | E9: 24 | F9: 445 | K9: 0 | L9: 122 | N9: 121 | O9: =COUNTIF($L$7:$L$500,N9) -> 10 | P9: =O9/$Q$4 -> 0.06211180124 | Q9: =IF(P9=0,0,(P9*((LOG(P9))/LOG(2)))) -> -0.2490055145 | T9: =N9 -> 121 | U9: =COUNTIF(L7:L33,T9) -> 1 | V9: =U9/(W4-U11) -> 0.03703703704 | W9: =IF(V9=0,0,(V9*((LOG(V9))/LOG(2)))) -> -0.1761069445 | Y9: =N9 -> 121 | Z9: =COUNTIF(L34:L60,Y9) -> 1 | AA9: =Z9/(AB4-Z11) -> 0.03846153846 | AB9: =IF(AA9=0,0,(AA9*((LOG(AA9))/LOG(2)))) -> -0.180786143 | AD9: =N9 -> 121 | AE9: =COUNTIF(L61:L86,AD9) -> 1 | AF9: =AE9/(AG4-AE11) -> 0.03846153846 | AG9: =IF(AF9=0,0,(AF9*((LOG(AF9))/LOG(2)))) -> -0.180786143 | AI9: =N9 -> 121 | AJ9: =COUNTIF(L87:L113,AI9) -> 3 | AK9: =AJ9/(AL4-AJ11) -> 0.1111111111 | AL9: =IF(AK9=0,0,(AK9*((LOG(AK9))/LOG(2)))) -> -0.352213889 | AN9: =N9 -> 121 | AO9: =COUNTIF(L114:L140,AN9) -> 2 | AP9: =AO9/(AQ4-AO11) -> 0.07407407407 | AQ9: =IF(AP9=0,0,(AP9*((LOG(AP9))/LOG(2)))) -> -0.278139815 | AS9: =N9 -> 121 | AT9: =COUNTIF(L141:L167,AS9) -> 2 | AU9: =AT9/(AV4-AT11) -> 0.07407407407 | AV9: =IF(AU9=0,0,(AU9*((LOG(AU9))/LOG(2)))) -> -0.278139815
A10: 12 | B10: 552 | C10: 13 | D10: 567 | E10: 24 | F10: 581 | K10: 0 | L10: 112 | N10: 122 | O10: =COUNTIF($L$7:$L$500,N10) -> 52 | P10: =O10/$Q$4 -> 0.3229813665 | Q10: =IF(P10=0,0,(P10*((LOG(P10))/LOG(2)))) -> -0.5266137411 | T10: =N10 -> 122 | U10: =COUNTIF(L7:L33,T10) -> 12 | V10: =U10/(W4-U11) -> 0.4444444444 | W10: =IF(V10=0,0,(V10*((LOG(V10))/LOG(2)))) -> -0.5199666673 | Y10: =N10 -> 122 | Z10: =COUNTIF(L34:L60,Y10) -> 4 | AA10: =Z10/(AB4-Z11) -> 0.1538461538 | AB10: =IF(AA10=0,0,(AA10*((LOG(AA10))/LOG(2)))) -> -0.4154522643 | AD10: =N10 -> 122 | AE10: =COUNTIF(L61:L86,AD10) -> 9 | AF10: =AE10/(AG4-AE11) -> 0.3461538462 | AG10: =IF(AF10=0,0,(AF10*((LOG(AF10))/LOG(2)))) -> -0.5297935558 | AI10: =N10 -> 122 | AJ10: =COUNTIF(L87:L113,AI10) -> 9 | AK10: =AJ10/(AL4-AJ11) -> 0.3333333333 | AL10: =IF(AK10=0,0,(AK10*((LOG(AK10))/LOG(2)))) -> -0.5283208336 | AN10: =N10 -> 122 | AO10: =COUNTIF(L114:L140,AN10) -> 10 | AP10: =AO10/(AQ4-AO11) -> 0.3703703704 | AQ10: =IF(AP10=0,0,(AP10*((LOG(AP10))/LOG(2)))) -> -0.5307257064 | AS10: =N10 -> 122 | AT10: =COUNTIF(L141:L167,AS10) -> 8 | AU10: =AT10/(AV4-AT11) -> 0.2962962963 | AV10: =IF(AU10=0,0,(AU10*((LOG(AU10))/LOG(2)))) -> -0.5199666673
A11: 12 | B11: 695 | C11: 24 | D11: 709 | E11: 24 | F11: 717 | K11: 0 | L11: 122 | N11: 211 | O11: =COUNTIF($L$7:$L$500,N11) -> 1 | P11: =O11/$Q$4 -> 0.006211180124 | Q11: =IF(P11=0,0,(P11*((LOG(P11))/LOG(2)))) -> -0.04553364521 | T11: =N11 -> 211 | U11: =COUNTIF(L7:L33,T11) -> 0 | Y11: =N11 -> 211 | Z11: =COUNTIF(L34:L60,Y11) -> 1 | AD11: =N11 -> 211 | AE11: =COUNTIF(L61:L86,AD11) -> 0 | AI11: =N11 -> 211 | AJ11: =COUNTIF(L87:L113,AI11) -> 0 | AN11: =N11 -> 211 | AO11: =COUNTIF(L114:L140,AN11) -> 0 | AS11: =N11 -> 211 | AT11: =COUNTIF(L141:L167,AS11) -> 0
A12: 12 | B12: 814 | C12: 24 | D12: 828 | E12: 24 | F12: 834 | K12: 0 | L12: 122 | N12: 212 | O12: =COUNTIF($L$7:$L$500,N12) -> 2 | P12: =O12/$Q$4 -> 0.01242236025 | Q12: =IF(P12=0,0,(P12*((LOG(P12))/LOG(2)))) -> -0.07864493016 | T12: =N12 -> 212 | U12: =COUNTIF(L7:L33,T12) -> 0 | V12: =U12/(W4-U11) -> 0 | W12: =IF(V12=0,0,(V12*((LOG(V12))/LOG(2)))) -> 0 | Y12: =N12 -> 212 | Z12: =COUNTIF(L34:L60,Y12) -> 2 | AA12: =Z12/(AB4-Z11) -> 0.07692307692 | AB12: =IF(AA12=0,0,(AA12*((LOG(AA12))/LOG(2)))) -> -0.2846492091 | AD12: =N12 -> 212 | AE12: =COUNTIF(L61:L86,AD12) -> 0 | AF12: =AE12/(AG4-AE11) -> 0 | AG12: =IF(AF12=0,0,(AF12*((LOG(AF12))/LOG(2)))) -> 0 | AI12: =N12 -> 212 | AJ12: =COUNTIF(L87:L113,AI12) -> 0 | AK12: =AJ12/(AL4-AJ11) -> 0 | AL12: =IF(AK12=0,0,(AK12*((LOG(AK12))/LOG(2)))) -> 0 | AN12: =N12 -> 212 | AO12: =COUNTIF(L114:L140,AN12) -> 0 | AP12: =AO12/(AQ4-AO11) -> 0 | AQ12: =IF(AP12=0,0,(AP12*((LOG(AP12))/LOG(2)))) -> 0 | AS12: =N12 -> 212 | AT12: =COUNTIF(L141:L167,AS12) -> 0 | AU12: =AT12/(AV4-AT11) -> 0 | AV12: =IF(AU12=0,0,(AU12*((LOG(AU12))/LOG(2)))) -> 0
A13: 12 | B13: 933 | C13: 24 | D13: 948 | E13: 24 | F13: 958 | K13: 0 | L13: 122 | N13: 221 | O13: =COUNTIF($L$7:$L$500,N13) -> 2 | P13: =O13/$Q$4 -> 0.01242236025 | Q13: =IF(P13=0,0,(P13*((LOG(P13))/LOG(2)))) -> -0.07864493016 | T13: =N13 -> 221 | U13: =COUNTIF(L7:L33,T13) -> 0 | V13: =U13/(W4-U11) -> 0 | W13: =IF(V13=0,0,(V13*((LOG(V13))/LOG(2)))) -> 0 | Y13: =N13 -> 221 | Z13: =COUNTIF(L34:L60,Y13) -> 0 | AA13: =Z13/(AB4-Z11) -> 0 | AB13: =IF(AA13=0,0,(AA13*((LOG(AA13))/LOG(2)))) -> 0 | AD13: =N13 -> 221 | AE13: =COUNTIF(L61:L86,AD13) -> 1 | AF13: =AE13/(AG4-AE11) -> 0.03846153846 | AG13: =IF(AF13=0,0,(AF13*((LOG(AF13))/LOG(2)))) -> -0.180786143 | AI13: =N13 -> 221 | AJ13: =COUNTIF(L87:L113,AI13) -> 1 | AK13: =AJ13/(AL4-AJ11) -> 0.03703703704 | AL13: =IF(AK13=0,0,(AK13*((LOG(AK13))/LOG(2)))) -> -0.1761069445 | AN13: =N13 -> 221 | AO13: =COUNTIF(L114:L140,AN13) -> 0 | AP13: =AO13/(AQ4-AO11) -> 0 | AQ13: =IF(AP13=0,0,(AP13*((LOG(AP13))/LOG(2)))) -> 0 | AS13: =N13 -> 221 | AT13: =COUNTIF(L141:L167,AS13) -> 0 | AU13: =AT13/(AV4-AT11) -> 0 | AV13: =IF(AU13=0,0,(AU13*((LOG(AU13))/LOG(2)))) -> 0
A14: 12 | B14: 1059 | C14: 13 | D14: 1075 | E14: 24 | F14: 1089 | K14: 0 | L14: 112 | N14: 222 | O14: =COUNTIF($L$7:$L$500,N14) -> 6 | P14: =O14/$Q$4 -> 0.03726708075 | Q14: =IF(P14=0,0,(P14*((LOG(P14))/LOG(2)))) -> -0.176867865 | T14: =N14 -> 222 | U14: =COUNTIF(L7:L33,T14) -> 0 | V14: =U14/(W4-U11) -> 0 | W14: =IF(V14=0,0,(V14*((LOG(V14))/LOG(2)))) -> 0 | Y14: =N14 -> 222 | Z14: =COUNTIF(L34:L60,Y14) -> 2 | AA14: =Z14/(AB4-Z11) -> 0.07692307692 | AB14: =IF(AA14=0,0,(AA14*((LOG(AA14))/LOG(2)))) -> -0.2846492091 | AD14: =N14 -> 222 | AE14: =COUNTIF(L61:L86,AD14) -> 2 | AF14: =AE14/(AG4-AE11) -> 0.07692307692 | AG14: =IF(AF14=0,0,(AF14*((LOG(AF14))/LOG(2)))) -> -0.2846492091 | AI14: =N14 -> 222 | AJ14: =COUNTIF(L87:L113,AI14) -> 0 | AK14: =AJ14/(AL4-AJ11) -> 0 | AL14: =IF(AK14=0,0,(AK14*((LOG(AK14))/LOG(2)))) -> 0 | AN14: =N14 -> 222 | AO14: =COUNTIF(L114:L140,AN14) -> 0 | AP14: =AO14/(AQ4-AO11) -> 0 | AQ14: =IF(AP14=0,0,(AP14*((LOG(AP14))/LOG(2)))) -> 0 | AS14: =N14 -> 222 | AT14: =COUNTIF(L141:L167,AS14) -> 2 | AU14: =AT14/(AV4-AT11) -> 0.07407407407 | AV14: =IF(AU14=0,0,(AU14*((LOG(AU14))/LOG(2)))) -> -0.278139815
A15: 12 | B15: 1196 | C15: 24 | D15: 1210 | E15: 24 | F15: 1220 | K15: 0 | L15: 122 | P15: =SUM(P7:P14) -> 1 | Q15: =-SUM(Q7:Q14) -> 2.178030573 | V15: =SUM(V7:V14) -> 1 | W15: =-SUM(W7:W14) -> 1.576065824 | AA15: =SUM(AA7:AA14) -> 1 | AB15: =-SUM(AB7:AB14) -> 2.20541028 | AF15: =SUM(AF7:AF14) -> 1 | AG15: =-SUM(AG7:AG14) -> 2.173878777 | AK15: =SUM(AK7:AK14) -> 1 | AL15: =-SUM(AL7:AL14) -> 2.066473375 | AP15: =SUM(AP7:AP14) -> 1 | AQ15: =-SUM(AQ7:AQ14) -> 1.833748043 | AU15: =SUM(AU7:AU14) -> 1 | AV15: =-SUM(AV7:AV14) -> 2.057520042
A16: 12 | B16: 1320 | C16: 13 | D16: 1330 | E16: 24 | F16: 1340 | K16: 0 | L16: 112 | P16: U= | Q16: =Q15/(LOG(Q4)/LOG(2)) -> 0.2971020691 | V16: U1= | W16: =W15/(LOG(W4)/LOG(2)) -> 0.3314622739 | AA16: U2= | AB16: =AB15/(LOG(AB4)/LOG(2)) -> 0.4638196547 | AF16: U3= | AG16: =AG15/(LOG(AG4)/LOG(2)) -> 0.4624841307 | AK16: U4= | AL16: =AL15/(LOG(AL4)/LOG(2)) -> 0.4345998458 | AP16: U5= | AQ16: =AQ15/(LOG(AQ4)/LOG(2)) -> 0.3856554002 | AU16: U6= | AV16: =AV15/(LOG(AV4)/LOG(2)) -> 0.432716871
A17: 12 | B17: 1441 | C17: 24 | D17: 1453 | E17: 24 | F17: 1462 | K17: 0 | L17: 122
A18: 12 | B18: 1562 | C18: 24 | D18: 1576 | E18: 24 | F18: 1584 | K18: 0 | L18: 122
A19: 12 | B19: 1682 | C19: 13 | D19: 1686 | E19: 24 | F19: 1700 | K19: 0 | L19: 112 | N19: Total Target Seq
A20: 12 | B20: 1798 | C20: 24 | D20: 1812 | E20: 24 | F20: 1820 | K20: 0 | L20: 122 | N20: =COUNTIF(L7:L167,G3) -> 1 | P20: 27 | Q20: 27 | R20: 26 | S20: 27 | T20: 27 | U20: 27
A21: 12 | B21: 1918 | C21: 13 | D21: 1920 | E21: 24 | F21: 1937 | K21: 0 | L21: 112 | P21: % of reinforcement given in 6 equal intervals based on number of trials
A22: 12 | B22: 2041 | C22: 24 | D22: 2054 | E22: 24 | F22: 2062 | K22: 0 | L22: 122 | P22: %_1 | Q22: %_2 | R22: %_3 | S22: %_4 | T22: %_5 | U22: %_6
A23: 12 | B23: 2162 | C23: 24 | D23: 2177 | E23: 24 | F23: 2186 | K23: 0 | L23: 122 | O23: target sequence | P23: =$G$3 -> 211 | Q23: =$G$3 -> 211 | R23: =$G$3 -> 211 | S23: =$G$3 -> 211 | T23: =$G$3 -> 211 | U23: =$G$3 -> 211
A24: 12 | B24: 2330 | C24: 24 | D24: 2345 | E24: 13 | F24: 2377 | K24: 0 | L24: 121 | O24: total reinforcement | P24: =U11 -> 0 | Q24: =Z11 -> 1 | R24: =AE11 -> 0 | S24: =AJ11 -> 0 | T24: =AO11 -> 0 | U24: =AT11 -> 0
A25: 12 | B25: 2578 | C25: 13 | D25: 2598 | E25: 24 | F25: 2613 | K25: 0 | L25: 112 | O25: % target
A26: 12 | B26: 2712 | C26: 24 | D26: 2748 | E26: 24 | F26: 2761 | K26: 0 | L26: 122 | O26: CCRF
A27: 12 | B27: 2861 | C27: 13 | D27: 2914 | E27: 24 | F27: 2928 | K27: 0 | L27: 112 | O27: % CCRf
A28: 12 | B28: 3028 | C28: 13 | D28: 3093 | E28: 24 | F28: 3106 | K28: 0 | L28: 112 | O28: average response rate | P28: =F33/P20 -> 139.3333333 | Q28: =(F60-F33)/Q20 -> 164.5925926 | R28: =(F86-F60)/R20 -> 148.9230769 | S28: =(F113-F86)/S20 -> 154.962963 | T28: =(F140-F113)/T20 -> 135.5185185 | U28: =(F167-F140)/U20 -> 149.1111111
A29: 12 | B29: 3203 | C29: 13 | D29: 3217 | E29: 24 | F29: 3232 | K29: 0 | L29: 112
A30: 12 | B30: 3331 | C30: 13 | D30: 3351 | E30: 24 | F30: 3370 | K30: 0 | L30: 112
A31: 12 | B31: 3468 | C31: 13 | D31: 3489 | E31: 24 | F31: 3502 | K31: 0 | L31: 112
A32: 12 | B32: 3607 | C32: 13 | D32: 3617 | E32: 13 | F32: 3629 | K32: 0 | L32: 111
A33: 12 | B33: 3728 | C33: 24 | D33: 3752 | E33: 24 | F33: 3762 | K33: 0 | L33: 122
A34: 12 | B34: 3863 | C34: 13 | D34: 3903 | E34: 13 | F34: 3913 | K34: 0 | L34: 111
A35: 12 | B35: 4069 | C35: 13 | D35: 4084 | E35: 24 | F35: 4097 | K35: 0 | L35: 112
A36: 12 | B36: 4216 | C36: 13 | D36: 4243 | E36: 13 | F36: 4271 | K36: 0 | L36: 111
A37: 21 | B37: 4449 | C37: 11 | D37: 4509 | E37: 11 | F37: 4539 | K37: 0 | L37: 211
A38: 12 | B38: 4651 | C38: 13 | D38: 4670 | E38: 13 | F38: 4690 | K38: 0 | L38: 111
A39: 12 | B39: 4790 | C39: 13 | D39: 4853 | E39: 13 | F39: 4878 | K39: 0 | L39: 111
A40: 12 | B40: 4976 | C40: 13 | D40: 5001 | E40: 13 | F40: 5012 | K40: 0 | L40: 111
A41: 12 | B41: 5122 | C41: 13 | D41: 5149 | E41: 24 | F41: 5180 | K41: 0 | L41: 112
A42: 12 | B42: 5292 | C42: 13 | D42: 5317 | E42: 13 | F42: 5335 | K42: 0 | L42: 111
A43: 12 | B43: 5435 | C43: 13 | D43: 5446 | E43: 13 | F43: 5463 | K43: 0 | L43: 111
A44: 12 | B44: 5564 | C44: 13 | D44: 5575 | E44: 24 | F44: 5595 | K44: 0 | L44: 112
A45: 21 | B45: 5724 | C45: 11 | D45: 5747 | E45: 22 | F45: 5760 | K45: 0 | L45: 212
A46: 12 | B46: 5868 | C46: 24 | D46: 5886 | E46: 24 | F46: 5894 | K46: 0 | L46: 122
A47: 12 | B47: 6013 | C47: 13 | D47: 6022 | E47: 24 | F47: 6041 | K47: 0 | L47: 112
A48: 12 | B48: 6147 | C48: 13 | D48: 6157 | E48: 13 | F48: 6173 | K48: 0 | L48: 111
A49: 12 | B49: 6300 | C49: 13 | D49: 6302 | E49: 13 | F49: 6328 | K49: 0 | L49: 111
A50: 21 | B50: 6465 | C50: 22 | D50: 6473 | E50: 24 | F50: 6482 | K50: 0 | L50: 222
A51: 12 | B51: 6761 | C51: 24 | D51: 6774 | E51: 13 | F51: 6802 | K51: 0 | L51: 121
A52: 12 | B52: 6901 | C52: 13 | D52: 6932 | E52: 24 | F52: 6945 | K52: 0 | L52: 112
A53: 12 | B53: 7094 | C53: 24 | D53: 7147 | E53: 24 | F53: 7157 | K53: 0 | L53: 122
A54: 21 | B54: 7274 | C54: 11 | D54: 7306 | E54: 22 | F54: 7323 | K54: 0 | L54: 212
A55: 12 | B55: 7423 | C55: 13 | D55: 7454 | E55: 24 | F55: 7467 | K55: 0 | L55: 112
A56: 12 | B56: 7568 | C56: 24 | D56: 7587 | E56: 24 | F56: 7595 | K56: 0 | L56: 122
A57: 12 | B57: 7724 | C57: 13 | D57: 7740 | E57: 13 | F57: 7750 | K57: 0 | L57: 111
A58: 12 | B58: 7869 | C58: 13 | D58: 7886 | E58: 24 | F58: 7901 | K58: 0 | L58: 112
A59: 12 | B59: 8013 | C59: 24 | D59: 8033 | E59: 24 | F59: 8041 | K59: 0 | L59: 122
A60: 21 | B60: 8190 | C60: 22 | D60: 8198 | E60: 24 | F60: 8206 | K60: 0 | L60: 222
A61: 12 | B61: 8304 | C61: 13 | D61: 8323 | E61: 24 | F61: 8337 | K61: 0 | L61: 112
A62: 12 | B62: 8486 | C62: 24 | D62: 8499 | E62: 24 | F62: 8509 | K62: 0 | L62: 122
A63: 12 | B63: 8641 | C63: 24 | D63: 8654 | E63: 24 | F63: 8662 | K63: 0 | L63: 122
A64: 12 | B64: 8761 | C64: 13 | D64: 8776 | E64: 24 | F64: 8790 | K64: 0 | L64: 112
A65: 12 | B65: 8904 | C65: 24 | D65: 8916 | E65: 24 | F65: 8924 | K65: 0 | L65: 122
A66: 21 | B66: 9049 | C66: 22 | D66: 9059 | E66: 13 | F66: 9075 | K66: 0 | L66: 221
A67: 12 | B67: 9200 | C67: 13 | D67: 9222 | E67: 24 | F67: 9235 | K67: 0 | L67: 112
A68: 12 | B68: 9369 | C68: 24 | D68: 9380 | E68: 24 | F68: 9389 | K68: 0 | L68: 122
A69: 12 | B69: 9487 | C69: 24 | D69: 9503 | E69: 24 | F69: 9512 | K69: 0 | L69: 122
A70: 12 | B70: 9610 | C70: 24 | D70: 9624 | E70: 13 | F70: 9639 | K70: 0 | L70: 121
A71: 12 | B71: 9863 | C71: 13 | D71: 9886 | E71: 13 | F71: 9899 | K71: 0 | L71: 111
A72: 21 | B72: 10027 | C72: 22 | D72: 10035 | E72: 24 | F72: 10043 | K72: 0 | L72: 222
A73: 12 | B73: 10227 | C73: 13 | D73: 10241 | E73: 24 | F73: 10254 | K73: 0 | L73: 112
A74: 21 | B74: 10357 | C74: 22 | D74: 10388 | E74: 24 | F74: 10405 | K74: 0 | L74: 222
A75: 12 | B75: 10504 | C75: 13 | D75: 10516 | E75: 13 | F75: 10528 | K75: 0 | L75: 111
A76: 12 | B76: 10688 | C76: 24 | D76: 10703 | E76: 24 | F76: 10712 | K76: 0 | L76: 122
A77: 12 | B77: 10811 | C77: 13 | D77: 10820 | E77: 24 | F77: 10836 | K77: 0 | L77: 112
A78: 12 | B78: 10944 | C78: 13 | D78: 10959 | E78: 13 | F78: 10986 | K78: 0 | L78: 111
A79: 12 | B79: 11107 | C79: 13 | D79: 11116 | E79: 13 | F79: 11124 | K79: 0 | L79: 111
A80: 12 | B80: 11233 | C80: 24 | D80: 11247 | E80: 24 | F80: 11255 | K80: 0 | L80: 122
A81: 12 | B81: 11371 | C81: 13 | D81: 11382 | E81: 24 | F81: 11397 | K81: 0 | L81: 112
A82: 12 | B82: 11496 | C82: 13 | D82: 11504 | E82: 24 | F82: 11516 | K82: 0 | L82: 112
A83: 12 | B83: 11631 | C83: 24 | D83: 11649 | E83: 24 | F83: 11658 | K83: 0 | L83: 122
A84: 12 | B84: 11759 | C84: 24 | D84: 11774 | E84: 24 | F84: 11782 | K84: 0 | L84: 122
A85: 12 | B85: 11883 | C85: 13 | D85: 11914 | E85: 13 | F85: 11923 | K85: 0 | L85: 111
A86: 12 | B86: 12033 | C86: 13 | D86: 12062 | E86: 13 | F86: 12078 | K86: 0 | L86: 111
A87: 12 | B87: 12210 | C87: 24 | D87: 12233 | E87: 13 | F87: 12255 | K87: 0 | L87: 121
A88: 12 | B88: 12401 | C88: 13 | D88: 12468 | E88: 13 | F88: 12504 | K88: 0 | L88: 111
A89: 12 | B89: 12651 | C89: 24 | D89: 12665 | E89: 24 | F89: 12673 | K89: 0 | L89: 122
A90: 21 | B90: 12821 | C90: 22 | D90: 12831 | E90: 13 | F90: 12872 | K90: 0 | L90: 221
A91: 12 | B91: 12974 | C91: 13 | D91: 12987 | E91: 13 | F91: 13029 | K91: 0 | L91: 111
A92: 12 | B92: 13127 | C92: 13 | D92: 13182 | E92: 13 | F92: 13192 | K92: 0 | L92: 111
A93: 12 | B93: 13290 | C93: 13 | D93: 13310 | E93: 24 | F93: 13325 | K93: 0 | L93: 112
A94: 12 | B94: 13423 | C94: 13 | D94: 13432 | E94: 24 | F94: 13453 | K94: 0 | L94: 112
A95: 12 | B95: 13576 | C95: 13 | D95: 13585 | E95: 13 | F95: 13594 | K95: 0 | L95: 111
A96: 12 | B96: 13728 | C96: 24 | D96: 13744 | E96: 13 | F96: 13766 | K96: 0 | L96: 121
A97: 12 | B97: 13893 | C97: 13 | D97: 13935 | E97: 24 | F97: 13949 | K97: 0 | L97: 112
A98: 12 | B98: 14048 | C98: 24 | D98: 14079 | E98: 24 | F98: 14088 | K98: 0 | L98: 122
A99: 12 | B99: 14239 | C99: 13 | D99: 14266 | E99: 13 | F99: 14284 | K99: 0 | L99: 111
A100: 12 | B100: 14434 | C100: 24 | D100: 14450 | E100: 24 | F100: 14458 | K100: 0 | L100: 122
A101: 12 | B101: 14558 | C101: 24 | D101: 14571 | E101: 24 | F101: 14580 | K101: 0 | L101: 122
A102: 12 | B102: 14678 | C102: 13 | D102: 14721 | E102: 24 | F102: 14737 | K102: 0 | L102: 112
A103: 12 | B103: 14839 | C103: 24 | D103: 14856 | E103: 24 | F103: 14867 | K103: 0 | L103: 122
A104: 12 | B104: 14966 | C104: 24 | D104: 14979 | E104: 13 | F104: 14992 | K104: 0 | L104: 121
A105: 12 | B105: 15090 | C105: 24 | D105: 15103 | E105: 24 | F105: 15111 | K105: 0 | L105: 122
A106: 12 | B106: 15209 | C106: 13 | D106: 15228 | E106: 24 | F106: 15245 | K106: 0 | L106: 112
A107: 12 | B107: 15344 | C107: 13 | D107: 15367 | E107: 24 | F107: 15382 | K107: 0 | L107: 112
A108: 12 | B108: 15517 | C108: 13 | D108: 15536 | E108: 13 | F108: 15562 | K108: 0 | L108: 111
A109: 12 | B109: 15683 | C109: 13 | D109: 15697 | E109: 24 | F109: 15711 | K109: 0 | L109: 112
A110: 12 | B110: 15815 | C110: 24 | D110: 15830 | E110: 24 | F110: 15837 | K110: 0 | L110: 122
A111: 12 | B111: 15936 | C111: 24 | D111: 15949 | E111: 24 | F111: 15956 | K111: 0 | L111: 122
A112: 12 | B112: 16064 | C112: 24 | D112: 16079 | E112: 24 | F112: 16089 | K112: 0 | L112: 122
A113: 12 | B113: 16201 | C113: 13 | D113: 16231 | E113: 13 | F113: 16262 | K113: 0 | L113: 111
A114: 12 | B114: 16370 | C114: 24 | D114: 16384 | E114: 24 | F114: 16392 | K114: 0 | L114: 122
A115: 12 | B115: 16494 | C115: 24 | D115: 16505 | E115: 24 | F115: 16512 | K115: 0 | L115: 122
A116: 12 | B116: 16608 | C116: 13 | D116: 16630 | E116: 13 | F116: 16692 | K116: 0 | L116: 111
A117: 12 | B117: 16793 | C117: 13 | D117: 16801 | E117: 13 | F117: 16811 | K117: 0 | L117: 111
A118: 12 | B118: 16914 | C118: 13 | D118: 16934 | E118: 24 | F118: 16946 | K118: 0 | L118: 112
A119: 12 | B119: 17049 | C119: 13 | D119: 17059 | E119: 24 | F119: 17072 | K119: 0 | L119: 112
A120: 12 | B120: 17182 | C120: 24 | D120: 17198 | E120: 13 | F120: 17213 | K120: 0 | L120: 121
A121: 12 | B121: 17320 | C121: 13 | D121: 17341 | E121: 24 | F121: 17352 | K121: 0 | L121: 112
A122: 12 | B122: 17478 | C122: 13 | D122: 17515 | E122: 24 | F122: 17530 | K122: 0 | L122: 112
A123: 12 | B123: 17635 | C123: 13 | D123: 17645 | E123: 24 | F123: 17659 | K123: 0 | L123: 112
A124: 12 | B124: 17759 | C124: 13 | D124: 17767 | E124: 13 | F124: 17773 | K124: 0 | L124: 111
A125: 12 | B125: 17875 | C125: 13 | D125: 17894 | E125: 13 | F125: 17906 | K125: 0 | L125: 111
A126: 12 | B126: 18009 | C126: 13 | D126: 18029 | E126: 13 | F126: 18040 | K126: 0 | L126: 111
A127: 12 | B127: 18138 | C127: 13 | D127: 18146 | E127: 24 | F127: 18161 | K127: 0 | L127: 112
A128: 12 | B128: 18263 | C128: 13 | D128: 18272 | E128: 24 | F128: 18287 | K128: 0 | L128: 112
A129: 12 | B129: 18386 | C129: 24 | D129: 18398 | E129: 13 | F129: 18414 | K129: 0 | L129: 121
A130: 12 | B130: 18528 | C130: 13 | D130: 18540 | E130: 13 | F130: 18564 | K130: 0 | L130: 111
A131: 12 | B131: 18667 | C131: 13 | D131: 18676 | E131: 13 | F131: 18693 | K131: 0 | L131: 111
A132: 12 | B132: 18798 | C132: 24 | D132: 18814 | E132: 24 | F132: 18823 | K132: 0 | L132: 122
A133: 12 | B133: 18956 | C133: 24 | D133: 18967 | E133: 24 | F133: 18975 | K133: 0 | L133: 122
A134: 12 | B134: 19075 | C134: 24 | D134: 19097 | E134: 24 | F134: 19103 | K134: 0 | L134: 122
A135: 12 | B135: 19218 | C135: 24 | D135: 19231 | E135: 24 | F135: 19239 | K135: 0 | L135: 122
A136: 12 | B136: 19365 | C136: 24 | D136: 19374 | E136: 24 | F136: 19382 | K136: 0 | L136: 122
A137: 12 | B137: 19483 | C137: 24 | D137: 19493 | E137: 24 | F137: 19498 | K137: 0 | L137: 122
A138: 12 | B138: 19596 | C138: 24 | D138: 19613 | E138: 24 | F138: 19621 | K138: 0 | L138: 122
A139: 12 | B139: 19782 | C139: 13 | D139: 19790 | E139: 24 | F139: 19802 | K139: 0 | L139: 112
A140: 12 | B140: 19901 | C140: 24 | D140: 19913 | E140: 24 | F140: 19921 | K140: 0 | L140: 122
A141: 12 | B141: 20020 | C141: 13 | D141: 20030 | E141: 13 | F141: 20061 | K141: 0 | L141: 111
A142: 12 | B142: 20161 | C142: 13 | D142: 20169 | E142: 24 | F142: 20179 | K142: 0 | L142: 112
A143: 12 | B143: 20288 | C143: 24 | D143: 20303 | E143: 24 | F143: 20310 | K143: 0 | L143: 122
A144: 12 | B144: 20517 | C144: 13 | D144: 20527 | E144: 13 | F144: 20542 | K144: 0 | L144: 111
A145: 12 | B145: 20641 | C145: 24 | D145: 20658 | E145: 24 | F145: 20666 | K145: 0 | L145: 122
A146: 12 | B146: 20767 | C146: 13 | D146: 20777 | E146: 24 | F146: 20789 | K146: 0 | L146: 112
A147: 12 | B147: 20887 | C147: 13 | D147: 20912 | E147: 13 | F147: 20920 | K147: 0 | L147: 111
A148: 12 | B148: 21021 | C148: 13 | D148: 21029 | E148: 24 | F148: 21041 | K148: 0 | L148: 112
A149: 12 | B149: 21146 | C149: 13 | D149: 21178 | E149: 13 | F149: 21234 | K149: 0 | L149: 111
A150: 12 | B150: 21380 | C150: 13 | D150: 21389 | E150: 13 | F150: 21403 | K150: 0 | L150: 111
A151: 12 | B151: 21506 | C151: 13 | D151: 21514 | E151: 24 | F151: 21527 | K151: 0 | L151: 112
A152: 12 | B152: 21692 | C152: 24 | D152: 21705 | E152: 13 | F152: 21725 | K152: 0 | L152: 121
A153: 12 | B153: 21831 | C153: 24 | D153: 21845 | E153: 13 | F153: 21877 | K153: 0 | L153: 121
A154: 21 | B154: 22014 | C154: 22 | D154: 22025 | E154: 24 | F154: 22032 | K154: 0 | L154: 222
A155: 12 | B155: 22146 | C155: 13 | D155: 22174 | E155: 13 | F155: 22200 | K155: 0 | L155: 111
A156: 12 | B156: 22300 | C156: 13 | D156: 22332 | E156: 13 | F156: 22348 | K156: 0 | L156: 111
A157: 12 | B157: 22454 | C157: 13 | D157: 22464 | E157: 24 | F157: 22488 | K157: 0 | L157: 112
A158: 12 | B158: 22645 | C158: 13 | D158: 22653 | E158: 13 | F158: 22670 | K158: 0 | L158: 111
A159: 12 | B159: 22820 | C159: 24 | D159: 22839 | E159: 24 | F159: 22847 | K159: 0 | L159: 122
A160: 12 | B160: 22958 | C160: 13 | D160: 22986 | E160: 13 | F160: 23010 | K160: 0 | L160: 111
A161: 12 | B161: 23111 | C161: 13 | D161: 23120 | E161: 13 | F161: 23135 | K161: 0 | L161: 111
A162: 12 | B162: 23249 | C162: 24 | D162: 23262 | E162: 24 | F162: 23271 | K162: 0 | L162: 122
A163: 21 | B163: 23379 | C163: 22 | D163: 23387 | E163: 24 | F163: 23396 | K163: 0 | L163: 222
A164: 12 | B164: 23495 | C164: 24 | D164: 23507 | E164: 24 | F164: 23513 | K164: 0 | L164: 122
A165: 12 | B165: 23664 | C165: 24 | D165: 23679 | E165: 24 | F165: 23687 | K165: 0 | L165: 122
A166: 12 | B166: 23789 | C166: 24 | D166: 23798 | E166: 24 | F166: 23806 | K166: 0 | L166: 122
A167: 12 | B167: 23924 | C167: 24 | D167: 23939 | E167: 24 | F167: 23947 | L167: 122

Sheet !2011-05-26_09h17m.Subject 53
A1: Report for:!2011-05-26_09h17m.Subject 53
A2: Date | B2: 2011-05-26 | F2: Group | G2: 0
A3: Hen | B3: 53 | F3: Correct Sequence | G3: =Start!J2 -> 211 | P3: Total Sequences in Data | Q3: =4994-COUNTBLANK(L7:L5000) -> 106 | V3: Total Sequences in Block Data | W3: =COUNTA(L7:L24) -> 18 | AA3: Total Sequences in Block Data | AB3: =COUNTA(L25:L41) -> 17 | AF3: Total Sequences in Block Data | AG3: =COUNTA(L42:L59) -> 18 | AK3: Total Sequences in Block Data | AL3: =COUNTA(L60:L77) -> 18 | AP3: Total Sequences in Block Data | AQ3: =COUNTA(L78:L94) -> 17 | AU3: Total Sequences in Block Data | AV3: =COUNTA(L95:L112) -> 18
A4: Program | B4: 0 | P4: Total Sequences in Summary | Q4: =SUM(O7:O14) -> 106 | V4: Total Sequences in Block Summary | W4: =SUM(U7:U14) -> 18 | AA4: Total Sequences in Block Summary | AB4: =SUM(Z7:Z14) -> 17 | AF4: Total Sequences in Block Summary | AG4: =SUM(AE7:AE14) -> 18 | AK4: Total Sequences in Block Summary | AL4: =SUM(AJ7:AJ14) -> 18 | AP4: Total Sequences in Block Summary | AQ4: =SUM(AO7:AO14) -> 17 | AU4: Total Sequences in Block Summary | AV4: =SUM(AT7:AT14) -> 18
T5: Block 1 | Y5: Block 2 | AD5: Block 3 | AI5: Block 4 | AN5: Block 5 | AS5: Block 6
A6: Sequence Component 1 | B6: Time 1 | C6: Sequence Component 2 | D6: Time 2 | E6: Sequence Component 3 | F6: Time 3 | G6: Sequence Component 4 | H6: Time 4 | I6: Sequence Component 5 | J6: Time 5 | K6: Correct? 0=No 1=Yes | L6: Sequence | N6: Frequency | P6: Relative Frequency | Q6: Variability | T6: Frequency | V6: Relative Frequency | W6: Variability | Y6: Frequency | AA6: Relative Frequency | AB6: Variability | AD6: Frequency | AF6: Relative Frequency | AG6: Variability | AI6: Frequency | AK6: Relative Frequency | AL6: Variability | AN6: Frequency | AP6: Relative Frequency | AQ6: Variability | AS6: Frequency | AU6: Relative Frequency | AV6: Variability
A7: 12 | B7: 48 | C7: 24 | D7: 60 | E7: 24 | F7: 74 | K7: 0 | L7: 122 | N7: 111 | O7: =COUNTIF($L$7:$L$500,N7) -> 24 | P7: =O7/$Q$4 -> 0.2264150943 | Q7: =IF(P7=0,0,(P7*((LOG(P7))/LOG(2)))) -> -0.4851980273 | T7: =N7 -> 111 | U7: =COUNTIF(L7:L24,T7) -> 5 | V7: =U7/(W4-U11) -> 0.2777777778 | W7: =IF(V7=0,0,(V7*((LOG(V7))/LOG(2)))) -> -0.513332474 | Y7: =N7 -> 111 | Z7: =COUNTIF(L25:L41,Y7) -> 2 | AA7: =Z7/(AB4-Z11) -> 0.1176470588 | AB7: =IF(AA7=0,0,(AA7*((LOG(AA7))/LOG(2)))) -> -0.3632309225 | AD7: =N7 -> 111 | AE7: =COUNTIF(L42:L59,AD7) -> 3 | AF7: =AE7/(AG4-AE11) -> 0.1666666667 | AG7: =IF(AF7=0,0,(AF7*((LOG(AF7))/LOG(2)))) -> -0.4308270835 | AI7: =N7 -> 111 | AJ7: =COUNTIF(L60:L77,AI7) -> 8 | AK7: =AJ7/(AL4-AJ11) -> 0.4444444444 | AL7: =IF(AK7=0,0,(AK7*((LOG(AK7))/LOG(2)))) -> -0.5199666673 | AN7: =N7 -> 111 | AO7: =COUNTIF(L78:L94,AN7) -> 3 | AP7: =AO7/(AQ4-AO11) -> 0.1764705882 | AQ7: =IF(AP7=0,0,(AP7*((LOG(AP7))/LOG(2)))) -> -0.4416177072 | AS7: =N7 -> 111 | AT7: =COUNTIF(L95:L112,AS7) -> 3 | AU7: =AT7/(AV4-AT11) -> 0.1764705882 | AV7: =IF(AU7=0,0,(AU7*((LOG(AU7))/LOG(2)))) -> -0.4416177072
A8: 21 | B8: 200 | C8: 22 | D8: 208 | E8: 24 | F8: 970 | K8: 0 | L8: 222 | N8: 112 | O8: =COUNTIF($L$7:$L$500,N8) -> 22 | P8: =O8/$Q$4 -> 0.2075471698 | Q8: =IF(P8=0,0,(P8*((LOG(P8))/LOG(2)))) -> -0.4708184376 | T8: =N8 -> 112 | U8: =COUNTIF(L7:L24,T8) -> 2 | V8: =U8/(W4-U11) -> 0.1111111111 | W8: =IF(V8=0,0,(V8*((LOG(V8))/LOG(2)))) -> -0.352213889 | Y8: =N8 -> 112 | Z8: =COUNTIF(L25:L41,Y8) -> 5 | AA8: =Z8/(AB4-Z11) -> 0.2941176471 | AB8: =IF(AA8=0,0,(AA8*((LOG(AA8))/LOG(2)))) -> -0.5192749254 | AD8: =N8 -> 112 | AE8: =COUNTIF(L42:L59,AD8) -> 5 | AF8: =AE8/(AG4-AE11) -> 0.2777777778 | AG8: =IF(AF8=0,0,(AF8*((LOG(AF8))/LOG(2)))) -> -0.513332474 | AI8: =N8 -> 112 | AJ8: =COUNTIF(L60:L77,AI8) -> 4 | AK8: =AJ8/(AL4-AJ11) -> 0.2222222222 | AL8: =IF(AK8=0,0,(AK8*((LOG(AK8))/LOG(2)))) -> -0.4822055559 | AN8: =N8 -> 112 | AO8: =COUNTIF(L78:L94,AN8) -> 4 | AP8: =AO8/(AQ4-AO11) -> 0.2352941176 | AQ8: =IF(AP8=0,0,(AP8*((LOG(AP8))/LOG(2)))) -> -0.4911677274 | AS8: =N8 -> 112 | AT8: =COUNTIF(L95:L112,AS8) -> 2 | AU8: =AT8/(AV4-AT11) -> 0.1176470588 | AV8: =IF(AU8=0,0,(AU8*((LOG(AU8))/LOG(2)))) -> -0.3632309225
A9: 21 | B9: 1091 | C9: 11 | D9: 1117 | E9: 22 | F9: 1131 | K9: 0 | L9: 212 | N9: 121 | O9: =COUNTIF($L$7:$L$500,N9) -> 8 | P9: =O9/$Q$4 -> 0.07547169811 | Q9: =IF(P9=0,0,(P9*((LOG(P9))/LOG(2)))) -> -0.2813524871 | T9: =N9 -> 121 | U9: =COUNTIF(L7:L24,T9) -> 0 | V9: =U9/(W4-U11) -> 0 | W9: =IF(V9=0,0,(V9*((LOG(V9))/LOG(2)))) -> 0 | Y9: =N9 -> 121 | Z9: =COUNTIF(L25:L41,Y9) -> 2 | AA9: =Z9/(AB4-Z11) -> 0.1176470588 | AB9: =IF(AA9=0,0,(AA9*((LOG(AA9))/LOG(2)))) -> -0.3632309225 | AD9: =N9 -> 121 | AE9: =COUNTIF(L42:L59,AD9) -> 2 | AF9: =AE9/(AG4-AE11) -> 0.1111111111 | AG9: =IF(AF9=0,0,(AF9*((LOG(AF9))/LOG(2)))) -> -0.352213889 | AI9: =N9 -> 121 | AJ9: =COUNTIF(L60:L77,AI9) -> 2 | AK9: =AJ9/(AL4-AJ11) -> 0.1111111111 | AL9: =IF(AK9=0,0,(AK9*((LOG(AK9))/LOG(2)))) -> -0.352213889 | AN9: =N9 -> 121 | AO9: =COUNTIF(L78:L94,AN9) -> 1 | AP9: =AO9/(AQ4-AO11) -> 0.05882352941 | AQ9: =IF(AP9=0,0,(AP9*((LOG(AP9))/LOG(2)))) -> -0.2404389907 | AS9: =N9 -> 121 | AT9: =COUNTIF(L95:L112,AS9) -> 1 | AU9: =AT9/(AV4-AT11) -> 0.05882352941 | AV9: =IF(AU9=0,0,(AU9*((LOG(AU9))/LOG(2)))) -> -0.2404389907
A10: 12 | B10: 1759 | C10: 24 | D10: 1780 | E10: 24 | F10: 1790 | K10: 0 | L10: 122 | N10: 122 | O10: =COUNTIF($L$7:$L$500,N10) -> 32 | P10: =O10/$Q$4 -> 0.3018867925 | Q10: =IF(P10=0,0,(P10*((LOG(P10))/LOG(2)))) -> -0.5216363636 | T10: =N10 -> 122 | U10: =COUNTIF(L7:L24,T10) -> 4 | V10: =U10/(W4-U11) -> 0.2222222222 | W10: =IF(V10=0,0,(V10*((LOG(V10))/LOG(2)))) -> -0.4822055559 | Y10: =N10 -> 122 | Z10: =COUNTIF(L25:L41,Y10) -> 5 | AA10: =Z10/(AB4-Z11) -> 0.2941176471 | AB10: =IF(AA10=0,0,(AA10*((LOG(AA10))/LOG(2)))) -> -0.5192749254 | AD10: =N10 -> 122 | AE10: =COUNTIF(L42:L59,AD10) -> 7 | AF10: =AE10/(AG4-AE11) -> 0.3888888889 | AG10: =IF(AF10=0,0,(AF10*((LOG(AF10))/LOG(2)))) -> -0.5298883642 | AI10: =N10 -> 122 | AJ10: =COUNTIF(L60:L77,AI10) -> 4 | AK10: =AJ10/(AL4-AJ11) -> 0.2222222222 | AL10: =IF(AK10=0,0,(AK10*((LOG(AK10))/LOG(2)))) -> -0.4822055559 | AN10: =N10 -> 122 | AO10: =COUNTIF(L78:L94,AN10) -> 4 | AP10: =AO10/(AQ4-AO11) -> 0.2352941176 | AQ10: =IF(AP10=0,0,(AP10*((LOG(AP10))/LOG(2)))) -> -0.4911677274 | AS10: =N10 -> 122 | AT10: =COUNTIF(L95:L112,AS10) -> 8 | AU10: =AT10/(AV4-AT11) -> 0.4705882353 | AV10: =IF(AU10=0,0,(AU10*((LOG(AU10))/LOG(2)))) -> -0.5117472194
A11: 21 | B11: 1947 | C11: 11 | D11: 1968 | E11: 22 | F11: 1982 | K11: 0 | L11: 212 | N11: 211 | O11: =COUNTIF($L$7:$L$500,N11) -> 1 | P11: =O11/$Q$4 -> 0.009433962264 | Q11: =IF(P11=0,0,(P11*((LOG(P11))/LOG(2)))) -> -0.06347094768 | T11: =N11 -> 211 | U11: =COUNTIF(L7:L24,T11) -> 0 | Y11: =N11 -> 211 | Z11: =COUNTIF(L25:L41,Y11) -> 0 | AD11: =N11 -> 211 | AE11: =COUNTIF(L42:L59,AD11) -> 0 | AI11: =N11 -> 211 | AJ11: =COUNTIF(L60:L77,AI11) -> 0 | AN11: =N11 -> 211 | AO11: =COUNTIF(L78:L94,AN11) -> 0 | AS11: =N11 -> 211 | AT11: =COUNTIF(L95:L112,AS11) -> 1
A12: 12 | B12: 2082 | C12: 24 | D12: 2097 | E12: 24 | F12: 2103 | K12: 0 | L12: 122 | N12: 212 | O12: =COUNTIF($L$7:$L$500,N12) -> 5 | P12: =O12/$Q$4 -> 0.04716981132 | Q12: =IF(P12=0,0,(P12*((LOG(P12))/LOG(2)))) -> -0.2078298283 | T12: =N12 -> 212 | U12: =COUNTIF(L7:L24,T12) -> 4 | V12: =U12/(W4-U11) -> 0.2222222222 | W12: =IF(V12=0,0,(V12*((LOG(V12))/LOG(2)))) -> -0.4822055559 | Y12: =N12 -> 212 | Z12: =COUNTIF(L25:L41,Y12) -> 0 | AA12: =Z12/(AB4-Z11) -> 0 | AB12: =IF(AA12=0,0,(AA12*((LOG(AA12))/LOG(2)))) -> 0 | AD12: =N12 -> 212 | AE12: =COUNTIF(L42:L59,AD12) -> 0 | AF12: =AE12/(AG4-AE11) -> 0 | AG12: =IF(AF12=0,0,(AF12*((LOG(AF12))/LOG(2)))) -> 0 | AI12: =N12 -> 212 | AJ12: =COUNTIF(L60:L77,AI12) -> 0 | AK12: =AJ12/(AL4-AJ11) -> 0 | AL12: =IF(AK12=0,0,(AK12*((LOG(AK12))/LOG(2)))) -> 0 | AN12: =N12 -> 212 | AO12: =COUNTIF(L78:L94,AN12) -> 0 | AP12: =AO12/(AQ4-AO11) -> 0 | AQ12: =IF(AP12=0,0,(AP12*((LOG(AP12))/LOG(2)))) -> 0 | AS12: =N12 -> 212 | AT12: =COUNTIF(L95:L112,AS12) -> 1 | AU12: =AT12/(AV4-AT11) -> 0.05882352941 | AV12: =IF(AU12=0,0,(AU12*((LOG(AU12))/LOG(2)))) -> -0.2404389907
A13: 12 | B13: 2226 | C13: 13 | D13: 2237 | E13: 24 | F13: 2256 | K13: 0 | L13: 112 | N13: 221 | O13: =COUNTIF($L$7:$L$500,N13) -> 3 | P13: =O13/$Q$4 -> 0.02830188679 | Q13: =IF(P13=0,0,(P13*((LOG(P13))/LOG(2)))) -> -0.1455554138 | T13: =N13 -> 221 | U13: =COUNTIF(L7:L24,T13) -> 1 | V13: =U13/(W4-U11) -> 0.05555555556 | W13: =IF(V13=0,0,(V13*((LOG(V13))/LOG(2)))) -> -0.2316625001 | Y13: =N13 -> 221 | Z13: =COUNTIF(L25:L41,Y13) -> 0 | AA13: =Z13/(AB4-Z11) -> 0 | AB13: =IF(AA13=0,0,(AA13*((LOG(AA13))/LOG(2)))) -> 0 | AD13: =N13 -> 221 | AE13: =COUNTIF(L42:L59,AD13) -> 1 | AF13: =AE13/(AG4-AE11) -> 0.05555555556 | AG13: =IF(AF13=0,0,(AF13*((LOG(AF13))/LOG(2)))) -> -0.2316625001 | AI13: =N13 -> 221 | AJ13: =COUNTIF(L60:L77,AI13) -> 0 | AK13: =AJ13/(AL4-AJ11) -> 0 | AL13: =IF(AK13=0,0,(AK13*((LOG(AK13))/LOG(2)))) -> 0 | AN13: =N13 -> 221 | AO13: =COUNTIF(L78:L94,AN13) -> 1 | AP13: =AO13/(AQ4-AO11) -> 0.05882352941 | AQ13: =IF(AP13=0,0,(AP13*((LOG(AP13))/LOG(2)))) -> -0.2404389907 | AS13: =N13 -> 221 | AT13: =COUNTIF(L95:L112,AS13) -> 0 | AU13: =AT13/(AV4-AT11) -> 0 | AV13: =IF(AU13=0,0,(AU13*((LOG(AU13))/LOG(2)))) -> 0
A14: 21 | B14: 2388 | C14: 22 | D14: 2398 | E14: 24 | F14: 2412 | K14: 0 | L14: 222 | N14: 222 | O14: =COUNTIF($L$7:$L$500,N14) -> 11 | P14: =O14/$Q$4 -> 0.1037735849 | Q14: =IF(P14=0,0,(P14*((LOG(P14))/LOG(2)))) -> -0.3391828037 | T14: =N14 -> 222 | U14: =COUNTIF(L7:L24,T14) -> 2 | V14: =U14/(W4-U11) -> 0.1111111111 | W14: =IF(V14=0,0,(V14*((LOG(V14))/LOG(2)))) -> -0.352213889 | Y14: =N14 -> 222 | Z14: =COUNTIF(L25:L41,Y14) -> 3 | AA14: =Z14/(AB4-Z11) -> 0.1764705882 | AB14: =IF(AA14=0,0,(AA14*((LOG(AA14))/LOG(2)))) -> -0.4416177072 | AD14: =N14 -> 222 | AE14: =COUNTIF(L42:L59,AD14) -> 0 | AF14: =AE14/(AG4-AE11) -> 0 | AG14: =IF(AF14=0,0,(AF14*((LOG(AF14))/LOG(2)))) -> 0 | AI14: =N14 -> 222 | AJ14: =COUNTIF(L60:L77,AI14) -> 0 | AK14: =AJ14/(AL4-AJ11) -> 0 | AL14: =IF(AK14=0,0,(AK14*((LOG(AK14))/LOG(2)))) -> 0 | AN14: =N14 -> 222 | AO14: =COUNTIF(L78:L94,AN14) -> 4 | AP14: =AO14/(AQ4-AO11) -> 0.2352941176 | AQ14: =IF(AP14=0,0,(AP14*((LOG(AP14))/LOG(2)))) -> -0.4911677274 | AS14: =N14 -> 222 | AT14: =COUNTIF(L95:L112,AS14) -> 2 | AU14: =AT14/(AV4-AT11) -> 0.1176470588 | AV14: =IF(AU14=0,0,(AU14*((LOG(AU14))/LOG(2)))) -> -0.3632309225
A15: 21 | B15: 2538 | C15: 22 | D15: 2550 | E15: 13 | F15: 2586 | K15: 0 | L15: 221 | P15: =SUM(P7:P14) -> 1 | Q15: =-SUM(Q7:Q14) -> 2.515044309 | V15: =SUM(V7:V14) -> 1 | W15: =-SUM(W7:W14) -> 2.413833864 | AA15: =SUM(AA7:AA14) -> 1 | AB15: =-SUM(AB7:AB14) -> 2.206629403 | AF15: =SUM(AF7:AF14) -> 1 | AG15: =-SUM(AG7:AG14) -> 2.057924311 | AK15: =SUM(AK7:AK14) -> 1 | AL15: =-SUM(AL7:AL14) -> 1.836591668 | AP15: =SUM(AP7:AP14) -> 1 | AQ15: =-SUM(AQ7:AQ14) -> 2.395998871 | AU15: =SUM(AU7:AU14) -> 1 | AV15: =-SUM(AV7:AV14) -> 2.160704753
A16: 21 | B16: 2727 | C16: 11 | D16: 2757 | E16: 22 | F16: 2779 | K16: 0 | L16: 212 | P16: U= | Q16: =Q15/(LOG(Q4)/LOG(2)) -> 0.3738219449 | V16: U1= | W16: =W15/(LOG(W4)/LOG(2)) -> 0.5788674528 | AA16: U2= | AB16: =AB15/(LOG(AB4)/LOG(2)) -> 0.5398530797 | AF16: U3= | AG16: =AG15/(LOG(AG4)/LOG(2)) -> 0.493515905 | AK16: U4= | AL16: =AL15/(LOG(AL4)/LOG(2)) -> 0.440437578 | AP16: U5= | AQ16: =AQ15/(LOG(AQ4)/LOG(2)) -> 0.5861824226 | AU16: U6= | AV16: =AV15/(LOG(AV4)/LOG(2)) -> 0.5181639363
A17: 21 | B17: 2902 | C17: 11 | D17: 2952 | E17: 22 | F17: 2965 | K17: 0 | L17: 212
A18: 12 | B18: 3072 | C18: 24 | D18: 3086 | E18: 24 | F18: 3094 | K18: 0 | L18: 122
A19: 12 | B19: 3219 | C19: 13 | D19: 3257 | E19: 13 | F19: 3343 | K19: 0 | L19: 111 | N19: Total Target Seq
A20: 12 | B20: 3439 | C20: 13 | D20: 3474 | E20: 13 | F20: 3499 | K20: 0 | L20: 111 | N20: =COUNTIF(L7:L112,G3) -> 1 | P20: 18 | Q20: 17 | R20: 18 | S20: 18 | T20: 17 | U20: 18
A21: 12 | B21: 3608 | C21: 13 | D21: 3660 | E21: 13 | F21: 3691 | K21: 0 | L21: 111 | P21: % of reinforcement given in 6 equal intervals based on number of trials
A22: 12 | B22: 3801 | C22: 13 | D22: 3823 | E22: 13 | F22: 3851 | K22: 0 | L22: 111 | P22: %_1 | Q22: %_2 | R22: %_3 | S22: %_4 | T22: %_5 | U22: %_6
A23: 12 | B23: 3951 | C23: 13 | D23: 3952 | E23: 13 | F23: 3967 | K23: 0 | L23: 111 | O23: target sequence | P23: =$G$3 -> 211 | Q23: =$G$3 -> 211 | R23: =$G$3 -> 211 | S23: =$G$3 -> 211 | T23: =$G$3 -> 211 | U23: =$G$3 -> 211
A24: 12 | B24: 4067 | C24: 13 | D24: 4097 | E24: 24 | F24: 4108 | K24: 0 | L24: 112 | O24: total reinforcement | P24: =U11 -> 0 | Q24: =Z11 -> 0 | R24: =AE11 -> 0 | S24: =AJ11 -> 0 | T24: =AO11 -> 0 | U24: =AT11 -> 1
A25: 12 | B25: 4223 | C25: 13 | D25: 4246 | E25: 24 | F25: 4260 | K25: 0 | L25: 112 | O25: % target
A26: 12 | B26: 4369 | C26: 24 | D26: 4379 | E26: 13 | F26: 4417 | K26: 0 | L26: 121 | O26: CCRF
A27: 12 | B27: 4535 | C27: 13 | D27: 4546 | E27: 24 | F27: 4561 | K27: 0 | L27: 112 | O27: % CCRf
A28: 12 | B28: 4670 | C28: 13 | D28: 4689 | E28: 13 | F28: 4696 | K28: 0 | L28: 111 | O28: average response rate | P28: =F24/P20 -> 228.2222222 | Q28: =(F41-F24)/Q20 -> 141.9411765 | R28: =(F59-F41)/R20 -> 198.1666667 | S28: =(F77-F59)/S20 -> 143.6111111 | T28: =(F94-F77)/T20 -> 174.7058824 | U28: =(F112-F94)/U20 -> 348.8333333
A29: 12 | B29: 4797 | C29: 24 | D29: 4811 | E29: 24 | F29: 4819 | K29: 0 | L29: 122
A30: 12 | B30: 4922 | C30: 13 | D30: 4946 | E30: 24 | F30: 4960 | K30: 0 | L30: 112
A31: 12 | B31: 5077 | C31: 24 | D31: 5093 | E31: 24 | F31: 5102 | K31: 0 | L31: 122
A32: 21 | B32: 5249 | C32: 22 | D32: 5259 | E32: 24 | F32: 5267 | K32: 0 | L32: 222
A33: 21 | B33: 5377 | C33: 22 | D33: 5386 | E33: 24 | F33: 5394 | K33: 0 | L33: 222
A34: 21 | B34: 5564 | C34: 22 | D34: 5572 | E34: 24 | F34: 5583 | K34: 0 | L34: 222
A35: 12 | B35: 5689 | C35: 24 | D35: 5705 | E35: 13 | F35: 5740 | K35: 0 | L35: 121
A36: 12 | B36: 5845 | C36: 24 | D36: 5872 | E36: 24 | F36: 5874 | K36: 0 | L36: 122
A37: 12 | B37: 5973 | C37: 13 | D37: 5981 | E37: 24 | F37: 5995 | K37: 0 | L37: 112
A38: 12 | B38: 6094 | C38: 13 | D38: 6096 | E38: 13 | F38: 6108 | K38: 0 | L38: 111
A39: 12 | B39: 6215 | C39: 24 | D39: 6248 | E39: 24 | F39: 6261 | K39: 0 | L39: 122
A40: 12 | B40: 6377 | C40: 24 | D40: 6391 | E40: 24 | F40: 6401 | K40: 0 | L40: 122
A41: 12 | B41: 6499 | C41: 13 | D41: 6501 | E41: 24 | F41: 6521 | K41: 0 | L41: 112
A42: 12 | B42: 6621 | C42: 13 | D42: 6641 | E42: 13 | F42: 6651 | K42: 0 | L42: 111
A43: 21 | B43: 6820 | C43: 22 | D43: 6822 | E43: 13 | F43: 6839 | K43: 0 | L43: 221
A44: 12 | B44: 7526 | C44: 24 | D44: 7544 | E44: 24 | F44: 7553 | K44: 0 | L44: 122
A45: 12 | B45: 7653 | C45: 24 | D45: 7665 | E45: 24 | F45: 7666 | K45: 0 | L45: 122
A46: 12 | B46: 7805 | C46: 13 | D46: 7824 | E46: 24 | F46: 7840 | K46: 0 | L46: 112
A47: 12 | B47: 7953 | C47: 24 | D47: 7967 | E47: 24 | F47: 7977 | K47: 0 | L47: 122
A48: 12 | B48: 8268 | C48: 24 | D48: 8290 | E48: 24 | F48: 8304 | K48: 0 | L48: 122
A49: 12 | B49: 8433 | C49: 24 | D49: 8448 | E49: 24 | F49: 8449 | K49: 0 | L49: 122
A50: 12 | B50: 8580 | C50: 24 | D50: 8599 | E50: 24 | F50: 8609 | K50: 0 | L50: 122
A51: 12 | B51: 8719 | C51: 24 | D51: 8740 | E51: 13 | F51: 8764 | K51: 0 | L51: 121
A52: 12 | B52: 8959 | C52: 24 | D52: 8981 | E52: 13 | F52: 8998 | K52: 0 | L52: 121
A53: 12 | B53: 9117 | C53: 13 | D53: 9126 | E53: 13 | F53: 9147 | K53: 0 | L53: 111
A54: 12 | B54: 9300 | C54: 13 | D54: 9316 | E54: 13 | F54: 9349 | K54: 0 | L54: 111
A55: 12 | B55: 9503 | C55: 13 | D55: 9525 | E55: 24 | F55: 9546 | K55: 0 | L55: 112
A56: 12 | B56: 9658 | C56: 13 | D56: 9666 | E56: 24 | F56: 9686 | K56: 0 | L56: 112
A57: 12 | B57: 9806 | C57: 13 | D57: 9816 | E57: 24 | F57: 9831 | K57: 0 | L57: 112
A58: 12 | B58: 9934 | C58: 24 | D58: 9949 | E58: 24 | F58: 9957 | K58: 0 | L58: 122
A59: 12 | B59: 10059 | C59: 13 | D59: 10067 | E59: 24 | F59: 10088 | K59: 0 | L59: 112
A60: 12 | B60: 10193 | C60: 24 | D60: 10206 | E60: 13 | F60: 10235 | K60: 0 | L60: 121
A61: 12 | B61: 10369 | C61: 13 | D61: 10377 | E61: 13 | F61: 10396 | K61: 0 | L61: 111
A62: 12 | B62: 10501 | C62: 13 | D62: 10514 | E62: 24 | F62: 10529 | K62: 0 | L62: 112
A63: 12 | B63: 10692 | C63: 13 | D63: 10717 | E63: 13 | F63: 10728 | K63: 0 | L63: 111
A64: 12 | B64: 10827 | C64: 13 | D64: 10845 | E64: 13 | F64: 10857 | K64: 0 | L64: 111
A65: 12 | B65: 10964 | C65: 13 | D65: 10982 | E65: 13 | F65: 11002 | K65: 0 | L65: 111
A66: 12 | B66: 11129 | C66: 13 | D66: 11140 | E66: 13 | F66: 11163 | K66: 0 | L66: 111
A67: 12 | B67: 11274 | C67: 24 | D67: 11287 | E67: 24 | F67: 11295 | K67: 0 | L67: 122
A68: 12 | B68: 11401 | C68: 13 | D68: 11415 | E68: 24 | F68: 11431 | K68: 0 | L68: 112
A69: 12 | B69: 11550 | C69: 13 | D69: 11565 | E69: 13 | F69: 11582 | K69: 0 | L69: 111
A70: 12 | B70: 11680 | C70: 13 | D70: 11697 | E70: 24 | F70: 11712 | K70: 0 | L70: 112
A71: 12 | B71: 11817 | C71: 24 | D71: 11832 | E71: 24 | F71: 11842 | K71: 0 | L71: 122
A72: 12 | B72: 11945 | C72: 24 | D72: 11963 | E72: 24 | F72: 11965 | K72: 0 | L72: 122
A73: 12 | B73: 12064 | C73: 13 | D73: 12074 | E73: 13 | F73: 12090 | K73: 0 | L73: 111
A74: 12 | B74: 12213 | C74: 13 | D74: 12225 | E74: 24 | F74: 12238 | K74: 0 | L74: 112
A75: 12 | B75: 12341 | C75: 24 | D75: 12353 | E75: 13 | F75: 12369 | K75: 0 | L75: 121
A76: 12 | B76: 12482 | C76: 13 | D76: 12515 | E76: 13 | F76: 12541 | K76: 0 | L76: 111
A77: 12 | B77: 12654 | C77: 24 | D77: 12665 | E77: 24 | F77: 12673 | K77: 0 | L77: 122
A78: 12 | B78: 12803 | C78: 13 | D78: 12832 | E78: 13 | F78: 12841 | K78: 0 | L78: 111
A79: 12 | B79: 12941 | C79: 13 | D79: 12943 | E79: 13 | F79: 12958 | K79: 0 | L79: 111
A80: 12 | B80: 13080 | C80: 24 | D80: 13093 | E80: 24 | F80: 13101 | K80: 0 | L80: 122
A81: 12 | B81: 13232 | C81: 24 | D81: 13247 | E81: 24 | F81: 13266 | K81: 0 | L81: 122
A82: 12 | B82: 13410 | C82: 13 | D82: 13428 | E82: 13 | F82: 13443 | K82: 0 | L82: 111
A83: 12 | B83: 13639 | C83: 24 | D83: 13658 | E83: 24 | F83: 13668 | K83: 0 | L83: 122
A84: 12 | B84: 13878 | C84: 13 | D84: 13895 | E84: 24 | F84: 13943 | K84: 0 | L84: 112
A85: 21 | B85: 14110 | C85: 22 | D85: 14120 | E85: 24 | F85: 14130 | K85: 0 | L85: 222
A86: 12 | B86: 14256 | C86: 13 | D86: 14272 | E86: 24 | F86: 14285 | K86: 0 | L86: 112
A87: 12 | B87: 14422 | C87: 13 | D87: 14444 | E87: 24 | F87: 14458 | K87: 0 | L87: 112
A88: 21 | B88: 14694 | C88: 22 | D88: 14703 | E88: 24 | F88: 14713 | K88: 0 | L88: 222
A89: 21 | B89: 14839 | C89: 22 | D89: 14864 | E89: 24 | F89: 14865 | K89: 0 | L89: 222
A90: 12 | B90: 14969 | C90: 13 | D90: 14979 | E90: 24 | F90: 15005 | K90: 0 | L90: 112
A91: 21 | B91: 15145 | C91: 22 | D91: 15158 | E91: 24 | F91: 15189 | K91: 0 | L91: 222
A92: 12 | B92: 15302 | C92: 24 | D92: 15317 | E92: 13 | F92: 15341 | K92: 0 | L92: 121
A93: 12 | B93: 15453 | C93: 24 | D93: 15469 | E93: 24 | F93: 15478 | K93: 0 | L93: 122
A94: 21 | B94: 15609 | C94: 22 | D94: 15619 | E94: 13 | F94: 15643 | K94: 0 | L94: 221
A95: 21 | B95: 15795 | C95: 11 | D95: 15814 | E95: 22 | F95: 15825 | K95: 0 | L95: 212
A96: 12 | B96: 15932 | C96: 24 | D96: 15947 | E96: 13 | F96: 15971 | K96: 0 | L96: 121
A97: 12 | B97: 16086 | C97: 24 | D97: 16104 | E97: 24 | F97: 16120 | K97: 0 | L97: 122
A98: 12 | B98: 16252 | C98: 24 | D98: 16272 | E98: 24 | F98: 16280 | K98: 0 | L98: 122
A99: 21 | B99: 16415 | C99: 11 | D99: 16436 | E99: 11 | F99: 16504 | K99: 0 | L99: 211
A100: 12 | B100: 16610 | C100: 13 | D100: 16634 | E100: 24 | F100: 16647 | K100: 0 | L100: 112
A101: 12 | B101: 16751 | C101: 13 | D101: 16763 | E101: 13 | F101: 16774 | K101: 0 | L101: 111
A102: 21 | B102: 16906 | C102: 22 | D102: 16914 | E102: 24 | F102: 16924 | K102: 0 | L102: 222
A103: 12 | B103: 17045 | C103: 13 | D103: 17055 | E103: 13 | F103: 17079 | K103: 0 | L103: 111
A104: 12 | B104: 17180 | C104: 24 | D104: 17191 | E104: 24 | F104: 17221 | K104: 0 | L104: 122
A105: 12 | B105: 17322 | C105: 24 | D105: 17338 | E105: 24 | F105: 17339 | K105: 0 | L105: 122
A106: 12 | B106: 17456 | C106: 24 | D106: 17470 | E106: 24 | F106: 17479 | K106: 0 | L106: 122
A107: 12 | B107: 17614 | C107: 13 | D107: 17627 | E107: 13 | F107: 17638 | K107: 0 | L107: 111
A108: 12 | B108: 17753 | C108: 24 | D108: 17769 | E108: 24 | F108: 17778 | K108: 0 | L108: 122
A109: 12 | B109: 17898 | C109: 13 | D109: 17900 | E109: 24 | F109: 17913 | K109: 0 | L109: 112
A110: 12 | B110: 18032 | C110: 24 | D110: 18045 | E110: 24 | F110: 18047 | K110: 0 | L110: 122
A111: 12 | B111: 20944 | C111: 24 | D111: 20962 | E111: 24 | F111: 20976 | K111: 0 | L111: 122
A112: 21 | B112: 21899 | C112: 22 | D112: 21912 | E112: 24 | F112: 21922 | K112: 0 | L112: 222

Sheet !2011-05-28_14h16m.Subject 53
A1: Report for:!2011-05-28_14h16m.Subject 53
A2: Date | B2: 2011-05-28 | F2: Group | G2: 0
A3: Hen | B3: 53 | F3: Correct Sequence | G3: =Start!J2 -> 211 | P3: Total Sequences in Data | Q3: =4994-COUNTBLANK(L7:L5000) -> 97 | V3: Total Sequences in Block Data | W3: =COUNTA(L7:L22) -> 16 | AA3: Total Sequences in Block Data | AB3: =COUNTA(L23:L38) -> 16 | AF3: Total Sequences in Block Data | AG3: =COUNTA(L39:L55) -> 17 | AK3: Total Sequences in Block Data | AL3: =COUNTA(L56:L71) -> 16 | AP3: Total Sequences in Block Data | AQ3: =COUNTA(L72:L87) -> 16 | AU3: Total Sequences in Block Data | AV3: =COUNTA(L88:L103) -> 16
A4: Program | B4: 0 | P4: Total Sequences in Summary | Q4: =SUM(O7:O14) -> 97 | V4: Total Sequences in Block Summary | W4: =SUM(U7:U14) -> 16 | AA4: Total Sequences in Block Summary | AB4: =SUM(Z7:Z14) -> 16 | AF4: Total Sequences in Block Summary | AG4: =SUM(AE7:AE14) -> 17 | AK4: Total Sequences in Block Summary | AL4: =SUM(AJ7:AJ14) -> 16 | AP4: Total Sequences in Block Summary | AQ4: =SUM(AO7:AO14) -> 16 | AU4: Total Sequences in Block Summary | AV4: =SUM(AT7:AT14) -> 16
T5: Block 1 | Y5: Block 2 | AD5: Block 3 | AI5: Block 4 | AN5: Block 5 | AS5: Block 6
A6: Sequence Component 1 | B6: Time 1 | C6: Sequence Component 2 | D6: Time 2 | E6: Sequence Component 3 | F6: Time 3 | G6: Sequence Component 4 | H6: Time 4 | I6: Sequence Component 5 | J6: Time 5 | K6: Correct? 0=No 1=Yes | L6: Sequence | N6: Frequency | P6: Relative Frequency | Q6: Variability | T6: Frequency | V6: Relative Frequency | W6: Variability | Y6: Frequency | AA6: Relative Frequency | AB6: Variability | AD6: Frequency | AF6: Relative Frequency | AG6: Variability | AI6: Frequency | AK6: Relative Frequency | AL6: Variability | AN6: Frequency | AP6: Relative Frequency | AQ6: Variability | AS6: Frequency | AU6: Relative Frequency | AV6: Variability
A7: 12 | B7: 74 | C7: 13 | D7: 117 | E7: 24 | F7: 134 | K7: 0 | L7: 112 | N7: 111 | O7: =COUNTIF($L$7:$L$500,N7) -> 24 | P7: =O7/$Q$4 -> 0.2474226804 | Q7: =IF(P7=0,0,(P7*((LOG(P7))/LOG(2)))) -> -0.4985444144 | T7: =N7 -> 111 | U7: =COUNTIF(L7:L22,T7) -> 1 | V7: =U7/(W4-U11) -> 0.0625 | W7: =IF(V7=0,0,(V7*((LOG(V7))/LOG(2)))) -> -0.25 | Y7: =N7 -> 111 | Z7: =COUNTIF(L23:L38,Y7) -> 0 | AA7: =Z7/(AB4-Z11) -> 0 | AB7: =IF(AA7=0,0,(AA7*((LOG(AA7))/LOG(2)))) -> 0 | AD7: =N7 -> 111 | AE7: =COUNTIF(L39:L55,AD7) -> 2 | AF7: =AE7/(AG4-AE11) -> 0.1176470588 | AG7: =IF(AF7=0,0,(AF7*((LOG(AF7))/LOG(2)))) -> -0.3632309225 | AI7: =N7 -> 111 | AJ7: =COUNTIF(L56:L71,AI7) -> 5 | AK7: =AJ7/(AL4-AJ11) -> 0.3125 | AL7: =IF(AK7=0,0,(AK7*((LOG(AK7))/LOG(2)))) -> -0.5243974703 | AN7: =N7 -> 111 | AO7: =COUNTIF(L72:L87,AN7) -> 9 | AP7: =AO7/(AQ4-AO11) -> 0.5625 | AQ7: =IF(AP7=0,0,(AP7*((LOG(AP7))/LOG(2)))) -> -0.4669171867 | AS7: =N7 -> 111 | AT7: =COUNTIF(L88:L103,AS7) -> 7 | AU7: =AT7/(AV4-AT11) -> 0.4375 | AV7: =IF(AU7=0,0,(AU7*((LOG(AU7))/LOG(2)))) -> -0.5217822216
A8: 12 | B8: 246 | C8: 24 | D8: 263 | E8: 13 | F8: 285 | K8: 0 | L8: 121 | N8: 112 | O8: =COUNTIF($L$7:$L$500,N8) -> 23 | P8: =O8/$Q$4 -> 0.2371134021 | Q8: =IF(P8=0,0,(P8*((LOG(P8))/LOG(2)))) -> -0.4923306225 | T8: =N8 -> 112 | U8: =COUNTIF(L7:L22,T8) -> 4 | V8: =U8/(W4-U11) -> 0.25 | W8: =IF(V8=0,0,(V8*((LOG(V8))/LOG(2)))) -> -0.5 | Y8: =N8 -> 112 | Z8: =COUNTIF(L23:L38,Y8) -> 5 | AA8: =Z8/(AB4-Z11) -> 0.3125 | AB8: =IF(AA8=0,0,(AA8*((LOG(AA8))/LOG(2)))) -> -0.5243974703 | AD8: =N8 -> 112 | AE8: =COUNTIF(L39:L55,AD8) -> 5 | AF8: =AE8/(AG4-AE11) -> 0.2941176471 | AG8: =IF(AF8=0,0,(AF8*((LOG(AF8))/LOG(2)))) -> -0.5192749254 | AI8: =N8 -> 112 | AJ8: =COUNTIF(L56:L71,AI8) -> 2 | AK8: =AJ8/(AL4-AJ11) -> 0.125 | AL8: =IF(AK8=0,0,(AK8*((LOG(AK8))/LOG(2)))) -> -0.375 | AN8: =N8 -> 112 | AO8: =COUNTIF(L72:L87,AN8) -> 5 | AP8: =AO8/(AQ4-AO11) -> 0.3125 | AQ8: =IF(AP8=0,0,(AP8*((LOG(AP8))/LOG(2)))) -> -0.5243974703 | AS8: =N8 -> 112 | AT8: =COUNTIF(L88:L103,AS8) -> 2 | AU8: =AT8/(AV4-AT11) -> 0.125 | AV8: =IF(AU8=0,0,(AU8*((LOG(AU8))/LOG(2)))) -> -0.375
A9: 12 | B9: 403 | C9: 24 | D9: 423 | E9: 24 | F9: 434 | K9: 0 | L9: 122 | N9: 121 | O9: =COUNTIF($L$7:$L$500,N9) -> 14 | P9: =O9/$Q$4 -> 0.1443298969 | Q9: =IF(P9=0,0,(P9*((LOG(P9))/LOG(2)))) -> -0.4030495967 | T9: =N9 -> 121 | U9: =COUNTIF(L7:L22,T9) -> 3 | V9: =U9/(W4-U11) -> 0.1875 | W9: =IF(V9=0,0,(V9*((LOG(V9))/LOG(2)))) -> -0.4528195311 | Y9: =N9 -> 121 | Z9: =COUNTIF(L23:L38,Y9) -> 7 | AA9: =Z9/(AB4-Z11) -> 0.4375 | AB9: =IF(AA9=0,0,(AA9*((LOG(AA9))/LOG(2)))) -> -0.5217822216 | AD9: =N9 -> 121 | AE9: =COUNTIF(L39:L55,AD9) -> 2 | AF9: =AE9/(AG4-AE11) -> 0.1176470588 | AG9: =IF(AF9=0,0,(AF9*((LOG(AF9))/LOG(2)))) -> -0.3632309225 | AI9: =N9 -> 121 | AJ9: =COUNTIF(L56:L71,AI9) -> 1 | AK9: =AJ9/(AL4-AJ11) -> 0.0625 | AL9: =IF(AK9=0,0,(AK9*((LOG(AK9))/LOG(2)))) -> -0.25 | AN9: =N9 -> 121 | AO9: =COUNTIF(L72:L87,AN9) -> 1 | AP9: =AO9/(AQ4-AO11) -> 0.0625 | AQ9: =IF(AP9=0,0,(AP9*((LOG(AP9))/LOG(2)))) -> -0.25 | AS9: =N9 -> 121 | AT9: =COUNTIF(L88:L103,AS9) -> 0 | AU9: =AT9/(AV4-AT11) -> 0 | AV9: =IF(AU9=0,0,(AU9*((LOG(AU9))/LOG(2)))) -> 0
A10: 21 | B10: 551 | C10: 22 | D10: 566 | E10: 24 | F10: 604 | K10: 0 | L10: 222 | N10: 122 | O10: =COUNTIF($L$7:$L$500,N10) -> 28 | P10: =O10/$Q$4 -> 0.2886597938 | Q10: =IF(P10=0,0,(P10*((LOG(P10))/LOG(2)))) -> -0.5174393996 | T10: =N10 -> 122 | U10: =COUNTIF(L7:L22,T10) -> 6 | V10: =U10/(W4-U11) -> 0.375 | W10: =IF(V10=0,0,(V10*((LOG(V10))/LOG(2)))) -> -0.5306390622 | Y10: =N10 -> 122 | Z10: =COUNTIF(L23:L38,Y10) -> 2 | AA10: =Z10/(AB4-Z11) -> 0.125 | AB10: =IF(AA10=0,0,(AA10*((LOG(AA10))/LOG(2)))) -> -0.375 | AD10: =N10 -> 122 | AE10: =COUNTIF(L39:L55,AD10) -> 6 | AF10: =AE10/(AG4-AE11) -> 0.3529411765 | AG10: =IF(AF10=0,0,(AF10*((LOG(AF10))/LOG(2)))) -> -0.5302942378 | AI10: =N10 -> 122 | AJ10: =COUNTIF(L56:L71,AI10) -> 8 | AK10: =AJ10/(AL4-AJ11) -> 0.5 | AL10: =IF(AK10=0,0,(AK10*((LOG(AK10))/LOG(2)))) -> -0.5 | AN10: =N10 -> 122 | AO10: =COUNTIF(L72:L87,AN10) -> 0 | AP10: =AO10/(AQ4-AO11) -> 0 | AQ10: =IF(AP10=0,0,(AP10*((LOG(AP10))/LOG(2)))) -> 0 | AS10: =N10 -> 122 | AT10: =COUNTIF(L88:L103,AS10) -> 6 | AU10: =AT10/(AV4-AT11) -> 0.375 | AV10: =IF(AU10=0,0,(AU10*((LOG(AU10))/LOG(2)))) -> -0.5306390622
A11: 12 | B11: 716 | C11: 24 | D11: 735 | E11: 24 | F11: 743 | K11: 0 | L11: 122 | N11: 211 | O11: =COUNTIF($L$7:$L$500,N11) -> 0 | P11: =O11/$Q$4 -> 0 | Q11: =IF(P11=0,0,(P11*((LOG(P11))/LOG(2)))) -> 0 | T11: =N11 -> 211 | U11: =COUNTIF(L7:L22,T11) -> 0 | Y11: =N11 -> 211 | Z11: =COUNTIF(L23:L38,Y11) -> 0 | AD11: =N11 -> 211 | AE11: =COUNTIF(L39:L55,AD11) -> 0 | AI11: =N11 -> 211 | AJ11: =COUNTIF(L56:L71,AI11) -> 0 | AN11: =N11 -> 211 | AO11: =COUNTIF(L72:L87,AN11) -> 0 | AS11: =N11 -> 211 | AT11: =COUNTIF(L88:L103,AS11) -> 0
A12: 12 | B12: 842 | C12: 13 | D12: 863 | E12: 24 | F12: 878 | K12: 0 | L12: 112 | N12: 212 | O12: =COUNTIF($L$7:$L$500,N12) -> 3 | P12: =O12/$Q$4 -> 0.03092783505 | Q12: =IF(P12=0,0,(P12*((LOG(P12))/LOG(2)))) -> -0.155101557 | T12: =N12 -> 212 | U12: =COUNTIF(L7:L22,T12) -> 0 | V12: =U12/(W4-U11) -> 0 | W12: =IF(V12=0,0,(V12*((LOG(V12))/LOG(2)))) -> 0 | Y12: =N12 -> 212 | Z12: =COUNTIF(L23:L38,Y12) -> 1 | AA12: =Z12/(AB4-Z11) -> 0.0625 | AB12: =IF(AA12=0,0,(AA12*((LOG(AA12))/LOG(2)))) -> -0.25 | AD12: =N12 -> 212 | AE12: =COUNTIF(L39:L55,AD12) -> 0 | AF12: =AE12/(AG4-AE11) -> 0 | AG12: =IF(AF12=0,0,(AF12*((LOG(AF12))/LOG(2)))) -> 0 | AI12: =N12 -> 212 | AJ12: =COUNTIF(L56:L71,AI12) -> 0 | AK12: =AJ12/(AL4-AJ11) -> 0 | AL12: =IF(AK12=0,0,(AK12*((LOG(AK12))/LOG(2)))) -> 0 | AN12: =N12 -> 212 | AO12: =COUNTIF(L72:L87,AN12) -> 1 | AP12: =AO12/(AQ4-AO11) -> 0.0625 | AQ12: =IF(AP12=0,0,(AP12*((LOG(AP12))/LOG(2)))) -> -0.25 | AS12: =N12 -> 212 | AT12: =COUNTIF(L88:L103,AS12) -> 1 | AU12: =AT12/(AV4-AT11) -> 0.0625 | AV12: =IF(AU12=0,0,(AU12*((LOG(AU12))/LOG(2)))) -> -0.25
A13: 12 | B13: 976 | C13: 13 | D13: 978 | E13: 13 | F13: 1001 | K13: 0 | L13: 111 | N13: 221 | O13: =COUNTIF($L$7:$L$500,N13) -> 1 | P13: =O13/$Q$4 -> 0.01030927835 | Q13: =IF(P13=0,0,(P13*((LOG(P13))/LOG(2)))) -> -0.06804033858 | T13: =N13 -> 221 | U13: =COUNTIF(L7:L22,T13) -> 0 | V13: =U13/(W4-U11) -> 0 | W13: =IF(V13=0,0,(V13*((LOG(V13))/LOG(2)))) -> 0 | Y13: =N13 -> 221 | Z13: =COUNTIF(L23:L38,Y13) -> 0 | AA13: =Z13/(AB4-Z11) -> 0 | AB13: =IF(AA13=0,0,(AA13*((LOG(AA13))/LOG(2)))) -> 0 | AD13: =N13 -> 221 | AE13: =COUNTIF(L39:L55,AD13) -> 1 | AF13: =AE13/(AG4-AE11) -> 0.05882352941 | AG13: =IF(AF13=0,0,(AF13*((LOG(AF13))/LOG(2)))) -> -0.2404389907 | AI13: =N13 -> 221 | AJ13: =COUNTIF(L56:L71,AI13) -> 0 | AK13: =AJ13/(AL4-AJ11) -> 0 | AL13: =IF(AK13=0,0,(AK13*((LOG(AK13))/LOG(2)))) -> 0 | AN13: =N13 -> 221 | AO13: =COUNTIF(L72:L87,AN13) -> 0 | AP13: =AO13/(AQ4-AO11) -> 0 | AQ13: =IF(AP13=0,0,(AP13*((LOG(AP13))/LOG(2)))) -> 0 | AS13: =N13 -> 221 | AT13: =COUNTIF(L88:L103,AS13) -> 0 | AU13: =AT13/(AV4-AT11) -> 0 | AV13: =IF(AU13=0,0,(AU13*((LOG(AU13))/LOG(2)))) -> 0
A14: 21 | B14: 1122 | C14: 22 | D14: 1154 | E14: 24 | F14: 1164 | K14: 0 | L14: 222 | N14: 222 | O14: =COUNTIF($L$7:$L$500,N14) -> 4 | P14: =O14/$Q$4 -> 0.0412371134 | Q14: =IF(P14=0,0,(P14*((LOG(P14))/LOG(2)))) -> -0.1896871275 | T14: =N14 -> 222 | U14: =COUNTIF(L7:L22,T14) -> 2 | V14: =U14/(W4-U11) -> 0.125 | W14: =IF(V14=0,0,(V14*((LOG(V14))/LOG(2)))) -> -0.375 | Y14: =N14 -> 222 | Z14: =COUNTIF(L23:L38,Y14) -> 1 | AA14: =Z14/(AB4-Z11) -> 0.0625 | AB14: =IF(AA14=0,0,(AA14*((LOG(AA14))/LOG(2)))) -> -0.25 | AD14: =N14 -> 222 | AE14: =COUNTIF(L39:L55,AD14) -> 1 | AF14: =AE14/(AG4-AE11) -> 0.05882352941 | AG14: =IF(AF14=0,0,(AF14*((LOG(AF14))/LOG(2)))) -> -0.2404389907 | AI14: =N14 -> 222 | AJ14: =COUNTIF(L56:L71,AI14) -> 0 | AK14: =AJ14/(AL4-AJ11) -> 0 | AL14: =IF(AK14=0,0,(AK14*((LOG(AK14))/LOG(2)))) -> 0 | AN14: =N14 -> 222 | AO14: =COUNTIF(L72:L87,AN14) -> 0 | AP14: =AO14/(AQ4-AO11) -> 0 | AQ14: =IF(AP14=0,0,(AP14*((LOG(AP14))/LOG(2)))) -> 0 | AS14: =N14 -> 222 | AT14: =COUNTIF(L88:L103,AS14) -> 0 | AU14: =AT14/(AV4-AT11) -> 0 | AV14: =IF(AU14=0,0,(AU14*((LOG(AU14))/LOG(2)))) -> 0
A15: 12 | B15: 1272 | C15: 24 | D15: 1299 | E15: 13 | F15: 1331 | K15: 0 | L15: 121 | P15: =SUM(P7:P14) -> 1 | Q15: =-SUM(Q7:Q14) -> 2.324193056 | V15: =SUM(V7:V14) -> 1 | W15: =-SUM(W7:W14) -> 2.108458593 | AA15: =SUM(AA7:AA14) -> 1 | AB15: =-SUM(AB7:AB14) -> 1.921179692 | AF15: =SUM(AF7:AF14) -> 1 | AG15: =-SUM(AG7:AG14) -> 2.25690899 | AK15: =SUM(AK7:AK14) -> 1 | AL15: =-SUM(AL7:AL14) -> 1.64939747 | AP15: =SUM(AP7:AP14) -> 1 | AQ15: =-SUM(AQ7:AQ14) -> 1.491314657 | AU15: =SUM(AU7:AU14) -> 1 | AV15: =-SUM(AV7:AV14) -> 1.677421284
A16: 12 | B16: 1446 | C16: 24 | D16: 1459 | E16: 24 | F16: 1470 | K16: 0 | L16: 122 | P16: U= | Q16: =Q15/(LOG(Q4)/LOG(2)) -> 0.3521551135 | V16: U1= | W16: =W15/(LOG(W4)/LOG(2)) -> 0.5271146483 | AA16: U2= | AB16: =AB15/(LOG(AB4)/LOG(2)) -> 0.480294923 | AF16: U3= | AG16: =AG15/(LOG(AG4)/LOG(2)) -> 0.5521540078 | AK16: U4= | AL16: =AL15/(LOG(AL4)/LOG(2)) -> 0.4123493676 | AP16: U5= | AQ16: =AQ15/(LOG(AQ4)/LOG(2)) -> 0.3728286643 | AU16: U6= | AV16: =AV15/(LOG(AV4)/LOG(2)) -> 0.419355321
A17: 12 | B17: 1571 | C17: 13 | D17: 1594 | E17: 24 | F17: 1610 | K17: 0 | L17: 112
A18: 12 | B18: 1718 | C18: 24 | D18: 1730 | E18: 24 | F18: 1740 | K18: 0 | L18: 122
A19: 12 | B19: 1860 | C19: 24 | D19: 1875 | E19: 13 | F19: 1894 | K19: 0 | L19: 121 | N19: Total Target Seq
A20: 12 | B20: 2004 | C20: 24 | D20: 2018 | E20: 24 | F20: 2029 | K20: 0 | L20: 122 | N20: =COUNTIF(L7:L103,G3) -> 0 | P20: 16 | Q20: 16 | R20: 17 | S20: 16 | T20: 16 | U20: 16
A21: 12 | B21: 2131 | C21: 24 | D21: 2146 | E21: 24 | F21: 2155 | K21: 0 | L21: 122 | P21: % of reinforcement given in 6 equal intervals based on number of trials
A22: 12 | B22: 2272 | C22: 13 | D22: 2294 | E22: 24 | F22: 2308 | K22: 0 | L22: 112 | P22: %_1 | Q22: %_2 | R22: %_3 | S22: %_4 | T22: %_5 | U22: %_6
A23: 12 | B23: 2439 | C23: 24 | D23: 2462 | E23: 13 | F23: 2483 | K23: 0 | L23: 121 | O23: target sequence | P23: =$G$3 -> 211 | Q23: =$G$3 -> 211 | R23: =$G$3 -> 211 | S23: =$G$3 -> 211 | T23: =$G$3 -> 211 | U23: =$G$3 -> 211
A24: 12 | B24: 2587 | C24: 13 | D24: 2609 | E24: 24 | F24: 2632 | K24: 0 | L24: 112 | O24: total reinforcement | P24: =U11 -> 0 | Q24: =Z11 -> 0 | R24: =AE11 -> 0 | S24: =AJ11 -> 0 | T24: =AO11 -> 0 | U24: =AT11 -> 0
A25: 12 | B25: 2771 | C25: 24 | D25: 2785 | E25: 13 | F25: 2804 | K25: 0 | L25: 121 | O25: % target
A26: 12 | B26: 2921 | C26: 24 | D26: 2935 | E26: 13 | F26: 2959 | K26: 0 | L26: 121 | O26: CCRF
A27: 12 | B27: 3079 | C27: 24 | D27: 3095 | E27: 24 | F27: 3104 | K27: 0 | L27: 122 | O27: % CCRf
A28: 12 | B28: 3296 | C28: 24 | D28: 3324 | E28: 13 | F28: 3345 | K28: 0 | L28: 121 | O28: average response rate | P28: =F22/P20 -> 144.25 | Q28: =(F38-F22)/Q20 -> 162.625 | R28: =(F55-F38)/R20 -> 184.4705882 | S28: =(F71-F55)/S20 -> 150.3125 | T28: =(F87-F71)/T20 -> 176.4375 | U28: =(F103-F87)/U20 -> 661.8125
A29: 21 | B29: 3483 | C29: 22 | D29: 3492 | E29: 24 | F29: 3535 | K29: 0 | L29: 222
A30: 12 | B30: 3650 | C30: 24 | D30: 3663 | E30: 13 | F30: 3685 | K30: 0 | L30: 121
A31: 12 | B31: 3783 | C31: 24 | D31: 3798 | E31: 13 | F31: 3812 | K31: 0 | L31: 121
A32: 21 | B32: 3976 | C32: 11 | D32: 3995 | E32: 22 | F32: 4009 | K32: 0 | L32: 212
A33: 12 | B33: 4117 | C33: 24 | D33: 4140 | E33: 13 | F33: 4160 | K33: 0 | L33: 121
A34: 12 | B34: 4273 | C34: 13 | D34: 4300 | E34: 24 | F34: 4313 | K34: 0 | L34: 112
A35: 12 | B35: 4430 | C35: 24 | D35: 4445 | E35: 24 | F35: 4455 | K35: 0 | L35: 122
A36: 12 | B36: 4554 | C36: 13 | D36: 4573 | E36: 24 | F36: 4588 | K36: 0 | L36: 112
A37: 12 | B37: 4698 | C37: 13 | D37: 4717 | E37: 24 | F37: 4733 | K37: 0 | L37: 112
A38: 12 | B38: 4860 | C38: 13 | D38: 4893 | E38: 24 | F38: 4910 | K38: 0 | L38: 112
A39: 12 | B39: 5044 | C39: 13 | D39: 5046 | E39: 24 | F39: 5064 | K39: 0 | L39: 112
A40: 12 | B40: 5168 | C40: 13 | D40: 5170 | E40: 24 | F40: 5184 | K40: 0 | L40: 112
A41: 12 | B41: 5366 | C41: 24 | D41: 5378 | E41: 13 | F41: 5397 | K41: 0 | L41: 121
A42: 12 | B42: 5521 | C42: 24 | D42: 5536 | E42: 24 | F42: 5546 | K42: 0 | L42: 122
A43: 12 | B43: 5670 | C43: 13 | D43: 5672 | E43: 24 | F43: 5685 | K43: 0 | L43: 112
A44: 12 | B44: 5811 | C44: 13 | D44: 5851 | E44: 13 | F44: 5853 | K44: 0 | L44: 111
A45: 12 | B45: 6000 | C45: 24 | D45: 6015 | E45: 24 | F45: 6026 | K45: 0 | L45: 122
A46: 12 | B46: 6173 | C46: 24 | D46: 6188 | E46: 24 | F46: 6201 | K46: 0 | L46: 122
A47: 21 | B47: 6584 | C47: 22 | D47: 6592 | E47: 24 | F47: 6602 | K47: 0 | L47: 222
A48: 12 | B48: 6846 | C48: 13 | D48: 6855 | E48: 24 | F48: 6878 | K48: 0 | L48: 112
A49: 12 | B49: 7004 | C49: 13 | D49: 7019 | E49: 13 | F49: 7030 | K49: 0 | L49: 111
A50: 12 | B50: 7164 | C50: 24 | D50: 7178 | E50: 24 | F50: 7187 | K50: 0 | L50: 122
A51: 21 | B51: 7326 | C51: 22 | D51: 7338 | E51: 13 | F51: 7352 | K51: 0 | L51: 221
A52: 12 | B52: 7570 | C52: 24 | D52: 7585 | E52: 24 | F52: 7587 | K52: 0 | L52: 122
A53: 12 | B53: 7728 | C53: 13 | D53: 7730 | E53: 24 | F53: 7744 | K53: 0 | L53: 112
A54: 12 | B54: 7856 | C54: 24 | D54: 7872 | E54: 24 | F54: 7881 | K54: 0 | L54: 122
A55: 12 | B55: 7998 | C55: 24 | D55: 8017 | E55: 13 | F55: 8046 | K55: 0 | L55: 121
A56: 12 | B56: 8197 | C56: 13 | D56: 8199 | E56: 24 | F56: 8216 | K56: 0 | L56: 112
A57: 12 | B57: 8332 | C57: 24 | D57: 8375 | E57: 24 | F57: 8383 | K57: 0 | L57: 122
A58: 12 | B58: 8485 | C58: 13 | D58: 8506 | E58: 24 | F58: 8522 | K58: 0 | L58: 112
A59: 12 | B59: 8630 | C59: 24 | D59: 8646 | E59: 24 | F59: 8663 | K59: 0 | L59: 122
A60: 12 | B60: 8770 | C60: 24 | D60: 8784 | E60: 24 | F60: 8793 | K60: 0 | L60: 122
A61: 12 | B61: 8902 | C61: 24 | D61: 8916 | E61: 24 | F61: 8926 | K61: 0 | L61: 122
A62: 12 | B62: 9034 | C62: 24 | D62: 9050 | E62: 24 | F62: 9061 | K62: 0 | L62: 122
A63: 12 | B63: 9173 | C63: 24 | D63: 9188 | E63: 24 | F63: 9197 | K63: 0 | L63: 122
A64: 12 | B64: 9300 | C64: 24 | D64: 9317 | E64: 13 | F64: 9344 | K64: 0 | L64: 121
A65: 12 | B65: 9459 | C65: 24 | D65: 9474 | E65: 24 | F65: 9483 | K65: 0 | L65: 122
A66: 12 | B66: 9594 | C66: 13 | D66: 9608 | E66: 13 | F66: 9635 | K66: 0 | L66: 111
A67: 12 | B67: 9806 | C67: 13 | D67: 9823 | E67: 13 | F67: 9825 | K67: 0 | L67: 111
A68: 12 | B68: 9930 | C68: 13 | D68: 9959 | E68: 13 | F68: 9980 | K68: 0 | L68: 111
A69: 12 | B69: 10089 | C69: 24 | D69: 10105 | E69: 24 | F69: 10114 | K69: 0 | L69: 122
A70: 12 | B70: 10220 | C70: 13 | D70: 10276 | E70: 13 | F70: 10288 | K70: 0 | L70: 111
A71: 12 | B71: 10392 | C71: 13 | D71: 10413 | E71: 13 | F71: 10451 | K71: 0 | L71: 111
A72: 12 | B72: 10557 | C72: 13 | D72: 10558 | E72: 13 | F72: 10581 | K72: 0 | L72: 111
A73: 12 | B73: 10689 | C73: 13 | D73: 10708 | E73: 13 | F73: 10727 | K73: 0 | L73: 111
A74: 12 | B74: 10836 | C74: 13 | D74: 10866 | E74: 13 | F74: 10878 | K74: 0 | L74: 111
A75: 12 | B75: 10985 | C75: 13 | D75: 11007 | E75: 24 | F75: 11024 | K75: 0 | L75: 112
A76: 12 | B76: 11145 | C76: 13 | D76: 11147 | E76: 13 | F76: 11173 | K76: 0 | L76: 111
A77: 12 | B77: 11313 | C77: 13 | D77: 11330 | E77: 13 | F77: 11353 | K77: 0 | L77: 111
A78: 12 | B78: 11462 | C78: 13 | D78: 11464 | E78: 13 | F78: 11479 | K78: 0 | L78: 111
A79: 12 | B79: 11637 | C79: 13 | D79: 11648 | E79: 13 | F79: 11657 | K79: 0 | L79: 111
A80: 21 | B80: 11957 | C80: 11 | D80: 11976 | E80: 22 | F80: 11995 | K80: 0 | L80: 212
A81: 12 | B81: 12106 | C81: 13 | D81: 12123 | E81: 24 | F81: 12140 | K81: 0 | L81: 112
A82: 12 | B82: 12283 | C82: 13 | D82: 12294 | E82: 13 | F82: 12307 | K82: 0 | L82: 111
A83: 12 | B83: 12466 | C83: 13 | D83: 12479 | E83: 24 | F83: 12495 | K83: 0 | L83: 112
A84: 12 | B84: 12634 | C84: 13 | D84: 12654 | E84: 24 | F84: 12675 | K84: 0 | L84: 112
A85: 12 | B85: 12802 | C85: 13 | D85: 12811 | E85: 13 | F85: 12845 | K85: 0 | L85: 111
A86: 12 | B86: 12978 | C86: 13 | D86: 12987 | E86: 24 | F86: 13004 | K86: 0 | L86: 112
A87: 12 | B87: 13223 | C87: 24 | D87: 13240 | E87: 13 | F87: 13274 | K87: 0 | L87: 121
A88: 12 | B88: 13412 | C88: 24 | D88: 13429 | E88: 24 | F88: 13439 | K88: 0 | L88: 122
A89: 12 | B89: 13626 | C89: 24 | D89: 13640 | E89: 24 | F89: 13649 | K89: 0 | L89: 122
A90: 12 | B90: 13805 | C90: 24 | D90: 13819 | E90: 24 | F90: 13827 | K90: 0 | L90: 122
A91: 12 | B91: 13932 | C91: 13 | D91: 13976 | E91: 13 | F91: 14003 | K91: 0 | L91: 111
A92: 12 | B92: 14131 | C92: 24 | D92: 14144 | E92: 24 | F92: 14151 | K92: 0 | L92: 122
A93: 12 | B93: 14307 | C93: 13 | D93: 14362 | E93: 24 | F93: 14378 | K93: 0 | L93: 112
A94: 12 | B94: 14510 | C94: 24 | D94: 14524 | E94: 24 | F94: 14532 | K94: 0 | L94: 122
A95: 12 | B95: 14657 | C95: 24 | D95: 14671 | E95: 24 | F95: 14677 | K95: 0 | L95: 122
A96: 12 | B96: 14797 | C96: 13 | D96: 14820 | E96: 13 | F96: 14821 | K96: 0 | L96: 111
A97: 21 | B97: 14979 | C97: 11 | D97: 15008 | E97: 22 | F97: 15025 | K97: 0 | L97: 212
A98: 12 | B98: 15245 | C98: 13 | D98: 15263 | E98: 13 | F98: 15277 | K98: 0 | L98: 111
A99: 12 | B99: 15465 | C99: 13 | D99: 15739 | E99: 13 | F99: 15759 | K99: 0 | L99: 111
A100: 12 | B100: 16457 | C100: 13 | D100: 16498 | E100: 13 | F100: 16688 | K100: 0 | L100: 111
A101: 12 | B101: 16828 | C101: 13 | D101: 16902 | E101: 13 | F101: 16904 | K101: 0 | L101: 111
A102: 12 | B102: 17136 | C102: 13 | D102: 23074 | E102: 24 | F102: 23089 | K102: 0 | L102: 112
A103: 12 | B103: 23833 | C103: 13 | D103: 23847 | E103: 13 | F103: 23863 | K103: 0 | L103: 111

Sheet !2011-05-29_08h34m.Subject 53
A1: Report for:!2011-05-29_08h34m.Subject 53
A2: Date | B2: 2011-05-29 | F2: Group | G2: 0
A3: Hen | B3: 53 | F3: Correct Sequence | G3: =Start!J2 -> 211 | P3: Total Sequences in Data | Q3: =4994-COUNTBLANK(L7:L5000) -> 56 | V3: Total Sequences in Block Data | W3: =COUNTA(L7:L15) -> 9 | AA3: Total Sequences in Block Data | AB3: =COUNTA(L16:L25) -> 10 | AF3: Total Sequences in Block Data | AG3: =COUNTA(L26:L34) -> 9 | AK3: Total Sequences in Block Data | AL3: =COUNTA(L35:L43) -> 9 | AP3: Total Sequences in Block Data | AQ3: =COUNTA(L44:L53) -> 10 | AU3: Total Sequences in Block Data | AV3: =COUNTA(L54:L62) -> 9
A4: Program | B4: 0 | P4: Total Sequences in Summary | Q4: =SUM(O7:O14) -> 56 | V4: Total Sequences in Block Summary | W4: =SUM(U7:U14) -> 9 | AA4: Total Sequences in Block Summary | AB4: =SUM(Z7:Z14) -> 10 | AF4: Total Sequences in Block Summary | AG4: =SUM(AE7:AE14) -> 9 | AK4: Total Sequences in Block Summary | AL4: =SUM(AJ7:AJ14) -> 9 | AP4: Total Sequences in Block Summary | AQ4: =SUM(AO7:AO14) -> 10 | AU4: Total Sequences in Block Summary | AV4: =SUM(AT7:AT14) -> 9
T5: Block 1 | Y5: Block 2 | AD5: Block 3 | AI5: Block 4 | AN5: Block 5 | AS5: Block 6
A6: Sequence Component 1 | B6: Time 1 | C6: Sequence Component 2 | D6: Time 2 | E6: Sequence Component 3 | F6: Time 3 | G6: Sequence Component 4 | H6: Time 4 | I6: Sequence Component 5 | J6: Time 5 | K6: Correct? 0=No 1=Yes | L6: Sequence | N6: Frequency | P6: Relative Frequency | Q6: Variability | T6: Frequency | V6: Relative Frequency | W6: Variability | Y6: Frequency | AA6: Relative Frequency | AB6: Variability | AD6: Frequency | AF6: Relative Frequency | AG6: Variability | AI6: Frequency | AK6: Relative Frequency | AL6: Variability | AN6: Frequency | AP6: Relative Frequency | AQ6: Variability | AS6: Frequency | AU6: Relative Frequency | AV6: Variability
A7: 12 | B7: 24 | C7: 13 | D7: 26 | E7: 13 | F7: 54 | K7: 0 | L7: 111 | N7: 111 | O7: =COUNTIF($L$7:$L$500,N7) -> 23 | P7: =O7/$Q$4 -> 0.4107142857 | Q7: =IF(P7=0,0,(P7*((LOG(P7))/LOG(2)))) -> -0.527272111 | T7: =N7 -> 111 | U7: =COUNTIF(L7:L15,T7) -> 2 | V7: =U7/(W4-U11) -> 0.2222222222 | W7: =IF(V7=0,0,(V7*((LOG(V7))/LOG(2)))) -> -0.4822055559 | Y7: =N7 -> 111 | Z7: =COUNTIF(L16:L25,Y7) -> 4 | AA7: =Z7/(AB4-Z11) -> 0.4 | AB7: =IF(AA7=0,0,(AA7*((LOG(AA7))/LOG(2)))) -> -0.528771238 | AD7: =N7 -> 111 | AE7: =COUNTIF(L26:L34,AD7) -> 3 | AF7: =AE7/(AG4-AE11) -> 0.3333333333 | AG7: =IF(AF7=0,0,(AF7*((LOG(AF7))/LOG(2)))) -> -0.5283208336 | AI7: =N7 -> 111 | AJ7: =COUNTIF(L35:L43,AI7) -> 5 | AK7: =AJ7/(AL4-AJ11) -> 0.5555555556 | AL7: =IF(AK7=0,0,(AK7*((LOG(AK7))/LOG(2)))) -> -0.4711093925 | AN7: =N7 -> 111 | AO7: =COUNTIF(L44:L53,AN7) -> 6 | AP7: =AO7/(AQ4-AO11) -> 0.6 | AQ7: =IF(AP7=0,0,(AP7*((LOG(AP7))/LOG(2)))) -> -0.4421793565 | AS7: =N7 -> 111 | AT7: =COUNTIF(L54:L62,AS7) -> 3 | AU7: =AT7/(AV4-AT11) -> 0.3333333333 | AV7: =IF(AU7=0,0,(AU7*((LOG(AU7))/LOG(2)))) -> -0.5283208336
A8: 21 | B8: 199 | C8: 22 | D8: 207 | E8: 24 | F8: 218 | K8: 0 | L8: 222 | N8: 112 | O8: =COUNTIF($L$7:$L$500,N8) -> 15 | P8: =O8/$Q$4 -> 0.2678571429 | Q8: =IF(P8=0,0,(P8*((LOG(P8))/LOG(2)))) -> -0.5090529446 | T8: =N8 -> 112 | U8: =COUNTIF(L7:L15,T8) -> 3 | V8: =U8/(W4-U11) -> 0.3333333333 | W8: =IF(V8=0,0,(V8*((LOG(V8))/LOG(2)))) -> -0.5283208336 | Y8: =N8 -> 112 | Z8: =COUNTIF(L16:L25,Y8) -> 2 | AA8: =Z8/(AB4-Z11) -> 0.2 | AB8: =IF(AA8=0,0,(AA8*((LOG(AA8))/LOG(2)))) -> -0.464385619 | AD8: =N8 -> 112 | AE8: =COUNTIF(L26:L34,AD8) -> 6 | AF8: =AE8/(AG4-AE11) -> 0.6666666667 | AG8: =IF(AF8=0,0,(AF8*((LOG(AF8))/LOG(2)))) -> -0.3899750005 | AI8: =N8 -> 112 | AJ8: =COUNTIF(L35:L43,AI8) -> 3 | AK8: =AJ8/(AL4-AJ11) -> 0.3333333333 | AL8: =IF(AK8=0,0,(AK8*((LOG(AK8))/LOG(2)))) -> -0.5283208336 | AN8: =N8 -> 112 | AO8: =COUNTIF(L44:L53,AN8) -> 1 | AP8: =AO8/(AQ4-AO11) -> 0.1 | AQ8: =IF(AP8=0,0,(AP8*((LOG(AP8))/LOG(2)))) -> -0.3321928095 | AS8: =N8 -> 112 | AT8: =COUNTIF(L54:L62,AS8) -> 0 | AU8: =AT8/(AV4-AT11) -> 0 | AV8: =IF(AU8=0,0,(AU8*((LOG(AU8))/LOG(2)))) -> 0
A9: 12 | B9: 322 | C9: 13 | D9: 361 | E9: 13 | F9: 404 | K9: 0 | L9: 111 | N9: 121 | O9: =COUNTIF($L$7:$L$500,N9) -> 2 | P9: =O9/$Q$4 -> 0.03571428571 | Q9: =IF(P9=0,0,(P9*((LOG(P9))/LOG(2)))) -> -0.1716912472 | T9: =N9 -> 121 | U9: =COUNTIF(L7:L15,T9) -> 1 | V9: =U9/(W4-U11) -> 0.1111111111 | W9: =IF(V9=0,0,(V9*((LOG(V9))/LOG(2)))) -> -0.352213889 | Y9: =N9 -> 121 | Z9: =COUNTIF(L16:L25,Y9) -> 0 | AA9: =Z9/(AB4-Z11) -> 0 | AB9: =IF(AA9=0,0,(AA9*((LOG(AA9))/LOG(2)))) -> 0 | AD9: =N9 -> 121 | AE9: =COUNTIF(L26:L34,AD9) -> 0 | AF9: =AE9/(AG4-AE11) -> 0 | AG9: =IF(AF9=0,0,(AF9*((LOG(AF9))/LOG(2)))) -> 0 | AI9: =N9 -> 121 | AJ9: =COUNTIF(L35:L43,AI9) -> 0 | AK9: =AJ9/(AL4-AJ11) -> 0 | AL9: =IF(AK9=0,0,(AK9*((LOG(AK9))/LOG(2)))) -> 0 | AN9: =N9 -> 121 | AO9: =COUNTIF(L44:L53,AN9) -> 0 | AP9: =AO9/(AQ4-AO11) -> 0 | AQ9: =IF(AP9=0,0,(AP9*((LOG(AP9))/LOG(2)))) -> 0 | AS9: =N9 -> 121 | AT9: =COUNTIF(L54:L62,AS9) -> 1 | AU9: =AT9/(AV4-AT11) -> 0.1111111111 | AV9: =IF(AU9=0,0,(AU9*((LOG(AU9))/LOG(2)))) -> -0.352213889
A10: 12 | B10: 517 | C10: 13 | D10: 544 | E10: 24 | F10: 561 | K10: 0 | L10: 112 | N10: 122 | O10: =COUNTIF($L$7:$L$500,N10) -> 10 | P10: =O10/$Q$4 -> 0.1785714286 | Q10: =IF(P10=0,0,(P10*((LOG(P10))/LOG(2)))) -> -0.4438262191 | T10: =N10 -> 122 | U10: =COUNTIF(L7:L15,T10) -> 2 | V10: =U10/(W4-U11) -> 0.2222222222 | W10: =IF(V10=0,0,(V10*((LOG(V10))/LOG(2)))) -> -0.4822055559 | Y10: =N10 -> 122 | Z10: =COUNTIF(L16:L25,Y10) -> 4 | AA10: =Z10/(AB4-Z11) -> 0.4 | AB10: =IF(AA10=0,0,(AA10*((LOG(AA10))/LOG(2)))) -> -0.528771238 | AD10: =N10 -> 122 | AE10: =COUNTIF(L26:L34,AD10) -> 0 | AF10: =AE10/(AG4-AE11) -> 0 | AG10: =IF(AF10=0,0,(AF10*((LOG(AF10))/LOG(2)))) -> 0 | AI10: =N10 -> 122 | AJ10: =COUNTIF(L35:L43,AI10) -> 0 | AK10: =AJ10/(AL4-AJ11) -> 0 | AL10: =IF(AK10=0,0,(AK10*((LOG(AK10))/LOG(2)))) -> 0 | AN10: =N10 -> 122 | AO10: =COUNTIF(L44:L53,AN10) -> 2 | AP10: =AO10/(AQ4-AO11) -> 0.2 | AQ10: =IF(AP10=0,0,(AP10*((LOG(AP10))/LOG(2)))) -> -0.464385619 | AS10: =N10 -> 122 | AT10: =COUNTIF(L54:L62,AS10) -> 2 | AU10: =AT10/(AV4-AT11) -> 0.2222222222 | AV10: =IF(AU10=0,0,(AU10*((LOG(AU10))/LOG(2)))) -> -0.4822055559
A11: 12 | B11: 677 | C11: 24 | D11: 700 | E11: 24 | F11: 714 | K11: 0 | L11: 122 | N11: 211 | O11: =COUNTIF($L$7:$L$500,N11) -> 0 | P11: =O11/$Q$4 -> 0 | Q11: =IF(P11=0,0,(P11*((LOG(P11))/LOG(2)))) -> 0 | T11: =N11 -> 211 | U11: =COUNTIF(L7:L15,T11) -> 0 | Y11: =N11 -> 211 | Z11: =COUNTIF(L16:L25,Y11) -> 0 | AD11: =N11 -> 211 | AE11: =COUNTIF(L26:L34,AD11) -> 0 | AI11: =N11 -> 211 | AJ11: =COUNTIF(L35:L43,AI11) -> 0 | AN11: =N11 -> 211 | AO11: =COUNTIF(L44:L53,AN11) -> 0 | AS11: =N11 -> 211 | AT11: =COUNTIF(L54:L62,AS11) -> 0
A12: 12 | B12: 820 | C12: 13 | D12: 848 | E12: 24 | F12: 863 | K12: 0 | L12: 112 | N12: 212 | O12: =COUNTIF($L$7:$L$500,N12) -> 0 | P12: =O12/$Q$4 -> 0 | Q12: =IF(P12=0,0,(P12*((LOG(P12))/LOG(2)))) -> 0 | T12: =N12 -> 212 | U12: =COUNTIF(L7:L15,T12) -> 0 | V12: =U12/(W4-U11) -> 0 | W12: =IF(V12=0,0,(V12*((LOG(V12))/LOG(2)))) -> 0 | Y12: =N12 -> 212 | Z12: =COUNTIF(L16:L25,Y12) -> 0 | AA12: =Z12/(AB4-Z11) -> 0 | AB12: =IF(AA12=0,0,(AA12*((LOG(AA12))/LOG(2)))) -> 0 | AD12: =N12 -> 212 | AE12: =COUNTIF(L26:L34,AD12) -> 0 | AF12: =AE12/(AG4-AE11) -> 0 | AG12: =IF(AF12=0,0,(AF12*((LOG(AF12))/LOG(2)))) -> 0 | AI12: =N12 -> 212 | AJ12: =COUNTIF(L35:L43,AI12) -> 0 | AK12: =AJ12/(AL4-AJ11) -> 0 | AL12: =IF(AK12=0,0,(AK12*((LOG(AK12))/LOG(2)))) -> 0 | AN12: =N12 -> 212 | AO12: =COUNTIF(L44:L53,AN12) -> 0 | AP12: =AO12/(AQ4-AO11) -> 0 | AQ12: =IF(AP12=0,0,(AP12*((LOG(AP12))/LOG(2)))) -> 0 | AS12: =N12 -> 212 | AT12: =COUNTIF(L54:L62,AS12) -> 0 | AU12: =AT12/(AV4-AT11) -> 0 | AV12: =IF(AU12=0,0,(AU12*((LOG(AU12))/LOG(2)))) -> 0
A13: 12 | B13: 985 | C13: 24 | D13: 998 | E13: 24 | F13: 1007 | K13: 0 | L13: 122 | N13: 221 | O13: =COUNTIF($L$7:$L$500,N13) -> 0 | P13: =O13/$Q$4 -> 0 | Q13: =IF(P13=0,0,(P13*((LOG(P13))/LOG(2)))) -> 0 | T13: =N13 -> 221 | U13: =COUNTIF(L7:L15,T13) -> 0 | V13: =U13/(W4-U11) -> 0 | W13: =IF(V13=0,0,(V13*((LOG(V13))/LOG(2)))) -> 0 | Y13: =N13 -> 221 | Z13: =COUNTIF(L16:L25,Y13) -> 0 | AA13: =Z13/(AB4-Z11) -> 0 | AB13: =IF(AA13=0,0,(AA13*((LOG(AA13))/LOG(2)))) -> 0 | AD13: =N13 -> 221 | AE13: =COUNTIF(L26:L34,AD13) -> 0 | AF13: =AE13/(AG4-AE11) -> 0 | AG13: =IF(AF13=0,0,(AF13*((LOG(AF13))/LOG(2)))) -> 0 | AI13: =N13 -> 221 | AJ13: =COUNTIF(L35:L43,AI13) -> 0 | AK13: =AJ13/(AL4-AJ11) -> 0 | AL13: =IF(AK13=0,0,(AK13*((LOG(AK13))/LOG(2)))) -> 0 | AN13: =N13 -> 221 | AO13: =COUNTIF(L44:L53,AN13) -> 0 | AP13: =AO13/(AQ4-AO11) -> 0 | AQ13: =IF(AP13=0,0,(AP13*((LOG(AP13))/LOG(2)))) -> 0 | AS13: =N13 -> 221 | AT13: =COUNTIF(L54:L62,AS13) -> 0 | AU13: =AT13/(AV4-AT11) -> 0 | AV13: =IF(AU13=0,0,(AU13*((LOG(AU13))/LOG(2)))) -> 0
A14: 12 | B14: 1128 | C14: 24 | D14: 1144 | E14: 13 | F14: 1164 | K14: 0 | L14: 121 | N14: 222 | O14: =COUNTIF($L$7:$L$500,N14) -> 6 | P14: =O14/$Q$4 -> 0.1071428571 | Q14: =IF(P14=0,0,(P14*((LOG(P14))/LOG(2)))) -> -0.3452563309 | T14: =N14 -> 222 | U14: =COUNTIF(L7:L15,T14) -> 1 | V14: =U14/(W4-U11) -> 0.1111111111 | W14: =IF(V14=0,0,(V14*((LOG(V14))/LOG(2)))) -> -0.352213889 | Y14: =N14 -> 222 | Z14: =COUNTIF(L16:L25,Y14) -> 0 | AA14: =Z14/(AB4-Z11) -> 0 | AB14: =IF(AA14=0,0,(AA14*((LOG(AA14))/LOG(2)))) -> 0 | AD14: =N14 -> 222 | AE14: =COUNTIF(L26:L34,AD14) -> 0 | AF14: =AE14/(AG4-AE11) -> 0 | AG14: =IF(AF14=0,0,(AF14*((LOG(AF14))/LOG(2)))) -> 0 | AI14: =N14 -> 222 | AJ14: =COUNTIF(L35:L43,AI14) -> 1 | AK14: =AJ14/(AL4-AJ11) -> 0.1111111111 | AL14: =IF(AK14=0,0,(AK14*((LOG(AK14))/LOG(2)))) -> -0.352213889 | AN14: =N14 -> 222 | AO14: =COUNTIF(L44:L53,AN14) -> 1 | AP14: =AO14/(AQ4-AO11) -> 0.1 | AQ14: =IF(AP14=0,0,(AP14*((LOG(AP14))/LOG(2)))) -> -0.3321928095 | AS14: =N14 -> 222 | AT14: =COUNTIF(L54:L62,AS14) -> 3 | AU14: =AT14/(AV4-AT11) -> 0.3333333333 | AV14: =IF(AU14=0,0,(AU14*((LOG(AU14))/LOG(2)))) -> -0.5283208336
A15: 12 | B15: 1267 | C15: 13 | D15: 1284 | E15: 24 | F15: 1298 | K15: 0 | L15: 112 | P15: =SUM(P7:P14) -> 1 | Q15: =-SUM(Q7:Q14) -> 1.997098853 | V15: =SUM(V7:V14) -> 1 | W15: =-SUM(W7:W14) -> 2.197159723 | AA15: =SUM(AA7:AA14) -> 1 | AB15: =-SUM(AB7:AB14) -> 1.521928095 | AF15: =SUM(AF7:AF14) -> 1 | AG15: =-SUM(AG7:AG14) -> 0.9182958341 | AK15: =SUM(AK7:AK14) -> 1 | AL15: =-SUM(AL7:AL14) -> 1.351644115 | AP15: =SUM(AP7:AP14) -> 1 | AQ15: =-SUM(AQ7:AQ14) -> 1.570950594 | AU15: =SUM(AU7:AU14) -> 1 | AV15: =-SUM(AV7:AV14) -> 1.891061112
A16: 12 | B16: 1422 | C16: 24 | D16: 1440 | E16: 24 | F16: 1454 | K16: 0 | L16: 122 | P16: U= | Q16: =Q15/(LOG(Q4)/LOG(2)) -> 0.3438913033 | V16: U1= | W16: =W15/(LOG(W4)/LOG(2)) -> 0.6931267214 | AA16: U2= | AB16: =AB15/(LOG(AB4)/LOG(2)) -> 0.4581460078 | AF16: U3= | AG16: =AG15/(LOG(AG4)/LOG(2)) -> 0.2896900821 | AK16: U4= | AL16: =AL15/(LOG(AL4)/LOG(2)) -> 0.4263962442 | AP16: U5= | AQ16: =AQ15/(LOG(AQ4)/LOG(2)) -> 0.4729032506 | AU16: U6= | AV16: =AV15/(LOG(AV4)/LOG(2)) -> 0.5965633607
A17: 12 | B17: 1566 | C17: 24 | D17: 1580 | E17: 24 | F17: 1591 | K17: 0 | L17: 122
A18: 12 | B18: 1702 | C18: 24 | D18: 1715 | E18: 24 | F18: 1725 | K18: 0 | L18: 122
A19: 12 | B19: 1832 | C19: 13 | D19: 1852 | E19: 13 | F19: 1870 | K19: 0 | L19: 111 | N19: Total Target Seq
A20: 12 | B20: 1976 | C20: 13 | D20: 1994 | E20: 13 | F20: 2004 | K20: 0 | L20: 111 | N20: =COUNTIF(L7:L62,G3) -> 0 | P20: 9 | Q20: 10 | R20: 9 | S20: 9 | T20: 10 | U20: 9
A21: 12 | B21: 2116 | C21: 13 | D21: 2138 | E21: 24 | F21: 2151 | K21: 0 | L21: 112 | P21: % of reinforcement given in 6 equal intervals based on number of trials
A22: 12 | B22: 2255 | C22: 13 | D22: 2276 | E22: 13 | F22: 2299 | K22: 0 | L22: 111 | P22: %_1 | Q22: %_2 | R22: %_3 | S22: %_4 | T22: %_5 | U22: %_6
A23: 12 | B23: 2410 | C23: 13 | D23: 2427 | E23: 13 | F23: 2436 | K23: 0 | L23: 111 | O23: target sequence | P23: =$G$3 -> 211 | Q23: =$G$3 -> 211 | R23: =$G$3 -> 211 | S23: =$G$3 -> 211 | T23: =$G$3 -> 211 | U23: =$G$3 -> 211
A24: 12 | B24: 2542 | C24: 24 | D24: 2560 | E24: 24 | F24: 2568 | K24: 0 | L24: 122 | O24: total reinforcement | P24: =U11 -> 0 | Q24: =Z11 -> 0 | R24: =AE11 -> 0 | S24: =AJ11 -> 0 | T24: =AO11 -> 0 | U24: =AT11 -> 0
A25: 12 | B25: 2677 | C25: 13 | D25: 2700 | E25: 24 | F25: 2723 | K25: 0 | L25: 112 | O25: % target
A26: 12 | B26: 2839 | C26: 13 | D26: 2861 | E26: 24 | F26: 2874 | K26: 0 | L26: 112 | O26: CCRF
A27: 12 | B27: 2980 | C27: 13 | D27: 2992 | E27: 13 | F27: 3008 | K27: 0 | L27: 111 | O27: % CCRf
A28: 12 | B28: 3116 | C28: 13 | D28: 3126 | E28: 24 | F28: 3143 | K28: 0 | L28: 112 | O28: average response rate | P28: =F15/P20 -> 144.2222222 | Q28: =(F25-F15)/Q20 -> 142.5 | R28: =(F34-F25)/R20 -> 149 | S28: =(F43-F34)/S20 -> 191.4444444 | T28: =(F53-F43)/T20 -> 287.6 | U28: =(F62-F53)/U20 -> 1647.777778
A29: 12 | B29: 3269 | C29: 13 | D29: 3294 | E29: 13 | F29: 3316 | K29: 0 | L29: 111
A30: 12 | B30: 3429 | C30: 13 | D30: 3440 | E30: 24 | F30: 3460 | K30: 0 | L30: 112
A31: 12 | B31: 3576 | C31: 13 | D31: 3608 | E31: 24 | F31: 3630 | K31: 0 | L31: 112
A32: 12 | B32: 3764 | C32: 13 | D32: 3781 | E32: 24 | F32: 3794 | K32: 0 | L32: 112
A33: 12 | B33: 3901 | C33: 13 | D33: 3910 | E33: 24 | F33: 3923 | K33: 0 | L33: 112
A34: 12 | B34: 4041 | C34: 13 | D34: 4047 | E34: 13 | F34: 4064 | K34: 0 | L34: 111
A35: 12 | B35: 4180 | C35: 13 | D35: 4196 | E35: 24 | F35: 4209 | K35: 0 | L35: 112
A36: 12 | B36: 4383 | C36: 13 | D36: 4405 | E36: 13 | F36: 4441 | K36: 0 | L36: 111
A37: 12 | B37: 4564 | C37: 13 | D37: 4580 | E37: 13 | F37: 4603 | K37: 0 | L37: 111
A38: 21 | B38: 4797 | C38: 22 | D38: 4806 | E38: 24 | F38: 4820 | K38: 0 | L38: 222
A39: 12 | B39: 4931 | C39: 13 | D39: 4971 | E39: 13 | F39: 4998 | K39: 0 | L39: 111
A40: 12 | B40: 5129 | C40: 13 | D40: 5150 | E40: 24 | F40: 5166 | K40: 0 | L40: 112
A41: 12 | B41: 5288 | C41: 13 | D41: 5333 | E41: 13 | F41: 5341 | K41: 0 | L41: 111
A42: 12 | B42: 5503 | C42: 13 | D42: 5620 | E42: 24 | F42: 5635 | K42: 0 | L42: 112
A43: 12 | B43: 5750 | C43: 13 | D43: 5770 | E43: 13 | F43: 5787 | K43: 0 | L43: 111
A44: 12 | B44: 5965 | C44: 24 | D44: 5985 | E44: 24 | F44: 5994 | K44: 0 | L44: 122
A45: 12 | B45: 6180 | C45: 13 | D45: 6181 | E45: 13 | F45: 6226 | K45: 0 | L45: 111
A46: 12 | B46: 6354 | C46: 13 | D46: 6362 | E46: 13 | F46: 6398 | K46: 0 | L46: 111
A47: 12 | B47: 6551 | C47: 13 | D47: 6575 | E47: 13 | F47: 6583 | K47: 0 | L47: 111
A48: 12 | B48: 6745 | C48: 13 | D48: 6769 | E48: 24 | F48: 6785 | K48: 0 | L48: 112
A49: 12 | B49: 7017 | C49: 13 | D49: 7035 | E49: 13 | F49: 7043 | K49: 0 | L49: 111
A50: 12 | B50: 7183 | C50: 13 | D50: 7189 | E50: 13 | F50: 7205 | K50: 0 | L50: 111
A51: 12 | B51: 7689 | C51: 13 | D51: 7744 | E51: 13 | F51: 7756 | K51: 0 | L51: 111
A52: 21 | B52: 7913 | C52: 22 | D52: 7922 | E52: 24 | F52: 7933 | K52: 0 | L52: 222
A53: 12 | B53: 8631 | C53: 24 | D53: 8652 | E53: 24 | F53: 8663 | K53: 0 | L53: 122
A54: 12 | B54: 8869 | C54: 24 | D54: 8944 | E54: 13 | F54: 8987 | K54: 0 | L54: 121
A55: 21 | B55: 9120 | C55: 22 | D55: 9129 | E55: 24 | F55: 9144 | K55: 0 | L55: 222
A56: 12 | B56: 9254 | C56: 24 | D56: 9273 | E56: 24 | F56: 9281 | K56: 0 | L56: 122
A57: 12 | B57: 9470 | C57: 13 | D57: 9498 | E57: 13 | F57: 9534 | K57: 0 | L57: 111
A58: 12 | B58: 9981 | C58: 13 | D58: 10151 | E58: 13 | F58: 10167 | K58: 0 | L58: 111
A59: 21 | B59: 10767 | C59: 22 | D59: 10781 | E59: 24 | F59: 11038 | K59: 0 | L59: 222
A60: 12 | B60: 11345 | C60: 24 | D60: 11368 | E60: 24 | F60: 11383 | K60: 0 | L60: 122
A61: 12 | B61: 14087 | C61: 13 | D61: 14108 | E61: 13 | F61: 14129 | K61: 0 | L61: 111
A62: 21 | B62: 21773 | C62: 22 | D62: 23476 | E62: 24 | F62: 23493 | K62: 0 | L62: 222

Sheet !2011-06-01_08h42m.Subject 53
A1: Report for:!2011-06-01_08h42m.Subject 53
A2: Date | B2: 2011-06-01 | F2: Group | G2: 0
A3: Hen | B3: 53 | F3: Correct Sequence | G3: =Start!J2 -> 211 | P3: Total Sequences in Data | Q3: =4994-COUNTBLANK(L7:L5000) -> 154 | V3: Total Sequences in Block Data | W3: =COUNTA(L7:L32) -> 26 | AA3: Total Sequences in Block Data | AB3: =COUNTA(L33:L57) -> 25 | AF3: Total Sequences in Block Data | AG3: =COUNTA(L58:L83) -> 26 | AK3: Total Sequences in Block Data | AL3: =COUNTA(L84:L109) -> 26 | AP3: Total Sequences in Block Data | AQ3: =COUNTA(L110:L134) -> 25 | AU3: Total Sequences in Block Data | AV3: =COUNTA(L135:L160) -> 26
A4: Program | B4: 0 | P4: Total Sequences in Summary | Q4: =SUM(O7:O14) -> 154 | V4: Total Sequences in Block Summary | W4: =SUM(U7:U14) -> 26 | AA4: Total Sequences in Block Summary | AB4: =SUM(Z7:Z14) -> 25 | AF4: Total Sequences in Block Summary | AG4: =SUM(AE7:AE14) -> 26 | AK4: Total Sequences in Block Summary | AL4: =SUM(AJ7:AJ14) -> 26 | AP4: Total Sequences in Block Summary | AQ4: =SUM(AO7:AO14) -> 25 | AU4: Total Sequences in Block Summary | AV4: =SUM(AT7:AT14) -> 26
T5: Block 1 | Y5: Block 2 | AD5: Block 3 | AI5: Block 4 | AN5: Block 5 | AS5: Block 6
A6: Sequence Component 1 | B6: Time 1 | C6: Sequence Component 2 | D6: Time 2 | E6: Sequence Component 3 | F6: Time 3 | G6: Sequence Component 4 | H6: Time 4 | I6: Sequence Component 5 | J6: Time 5 | K6: Correct? 0=No 1=Yes | L6: Sequence | N6: Frequency | P6: Relative Frequency | Q6: Variability | T6: Frequency | V6: Relative Frequency | W6: Variability | Y6: Frequency | AA6: Relative Frequency | AB6: Variability | AD6: Frequency | AF6: Relative Frequency | AG6: Variability | AI6: Frequency | AK6: Relative Frequency | AL6: Variability | AN6: Frequency | AP6: Relative Frequency | AQ6: Variability | AS6: Frequency | AU6: Relative Frequency | AV6: Variability
A7: 21 | B7: 47 | C7: 22 | D7: 56 | E7: 24 | F7: 67 | K7: 0 | L7: 222 | N7: 111 | O7: =COUNTIF($L$7:$L$500,N7) -> 88 | P7: =O7/$Q$4 -> 0.5714285714 | Q7: =IF(P7=0,0,(P7*((LOG(P7))/LOG(2)))) -> -0.4613456697 | T7: =N7 -> 111 | U7: =COUNTIF(L7:L32,T7) -> 12 | V7: =U7/(W4-U11) -> 0.4615384615 | W7: =IF(V7=0,0,(V7*((LOG(V7))/LOG(2)))) -> -0.5148356388 | Y7: =N7 -> 111 | Z7: =COUNTIF(L33:L57,Y7) -> 12 | AA7: =Z7/(AB4-Z11) -> 0.48 | AB7: =IF(AA7=0,0,(AA7*((LOG(AA7))/LOG(2)))) -> -0.5082689707 | AD7: =N7 -> 111 | AE7: =COUNTIF(L58:L83,AD7) -> 11 | AF7: =AE7/(AG4-AE11) -> 0.4230769231 | AG7: =IF(AF7=0,0,(AF7*((LOG(AF7))/LOG(2)))) -> -0.5250418883 | AI7: =N7 -> 111 | AJ7: =COUNTIF(L84:L109,AI7) -> 21 | AK7: =AJ7/(AL4-AJ11) -> 0.84 | AL7: =IF(AK7=0,0,(AK7*((LOG(AK7))/LOG(2)))) -> -0.2112925643 | AN7: =N7 -> 111 | AO7: =COUNTIF(L110:L134,AN7) -> 17 | AP7: =AO7/(AQ4-AO11) -> 0.7727272727 | AQ7: =IF(AP7=0,0,(AP7*((LOG(AP7))/LOG(2)))) -> -0.2874304189 | AS7: =N7 -> 111 | AT7: =COUNTIF(L135:L160,AS7) -> 15 | AU7: =AT7/(AV4-AT11) -> 0.652173913 | AV7: =IF(AU7=0,0,(AU7*((LOG(AU7))/LOG(2)))) -> -0.4021769742
A8: 12 | B8: 175 | C8: 24 | D8: 190 | E8: 24 | F8: 192 | K8: 0 | L8: 122 | N8: 112 | O8: =COUNTIF($L$7:$L$500,N8) -> 22 | P8: =O8/$Q$4 -> 0.1428571429 | Q8: =IF(P8=0,0,(P8*((LOG(P8))/LOG(2)))) -> -0.4010507032 | T8: =N8 -> 112 | U8: =COUNTIF(L7:L32,T8) -> 4 | V8: =U8/(W4-U11) -> 0.1538461538 | W8: =IF(V8=0,0,(V8*((LOG(V8))/LOG(2)))) -> -0.4154522643 | Y8: =N8 -> 112 | Z8: =COUNTIF(L33:L57,Y8) -> 6 | AA8: =Z8/(AB4-Z11) -> 0.24 | AB8: =IF(AA8=0,0,(AA8*((LOG(AA8))/LOG(2)))) -> -0.4941344854 | AD8: =N8 -> 112 | AE8: =COUNTIF(L58:L83,AD8) -> 4 | AF8: =AE8/(AG4-AE11) -> 0.1538461538 | AG8: =IF(AF8=0,0,(AF8*((LOG(AF8))/LOG(2)))) -> -0.4154522643 | AI8: =N8 -> 112 | AJ8: =COUNTIF(L84:L109,AI8) -> 2 | AK8: =AJ8/(AL4-AJ11) -> 0.08 | AL8: =IF(AK8=0,0,(AK8*((LOG(AK8))/LOG(2)))) -> -0.2915084952 | AN8: =N8 -> 112 | AO8: =COUNTIF(L110:L134,AN8) -> 2 | AP8: =AO8/(AQ4-AO11) -> 0.09090909091 | AQ8: =IF(AP8=0,0,(AP8*((LOG(AP8))/LOG(2)))) -> -0.3144937835 | AS8: =N8 -> 112 | AT8: =COUNTIF(L135:L160,AS8) -> 4 | AU8: =AT8/(AV4-AT11) -> 0.1739130435 | AV8: =IF(AU8=0,0,(AU8*((LOG(AU8))/LOG(2)))) -> -0.4388803402
A9: 21 | B9: 303 | C9: 22 | D9: 311 | E9: 24 | F9: 319 | K9: 0 | L9: 222 | N9: 121 | O9: =COUNTIF($L$7:$L$500,N9) -> 5 | P9: =O9/$Q$4 -> 0.03246753247 | Q9: =IF(P9=0,0,(P9*((LOG(P9))/LOG(2)))) -> -0.1605473521 | T9: =N9 -> 121 | U9: =COUNTIF(L7:L32,T9) -> 0 | V9: =U9/(W4-U11) -> 0 | W9: =IF(V9=0,0,(V9*((LOG(V9))/LOG(2)))) -> 0 | Y9: =N9 -> 121 | Z9: =COUNTIF(L33:L57,Y9) -> 0 | AA9: =Z9/(AB4-Z11) -> 0 | AB9: =IF(AA9=0,0,(AA9*((LOG(AA9))/LOG(2)))) -> 0 | AD9: =N9 -> 121 | AE9: =COUNTIF(L58:L83,AD9) -> 2 | AF9: =AE9/(AG4-AE11) -> 0.07692307692 | AG9: =IF(AF9=0,0,(AF9*((LOG(AF9))/LOG(2)))) -> -0.2846492091 | AI9: =N9 -> 121 | AJ9: =COUNTIF(L84:L109,AI9) -> 0 | AK9: =AJ9/(AL4-AJ11) -> 0 | AL9: =IF(AK9=0,0,(AK9*((LOG(AK9))/LOG(2)))) -> 0 | AN9: =N9 -> 121 | AO9: =COUNTIF(L110:L134,AN9) -> 1 | AP9: =AO9/(AQ4-AO11) -> 0.04545454545 | AQ9: =IF(AP9=0,0,(AP9*((LOG(AP9))/LOG(2)))) -> -0.2027014372 | AS9: =N9 -> 121 | AT9: =COUNTIF(L135:L160,AS9) -> 2 | AU9: =AT9/(AV4-AT11) -> 0.08695652174 | AV9: =IF(AU9=0,0,(AU9*((LOG(AU9))/LOG(2)))) -> -0.3063966918
A10: 21 | B10: 418 | C10: 22 | D10: 428 | E10: 24 | F10: 436 | K10: 0 | L10: 222 | N10: 122 | O10: =COUNTIF($L$7:$L$500,N10) -> 11 | P10: =O10/$Q$4 -> 0.07142857143 | Q10: =IF(P10=0,0,(P10*((LOG(P10))/LOG(2)))) -> -0.271953923 | T10: =N10 -> 122 | U10: =COUNTIF(L7:L32,T10) -> 5 | V10: =U10/(W4-U11) -> 0.1923076923 | W10: =IF(V10=0,0,(V10*((LOG(V10))/LOG(2)))) -> -0.4574060814 | Y10: =N10 -> 122 | Z10: =COUNTIF(L33:L57,Y10) -> 1 | AA10: =Z10/(AB4-Z11) -> 0.04 | AB10: =IF(AA10=0,0,(AA10*((LOG(AA10))/LOG(2)))) -> -0.1857542476 | AD10: =N10 -> 122 | AE10: =COUNTIF(L58:L83,AD10) -> 3 | AF10: =AE10/(AG4-AE11) -> 0.1153846154 | AG10: =IF(AF10=0,0,(AF10*((LOG(AF10))/LOG(2)))) -> -0.3594781405 | AI10: =N10 -> 122 | AJ10: =COUNTIF(L84:L109,AI10) -> 1 | AK10: =AJ10/(AL4-AJ11) -> 0.04 | AL10: =IF(AK10=0,0,(AK10*((LOG(AK10))/LOG(2)))) -> -0.1857542476 | AN10: =N10 -> 122 | AO10: =COUNTIF(L110:L134,AN10) -> 1 | AP10: =AO10/(AQ4-AO11) -> 0.04545454545 | AQ10: =IF(AP10=0,0,(AP10*((LOG(AP10))/LOG(2)))) -> -0.2027014372 | AS10: =N10 -> 122 | AT10: =COUNTIF(L135:L160,AS10) -> 0 | AU10: =AT10/(AV4-AT11) -> 0 | AV10: =IF(AU10=0,0,(AU10*((LOG(AU10))/LOG(2)))) -> 0
A11: 12 | B11: 533 | C11: 24 | D11: 544 | E11: 24 | F11: 556 | K11: 0 | L11: 122 | N11: 211 | O11: =COUNTIF($L$7:$L$500,N11) -> 7 | P11: =O11/$Q$4 -> 0.04545454545 | Q11: =IF(P11=0,0,(P11*((LOG(P11))/LOG(2)))) -> -0.2027014372 | T11: =N11 -> 211 | U11: =COUNTIF(L7:L32,T11) -> 0 | Y11: =N11 -> 211 | Z11: =COUNTIF(L33:L57,Y11) -> 0 | AD11: =N11 -> 211 | AE11: =COUNTIF(L58:L83,AD11) -> 0 | AI11: =N11 -> 211 | AJ11: =COUNTIF(L84:L109,AI11) -> 1 | AN11: =N11 -> 211 | AO11: =COUNTIF(L110:L134,AN11) -> 3 | AS11: =N11 -> 211 | AT11: =COUNTIF(L135:L160,AS11) -> 3
A12: 21 | B12: 672 | C12: 22 | D12: 674 | E12: 24 | F12: 702 | K12: 0 | L12: 222 | N12: 212 | O12: =COUNTIF($L$7:$L$500,N12) -> 3 | P12: =O12/$Q$4 -> 0.01948051948 | Q12: =IF(P12=0,0,(P12*((LOG(P12))/LOG(2)))) -> -0.1106848839 | T12: =N12 -> 212 | U12: =COUNTIF(L7:L32,T12) -> 0 | V12: =U12/(W4-U11) -> 0 | W12: =IF(V12=0,0,(V12*((LOG(V12))/LOG(2)))) -> 0 | Y12: =N12 -> 212 | Z12: =COUNTIF(L33:L57,Y12) -> 0 | AA12: =Z12/(AB4-Z11) -> 0 | AB12: =IF(AA12=0,0,(AA12*((LOG(AA12))/LOG(2)))) -> 0 | AD12: =N12 -> 212 | AE12: =COUNTIF(L58:L83,AD12) -> 0 | AF12: =AE12/(AG4-AE11) -> 0 | AG12: =IF(AF12=0,0,(AF12*((LOG(AF12))/LOG(2)))) -> 0 | AI12: =N12 -> 212 | AJ12: =COUNTIF(L84:L109,AI12) -> 0 | AK12: =AJ12/(AL4-AJ11) -> 0 | AL12: =IF(AK12=0,0,(AK12*((LOG(AK12))/LOG(2)))) -> 0 | AN12: =N12 -> 212 | AO12: =COUNTIF(L110:L134,AN12) -> 1 | AP12: =AO12/(AQ4-AO11) -> 0.04545454545 | AQ12: =IF(AP12=0,0,(AP12*((LOG(AP12))/LOG(2)))) -> -0.2027014372 | AS12: =N12 -> 212 | AT12: =COUNTIF(L135:L160,AS12) -> 2 | AU12: =AT12/(AV4-AT11) -> 0.08695652174 | AV12: =IF(AU12=0,0,(AU12*((LOG(AU12))/LOG(2)))) -> -0.3063966918
A13: 21 | B13: 817 | C13: 22 | D13: 826 | E13: 24 | F13: 836 | K13: 0 | L13: 222 | N13: 221 | O13: =COUNTIF($L$7:$L$500,N13) -> 2 | P13: =O13/$Q$4 -> 0.01298701299 | Q13: =IF(P13=0,0,(P13*((LOG(P13))/LOG(2)))) -> -0.08138683819 | T13: =N13 -> 221 | U13: =COUNTIF(L7:L32,T13) -> 0 | V13: =U13/(W4-U11) -> 0 | W13: =IF(V13=0,0,(V13*((LOG(V13))/LOG(2)))) -> 0 | Y13: =N13 -> 221 | Z13: =COUNTIF(L33:L57,Y13) -> 1 | AA13: =Z13/(AB4-Z11) -> 0.04 | AB13: =IF(AA13=0,0,(AA13*((LOG(AA13))/LOG(2)))) -> -0.1857542476 | AD13: =N13 -> 221 | AE13: =COUNTIF(L58:L83,AD13) -> 1 | AF13: =AE13/(AG4-AE11) -> 0.03846153846 | AG13: =IF(AF13=0,0,(AF13*((LOG(AF13))/LOG(2)))) -> -0.180786143 | AI13: =N13 -> 221 | AJ13: =COUNTIF(L84:L109,AI13) -> 0 | AK13: =AJ13/(AL4-AJ11) -> 0 | AL13: =IF(AK13=0,0,(AK13*((LOG(AK13))/LOG(2)))) -> 0 | AN13: =N13 -> 221 | AO13: =COUNTIF(L110:L134,AN13) -> 0 | AP13: =AO13/(AQ4-AO11) -> 0 | AQ13: =IF(AP13=0,0,(AP13*((LOG(AP13))/LOG(2)))) -> 0 | AS13: =N13 -> 221 | AT13: =COUNTIF(L135:L160,AS13) -> 0 | AU13: =AT13/(AV4-AT11) -> 0 | AV13: =IF(AU13=0,0,(AU13*((LOG(AU13))/LOG(2)))) -> 0
A14: 12 | B14: 943 | C14: 24 | D14: 953 | E14: 24 | F14: 962 | K14: 0 | L14: 122 | N14: 222 | O14: =COUNTIF($L$7:$L$500,N14) -> 16 | P14: =O14/$Q$4 -> 0.1038961039 | Q14: =IF(P14=0,0,(P14*((LOG(P14))/LOG(2)))) -> -0.3394063938 | T14: =N14 -> 222 | U14: =COUNTIF(L7:L32,T14) -> 5 | V14: =U14/(W4-U11) -> 0.1923076923 | W14: =IF(V14=0,0,(V14*((LOG(V14))/LOG(2)))) -> -0.4574060814 | Y14: =N14 -> 222 | Z14: =COUNTIF(L33:L57,Y14) -> 5 | AA14: =Z14/(AB4-Z11) -> 0.2 | AB14: =IF(AA14=0,0,(AA14*((LOG(AA14))/LOG(2)))) -> -0.464385619 | AD14: =N14 -> 222 | AE14: =COUNTIF(L58:L83,AD14) -> 5 | AF14: =AE14/(AG4-AE11) -> 0.1923076923 | AG14: =IF(AF14=0,0,(AF14*((LOG(AF14))/LOG(2)))) -> -0.4574060814 | AI14: =N14 -> 222 | AJ14: =COUNTIF(L84:L109,AI14) -> 1 | AK14: =AJ14/(AL4-AJ11) -> 0.04 | AL14: =IF(AK14=0,0,(AK14*((LOG(AK14))/LOG(2)))) -> -0.1857542476 | AN14: =N14 -> 222 | AO14: =COUNTIF(L110:L134,AN14) -> 0 | AP14: =AO14/(AQ4-AO11) -> 0 | AQ14: =IF(AP14=0,0,(AP14*((LOG(AP14))/LOG(2)))) -> 0 | AS14: =N14 -> 222 | AT14: =COUNTIF(L135:L160,AS14) -> 0 | AU14: =AT14/(AV4-AT11) -> 0 | AV14: =IF(AU14=0,0,(AU14*((LOG(AU14))/LOG(2)))) -> 0
A15: 12 | B15: 1092 | C15: 13 | D15: 1103 | E15: 24 | F15: 1122 | K15: 0 | L15: 112 | P15: =SUM(P7:P14) -> 1 | Q15: =-SUM(Q7:Q14) -> 2.029077201 | V15: =SUM(V7:V14) -> 1 | W15: =-SUM(W7:W14) -> 1.845100066 | AA15: =SUM(AA7:AA14) -> 1 | AB15: =-SUM(AB7:AB14) -> 1.83829757 | AF15: =SUM(AF7:AF14) -> 1 | AG15: =-SUM(AG7:AG14) -> 2.222813727 | AK15: =SUM(AK7:AK14) -> 1 | AL15: =-SUM(AL7:AL14) -> 0.8743095546 | AP15: =SUM(AP7:AP14) -> 1 | AQ15: =-SUM(AQ7:AQ14) -> 1.210028514 | AU15: =SUM(AU7:AU14) -> 1 | AV15: =-SUM(AV7:AV14) -> 1.453850698
A16: 12 | B16: 1229 | C16: 13 | D16: 1247 | E16: 13 | F16: 1255 | K16: 0 | L16: 111 | P16: U= | Q16: =Q15/(LOG(Q4)/LOG(2)) -> 0.2792262013 | V16: U1= | W16: =W15/(LOG(W4)/LOG(2)) -> 0.3925377574 | AA16: U2= | AB16: =AB15/(LOG(AB4)/LOG(2)) -> 0.3958558351 | AF16: U3= | AG16: =AG15/(LOG(AG4)/LOG(2)) -> 0.4728948481 | AK16: U4= | AL16: =AL15/(LOG(AL4)/LOG(2)) -> 0.1860059073 | AP16: U5= | AQ16: =AQ15/(LOG(AQ4)/LOG(2)) -> 0.2605654578 | AU16: U6= | AV16: =AV15/(LOG(AV4)/LOG(2)) -> 0.3093009985
A17: 12 | B17: 1363 | C17: 13 | D17: 1379 | E17: 13 | F17: 1388 | K17: 0 | L17: 111
A18: 12 | B18: 1505 | C18: 13 | D18: 1511 | E18: 13 | F18: 1521 | K18: 0 | L18: 111
A19: 12 | B19: 1622 | C19: 13 | D19: 1638 | E19: 13 | F19: 1648 | K19: 0 | L19: 111 | N19: Total Target Seq
A20: 12 | B20: 1762 | C20: 13 | D20: 1772 | E20: 13 | F20: 1781 | K20: 0 | L20: 111 | N20: =COUNTIF(L7:L160,G3) -> 7 | P20: 26 | Q20: 25 | R20: 26 | S20: 26 | T20: 25 | U20: 26
A21: 12 | B21: 1951 | C21: 24 | D21: 1968 | E21: 24 | F21: 1978 | K21: 0 | L21: 122 | P21: % of reinforcement given in 6 equal intervals based on number of trials
A22: 12 | B22: 2081 | C22: 13 | D22: 2101 | E22: 24 | F22: 2117 | K22: 0 | L22: 112 | P22: %_1 | Q22: %_2 | R22: %_3 | S22: %_4 | T22: %_5 | U22: %_6
A23: 12 | B23: 2223 | C23: 13 | D23: 2241 | E23: 13 | F23: 2249 | K23: 0 | L23: 111 | O23: target sequence | P23: =$G$3 -> 211 | Q23: =$G$3 -> 211 | R23: =$G$3 -> 211 | S23: =$G$3 -> 211 | T23: =$G$3 -> 211 | U23: =$G$3 -> 211
A24: 12 | B24: 2341 | C24: 13 | D24: 2356 | E24: 13 | F24: 2369 | K24: 0 | L24: 111 | O24: total reinforcement | P24: =U11 -> 0 | Q24: =Z11 -> 0 | R24: =AE11 -> 0 | S24: =AJ11 -> 1 | T24: =AO11 -> 3 | U24: =AT11 -> 3
A25: 12 | B25: 2481 | C25: 13 | D25: 2496 | E25: 13 | F25: 2514 | K25: 0 | L25: 111 | O25: % target
A26: 12 | B26: 2614 | C26: 13 | D26: 2643 | E26: 24 | F26: 2658 | K26: 0 | L26: 112 | O26: CCRF
A27: 12 | B27: 2776 | C27: 24 | D27: 2792 | E27: 24 | F27: 2800 | K27: 0 | L27: 122 | O27: % CCRf
A28: 12 | B28: 2929 | C28: 13 | D28: 2938 | E28: 24 | F28: 2952 | K28: 0 | L28: 112 | O28: average response rate | P28: =F32/P20 -> 133.3846154 | Q28: =(F57-F32)/Q20 -> 166.32 | R28: =(F83-F57)/R20 -> 191.8076923 | S28: =(F109-F83)/S20 -> 146.4230769 | T28: =(F134-F109)/T20 -> 138.56 | U28: =(F160-F134)/U20 -> 154.1153846
A29: 12 | B29: 3056 | C29: 13 | D29: 3076 | E29: 13 | F29: 3084 | K29: 0 | L29: 111
A30: 12 | B30: 3188 | C30: 13 | D30: 3197 | E30: 13 | F30: 3208 | K30: 0 | L30: 111
A31: 12 | B31: 3313 | C31: 13 | D31: 3337 | E31: 13 | F31: 3346 | K31: 0 | L31: 111
A32: 12 | B32: 3449 | C32: 13 | D32: 3458 | E32: 13 | F32: 3468 | K32: 0 | L32: 111
A33: 12 | B33: 3591 | C33: 13 | D33: 3622 | E33: 24 | F33: 3638 | K33: 0 | L33: 112
A34: 12 | B34: 3778 | C34: 13 | D34: 3795 | E34: 13 | F34: 3827 | K34: 0 | L34: 111
A35: 12 | B35: 3952 | C35: 24 | D35: 3974 | E35: 24 | F35: 3983 | K35: 0 | L35: 122
A36: 12 | B36: 4093 | C36: 13 | D36: 4099 | E36: 13 | F36: 4122 | K36: 0 | L36: 111
A37: 21 | B37: 4344 | C37: 22 | D37: 4353 | E37: 24 | F37: 4362 | K37: 0 | L37: 222
A38: 21 | B38: 4520 | C38: 22 | D38: 4528 | E38: 24 | F38: 4537 | K38: 0 | L38: 222
A39: 21 | B39: 4669 | C39: 22 | D39: 4675 | E39: 24 | F39: 4680 | K39: 0 | L39: 222
A40: 12 | B40: 4773 | C40: 13 | D40: 4804 | E40: 13 | F40: 4812 | K40: 0 | L40: 111
A41: 12 | B41: 4997 | C41: 13 | D41: 5003 | E41: 24 | F41: 5016 | K41: 0 | L41: 112
A42: 21 | B42: 5207 | C42: 22 | D42: 5212 | E42: 24 | F42: 5221 | K42: 0 | L42: 222
A43: 21 | B43: 5347 | C43: 22 | D43: 5355 | E43: 24 | F43: 5364 | K43: 0 | L43: 222
A44: 21 | B44: 5520 | C44: 22 | D44: 5526 | E44: 13 | F44: 5596 | K44: 0 | L44: 221
A45: 12 | B45: 5780 | C45: 13 | D45: 5788 | E45: 13 | F45: 5794 | K45: 0 | L45: 111
A46: 12 | B46: 5919 | C46: 13 | D46: 5927 | E46: 13 | F46: 5936 | K46: 0 | L46: 111
A47: 12 | B47: 6040 | C47: 13 | D47: 6071 | E47: 13 | F47: 6083 | K47: 0 | L47: 111
A48: 12 | B48: 6188 | C48: 13 | D48: 6197 | E48: 13 | F48: 6203 | K48: 0 | L48: 111
A49: 12 | B49: 6315 | C49: 13 | D49: 6340 | E49: 13 | F49: 6346 | K49: 0 | L49: 111
A50: 12 | B50: 6542 | C50: 13 | D50: 6566 | E50: 24 | F50: 6583 | K50: 0 | L50: 112
A51: 12 | B51: 6699 | C51: 13 | D51: 6719 | E51: 13 | F51: 6727 | K51: 0 | L51: 111
A52: 12 | B52: 6827 | C52: 13 | D52: 6835 | E52: 24 | F52: 6851 | K52: 0 | L52: 112
A53: 12 | B53: 7000 | C53: 13 | D53: 7009 | E53: 24 | F53: 7025 | K53: 0 | L53: 112
A54: 12 | B54: 7136 | C54: 13 | D54: 7154 | E54: 13 | F54: 7162 | K54: 0 | L54: 111
A55: 12 | B55: 7283 | C55: 13 | D55: 7293 | E55: 13 | F55: 7303 | K55: 0 | L55: 111
A56: 12 | B56: 7426 | C56: 13 | D56: 7446 | E56: 24 | F56: 7460 | K56: 0 | L56: 112
A57: 12 | B57: 7598 | C57: 13 | D57: 7618 | E57: 13 | F57: 7626 | K57: 0 | L57: 111
A58: 12 | B58: 7742 | C58: 13 | D58: 7752 | E58: 13 | F58: 7758 | K58: 0 | L58: 111
A59: 12 | B59: 7871 | C59: 24 | D59: 7887 | E59: 24 | F59: 7896 | K59: 0 | L59: 122
A60: 21 | B60: 8091 | C60: 22 | D60: 8096 | E60: 24 | F60: 8110 | K60: 0 | L60: 222
A61: 12 | B61: 8239 | C61: 13 | D61: 8254 | E61: 13 | F61: 8264 | K61: 0 | L61: 111
A62: 21 | B62: 8395 | C62: 22 | D62: 8403 | E62: 24 | F62: 8412 | K62: 0 | L62: 222
A63: 12 | B63: 8559 | C63: 13 | D63: 8572 | E63: 13 | F63: 8580 | K63: 0 | L63: 111
A64: 12 | B64: 8683 | C64: 24 | D64: 8702 | E64: 24 | F64: 8710 | K64: 0 | L64: 122
A65: 12 | B65: 8921 | C65: 13 | D65: 8960 | E65: 13 | F65: 8971 | K65: 0 | L65: 111
A66: 12 | B66: 9159 | C66: 13 | D66: 9185 | E66: 24 | F66: 9213 | K66: 0 | L66: 112
A67: 21 | B67: 9546 | C67: 22 | D67: 9555 | E67: 24 | F67: 9564 | K67: 0 | L67: 222
A68: 21 | B68: 9707 | C68: 22 | D68: 9718 | E68: 24 | F68: 9729 | K68: 0 | L68: 222
A69: 12 | B69: 9876 | C69: 13 | D69: 9915 | E69: 24 | F69: 9932 | K69: 0 | L69: 112
A70: 21 | B70: 10208 | C70: 22 | D70: 10217 | E70: 24 | F70: 10229 | K70: 0 | L70: 222
A71: 12 | B71: 10399 | C71: 13 | D71: 10410 | E71: 24 | F71: 10428 | K71: 0 | L71: 112
A72: 12 | B72: 10710 | C72: 13 | D72: 10776 | E72: 13 | F72: 10793 | K72: 0 | L72: 111
A73: 12 | B73: 10930 | C73: 24 | D73: 10958 | E73: 24 | F73: 10969 | K73: 0 | L73: 122
A74: 12 | B74: 11075 | C74: 13 | D74: 11087 | E74: 24 | F74: 11113 | K74: 0 | L74: 112
A75: 12 | B75: 11210 | C75: 13 | D75: 11232 | E75: 13 | F75: 11240 | K75: 0 | L75: 111
A76: 12 | B76: 11382 | C76: 24 | D76: 11397 | E76: 13 | F76: 11424 | K76: 0 | L76: 121
A77: 21 | B77: 11570 | C77: 22 | D77: 11583 | E77: 13 | F77: 11622 | K77: 0 | L77: 221
A78: 12 | B78: 11748 | C78: 24 | D78: 11765 | E78: 13 | F78: 11794 | K78: 0 | L78: 121
A79: 12 | B79: 11926 | C79: 13 | D79: 11935 | E79: 13 | F79: 11965 | K79: 0 | L79: 111
A80: 12 | B80: 12105 | C80: 13 | D80: 12127 | E80: 13 | F80: 12146 | K80: 0 | L80: 111
A81: 12 | B81: 12248 | C81: 13 | D81: 12265 | E81: 13 | F81: 12272 | K81: 0 | L81: 111
A82: 12 | B82: 12397 | C82: 13 | D82: 12405 | E82: 13 | F82: 12414 | K82: 0 | L82: 111
A83: 12 | B83: 12584 | C83: 13 | D83: 12592 | E83: 13 | F83: 12613 | K83: 0 | L83: 111
A84: 12 | B84: 12711 | C84: 13 | D84: 12736 | E84: 13 | F84: 12760 | K84: 0 | L84: 111
A85: 12 | B85: 12868 | C85: 13 | D85: 12890 | E85: 13 | F85: 12896 | K85: 0 | L85: 111
A86: 12 | B86: 12999 | C86: 13 | D86: 13036 | E86: 24 | F86: 13053 | K86: 0 | L86: 112
A87: 12 | B87: 13183 | C87: 13 | D87: 13203 | E87: 24 | F87: 13217 | K87: 0 | L87: 112
A88: 12 | B88: 13333 | C88: 13 | D88: 13359 | E88: 13 | F88: 13368 | K88: 0 | L88: 111
A89: 12 | B89: 13481 | C89: 13 | D89: 13490 | E89: 13 | F89: 13495 | K89: 0 | L89: 111
A90: 12 | B90: 13618 | C90: 13 | D90: 13640 | E90: 13 | F90: 13651 | K90: 0 | L90: 111
A91: 12 | B91: 13777 | C91: 24 | D91: 13873 | E91: 24 | F91: 13881 | K91: 0 | L91: 122
A92: 12 | B92: 14006 | C92: 13 | D92: 14023 | E92: 13 | F92: 14031 | K92: 0 | L92: 111
A93: 12 | B93: 14141 | C93: 13 | D93: 14158 | E93: 13 | F93: 14168 | K93: 0 | L93: 111
A94: 12 | B94: 14285 | C94: 13 | D94: 14294 | E94: 13 | F94: 14309 | K94: 0 | L94: 111
A95: 12 | B95: 14414 | C95: 13 | D95: 14423 | E95: 13 | F95: 14442 | K95: 0 | L95: 111
A96: 12 | B96: 14550 | C96: 13 | D96: 14565 | E96: 13 | F96: 14575 | K96: 0 | L96: 111
A97: 12 | B97: 14682 | C97: 13 | D97: 14692 | E97: 13 | F97: 14702 | K97: 0 | L97: 111
A98: 12 | B98: 14802 | C98: 13 | D98: 14809 | E98: 13 | F98: 14827 | K98: 0 | L98: 111
A99: 12 | B99: 14939 | C99: 13 | D99: 14958 | E99: 13 | F99: 14967 | K99: 0 | L99: 111
A100: 12 | B100: 15079 | C100: 13 | D100: 15121 | E100: 13 | F100: 15130 | K100: 0 | L100: 111
A101: 12 | B101: 15257 | C101: 13 | D101: 15262 | E101: 13 | F101: 15268 | K101: 0 | L101: 111
A102: 21 | B102: 15394 | C102: 22 | D102: 15409 | E102: 24 | F102: 15417 | K102: 0 | L102: 222
A103: 12 | B103: 15564 | C103: 13 | D103: 15570 | E103: 13 | F103: 15580 | K103: 0 | L103: 111
A104: 21 | B104: 15722 | C104: 11 | D104: 15745 | E104: 11 | F104: 15755 | K104: 0 | L104: 211
A105: 12 | B105: 15879 | C105: 13 | D105: 15904 | E105: 13 | F105: 15912 | K105: 0 | L105: 111
A106: 12 | B106: 16034 | C106: 13 | D106: 16042 | E106: 13 | F106: 16050 | K106: 0 | L106: 111
A107: 12 | B107: 16161 | C107: 13 | D107: 16166 | E107: 13 | F107: 16175 | K107: 0 | L107: 111
A108: 12 | B108: 16282 | C108: 13 | D108: 16291 | E108: 13 | F108: 16300 | K108: 0 | L108: 111
A109: 12 | B109: 16402 | C109: 13 | D109: 16412 | E109: 13 | F109: 16420 | K109: 0 | L109: 111
A110: 12 | B110: 16529 | C110: 13 | D110: 16537 | E110: 13 | F110: 16543 | K110: 0 | L110: 111
A111: 12 | B111: 16645 | C111: 13 | D111: 16652 | E111: 13 | F111: 16660 | K111: 0 | L111: 111
A112: 12 | B112: 16765 | C112: 13 | D112: 16775 | E112: 24 | F112: 16791 | K112: 0 | L112: 112
A113: 12 | B113: 16895 | C113: 13 | D113: 16903 | E113: 13 | F113: 16910 | K113: 0 | L113: 111
A114: 12 | B114: 17014 | C114: 13 | D114: 17029 | E114: 13 | F114: 17051 | K114: 0 | L114: 111
A115: 21 | B115: 17179 | C115: 11 | D115: 17212 | E115: 22 | F115: 17227 | K115: 0 | L115: 212
A116: 12 | B116: 17332 | C116: 13 | D116: 17352 | E116: 13 | F116: 17360 | K116: 0 | L116: 111
A117: 12 | B117: 17463 | C117: 13 | D117: 17471 | E117: 13 | F117: 17495 | K117: 0 | L117: 111
A118: 12 | B118: 17605 | C118: 13 | D118: 17614 | E118: 24 | F118: 17631 | K118: 0 | L118: 112
A119: 12 | B119: 17787 | C119: 13 | D119: 17812 | E119: 13 | F119: 17824 | K119: 0 | L119: 111
A120: 12 | B120: 17930 | C120: 13 | D120: 17943 | E120: 13 | F120: 17948 | K120: 0 | L120: 111
A121: 12 | B121: 18052 | C121: 24 | D121: 18069 | E121: 13 | F121: 18089 | K121: 0 | L121: 121
A122: 12 | B122: 18211 | C122: 13 | D122: 18230 | E122: 13 | F122: 18236 | K122: 0 | L122: 111
A123: 12 | B123: 18350 | C123: 13 | D123: 18364 | E123: 13 | F123: 18382 | K123: 0 | L123: 111
A124: 21 | B124: 18516 | C124: 11 | D124: 18534 | E124: 11 | F124: 18543 | K124: 0 | L124: 211
A125: 12 | B125: 18648 | C125: 13 | D125: 18669 | E125: 13 | F125: 18678 | K125: 0 | L125: 111
A126: 12 | B126: 18783 | C126: 13 | D126: 18792 | E126: 13 | F126: 18805 | K126: 0 | L126: 111
A127: 12 | B127: 18902 | C127: 13 | D127: 18910 | E127: 13 | F127: 18927 | K127: 0 | L127: 111
A128: 12 | B128: 19035 | C128: 24 | D128: 19049 | E128: 24 | F128: 19051 | K128: 0 | L128: 122
A129: 12 | B129: 19155 | C129: 13 | D129: 19157 | E129: 13 | F129: 19175 | K129: 0 | L129: 111
A130: 12 | B130: 19272 | C130: 13 | D130: 19280 | E130: 13 | F130: 19293 | K130: 0 | L130: 111
A131: 21 | B131: 19409 | C131: 11 | D131: 19426 | E131: 11 | F131: 19438 | K131: 0 | L131: 211
A132: 21 | B132: 19563 | C132: 11 | D132: 19582 | E132: 11 | F132: 19591 | K132: 0 | L132: 211
A133: 12 | B133: 19752 | C133: 13 | D133: 19760 | E133: 13 | F133: 19767 | K133: 0 | L133: 111
A134: 12 | B134: 19868 | C134: 13 | D134: 19870 | E134: 13 | F134: 19884 | K134: 0 | L134: 111
A135: 12 | B135: 19991 | C135: 13 | D135: 19999 | E135: 13 | F135: 20008 | K135: 0 | L135: 111
A136: 21 | B136: 20110 | C136: 11 | D136: 20129 | E136: 22 | F136: 20145 | K136: 0 | L136: 212
A137: 12 | B137: 20255 | C137: 13 | D137: 20257 | E137: 13 | F137: 20295 | K137: 0 | L137: 111
A138: 12 | B138: 20403 | C138: 13 | D138: 20421 | E138: 24 | F138: 20435 | K138: 0 | L138: 112
A139: 12 | B139: 20563 | C139: 13 | D139: 20572 | E139: 13 | F139: 20600 | K139: 0 | L139: 111
A140: 12 | B140: 20759 | C140: 13 | D140: 20768 | E140: 13 | F140: 20776 | K140: 0 | L140: 111
A141: 12 | B141: 20883 | C141: 13 | D141: 20889 | E141: 13 | F141: 20897 | K141: 0 | L141: 111
A142: 12 | B142: 21011 | C142: 13 | D142: 21019 | E142: 13 | F142: 21041 | K142: 0 | L142: 111
A143: 12 | B143: 21157 | C143: 13 | D143: 21164 | E143: 24 | F143: 21178 | K143: 0 | L143: 112
A144: 12 | B144: 21342 | C144: 24 | D144: 21369 | E144: 13 | F144: 21389 | K144: 0 | L144: 121
A145: 12 | B145: 21492 | C145: 13 | D145: 21510 | E145: 13 | F145: 21520 | K145: 0 | L145: 111
A146: 12 | B146: 21627 | C146: 13 | D146: 21635 | E146: 24 | F146: 21653 | K146: 0 | L146: 112
A147: 12 | B147: 21792 | C147: 13 | D147: 21797 | E147: 13 | F147: 21808 | K147: 0 | L147: 111
A148: 21 | B148: 22021 | C148: 11 | D148: 22043 | E148: 22 | F148: 22059 | K148: 0 | L148: 212
A149: 21 | B149: 22178 | C149: 11 | D149: 22202 | E149: 11 | F149: 22210 | K149: 0 | L149: 211
A150: 12 | B150: 22315 | C150: 13 | D150: 22341 | E150: 13 | F150: 22349 | K150: 0 | L150: 111
A151: 21 | B151: 22491 | C151: 11 | D151: 22516 | E151: 11 | F151: 22524 | K151: 0 | L151: 211
A152: 12 | B152: 22670 | C152: 13 | D152: 22684 | E152: 13 | F152: 22700 | K152: 0 | L152: 111
A153: 12 | B153: 22860 | C153: 13 | D153: 22868 | E153: 13 | F153: 22878 | K153: 0 | L153: 111
A154: 12 | B154: 22982 | C154: 13 | D154: 23006 | E154: 13 | F154: 23022 | K154: 0 | L154: 111
A155: 12 | B155: 23126 | C155: 13 | D155: 23135 | E155: 13 | F155: 23142 | K155: 0 | L155: 111
A156: 12 | B156: 23247 | C156: 13 | D156: 23263 | E156: 13 | F156: 23268 | K156: 0 | L156: 111
A157: 21 | B157: 23405 | C157: 11 | D157: 23429 | E157: 11 | F157: 23441 | K157: 0 | L157: 211
A158: 12 | B158: 23558 | C158: 13 | D158: 23594 | E158: 13 | F158: 23600 | K158: 0 | L158: 111
A159: 12 | B159: 23714 | C159: 24 | D159: 23728 | E159: 13 | F159: 23762 | K159: 0 | L159: 121
A160: 12 | B160: 23869 | C160: 13 | D160: 23878 | E160: 24 | F160: 23891 | K160: 0 | L160: 112

Sheet !2011-06-02_11h29m.Subject 53
A1: Report for:!2011-06-02_11h29m.Subject 53
A2: Date | B2: 2011-06-02 | F2: Group | G2: 0
A3: Hen | B3: 53 | F3: Correct Sequence | G3: =Start!J2 -> 211 | P3: Total Sequences in Data | Q3: =4994-COUNTBLANK(L7:L5000) -> 156 | V3: Total Sequences in Block Data | W3: =COUNTA(L7:L32) -> 26 | AA3: Total Sequences in Block Data | AB3: =COUNTA(L33:L58) -> 26 | AF3: Total Sequences in Block Data | AG3: =COUNTA(L59:L84) -> 26 | AK3: Total Sequences in Block Data | AL3: =COUNTA(L85:L110) -> 26 | AP3: Total Sequences in Block Data | AQ3: =COUNTA(L111:L136) -> 26 | AU3: Total Sequences in Block Data | AV3: =COUNTA(L137:L162) -> 26
A4: Program | B4: 0 | P4: Total Sequences in Summary | Q4: =SUM(O7:O14) -> 156 | V4: Total Sequences in Block Summary | W4: =SUM(U7:U14) -> 26 | AA4: Total Sequences in Block Summary | AB4: =SUM(Z7:Z14) -> 26 | AF4: Total Sequences in Block Summary | AG4: =SUM(AE7:AE14) -> 26 | AK4: Total Sequences in Block Summary | AL4: =SUM(AJ7:AJ14) -> 26 | AP4: Total Sequences in Block Summary | AQ4: =SUM(AO7:AO14) -> 26 | AU4: Total Sequences in Block Summary | AV4: =SUM(AT7:AT14) -> 26
T5: Block 1 | Y5: Block 2 | AD5: Block 3 | AI5: Block 4 | AN5: Block 5 | AS5: Block 6
A6: Sequence Component 1 | B6: Time 1 | C6: Sequence Component 2 | D6: Time 2 | E6: Sequence Component 3 | F6: Time 3 | G6: Sequence Component 4 | H6: Time 4 | I6: Sequence Component 5 | J6: Time 5 | K6: Correct? 0=No 1=Yes | L6: Sequence | N6: Frequency | P6: Relative Frequency | Q6: Variability | T6: Frequency | V6: Relative Frequency | W6: Variability | Y6: Frequency | AA6: Relative Frequency | AB6: Variability | AD6: Frequency | AF6: Relative Frequency | AG6: Variability | AI6: Frequency | AK6: Relative Frequency | AL6: Variability | AN6: Frequency | AP6: Relative Frequency | AQ6: Variability | AS6: Frequency | AU6: Relative Frequency | AV6: Variability
A7: 21 | B7: 38 | C7: 22 | D7: 47 | E7: 24 | F7: 59 | K7: 0 | L7: 222 | N7: 111 | O7: =COUNTIF($L$7:$L$500,N7) -> 32 | P7: =O7/$Q$4 -> 0.2051282051 | Q7: =IF(P7=0,0,(P7*((LOG(P7))/LOG(2)))) -> -0.4688004552 | T7: =N7 -> 111 | U7: =COUNTIF(L7:L32,T7) -> 6 | V7: =U7/(W4-U11) -> 0.24 | W7: =IF(V7=0,0,(V7*((LOG(V7))/LOG(2)))) -> -0.4941344854 | Y7: =N7 -> 111 | Z7: =COUNTIF(L33:L58,Y7) -> 10 | AA7: =Z7/(AB4-Z11) -> 0.4166666667 | AB7: =IF(AA7=0,0,(AA7*((LOG(AA7))/LOG(2)))) -> -0.5262643358 | AD7: =N7 -> 111 | AE7: =COUNTIF(L59:L84,AD7) -> 4 | AF7: =AE7/(AG4-AE11) -> 0.1538461538 | AG7: =IF(AF7=0,0,(AF7*((LOG(AF7))/LOG(2)))) -> -0.4154522643 | AI7: =N7 -> 111 | AJ7: =COUNTIF(L85:L110,AI7) -> 4 | AK7: =AJ7/(AL4-AJ11) -> 0.1904761905 | AL7: =IF(AK7=0,0,(AK7*((LOG(AK7))/LOG(2)))) -> -0.4556795091 | AN7: =N7 -> 111 | AO7: =COUNTIF(L111:L136,AN7) -> 6 | AP7: =AO7/(AQ4-AO11) -> 0.24 | AQ7: =IF(AP7=0,0,(AP7*((LOG(AP7))/LOG(2)))) -> -0.4941344854 | AS7: =N7 -> 111 | AT7: =COUNTIF(L137:L162,AS7) -> 2 | AU7: =AT7/(AV4-AT11) -> 0.08333333333 | AV7: =IF(AU7=0,0,(AU7*((LOG(AU7))/LOG(2)))) -> -0.2987468751
A8: 12 | B8: 183 | C8: 13 | D8: 202 | E8: 13 | F8: 219 | K8: 0 | L8: 111 | N8: 112 | O8: =COUNTIF($L$7:$L$500,N8) -> 41 | P8: =O8/$Q$4 -> 0.2628205128 | Q8: =IF(P8=0,0,(P8*((LOG(P8))/LOG(2)))) -> -0.5066785819 | T8: =N8 -> 112 | U8: =COUNTIF(L7:L32,T8) -> 8 | V8: =U8/(W4-U11) -> 0.32 | W8: =IF(V8=0,0,(V8*((LOG(V8))/LOG(2)))) -> -0.5260339807 | Y8: =N8 -> 112 | Z8: =COUNTIF(L33:L58,Y8) -> 7 | AA8: =Z8/(AB4-Z11) -> 0.2916666667 | AB8: =IF(AA8=0,0,(AA8*((LOG(AA8))/LOG(2)))) -> -0.5184688771 | AD8: =N8 -> 112 | AE8: =COUNTIF(L59:L84,AD8) -> 7 | AF8: =AE8/(AG4-AE11) -> 0.2692307692 | AG8: =IF(AF8=0,0,(AF8*((LOG(AF8))/LOG(2)))) -> -0.5096766759 | AI8: =N8 -> 112 | AJ8: =COUNTIF(L85:L110,AI8) -> 3 | AK8: =AJ8/(AL4-AJ11) -> 0.1428571429 | AL8: =IF(AK8=0,0,(AK8*((LOG(AK8))/LOG(2)))) -> -0.4010507032 | AN8: =N8 -> 112 | AO8: =COUNTIF(L111:L136,AN8) -> 9 | AP8: =AO8/(AQ4-AO11) -> 0.36 | AQ8: =IF(AP8=0,0,(AP8*((LOG(AP8))/LOG(2)))) -> -0.5306152278 | AS8: =N8 -> 112 | AT8: =COUNTIF(L137:L162,AS8) -> 7 | AU8: =AT8/(AV4-AT11) -> 0.2916666667 | AV8: =IF(AU8=0,0,(AU8*((LOG(AU8))/LOG(2)))) -> -0.5184688771
A9: 12 | B9: 329 | C9: 24 | D9: 342 | E9: 13 | F9: 364 | K9: 0 | L9: 121 | N9: 121 | O9: =COUNTIF($L$7:$L$500,N9) -> 21 | P9: =O9/$Q$4 -> 0.1346153846 | Q9: =IF(P9=0,0,(P9*((LOG(P9))/LOG(2)))) -> -0.3894537225 | T9: =N9 -> 121 | U9: =COUNTIF(L7:L32,T9) -> 4 | V9: =U9/(W4-U11) -> 0.16 | W9: =IF(V9=0,0,(V9*((LOG(V9))/LOG(2)))) -> -0.4230169904 | Y9: =N9 -> 121 | Z9: =COUNTIF(L33:L58,Y9) -> 4 | AA9: =Z9/(AB4-Z11) -> 0.1666666667 | AB9: =IF(AA9=0,0,(AA9*((LOG(AA9))/LOG(2)))) -> -0.4308270835 | AD9: =N9 -> 121 | AE9: =COUNTIF(L59:L84,AD9) -> 3 | AF9: =AE9/(AG4-AE11) -> 0.1153846154 | AG9: =IF(AF9=0,0,(AF9*((LOG(AF9))/LOG(2)))) -> -0.3594781405 | AI9: =N9 -> 121 | AJ9: =COUNTIF(L85:L110,AI9) -> 1 | AK9: =AJ9/(AL4-AJ11) -> 0.04761904762 | AL9: =IF(AK9=0,0,(AK9*((LOG(AK9))/LOG(2)))) -> -0.2091579725 | AN9: =N9 -> 121 | AO9: =COUNTIF(L111:L136,AN9) -> 4 | AP9: =AO9/(AQ4-AO11) -> 0.16 | AQ9: =IF(AP9=0,0,(AP9*((LOG(AP9))/LOG(2)))) -> -0.4230169904 | AS9: =N9 -> 121 | AT9: =COUNTIF(L137:L162,AS9) -> 5 | AU9: =AT9/(AV4-AT11) -> 0.2083333333 | AV9: =IF(AU9=0,0,(AU9*((LOG(AU9))/LOG(2)))) -> -0.4714655012
A10: 12 | B10: 470 | C10: 13 | D10: 500 | E10: 13 | F10: 508 | K10: 0 | L10: 111 | N10: 122 | O10: =COUNTIF($L$7:$L$500,N10) -> 22 | P10: =O10/$Q$4 -> 0.141025641 | Q10: =IF(P10=0,0,(P10*((LOG(P10))/LOG(2)))) -> -0.3985343154 | T10: =N10 -> 122 | U10: =COUNTIF(L7:L32,T10) -> 2 | V10: =U10/(W4-U11) -> 0.08 | W10: =IF(V10=0,0,(V10*((LOG(V10))/LOG(2)))) -> -0.2915084952 | Y10: =N10 -> 122 | Z10: =COUNTIF(L33:L58,Y10) -> 3 | AA10: =Z10/(AB4-Z11) -> 0.125 | AB10: =IF(AA10=0,0,(AA10*((LOG(AA10))/LOG(2)))) -> -0.375 | AD10: =N10 -> 122 | AE10: =COUNTIF(L59:L84,AD10) -> 5 | AF10: =AE10/(AG4-AE11) -> 0.1923076923 | AG10: =IF(AF10=0,0,(AF10*((LOG(AF10))/LOG(2)))) -> -0.4574060814 | AI10: =N10 -> 122 | AJ10: =COUNTIF(L85:L110,AI10) -> 4 | AK10: =AJ10/(AL4-AJ11) -> 0.1904761905 | AL10: =IF(AK10=0,0,(AK10*((LOG(AK10))/LOG(2)))) -> -0.4556795091 | AN10: =N10 -> 122 | AO10: =COUNTIF(L111:L136,AN10) -> 4 | AP10: =AO10/(AQ4-AO11) -> 0.16 | AQ10: =IF(AP10=0,0,(AP10*((LOG(AP10))/LOG(2)))) -> -0.4230169904 | AS10: =N10 -> 122 | AT10: =COUNTIF(L137:L162,AS10) -> 4 | AU10: =AT10/(AV4-AT11) -> 0.1666666667 | AV10: =IF(AU10=0,0,(AU10*((LOG(AU10))/LOG(2)))) -> -0.4308270835
A11: 12 | B11: 619 | C11: 13 | D11: 627 | E11: 24 | F11: 638 | K11: 0 | L11: 112 | N11: 211 | O11: =COUNTIF($L$7:$L$500,N11) -> 11 | P11: =O11/$Q$4 -> 0.07051282051 | Q11: =IF(P11=0,0,(P11*((LOG(P11))/LOG(2)))) -> -0.2697799782 | T11: =N11 -> 211 | U11: =COUNTIF(L7:L32,T11) -> 1 | Y11: =N11 -> 211 | Z11: =COUNTIF(L33:L58,Y11) -> 2 | AD11: =N11 -> 211 | AE11: =COUNTIF(L59:L84,AD11) -> 0 | AI11: =N11 -> 211 | AJ11: =COUNTIF(L85:L110,AI11) -> 5 | AN11: =N11 -> 211 | AO11: =COUNTIF(L111:L136,AN11) -> 1 | AS11: =N11 -> 211 | AT11: =COUNTIF(L137:L162,AS11) -> 2
A12: 12 | B12: 745 | C12: 13 | D12: 767 | E12: 24 | F12: 783 | K12: 0 | L12: 112 | N12: 212 | O12: =COUNTIF($L$7:$L$500,N12) -> 7 | P12: =O12/$Q$4 -> 0.04487179487 | Q12: =IF(P12=0,0,(P12*((LOG(P12))/LOG(2)))) -> -0.2009380197 | T12: =N12 -> 212 | U12: =COUNTIF(L7:L32,T12) -> 1 | V12: =U12/(W4-U11) -> 0.04 | W12: =IF(V12=0,0,(V12*((LOG(V12))/LOG(2)))) -> -0.1857542476 | Y12: =N12 -> 212 | Z12: =COUNTIF(L33:L58,Y12) -> 0 | AA12: =Z12/(AB4-Z11) -> 0 | AB12: =IF(AA12=0,0,(AA12*((LOG(AA12))/LOG(2)))) -> 0 | AD12: =N12 -> 212 | AE12: =COUNTIF(L59:L84,AD12) -> 0 | AF12: =AE12/(AG4-AE11) -> 0 | AG12: =IF(AF12=0,0,(AF12*((LOG(AF12))/LOG(2)))) -> 0 | AI12: =N12 -> 212 | AJ12: =COUNTIF(L85:L110,AI12) -> 4 | AK12: =AJ12/(AL4-AJ11) -> 0.1904761905 | AL12: =IF(AK12=0,0,(AK12*((LOG(AK12))/LOG(2)))) -> -0.4556795091 | AN12: =N12 -> 212 | AO12: =COUNTIF(L111:L136,AN12) -> 1 | AP12: =AO12/(AQ4-AO11) -> 0.04 | AQ12: =IF(AP12=0,0,(AP12*((LOG(AP12))/LOG(2)))) -> -0.1857542476 | AS12: =N12 -> 212 | AT12: =COUNTIF(L137:L162,AS12) -> 1 | AU12: =AT12/(AV4-AT11) -> 0.04166666667 | AV12: =IF(AU12=0,0,(AU12*((LOG(AU12))/LOG(2)))) -> -0.1910401042
A13: 12 | B13: 904 | C13: 13 | D13: 914 | E13: 24 | F13: 924 | K13: 0 | L13: 112 | N13: 221 | O13: =COUNTIF($L$7:$L$500,N13) -> 5 | P13: =O13/$Q$4 -> 0.03205128205 | Q13: =IF(P13=0,0,(P13*((LOG(P13))/LOG(2)))) -> -0.1590857091 | T13: =N13 -> 221 | U13: =COUNTIF(L7:L32,T13) -> 1 | V13: =U13/(W4-U11) -> 0.04 | W13: =IF(V13=0,0,(V13*((LOG(V13))/LOG(2)))) -> -0.1857542476 | Y13: =N13 -> 221 | Z13: =COUNTIF(L33:L58,Y13) -> 0 | AA13: =Z13/(AB4-Z11) -> 0 | AB13: =IF(AA13=0,0,(AA13*((LOG(AA13))/LOG(2)))) -> 0 | AD13: =N13 -> 221 | AE13: =COUNTIF(L59:L84,AD13) -> 3 | AF13: =AE13/(AG4-AE11) -> 0.1153846154 | AG13: =IF(AF13=0,0,(AF13*((LOG(AF13))/LOG(2)))) -> -0.3594781405 | AI13: =N13 -> 221 | AJ13: =COUNTIF(L85:L110,AI13) -> 0 | AK13: =AJ13/(AL4-AJ11) -> 0 | AL13: =IF(AK13=0,0,(AK13*((LOG(AK13))/LOG(2)))) -> 0 | AN13: =N13 -> 221 | AO13: =COUNTIF(L111:L136,AN13) -> 0 | AP13: =AO13/(AQ4-AO11) -> 0 | AQ13: =IF(AP13=0,0,(AP13*((LOG(AP13))/LOG(2)))) -> 0 | AS13: =N13 -> 221 | AT13: =COUNTIF(L137:L162,AS13) -> 1 | AU13: =AT13/(AV4-AT11) -> 0.04166666667 | AV13: =IF(AU13=0,0,(AU13*((LOG(AU13))/LOG(2)))) -> -0.1910401042
A14: 12 | B14: 1045 | C14: 13 | D14: 1059 | E14: 13 | F14: 1064 | K14: 0 | L14: 111 | N14: 222 | O14: =COUNTIF($L$7:$L$500,N14) -> 17 | P14: =O14/$Q$4 -> 0.108974359 | Q14: =IF(P14=0,0,(P14*((LOG(P14))/LOG(2)))) -> -0.3484933937 | T14: =N14 -> 222 | U14: =COUNTIF(L7:L32,T14) -> 3 | V14: =U14/(W4-U11) -> 0.12 | W14: =IF(V14=0,0,(V14*((LOG(V14))/LOG(2)))) -> -0.3670672427 | Y14: =N14 -> 222 | Z14: =COUNTIF(L33:L58,Y14) -> 0 | AA14: =Z14/(AB4-Z11) -> 0 | AB14: =IF(AA14=0,0,(AA14*((LOG(AA14))/LOG(2)))) -> 0 | AD14: =N14 -> 222 | AE14: =COUNTIF(L59:L84,AD14) -> 4 | AF14: =AE14/(AG4-AE11) -> 0.1538461538 | AG14: =IF(AF14=0,0,(AF14*((LOG(AF14))/LOG(2)))) -> -0.4154522643 | AI14: =N14 -> 222 | AJ14: =COUNTIF(L85:L110,AI14) -> 5 | AK14: =AJ14/(AL4-AJ11) -> 0.2380952381 | AL14: =IF(AK14=0,0,(AK14*((LOG(AK14))/LOG(2)))) -> -0.49294984 | AN14: =N14 -> 222 | AO14: =COUNTIF(L111:L136,AN14) -> 1 | AP14: =AO14/(AQ4-AO11) -> 0.04 | AQ14: =IF(AP14=0,0,(AP14*((LOG(AP14))/LOG(2)))) -> -0.1857542476 | AS14: =N14 -> 222 | AT14: =COUNTIF(L137:L162,AS14) -> 4 | AU14: =AT14/(AV4-AT11) -> 0.1666666667 | AV14: =IF(AU14=0,0,(AU14*((LOG(AU14))/LOG(2)))) -> -0.4308270835
A15: 12 | B15: 1233 | C15: 13 | D15: 1254 | E15: 24 | F15: 1267 | K15: 0 | L15: 112 | P15: =SUM(P7:P14) -> 1 | Q15: =-SUM(Q7:Q14) -> 2.741764176 | V15: =SUM(V7:V14) -> 1 | W15: =-SUM(W7:W14) -> 2.47326969 | AA15: =SUM(AA7:AA14) -> 1 | AB15: =-SUM(AB7:AB14) -> 1.850560296 | AF15: =SUM(AF7:AF14) -> 1 | AG15: =-SUM(AG7:AG14) -> 2.516943567 | AK15: =SUM(AK7:AK14) -> 1 | AL15: =-SUM(AL7:AL14) -> 2.470197043 | AP15: =SUM(AP7:AP14) -> 1 | AQ15: =-SUM(AQ7:AQ14) -> 2.242292189 | AU15: =SUM(AU7:AU14) -> 1 | AV15: =-SUM(AV7:AV14) -> 2.532415629
A16: 12 | B16: 1401 | C16: 24 | D16: 1415 | E16: 24 | F16: 1423 | K16: 0 | L16: 122 | P16: U= | Q16: =Q15/(LOG(Q4)/LOG(2)) -> 0.3763366927 | V16: U1= | W16: =W15/(LOG(W4)/LOG(2)) -> 0.5261783658 | AA16: U2= | AB16: =AB15/(LOG(AB4)/LOG(2)) -> 0.3936993999 | AF16: U3= | AG16: =AG15/(LOG(AG4)/LOG(2)) -> 0.5354698109 | AK16: U4= | AL16: =AL15/(LOG(AL4)/LOG(2)) -> 0.5255246724 | AP16: U5= | AQ16: =AQ15/(LOG(AQ4)/LOG(2)) -> 0.4770388141 | AU16: U6= | AV16: =AV15/(LOG(AV4)/LOG(2)) -> 0.538761431
A17: 12 | B17: 1551 | C17: 13 | D17: 1612 | E17: 13 | F17: 1630 | K17: 0 | L17: 111
A18: 12 | B18: 1759 | C18: 13 | D18: 1765 | E18: 24 | F18: 1779 | K18: 0 | L18: 112
A19: 12 | B19: 1904 | C19: 24 | D19: 1929 | E19: 13 | F19: 1949 | K19: 0 | L19: 121 | N19: Total Target Seq
A20: 12 | B20: 2069 | C20: 24 | D20: 2088 | E20: 13 | F20: 2102 | K20: 0 | L20: 121 | N20: =COUNTIF(L7:L162,G3) -> 11 | P20: 26 | Q20: 26 | R20: 26 | S20: 26 | T20: 26 | U20: 26
A21: 12 | B21: 2222 | C21: 24 | D21: 2235 | E21: 24 | F21: 2247 | K21: 0 | L21: 122 | P21: % of reinforcement given in 6 equal intervals based on number of trials
A22: 21 | B22: 2362 | C22: 11 | D22: 2385 | E22: 22 | F22: 2403 | K22: 0 | L22: 212 | P22: %_1 | Q22: %_2 | R22: %_3 | S22: %_4 | T22: %_5 | U22: %_6
A23: 21 | B23: 2601 | C23: 22 | D23: 2610 | E23: 24 | F23: 2626 | K23: 0 | L23: 222 | O23: target sequence | P23: =$G$3 -> 211 | Q23: =$G$3 -> 211 | R23: =$G$3 -> 211 | S23: =$G$3 -> 211 | T23: =$G$3 -> 211 | U23: =$G$3 -> 211
A24: 12 | B24: 2726 | C24: 24 | D24: 2736 | E24: 13 | F24: 2763 | K24: 0 | L24: 121 | O24: total reinforcement | P24: =U11 -> 1 | Q24: =Z11 -> 2 | R24: =AE11 -> 0 | S24: =AJ11 -> 5 | T24: =AO11 -> 1 | U24: =AT11 -> 2
A25: 12 | B25: 2869 | C25: 13 | D25: 2909 | E25: 24 | F25: 2922 | K25: 0 | L25: 112 | O25: % target
A26: 12 | B26: 3028 | C26: 13 | D26: 3051 | E26: 13 | F26: 3070 | K26: 0 | L26: 111 | O26: CCRF
A27: 12 | B27: 3184 | C27: 13 | D27: 3203 | E27: 24 | F27: 3217 | K27: 0 | L27: 112 | O27: % CCRf
A28: 12 | B28: 3342 | C28: 13 | D28: 3344 | E28: 13 | F28: 3367 | K28: 0 | L28: 111 | O28: average response rate | P28: =F32/P20 -> 151.9230769 | Q28: =(F58-F32)/Q20 -> 147.9230769 | R28: =(F84-F58)/R20 -> 153.6538462 | S28: =(F110-F84)/S20 -> 158.2692308 | T28: =(F136-F110)/T20 -> 158.6153846 | U28: =(F162-F136)/U20 -> 150
A29: 21 | B29: 3487 | C29: 22 | D29: 3496 | E29: 24 | F29: 3504 | K29: 0 | L29: 222
A30: 21 | B30: 3626 | C30: 22 | D30: 3637 | E30: 13 | F30: 3656 | K30: 0 | L30: 221
A31: 21 | B31: 3777 | C31: 11 | D31: 3792 | E31: 11 | F31: 3804 | K31: 0 | L31: 211
A32: 12 | B32: 3918 | C32: 13 | D32: 3938 | E32: 24 | F32: 3950 | K32: 0 | L32: 112
A33: 12 | B33: 4053 | C33: 13 | D33: 4071 | E33: 13 | F33: 4082 | K33: 0 | L33: 111
A34: 12 | B34: 4196 | C34: 13 | D34: 4204 | E34: 24 | F34: 4218 | K34: 0 | L34: 112
A35: 21 | B35: 4337 | C35: 11 | D35: 4354 | E35: 11 | F35: 4364 | K35: 0 | L35: 211
A36: 12 | B36: 4472 | C36: 13 | D36: 4492 | E36: 24 | F36: 4507 | K36: 0 | L36: 112
A37: 12 | B37: 4636 | C37: 24 | D37: 4649 | E37: 24 | F37: 4656 | K37: 0 | L37: 122
A38: 12 | B38: 4780 | C38: 13 | D38: 4782 | E38: 13 | F38: 4801 | K38: 0 | L38: 111
A39: 12 | B39: 4941 | C39: 13 | D39: 4950 | E39: 24 | F39: 4964 | K39: 0 | L39: 112
A40: 12 | B40: 5074 | C40: 13 | D40: 5117 | E40: 13 | F40: 5130 | K40: 0 | L40: 111
A41: 12 | B41: 5271 | C41: 13 | D41: 5273 | E41: 13 | F41: 5288 | K41: 0 | L41: 111
A42: 12 | B42: 5400 | C42: 13 | D42: 5401 | E42: 13 | F42: 5419 | K42: 0 | L42: 111
A43: 12 | B43: 5522 | C43: 13 | D43: 5538 | E43: 13 | F43: 5565 | K43: 0 | L43: 111
A44: 12 | B44: 5697 | C44: 13 | D44: 5717 | E44: 24 | F44: 5733 | K44: 0 | L44: 112
A45: 21 | B45: 5859 | C45: 11 | D45: 5879 | E45: 11 | F45: 5892 | K45: 0 | L45: 211
A46: 12 | B46: 5985 | C46: 13 | D46: 6010 | E46: 13 | F46: 6032 | K46: 0 | L46: 111
A47: 12 | B47: 6138 | C47: 24 | D47: 6176 | E47: 13 | F47: 6194 | K47: 0 | L47: 121
A48: 12 | B48: 6299 | C48: 24 | D48: 6309 | E48: 13 | F48: 6326 | K48: 0 | L48: 121
A49: 12 | B49: 6450 | C49: 13 | D49: 6452 | E49: 13 | F49: 6473 | K49: 0 | L49: 111
A50: 12 | B50: 6599 | C50: 24 | D50: 6612 | E50: 13 | F50: 6631 | K50: 0 | L50: 121
A51: 12 | B51: 6732 | C51: 13 | D51: 6748 | E51: 13 | F51: 6770 | K51: 0 | L51: 111
A52: 12 | B52: 6880 | C52: 13 | D52: 6887 | E52: 13 | F52: 6905 | K52: 0 | L52: 111
A53: 12 | B53: 7013 | C53: 24 | D53: 7028 | E53: 24 | F53: 7036 | K53: 0 | L53: 122
A54: 12 | B54: 7140 | C54: 13 | D54: 7176 | E54: 24 | F54: 7196 | K54: 0 | L54: 112
A55: 12 | B55: 7322 | C55: 13 | D55: 7330 | E55: 24 | F55: 7346 | K55: 0 | L55: 112
A56: 12 | B56: 7471 | C56: 24 | D56: 7485 | E56: 13 | F56: 7506 | K56: 0 | L56: 121
A57: 12 | B57: 7620 | C57: 24 | D57: 7633 | E57: 24 | F57: 7642 | K57: 0 | L57: 122
A58: 12 | B58: 7747 | C58: 13 | D58: 7782 | E58: 24 | F58: 7796 | K58: 0 | L58: 112
A59: 12 | B59: 7901 | C59: 24 | D59: 7911 | E59: 13 | F59: 7929 | K59: 0 | L59: 121
A60: 12 | B60: 8033 | C60: 13 | D60: 8054 | E60: 24 | F60: 8068 | K60: 0 | L60: 112
A61: 12 | B61: 8187 | C61: 13 | D61: 8207 | E61: 13 | F61: 8232 | K61: 0 | L61: 111
A62: 12 | B62: 8349 | C62: 13 | D62: 8369 | E62: 24 | F62: 8400 | K62: 0 | L62: 112
A63: 21 | B63: 8520 | C63: 22 | D63: 8528 | E63: 13 | F63: 8546 | K63: 0 | L63: 221
A64: 12 | B64: 8690 | C64: 13 | D64: 8712 | E64: 24 | F64: 8725 | K64: 0 | L64: 112
A65: 12 | B65: 8829 | C65: 13 | D65: 8892 | E65: 13 | F65: 8908 | K65: 0 | L65: 111
A66: 21 | B66: 9061 | C66: 22 | D66: 9065 | E66: 13 | F66: 9082 | K66: 0 | L66: 221
A67: 12 | B67: 9218 | C67: 13 | D67: 9255 | E67: 24 | F67: 9269 | K67: 0 | L67: 112
A68: 12 | B68: 9451 | C68: 13 | D68: 9456 | E68: 24 | F68: 9469 | K68: 0 | L68: 112
A69: 12 | B69: 9584 | C69: 13 | D69: 9609 | E69: 13 | F69: 9615 | K69: 0 | L69: 111
A70: 21 | B70: 9762 | C70: 22 | D70: 9769 | E70: 24 | F70: 9777 | K70: 0 | L70: 222
A71: 21 | B71: 9913 | C71: 22 | D71: 9921 | E71: 24 | F71: 9929 | K71: 0 | L71: 222
A72: 12 | B72: 10052 | C72: 24 | D72: 10075 | E72: 24 | F72: 10080 | K72: 0 | L72: 122
A73: 12 | B73: 10187 | C73: 13 | D73: 10229 | E73: 24 | F73: 10246 | K73: 0 | L73: 112
A74: 12 | B74: 10352 | C74: 24 | D74: 10365 | E74: 13 | F74: 10381 | K74: 0 | L74: 121
A75: 12 | B75: 10491 | C75: 24 | D75: 10503 | E75: 24 | F75: 10510 | K75: 0 | L75: 122
A76: 12 | B76: 10632 | C76: 24 | D76: 10645 | E76: 24 | F76: 10653 | K76: 0 | L76: 122
A77: 21 | B77: 10776 | C77: 22 | D77: 10808 | E77: 24 | F77: 10815 | K77: 0 | L77: 222
A78: 21 | B78: 10945 | C78: 22 | D78: 10952 | E78: 24 | F78: 10960 | K78: 0 | L78: 222
A79: 21 | B79: 11074 | C79: 22 | D79: 11111 | E79: 13 | F79: 11129 | K79: 0 | L79: 221
A80: 12 | B80: 11240 | C80: 24 | D80: 11258 | E80: 13 | F80: 11275 | K80: 0 | L80: 121
A81: 12 | B81: 11379 | C81: 13 | D81: 11412 | E81: 13 | F81: 11420 | K81: 0 | L81: 111
A82: 12 | B82: 11521 | C82: 13 | D82: 11523 | E82: 24 | F82: 11536 | K82: 0 | L82: 112
A83: 12 | B83: 11638 | C83: 24 | D83: 11656 | E83: 24 | F83: 11664 | K83: 0 | L83: 122
A84: 12 | B84: 11766 | C84: 24 | D84: 11782 | E84: 24 | F84: 11791 | K84: 0 | L84: 122
A85: 12 | B85: 11897 | C85: 24 | D85: 11910 | E85: 24 | F85: 11919 | K85: 0 | L85: 122
A86: 12 | B86: 12023 | C86: 24 | D86: 12038 | E86: 24 | F86: 12049 | K86: 0 | L86: 122
A87: 21 | B87: 12155 | C87: 22 | D87: 12178 | E87: 24 | F87: 12186 | K87: 0 | L87: 222
A88: 21 | B88: 12295 | C88: 11 | D88: 12315 | E88: 11 | F88: 12324 | K88: 0 | L88: 211
A89: 12 | B89: 12425 | C89: 24 | D89: 12439 | E89: 13 | F89: 12461 | K89: 0 | L89: 121
A90: 21 | B90: 12583 | C90: 22 | D90: 12589 | E90: 24 | F90: 12596 | K90: 0 | L90: 222
A91: 12 | B91: 12699 | C91: 13 | D91: 12720 | E91: 13 | F91: 12740 | K91: 0 | L91: 111
A92: 21 | B92: 12882 | C92: 22 | D92: 12893 | E92: 24 | F92: 12902 | K92: 0 | L92: 222
A93: 12 | B93: 13000 | C93: 24 | D93: 13034 | E93: 24 | F93: 13040 | K93: 0 | L93: 122
A94: 12 | B94: 13154 | C94: 13 | D94: 13169 | E94: 24 | F94: 13184 | K94: 0 | L94: 112
A95: 21 | B95: 13322 | C95: 22 | D95: 13330 | E95: 24 | F95: 13337 | K95: 0 | L95: 222
A96: 21 | B96: 13438 | C96: 11 | D96: 13464 | E96: 22 | F96: 13478 | K96: 0 | L96: 212
A97: 21 | B97: 13608 | C97: 11 | D97: 13642 | E97: 11 | F97: 13654 | K97: 0 | L97: 211
A98: 21 | B98: 13773 | C98: 11 | D98: 13791 | E98: 22 | F98: 13806 | K98: 0 | L98: 212
A99: 12 | B99: 13909 | C99: 13 | D99: 13918 | E99: 24 | F99: 13931 | K99: 0 | L99: 112
A100: 21 | B100: 14066 | C100: 11 | D100: 14090 | E100: 22 | F100: 14106 | K100: 0 | L100: 212
A101: 12 | B101: 14248 | C101: 24 | D101: 14262 | E101: 24 | F101: 14270 | K101: 0 | L101: 122
A102: 21 | B102: 14480 | C102: 22 | D102: 14503 | E102: 24 | F102: 14511 | K102: 0 | L102: 222
A103: 21 | B103: 14627 | C103: 11 | D103: 14649 | E103: 22 | F103: 14665 | K103: 0 | L103: 212
A104: 21 | B104: 14804 | C104: 11 | D104: 14829 | E104: 11 | F104: 14847 | K104: 0 | L104: 211
A105: 12 | B105: 14993 | C105: 13 | D105: 15026 | E105: 13 | F105: 15043 | K105: 0 | L105: 111
A106: 12 | B106: 15150 | C106: 13 | D106: 15185 | E106: 24 | F106: 15199 | K106: 0 | L106: 112
A107: 12 | B107: 15331 | C107: 13 | D107: 15356 | E107: 13 | F107: 15387 | K107: 0 | L107: 111
A108: 12 | B108: 15552 | C108: 13 | D108: 15571 | E108: 13 | F108: 15585 | K108: 0 | L108: 111
A109: 21 | B109: 15705 | C109: 11 | D109: 15721 | E109: 11 | F109: 15734 | K109: 0 | L109: 211
A110: 21 | B110: 15878 | C110: 11 | D110: 15895 | E110: 11 | F110: 15906 | K110: 0 | L110: 211
A111: 12 | B111: 16080 | C111: 13 | D111: 16102 | E111: 24 | F111: 16118 | K111: 0 | L111: 112
A112: 12 | B112: 16259 | C112: 13 | D112: 16294 | E112: 24 | F112: 16308 | K112: 0 | L112: 112
A113: 21 | B113: 16452 | C113: 11 | D113: 16472 | E113: 22 | F113: 16487 | K113: 0 | L113: 212
A114: 12 | B114: 16623 | C114: 24 | D114: 16639 | E114: 24 | F114: 16646 | K114: 0 | L114: 122
A115: 12 | B115: 16784 | C115: 13 | D115: 16815 | E115: 13 | F115: 16847 | K115: 0 | L115: 111
A116: 12 | B116: 16960 | C116: 13 | D116: 16979 | E116: 13 | F116: 17001 | K116: 0 | L116: 111
A117: 12 | B117: 17121 | C117: 24 | D117: 17136 | E117: 24 | F117: 17144 | K117: 0 | L117: 122
A118: 21 | B118: 17271 | C118: 11 | D118: 17293 | E118: 11 | F118: 17331 | K118: 0 | L118: 211
A119: 12 | B119: 17446 | C119: 13 | D119: 17475 | E119: 24 | F119: 17489 | K119: 0 | L119: 112
A120: 12 | B120: 17596 | C120: 13 | D120: 17624 | E120: 24 | F120: 17640 | K120: 0 | L120: 112
A121: 12 | B121: 17757 | C121: 13 | D121: 17780 | E121: 13 | F121: 17789 | K121: 0 | L121: 111
A122: 12 | B122: 17915 | C122: 13 | D122: 17924 | E122: 24 | F122: 17937 | K122: 0 | L122: 112
A123: 12 | B123: 18103 | C123: 24 | D123: 18117 | E123: 24 | F123: 18125 | K123: 0 | L123: 122
A124: 12 | B124: 18234 | C124: 24 | D124: 18287 | E124: 13 | F124: 18321 | K124: 0 | L124: 121
A125: 12 | B125: 18426 | C125: 13 | D125: 18440 | E125: 13 | F125: 18447 | K125: 0 | L125: 111
A126: 12 | B126: 18555 | C126: 24 | D126: 18596 | E126: 13 | F126: 18609 | K126: 0 | L126: 121
A127: 12 | B127: 18714 | C127: 24 | D127: 18724 | E127: 24 | F127: 18756 | K127: 0 | L127: 122
A128: 12 | B128: 18856 | C128: 13 | D128: 18882 | E128: 24 | F128: 18893 | K128: 0 | L128: 112
A129: 12 | B129: 19000 | C129: 13 | D129: 19013 | E129: 24 | F129: 19035 | K129: 0 | L129: 112
A130: 12 | B130: 19132 | C130: 13 | D130: 19152 | E130: 13 | F130: 19174 | K130: 0 | L130: 111
A131: 21 | B131: 19298 | C131: 22 | D131: 19307 | E131: 24 | F131: 19315 | K131: 0 | L131: 222
A132: 12 | B132: 19414 | C132: 24 | D132: 19427 | E132: 13 | F132: 19451 | K132: 0 | L132: 121
A133: 12 | B133: 19555 | C133: 13 | D133: 19556 | E133: 24 | F133: 19613 | K133: 0 | L133: 112
A134: 12 | B134: 19719 | C134: 13 | D134: 19721 | E134: 24 | F134: 19733 | K134: 0 | L134: 112
A135: 12 | B135: 19831 | C135: 24 | D135: 19840 | E135: 13 | F135: 19858 | K135: 0 | L135: 121
A136: 12 | B136: 19962 | C136: 13 | D136: 19992 | E136: 13 | F136: 20030 | K136: 0 | L136: 111
A137: 12 | B137: 20134 | C137: 13 | D137: 20158 | E137: 13 | F137: 20164 | K137: 0 | L137: 111
A138: 12 | B138: 20271 | C138: 24 | D138: 20286 | E138: 13 | F138: 20310 | K138: 0 | L138: 121
A139: 12 | B139: 20413 | C139: 13 | D139: 20449 | E139: 24 | F139: 20463 | K139: 0 | L139: 112
A140: 21 | B140: 20573 | C140: 22 | D140: 20581 | E140: 24 | F140: 20589 | K140: 0 | L140: 222
A141: 12 | B141: 20717 | C141: 13 | D141: 20739 | E141: 24 | F141: 20757 | K141: 0 | L141: 112
A142: 21 | B142: 20883 | C142: 22 | D142: 20890 | E142: 24 | F142: 20899 | K142: 0 | L142: 222
A143: 12 | B143: 21012 | C143: 13 | D143: 21026 | E143: 24 | F143: 21039 | K143: 0 | L143: 112
A144: 21 | B144: 21155 | C144: 22 | D144: 21163 | E144: 13 | F144: 21186 | K144: 0 | L144: 221
A145: 12 | B145: 21307 | C145: 24 | D145: 21321 | E145: 24 | F145: 21328 | K145: 0 | L145: 122
A146: 12 | B146: 21434 | C146: 24 | D146: 21473 | E146: 13 | F146: 21491 | K146: 0 | L146: 121
A147: 12 | B147: 21648 | C147: 13 | D147: 21656 | E147: 24 | F147: 21669 | K147: 0 | L147: 112
A148: 12 | B148: 21768 | C148: 13 | D148: 21791 | E148: 24 | F148: 21827 | K148: 0 | L148: 112
A149: 12 | B149: 21934 | C149: 13 | D149: 21955 | E149: 24 | F149: 21968 | K149: 0 | L149: 112
A150: 21 | B150: 22087 | C150: 22 | D150: 22094 | E150: 24 | F150: 22102 | K150: 0 | L150: 222
A151: 21 | B151: 22221 | C151: 11 | D151: 22239 | E151: 22 | F151: 22257 | K151: 0 | L151: 212
A152: 12 | B152: 22365 | C152: 13 | D152: 22402 | E152: 24 | F152: 22415 | K152: 0 | L152: 112
A153: 21 | B153: 22549 | C153: 11 | D153: 22570 | E153: 11 | F153: 22590 | K153: 0 | L153: 211
A154: 12 | B154: 22699 | C154: 24 | D154: 22710 | E154: 24 | F154: 22719 | K154: 0 | L154: 122
A155: 12 | B155: 22853 | C155: 24 | D155: 22868 | E155: 24 | F155: 22877 | K155: 0 | L155: 122
A156: 12 | B156: 23006 | C156: 24 | D156: 23018 | E156: 13 | F156: 23035 | K156: 0 | L156: 121
A157: 12 | B157: 23145 | C157: 24 | D157: 23156 | E157: 24 | F157: 23164 | K157: 0 | L157: 122
A158: 21 | B158: 23283 | C158: 11 | D158: 23299 | E158: 11 | F158: 23321 | K158: 0 | L158: 211
A159: 12 | B159: 23455 | C159: 24 | D159: 23475 | E159: 13 | F159: 23506 | K159: 0 | L159: 121
A160: 12 | B160: 23606 | C160: 24 | D160: 23620 | E160: 13 | F160: 23642 | K160: 0 | L160: 121
A161: 12 | B161: 23751 | C161: 13 | D161: 23778 | E161: 13 | F161: 23780 | K161: 0 | L161: 111
A162: 21 | B162: 23914 | C162: 22 | D162: 23922 | E162: 24 | F162: 23930 | L162: 222

Sheet !2011-06-03_11h25m.Subject 53
A1: Report for:!2011-06-03_11h25m.Subject 53
A2: Date | B2: 2011-06-03 | F2: Group | G2: 0
A3: Hen | B3: 53 | F3: Correct Sequence | G3: =Start!J2 -> 211 | P3: Total Sequences in Data | Q3: =4994-COUNTBLANK(L7:L5000) -> 156 | V3: Total Sequences in Block Data | W3: =COUNTA(L7:L32) -> 26 | AA3: Total Sequences in Block Data | AB3: =COUNTA(L33:L58) -> 26 | AF3: Total Sequences in Block Data | AG3: =COUNTA(L59:L84) -> 26 | AK3: Total Sequences in Block Data | AL3: =COUNTA(L85:L110) -> 26 | AP3: Total Sequences in Block Data | AQ3: =COUNTA(L111:L136) -> 26 | AU3: Total Sequences in Block Data | AV3: =COUNTA(L137:L162) -> 26
A4: Program | B4: 0 | P4: Total Sequences in Summary | Q4: =SUM(O7:O14) -> 156 | V4: Total Sequences in Block Summary | W4: =SUM(U7:U14) -> 26 | AA4: Total Sequences in Block Summary | AB4: =SUM(Z7:Z14) -> 26 | AF4: Total Sequences in Block Summary | AG4: =SUM(AE7:AE14) -> 26 | AK4: Total Sequences in Block Summary | AL4: =SUM(AJ7:AJ14) -> 26 | AP4: Total Sequences in Block Summary | AQ4: =SUM(AO7:AO14) -> 26 | AU4: Total Sequences in Block Summary | AV4: =SUM(AT7:AT14) -> 26
T5: Block 1 | Y5: Block 2 | AD5: Block 3 | AI5: Block 4 | AN5: Block 5 | AS5: Block 6
A6: Sequence Component 1 | B6: Time 1 | C6: Sequence Component 2 | D6: Time 2 | E6: Sequence Component 3 | F6: Time 3 | G6: Sequence Component 4 | H6: Time 4 | I6: Sequence Component 5 | J6: Time 5 | K6: Correct? 0=No 1=Yes | L6: Sequence | N6: Frequency | P6: Relative Frequency | Q6: Variability | T6: Frequency | V6: Relative Frequency | W6: Variability | Y6: Frequency | AA6: Relative Frequency | AB6: Variability | AD6: Frequency | AF6: Relative Frequency | AG6: Variability | AI6: Frequency | AK6: Relative Frequency | AL6: Variability | AN6: Frequency | AP6: Relative Frequency | AQ6: Variability | AS6: Frequency | AU6: Relative Frequency | AV6: Variability
A7: 21 | B7: 34 | C7: 22 | D7: 42 | E7: 24 | F7: 81 | K7: 0 | L7: 222 | N7: 111 | O7: =COUNTIF($L$7:$L$500,N7) -> 22 | P7: =O7/$Q$4 -> 0.141025641 | Q7: =IF(P7=0,0,(P7*((LOG(P7))/LOG(2)))) -> -0.3985343154 | T7: =N7 -> 111 | U7: =COUNTIF(L7:L32,T7) -> 5 | V7: =U7/(W4-U11) -> 0.2173913043 | W7: =IF(V7=0,0,(V7*((LOG(V7))/LOG(2)))) -> -0.4786160568 | Y7: =N7 -> 111 | Z7: =COUNTIF(L33:L58,Y7) -> 2 | AA7: =Z7/(AB4-Z11) -> 0.09090909091 | AB7: =IF(AA7=0,0,(AA7*((LOG(AA7))/LOG(2)))) -> -0.3144937835 | AD7: =N7 -> 111 | AE7: =COUNTIF(L59:L84,AD7) -> 5 | AF7: =AE7/(AG4-AE11) -> 0.2380952381 | AG7: =IF(AF7=0,0,(AF7*((LOG(AF7))/LOG(2)))) -> -0.49294984 | AI7: =N7 -> 111 | AJ7: =COUNTIF(L85:L110,AI7) -> 4 | AK7: =AJ7/(AL4-AJ11) -> 0.2222222222 | AL7: =IF(AK7=0,0,(AK7*((LOG(AK7))/LOG(2)))) -> -0.4822055559 | AN7: =N7 -> 111 | AO7: =COUNTIF(L111:L136,AN7) -> 1 | AP7: =AO7/(AQ4-AO11) -> 0.04166666667 | AQ7: =IF(AP7=0,0,(AP7*((LOG(AP7))/LOG(2)))) -> -0.1910401042 | AS7: =N7 -> 111 | AT7: =COUNTIF(L137:L162,AS7) -> 5 | AU7: =AT7/(AV4-AT11) -> 0.2173913043 | AV7: =IF(AU7=0,0,(AU7*((LOG(AU7))/LOG(2)))) -> -0.4786160568
A8: 12 | B8: 185 | C8: 24 | D8: 195 | E8: 13 | F8: 216 | K8: 0 | L8: 121 | N8: 112 | O8: =COUNTIF($L$7:$L$500,N8) -> 15 | P8: =O8/$Q$4 -> 0.09615384615 | Q8: =IF(P8=0,0,(P8*((LOG(P8))/LOG(2)))) -> -0.3248568869 | T8: =N8 -> 112 | U8: =COUNTIF(L7:L32,T8) -> 7 | V8: =U8/(W4-U11) -> 0.3043478261 | W8: =IF(V8=0,0,(V8*((LOG(V8))/LOG(2)))) -> -0.5223238799 | Y8: =N8 -> 112 | Z8: =COUNTIF(L33:L58,Y8) -> 4 | AA8: =Z8/(AB4-Z11) -> 0.1818181818 | AB8: =IF(AA8=0,0,(AA8*((LOG(AA8))/LOG(2)))) -> -0.4471693852 | AD8: =N8 -> 112 | AE8: =COUNTIF(L59:L84,AD8) -> 2 | AF8: =AE8/(AG4-AE11) -> 0.09523809524 | AG8: =IF(AF8=0,0,(AF8*((LOG(AF8))/LOG(2)))) -> -0.3230778498 | AI8: =N8 -> 112 | AJ8: =COUNTIF(L85:L110,AI8) -> 1 | AK8: =AJ8/(AL4-AJ11) -> 0.05555555556 | AL8: =IF(AK8=0,0,(AK8*((LOG(AK8))/LOG(2)))) -> -0.2316625001 | AN8: =N8 -> 112 | AO8: =COUNTIF(L111:L136,AN8) -> 0 | AP8: =AO8/(AQ4-AO11) -> 0 | AQ8: =IF(AP8=0,0,(AP8*((LOG(AP8))/LOG(2)))) -> 0 | AS8: =N8 -> 112 | AT8: =COUNTIF(L137:L162,AS8) -> 1 | AU8: =AT8/(AV4-AT11) -> 0.04347826087 | AV8: =IF(AU8=0,0,(AU8*((LOG(AU8))/LOG(2)))) -> -0.1966766068
A9: 12 | B9: 322 | C9: 13 | D9: 365 | E9: 13 | F9: 390 | K9: 0 | L9: 111 | N9: 121 | O9: =COUNTIF($L$7:$L$500,N9) -> 23 | P9: =O9/$Q$4 -> 0.1474358974 | Q9: =IF(P9=0,0,(P9*((LOG(P9))/LOG(2)))) -> -0.4071943977 | T9: =N9 -> 121 | U9: =COUNTIF(L7:L32,T9) -> 4 | V9: =U9/(W4-U11) -> 0.1739130435 | W9: =IF(V9=0,0,(V9*((LOG(V9))/LOG(2)))) -> -0.4388803402 | Y9: =N9 -> 121 | Z9: =COUNTIF(L33:L58,Y9) -> 3 | AA9: =Z9/(AB4-Z11) -> 0.1363636364 | AB9: =IF(AA9=0,0,(AA9*((LOG(AA9))/LOG(2)))) -> -0.3919730615 | AD9: =N9 -> 121 | AE9: =COUNTIF(L59:L84,AD9) -> 6 | AF9: =AE9/(AG4-AE11) -> 0.2857142857 | AG9: =IF(AF9=0,0,(AF9*((LOG(AF9))/LOG(2)))) -> -0.5163871206 | AI9: =N9 -> 121 | AJ9: =COUNTIF(L85:L110,AI9) -> 3 | AK9: =AJ9/(AL4-AJ11) -> 0.1666666667 | AL9: =IF(AK9=0,0,(AK9*((LOG(AK9))/LOG(2)))) -> -0.4308270835 | AN9: =N9 -> 121 | AO9: =COUNTIF(L111:L136,AN9) -> 1 | AP9: =AO9/(AQ4-AO11) -> 0.04166666667 | AQ9: =IF(AP9=0,0,(AP9*((LOG(AP9))/LOG(2)))) -> -0.1910401042 | AS9: =N9 -> 121 | AT9: =COUNTIF(L137:L162,AS9) -> 6 | AU9: =AT9/(AV4-AT11) -> 0.2608695652 | AV9: =IF(AU9=0,0,(AU9*((LOG(AU9))/LOG(2)))) -> -0.505721597
A10: 12 | B10: 494 | C10: 24 | D10: 508 | E10: 24 | F10: 516 | K10: 0 | L10: 122 | N10: 122 | O10: =COUNTIF($L$7:$L$500,N10) -> 21 | P10: =O10/$Q$4 -> 0.1346153846 | Q10: =IF(P10=0,0,(P10*((LOG(P10))/LOG(2)))) -> -0.3894537225 | T10: =N10 -> 122 | U10: =COUNTIF(L7:L32,T10) -> 3 | V10: =U10/(W4-U11) -> 0.1304347826 | W10: =IF(V10=0,0,(V10*((LOG(V10))/LOG(2)))) -> -0.3832955811 | Y10: =N10 -> 122 | Z10: =COUNTIF(L33:L58,Y10) -> 6 | AA10: =Z10/(AB4-Z11) -> 0.2727272727 | AB10: =IF(AA10=0,0,(AA10*((LOG(AA10))/LOG(2)))) -> -0.5112188503 | AD10: =N10 -> 122 | AE10: =COUNTIF(L59:L84,AD10) -> 1 | AF10: =AE10/(AG4-AE11) -> 0.04761904762 | AG10: =IF(AF10=0,0,(AF10*((LOG(AF10))/LOG(2)))) -> -0.2091579725 | AI10: =N10 -> 122 | AJ10: =COUNTIF(L85:L110,AI10) -> 2 | AK10: =AJ10/(AL4-AJ11) -> 0.1111111111 | AL10: =IF(AK10=0,0,(AK10*((LOG(AK10))/LOG(2)))) -> -0.352213889 | AN10: =N10 -> 122 | AO10: =COUNTIF(L111:L136,AN10) -> 6 | AP10: =AO10/(AQ4-AO11) -> 0.25 | AQ10: =IF(AP10=0,0,(AP10*((LOG(AP10))/LOG(2)))) -> -0.5 | AS10: =N10 -> 122 | AT10: =COUNTIF(L137:L162,AS10) -> 3 | AU10: =AT10/(AV4-AT11) -> 0.1304347826 | AV10: =IF(AU10=0,0,(AU10*((LOG(AU10))/LOG(2)))) -> -0.3832955811
A11: 12 | B11: 621 | C11: 24 | D11: 635 | E11: 24 | F11: 643 | K11: 0 | L11: 122 | N11: 211 | O11: =COUNTIF($L$7:$L$500,N11) -> 25 | P11: =O11/$Q$4 -> 0.1602564103 | Q11: =IF(P11=0,0,(P11*((LOG(P11))/LOG(2)))) -> -0.4233246841 | T11: =N11 -> 211 | U11: =COUNTIF(L7:L32,T11) -> 3 | Y11: =N11 -> 211 | Z11: =COUNTIF(L33:L58,Y11) -> 4 | AD11: =N11 -> 211 | AE11: =COUNTIF(L59:L84,AD11) -> 5 | AI11: =N11 -> 211 | AJ11: =COUNTIF(L85:L110,AI11) -> 8 | AN11: =N11 -> 211 | AO11: =COUNTIF(L111:L136,AN11) -> 2 | AS11: =N11 -> 211 | AT11: =COUNTIF(L137:L162,AS11) -> 3
A12: 12 | B12: 752 | C12: 24 | D12: 764 | E12: 13 | F12: 782 | K12: 0 | L12: 121 | N12: 212 | O12: =COUNTIF($L$7:$L$500,N12) -> 11 | P12: =O12/$Q$4 -> 0.07051282051 | Q12: =IF(P12=0,0,(P12*((LOG(P12))/LOG(2)))) -> -0.2697799782 | T12: =N12 -> 212 | U12: =COUNTIF(L7:L32,T12) -> 1 | V12: =U12/(W4-U11) -> 0.04347826087 | W12: =IF(V12=0,0,(V12*((LOG(V12))/LOG(2)))) -> -0.1966766068 | Y12: =N12 -> 212 | Z12: =COUNTIF(L33:L58,Y12) -> 2 | AA12: =Z12/(AB4-Z11) -> 0.09090909091 | AB12: =IF(AA12=0,0,(AA12*((LOG(AA12))/LOG(2)))) -> -0.3144937835 | AD12: =N12 -> 212 | AE12: =COUNTIF(L59:L84,AD12) -> 2 | AF12: =AE12/(AG4-AE11) -> 0.09523809524 | AG12: =IF(AF12=0,0,(AF12*((LOG(AF12))/LOG(2)))) -> -0.3230778498 | AI12: =N12 -> 212 | AJ12: =COUNTIF(L85:L110,AI12) -> 1 | AK12: =AJ12/(AL4-AJ11) -> 0.05555555556 | AL12: =IF(AK12=0,0,(AK12*((LOG(AK12))/LOG(2)))) -> -0.2316625001 | AN12: =N12 -> 212 | AO12: =COUNTIF(L111:L136,AN12) -> 3 | AP12: =AO12/(AQ4-AO11) -> 0.125 | AQ12: =IF(AP12=0,0,(AP12*((LOG(AP12))/LOG(2)))) -> -0.375 | AS12: =N12 -> 212 | AT12: =COUNTIF(L137:L162,AS12) -> 2 | AU12: =AT12/(AV4-AT11) -> 0.08695652174 | AV12: =IF(AU12=0,0,(AU12*((LOG(AU12))/LOG(2)))) -> -0.3063966918
A13: 12 | B13: 883 | C13: 13 | D13: 918 | E13: 24 | F13: 930 | K13: 0 | L13: 112 | N13: 221 | O13: =COUNTIF($L$7:$L$500,N13) -> 18 | P13: =O13/$Q$4 -> 0.1153846154 | Q13: =IF(P13=0,0,(P13*((LOG(P13))/LOG(2)))) -> -0.3594781405 | T13: =N13 -> 221 | U13: =COUNTIF(L7:L32,T13) -> 2 | V13: =U13/(W4-U11) -> 0.08695652174 | W13: =IF(V13=0,0,(V13*((LOG(V13))/LOG(2)))) -> -0.3063966918 | Y13: =N13 -> 221 | Z13: =COUNTIF(L33:L58,Y13) -> 4 | AA13: =Z13/(AB4-Z11) -> 0.1818181818 | AB13: =IF(AA13=0,0,(AA13*((LOG(AA13))/LOG(2)))) -> -0.4471693852 | AD13: =N13 -> 221 | AE13: =COUNTIF(L59:L84,AD13) -> 2 | AF13: =AE13/(AG4-AE11) -> 0.09523809524 | AG13: =IF(AF13=0,0,(AF13*((LOG(AF13))/LOG(2)))) -> -0.3230778498 | AI13: =N13 -> 221 | AJ13: =COUNTIF(L85:L110,AI13) -> 2 | AK13: =AJ13/(AL4-AJ11) -> 0.1111111111 | AL13: =IF(AK13=0,0,(AK13*((LOG(AK13))/LOG(2)))) -> -0.352213889 | AN13: =N13 -> 221 | AO13: =COUNTIF(L111:L136,AN13) -> 5 | AP13: =AO13/(AQ4-AO11) -> 0.2083333333 | AQ13: =IF(AP13=0,0,(AP13*((LOG(AP13))/LOG(2)))) -> -0.4714655012 | AS13: =N13 -> 221 | AT13: =COUNTIF(L137:L162,AS13) -> 3 | AU13: =AT13/(AV4-AT11) -> 0.1304347826 | AV13: =IF(AU13=0,0,(AU13*((LOG(AU13))/LOG(2)))) -> -0.3832955811
A14: 21 | B14: 1033 | C14: 11 | D14: 1049 | E14: 11 | F14: 1058 | K14: 0 | L14: 211 | N14: 222 | O14: =COUNTIF($L$7:$L$500,N14) -> 21 | P14: =O14/$Q$4 -> 0.1346153846 | Q14: =IF(P14=0,0,(P14*((LOG(P14))/LOG(2)))) -> -0.3894537225 | T14: =N14 -> 222 | U14: =COUNTIF(L7:L32,T14) -> 1 | V14: =U14/(W4-U11) -> 0.04347826087 | W14: =IF(V14=0,0,(V14*((LOG(V14))/LOG(2)))) -> -0.1966766068 | Y14: =N14 -> 222 | Z14: =COUNTIF(L33:L58,Y14) -> 1 | AA14: =Z14/(AB4-Z11) -> 0.04545454545 | AB14: =IF(AA14=0,0,(AA14*((LOG(AA14))/LOG(2)))) -> -0.2027014372 | AD14: =N14 -> 222 | AE14: =COUNTIF(L59:L84,AD14) -> 3 | AF14: =AE14/(AG4-AE11) -> 0.1428571429 | AG14: =IF(AF14=0,0,(AF14*((LOG(AF14))/LOG(2)))) -> -0.4010507032 | AI14: =N14 -> 222 | AJ14: =COUNTIF(L85:L110,AI14) -> 5 | AK14: =AJ14/(AL4-AJ11) -> 0.2777777778 | AL14: =IF(AK14=0,0,(AK14*((LOG(AK14))/LOG(2)))) -> -0.513332474 | AN14: =N14 -> 222 | AO14: =COUNTIF(L111:L136,AN14) -> 8 | AP14: =AO14/(AQ4-AO11) -> 0.3333333333 | AQ14: =IF(AP14=0,0,(AP14*((LOG(AP14))/LOG(2)))) -> -0.5283208336 | AS14: =N14 -> 222 | AT14: =COUNTIF(L137:L162,AS14) -> 3 | AU14: =AT14/(AV4-AT11) -> 0.1304347826 | AV14: =IF(AU14=0,0,(AU14*((LOG(AU14))/LOG(2)))) -> -0.3832955811
A15: 12 | B15: 1157 | C15: 13 | D15: 1178 | E15: 24 | F15: 1190 | K15: 0 | L15: 112 | P15: =SUM(P7:P14) -> 1 | Q15: =-SUM(Q7:Q14) -> 2.962075848 | V15: =SUM(V7:V14) -> 1 | W15: =-SUM(W7:W14) -> 2.522865763 | AA15: =SUM(AA7:AA14) -> 1 | AB15: =-SUM(AB7:AB14) -> 2.629219687 | AF15: =SUM(AF7:AF14) -> 1 | AG15: =-SUM(AG7:AG14) -> 2.588779186 | AK15: =SUM(AK7:AK14) -> 1 | AL15: =-SUM(AL7:AL14) -> 2.594117892 | AP15: =SUM(AP7:AP14) -> 1 | AQ15: =-SUM(AQ7:AQ14) -> 2.256866543 | AU15: =SUM(AU7:AU14) -> 1 | AV15: =-SUM(AV7:AV14) -> 2.637297696
A16: 21 | B16: 1308 | C16: 11 | D16: 1327 | E16: 22 | F16: 1342 | K16: 0 | L16: 212 | P16: U= | Q16: =Q15/(LOG(Q4)/LOG(2)) -> 0.4065768449 | V16: U1= | W16: =W15/(LOG(W4)/LOG(2)) -> 0.5367297348 | AA16: U2= | AB16: =AB15/(LOG(AB4)/LOG(2)) -> 0.5593561122 | AF16: U3= | AG16: =AG15/(LOG(AG4)/LOG(2)) -> 0.5507525553 | AK16: U4= | AL16: =AL15/(LOG(AL4)/LOG(2)) -> 0.5518883439 | AP16: U5= | AQ16: =AQ15/(LOG(AQ4)/LOG(2)) -> 0.4801394505 | AU16: U6= | AV16: =AV15/(LOG(AV4)/LOG(2)) -> 0.5610746768
A17: 12 | B17: 1447 | C17: 13 | D17: 1468 | E17: 24 | F17: 1478 | K17: 0 | L17: 112
A18: 21 | B18: 1595 | C18: 22 | D18: 1604 | E18: 13 | F18: 1630 | K18: 0 | L18: 221
A19: 12 | B19: 1728 | C19: 13 | D19: 1745 | E19: 24 | F19: 1757 | K19: 0 | L19: 112 | N19: Total Target Seq
A20: 12 | B20: 1880 | C20: 24 | D20: 1891 | E20: 13 | F20: 1916 | K20: 0 | L20: 121 | N20: =COUNTIF(L7:L162,G3) -> 25 | P20: 26 | Q20: 26 | R20: 26 | S20: 26 | T20: 26 | U20: 26
A21: 12 | B21: 2021 | C21: 13 | D21: 2044 | E21: 24 | F21: 2062 | K21: 0 | L21: 112 | P21: % of reinforcement given in 6 equal intervals based on number of trials
A22: 21 | B22: 2180 | C22: 11 | D22: 2196 | E22: 11 | F22: 2205 | K22: 0 | L22: 211 | P22: %_1 | Q22: %_2 | R22: %_3 | S22: %_4 | T22: %_5 | U22: %_6
A23: 12 | B23: 2334 | C23: 24 | D23: 2347 | E23: 24 | F23: 2385 | K23: 0 | L23: 122 | O23: target sequence | P23: =$G$3 -> 211 | Q23: =$G$3 -> 211 | R23: =$G$3 -> 211 | S23: =$G$3 -> 211 | T23: =$G$3 -> 211 | U23: =$G$3 -> 211
A24: 21 | B24: 2506 | C24: 11 | D24: 2540 | E24: 11 | F24: 2561 | K24: 0 | L24: 211 | O24: total reinforcement | P24: =U11 -> 3 | Q24: =Z11 -> 4 | R24: =AE11 -> 5 | S24: =AJ11 -> 8 | T24: =AO11 -> 2 | U24: =AT11 -> 3
A25: 12 | B25: 2659 | C25: 13 | D25: 2679 | E25: 24 | F25: 2695 | K25: 0 | L25: 112 | O25: % target
A26: 12 | B26: 2808 | C26: 13 | D26: 2816 | E26: 13 | F26: 2843 | K26: 0 | L26: 111 | O26: CCRF
A27: 21 | B27: 2959 | C27: 22 | D27: 2991 | E27: 13 | F27: 3015 | K27: 0 | L27: 221 | O27: % CCRf
A28: 12 | B28: 3160 | C28: 13 | D28: 3162 | E28: 24 | F28: 3175 | K28: 0 | L28: 112 | O28: average response rate | P28: =F32/P20 -> 143.7307692 | Q28: =(F58-F32)/Q20 -> 163.2307692 | R28: =(F84-F58)/R20 -> 167.0769231 | S28: =(F110-F84)/S20 -> 147.1538462 | T28: =(F136-F110)/T20 -> 143.3076923 | U28: =(F162-F136)/U20 -> 156.5384615
A29: 12 | B29: 3276 | C29: 13 | D29: 3307 | E29: 13 | F29: 3309 | K29: 0 | L29: 111
A30: 12 | B30: 3415 | C30: 13 | D30: 3416 | E30: 13 | F30: 3455 | K30: 0 | L30: 111
A31: 12 | B31: 3566 | C31: 13 | D31: 3576 | E31: 13 | F31: 3584 | K31: 0 | L31: 111
A32: 12 | B32: 3689 | C32: 24 | D32: 3714 | E32: 13 | F32: 3737 | K32: 0 | L32: 121
A33: 21 | B33: 3852 | C33: 22 | D33: 3860 | E33: 13 | F33: 3880 | K33: 0 | L33: 221
A34: 12 | B34: 3986 | C34: 24 | D34: 3998 | E34: 13 | F34: 4016 | K34: 0 | L34: 121
A35: 21 | B35: 4134 | C35: 11 | D35: 4153 | E35: 22 | F35: 4167 | K35: 0 | L35: 212
A36: 12 | B36: 4300 | C36: 24 | D36: 4312 | E36: 24 | F36: 4335 | K36: 0 | L36: 122
A37: 21 | B37: 4450 | C37: 11 | D37: 4469 | E37: 11 | F37: 4514 | K37: 0 | L37: 211
A38: 12 | B38: 4676 | C38: 24 | D38: 4688 | E38: 24 | F38: 4697 | K38: 0 | L38: 122
A39: 12 | B39: 4797 | C39: 13 | D39: 4826 | E39: 13 | F39: 4853 | K39: 0 | L39: 111
A40: 21 | B40: 4965 | C40: 22 | D40: 4970 | E40: 13 | F40: 4989 | K40: 0 | L40: 221
A41: 21 | B41: 5100 | C41: 22 | D41: 5105 | E41: 13 | F41: 5124 | K41: 0 | L41: 221
A42: 12 | B42: 5234 | C42: 13 | D42: 5263 | E42: 13 | F42: 5293 | K42: 0 | L42: 111
A43: 12 | B43: 5401 | C43: 24 | D43: 5411 | E43: 24 | F43: 5418 | K43: 0 | L43: 122
A44: 12 | B44: 5522 | C44: 24 | D44: 5531 | E44: 24 | F44: 5540 | K44: 0 | L44: 122
A45: 21 | B45: 5640 | C45: 11 | D45: 5657 | E45: 11 | F45: 5676 | K45: 0 | L45: 211
A46: 21 | B46: 5837 | C46: 22 | D46: 5845 | E46: 24 | F46: 5853 | K46: 0 | L46: 222
A47: 12 | B47: 5959 | C47: 13 | D47: 5982 | E47: 24 | F47: 6042 | K47: 0 | L47: 112
A48: 12 | B48: 6178 | C48: 24 | D48: 6194 | E48: 13 | F48: 6211 | K48: 0 | L48: 121
A49: 21 | B49: 6345 | C49: 11 | D49: 6368 | E49: 22 | F49: 6382 | K49: 0 | L49: 212
A50: 12 | B50: 6496 | C50: 24 | D50: 6506 | E50: 24 | F50: 6513 | K50: 0 | L50: 122
A51: 21 | B51: 6635 | C51: 11 | D51: 6656 | E51: 11 | F51: 6689 | K51: 0 | L51: 211
A52: 12 | B52: 6812 | C52: 13 | D52: 6837 | E52: 24 | F52: 6852 | K52: 0 | L52: 112
A53: 21 | B53: 6974 | C53: 11 | D53: 7024 | E53: 11 | F53: 7039 | K53: 0 | L53: 211
A54: 12 | B54: 7203 | C54: 13 | D54: 7215 | E54: 24 | F54: 7228 | K54: 0 | L54: 112
A55: 12 | B55: 7387 | C55: 13 | D55: 7389 | E55: 24 | F55: 7432 | K55: 0 | L55: 112
A56: 12 | B56: 7610 | C56: 24 | D56: 7624 | E56: 24 | F56: 7632 | K56: 0 | L56: 122
A57: 12 | B57: 7762 | C57: 24 | D57: 7781 | E57: 13 | F57: 7805 | K57: 0 | L57: 121
A58: 21 | B58: 7918 | C58: 22 | D58: 7919 | E58: 13 | F58: 7981 | K58: 0 | L58: 221
A59: 12 | B59: 8098 | C59: 13 | D59: 8128 | E59: 24 | F59: 8140 | K59: 0 | L59: 112
A60: 12 | B60: 8263 | C60: 13 | D60: 8296 | E60: 24 | F60: 8317 | K60: 0 | L60: 112
A61: 12 | B61: 8447 | C61: 13 | D61: 8500 | E61: 13 | F61: 8518 | K61: 0 | L61: 111
A62: 21 | B62: 8643 | C62: 11 | D62: 8662 | E62: 11 | F62: 8747 | K62: 0 | L62: 211
A63: 12 | B63: 8858 | C63: 24 | D63: 8871 | E63: 13 | F63: 8897 | K63: 0 | L63: 121
A64: 12 | B64: 9058 | C64: 13 | D64: 9095 | E64: 13 | F64: 9108 | K64: 0 | L64: 111
A65: 12 | B65: 9206 | C65: 24 | D65: 9215 | E65: 13 | F65: 9233 | K65: 0 | L65: 121
A66: 21 | B66: 9352 | C66: 22 | D66: 9357 | E66: 13 | F66: 9385 | K66: 0 | L66: 221
A67: 12 | B67: 9500 | C67: 24 | D67: 9512 | E67: 13 | F67: 9533 | K67: 0 | L67: 121
A68: 12 | B68: 9636 | C68: 24 | D68: 9650 | E68: 13 | F68: 9713 | K68: 0 | L68: 121
A69: 21 | B69: 9873 | C69: 11 | D69: 9896 | E69: 11 | F69: 9910 | K69: 0 | L69: 211
A70: 12 | B70: 10037 | C70: 24 | D70: 10046 | E70: 13 | F70: 10078 | K70: 0 | L70: 121
A71: 12 | B71: 10224 | C71: 13 | D71: 10237 | E71: 13 | F71: 10244 | K71: 0 | L71: 111
A72: 21 | B72: 10362 | C72: 11 | D72: 10403 | E72: 22 | F72: 10417 | K72: 0 | L72: 212
A73: 21 | B73: 10525 | C73: 11 | D73: 10556 | E73: 11 | F73: 10568 | K73: 0 | L73: 211
A74: 12 | B74: 10713 | C74: 24 | D74: 10749 | E74: 24 | F74: 10757 | K74: 0 | L74: 122
A75: 21 | B75: 10884 | C75: 11 | D75: 10902 | E75: 22 | F75: 10915 | K75: 0 | L75: 212
A76: 12 | B76: 11027 | C76: 24 | D76: 11041 | E76: 13 | F76: 11068 | K76: 0 | L76: 121
A77: 21 | B77: 11211 | C77: 22 | D77: 11219 | E77: 24 | F77: 11227 | K77: 0 | L77: 222
A78: 21 | B78: 11349 | C78: 22 | D78: 11357 | E78: 24 | F78: 11365 | K78: 0 | L78: 222
A79: 21 | B79: 11478 | C79: 22 | D79: 11494 | E79: 13 | F79: 11522 | K79: 0 | L79: 221
A80: 21 | B80: 11665 | C80: 11 | D80: 11686 | E80: 11 | F80: 11688 | K80: 0 | L80: 211
A81: 12 | B81: 11807 | C81: 13 | D81: 11832 | E81: 13 | F81: 11852 | K81: 0 | L81: 111
A82: 12 | B82: 12003 | C82: 13 | D82: 12015 | E82: 13 | F82: 12024 | K82: 0 | L82: 111
A83: 21 | B83: 12141 | C83: 11 | D83: 12160 | E83: 11 | F83: 12175 | K83: 0 | L83: 211
A84: 21 | B84: 12310 | C84: 22 | D84: 12317 | E84: 24 | F84: 12325 | K84: 0 | L84: 222
A85: 21 | B85: 12442 | C85: 11 | D85: 12472 | E85: 11 | F85: 12486 | K85: 0 | L85: 211
A86: 21 | B86: 12608 | C86: 11 | D86: 12646 | E86: 11 | F86: 12659 | K86: 0 | L86: 211
A87: 12 | B87: 12780 | C87: 24 | D87: 12789 | E87: 13 | F87: 12808 | K87: 0 | L87: 121
A88: 21 | B88: 12916 | C88: 11 | D88: 12931 | E88: 11 | F88: 12943 | K88: 0 | L88: 211
A89: 12 | B89: 13073 | C89: 13 | D89: 13081 | E89: 13 | F89: 13118 | K89: 0 | L89: 111
A90: 21 | B90: 13230 | C90: 11 | D90: 13244 | E90: 11 | F90: 13272 | K90: 0 | L90: 211
A91: 12 | B91: 13442 | C91: 13 | D91: 13461 | E91: 13 | F91: 13466 | K91: 0 | L91: 111
A92: 12 | B92: 13609 | C92: 13 | D92: 13611 | E92: 13 | F92: 13636 | K92: 0 | L92: 111
A93: 21 | B93: 13741 | C93: 11 | D93: 13770 | E93: 11 | F93: 13784 | K93: 0 | L93: 211
A94: 21 | B94: 13887 | C94: 11 | D94: 13905 | E94: 11 | F94: 13937 | K94: 0 | L94: 211
A95: 21 | B95: 14065 | C95: 11 | D95: 14079 | E95: 11 | F95: 14087 | K95: 0 | L95: 211
A96: 21 | B96: 14231 | C96: 22 | D96: 14264 | E96: 13 | F96: 14287 | K96: 0 | L96: 221
A97: 21 | B97: 14394 | C97: 22 | D97: 14401 | E97: 13 | F97: 14422 | K97: 0 | L97: 221
A98: 12 | B98: 14520 | C98: 24 | D98: 14529 | E98: 24 | F98: 14534 | K98: 0 | L98: 122
A99: 21 | B99: 14638 | C99: 11 | D99: 14666 | E99: 11 | F99: 14701 | K99: 0 | L99: 211
A100: 12 | B100: 14854 | C100: 13 | D100: 14866 | E100: 13 | F100: 14875 | K100: 0 | L100: 111
A101: 21 | B101: 14971 | C101: 11 | D101: 14986 | E101: 22 | F101: 14998 | K101: 0 | L101: 212
A102: 12 | B102: 15097 | C102: 24 | D102: 15109 | E102: 13 | F102: 15141 | K102: 0 | L102: 121
A103: 21 | B103: 15249 | C103: 22 | D103: 15261 | E103: 24 | F103: 15266 | K103: 0 | L103: 222
A104: 21 | B104: 15378 | C104: 22 | D104: 15387 | E104: 24 | F104: 15396 | K104: 0 | L104: 222
A105: 12 | B105: 15519 | C105: 24 | D105: 15531 | E105: 24 | F105: 15537 | K105: 0 | L105: 122
A106: 12 | B106: 15629 | C106: 13 | D106: 15637 | E106: 24 | F106: 15650 | K106: 0 | L106: 112
A107: 12 | B107: 15747 | C107: 24 | D107: 15755 | E107: 13 | F107: 15778 | K107: 0 | L107: 121
A108: 21 | B108: 15884 | C108: 22 | D108: 15892 | E108: 24 | F108: 15899 | K108: 0 | L108: 222
A109: 21 | B109: 16016 | C109: 22 | D109: 16023 | E109: 24 | F109: 16030 | K109: 0 | L109: 222
A110: 21 | B110: 16136 | C110: 22 | D110: 16144 | E110: 24 | F110: 16151 | K110: 0 | L110: 222
A111: 12 | B111: 16251 | C111: 24 | D111: 16260 | E111: 24 | F111: 16265 | K111: 0 | L111: 122
A112: 21 | B112: 16370 | C112: 22 | D112: 16378 | E112: 13 | F112: 16404 | K112: 0 | L112: 221
A113: 21 | B113: 16538 | C113: 22 | D113: 16545 | E113: 24 | F113: 16550 | K113: 0 | L113: 222
A114: 12 | B114: 16647 | C114: 24 | D114: 16656 | E114: 24 | F114: 16661 | K114: 0 | L114: 122
A115: 12 | B115: 16780 | C115: 24 | D115: 16792 | E115: 13 | F115: 16805 | K115: 0 | L115: 121
A116: 21 | B116: 16919 | C116: 11 | D116: 16933 | E116: 22 | F116: 16945 | K116: 0 | L116: 212
A117: 21 | B117: 17057 | C117: 22 | D117: 17062 | E117: 24 | F117: 17086 | K117: 0 | L117: 222
A118: 21 | B118: 17195 | C118: 11 | D118: 17244 | E118: 11 | F118: 17263 | K118: 0 | L118: 211
A119: 21 | B119: 17366 | C119: 22 | D119: 17371 | E119: 13 | F119: 17388 | K119: 0 | L119: 221
A120: 12 | B120: 17526 | C120: 13 | D120: 17535 | E120: 13 | F120: 17548 | K120: 0 | L120: 111
A121: 21 | B121: 17658 | C121: 22 | D121: 17678 | E121: 24 | F121: 17686 | K121: 0 | L121: 222
A122: 12 | B122: 17785 | C122: 24 | D122: 17797 | E122: 24 | F122: 17801 | K122: 0 | L122: 122
A123: 21 | B123: 17903 | C123: 22 | D123: 17908 | E123: 24 | F123: 17916 | K123: 0 | L123: 222
A124: 21 | B124: 18040 | C124: 22 | D124: 18047 | E124: 24 | F124: 18061 | K124: 0 | L124: 222
A125: 21 | B125: 18167 | C125: 22 | D125: 18180 | E125: 13 | F125: 18213 | K125: 0 | L125: 221
A126: 21 | B126: 18313 | C126: 22 | D126: 18318 | E126: 13 | F126: 18333 | K126: 0 | L126: 221
A127: 21 | B127: 18460 | C127: 22 | D127: 18466 | E127: 24 | F127: 18474 | K127: 0 | L127: 222
A128: 12 | B128: 18575 | C128: 24 | D128: 18584 | E128: 24 | F128: 18603 | K128: 0 | L128: 122
A129: 21 | B129: 18708 | C129: 22 | D129: 18713 | E129: 24 | F129: 18730 | K129: 0 | L129: 222
A130: 21 | B130: 18834 | C130: 22 | D130: 18855 | E130: 24 | F130: 18864 | K130: 0 | L130: 222
A131: 21 | B131: 18973 | C131: 11 | D131: 19031 | E131: 11 | F131: 19045 | K131: 0 | L131: 211
A132: 21 | B132: 19184 | C132: 11 | D132: 19198 | E132: 22 | F132: 19212 | K132: 0 | L132: 212
A133: 12 | B133: 19346 | C133: 24 | D133: 19357 | E133: 24 | F133: 19364 | K133: 0 | L133: 122
A134: 21 | B134: 19527 | C134: 22 | D134: 19534 | E134: 13 | F134: 19577 | K134: 0 | L134: 221
A135: 21 | B135: 19704 | C135: 11 | D135: 19723 | E135: 22 | F135: 19737 | K135: 0 | L135: 212
A136: 12 | B136: 19859 | C136: 24 | D136: 19872 | E136: 24 | F136: 19877 | K136: 0 | L136: 122
A137: 12 | B137: 19990 | C137: 24 | D137: 20001 | E137: 13 | F137: 20015 | K137: 0 | L137: 121
A138: 12 | B138: 20139 | C138: 24 | D138: 20152 | E138: 13 | F138: 20181 | K138: 0 | L138: 121
A139: 12 | B139: 20330 | C139: 13 | D139: 20404 | E139: 13 | F139: 20435 | K139: 0 | L139: 111
A140: 12 | B140: 20558 | C140: 13 | D140: 20583 | E140: 13 | F140: 20599 | K140: 0 | L140: 111
A141: 12 | B141: 20711 | C141: 24 | D141: 20722 | E141: 13 | F141: 20736 | K141: 0 | L141: 121
A142: 21 | B142: 20851 | C142: 22 | D142: 20856 | E142: 13 | F142: 20876 | K142: 0 | L142: 221
A143: 12 | B143: 21003 | C143: 24 | D143: 21015 | E143: 13 | F143: 21033 | K143: 0 | L143: 121
A144: 21 | B144: 21150 | C144: 11 | D144: 21171 | E144: 22 | F144: 21214 | K144: 0 | L144: 212
A145: 21 | B145: 21321 | C145: 22 | D145: 21357 | E145: 24 | F145: 21362 | K145: 0 | L145: 222
A146: 21 | B146: 21466 | C146: 22 | D146: 21472 | E146: 24 | F146: 21476 | K146: 0 | L146: 222
A147: 12 | B147: 21601 | C147: 13 | D147: 21619 | E147: 13 | F147: 21633 | K147: 0 | L147: 111
A148: 21 | B148: 21739 | C148: 11 | D148: 21753 | E148: 11 | F148: 21765 | K148: 0 | L148: 211
A149: 12 | B149: 21889 | C149: 13 | D149: 21897 | E149: 13 | F149: 21922 | K149: 0 | L149: 111
A150: 21 | B150: 22041 | C150: 11 | D150: 22058 | E150: 11 | F150: 22067 | K150: 0 | L150: 211
A151: 12 | B151: 22228 | C151: 13 | D151: 22267 | E151: 13 | F151: 22280 | K151: 0 | L151: 111
A152: 21 | B152: 22407 | C152: 22 | D152: 22414 | E152: 13 | F152: 22437 | K152: 0 | L152: 221
A153: 12 | B153: 22541 | C153: 24 | D153: 22579 | E153: 13 | F153: 22597 | K153: 0 | L153: 121
A154: 12 | B154: 22713 | C154: 24 | D154: 22724 | E154: 13 | F154: 22740 | K154: 0 | L154: 121
A155: 21 | B155: 22850 | C155: 22 | D155: 22860 | E155: 13 | F155: 22873 | K155: 0 | L155: 221
A156: 12 | B156: 22971 | C156: 24 | D156: 22984 | E156: 24 | F156: 22989 | K156: 0 | L156: 122
A157: 21 | B157: 23104 | C157: 11 | D157: 23120 | E157: 22 | F157: 23160 | K157: 0 | L157: 212
A158: 12 | B158: 23321 | C158: 24 | D158: 23331 | E158: 24 | F158: 23339 | K158: 0 | L158: 122
A159: 21 | B159: 23475 | C159: 11 | D159: 23511 | E159: 11 | F159: 23531 | K159: 0 | L159: 211
A160: 12 | B160: 23659 | C160: 13 | D160: 23685 | E160: 24 | F160: 23698 | K160: 0 | L160: 112
A161: 21 | B161: 23811 | C161: 22 | D161: 23819 | E161: 24 | F161: 23826 | K161: 0 | L161: 222
A162: 12 | B162: 23926 | C162: 24 | D162: 23942 | E162: 24 | F162: 23947 | L162: 122

Sheet !2011-06-04_11h08m.Subject 53
A1: Report for:!2011-06-04_11h08m.Subject 53
A2: Date | B2: 2011-06-04 | F2: Group | G2: 0
A3: Hen | B3: 53 | F3: Correct Sequence | G3: =Start!J2 -> 211 | P3: Total Sequences in Data | Q3: =4994-COUNTBLANK(L7:L5000) -> 135 | V3: Total Sequences in Block Data | W3: =COUNTA(L7:L29) -> 23 | AA3: Total Sequences in Block Data | AB3: =COUNTA(L30:L51) -> 22 | AF3: Total Sequences in Block Data | AG3: =COUNTA(L52:L74) -> 23 | AK3: Total Sequences in Block Data | AL3: =COUNTA(L75:L96) -> 22 | AP3: Total Sequences in Block Data | AQ3: =COUNTA(L97:L119) -> 23 | AU3: Total Sequences in Block Data | AV3: =COUNTA(L120:L141) -> 22
A4: Program | B4: 0 | P4: Total Sequences in Summary | Q4: =SUM(O7:O14) -> 135 | V4: Total Sequences in Block Summary | W4: =SUM(U7:U14) -> 23 | AA4: Total Sequences in Block Summary | AB4: =SUM(Z7:Z14) -> 22 | AF4: Total Sequences in Block Summary | AG4: =SUM(AE7:AE14) -> 23 | AK4: Total Sequences in Block Summary | AL4: =SUM(AJ7:AJ14) -> 22 | AP4: Total Sequences in Block Summary | AQ4: =SUM(AO7:AO14) -> 23 | AU4: Total Sequences in Block Summary | AV4: =SUM(AT7:AT14) -> 22
T5: Block 1 | Y5: Block 2 | AD5: Block 3 | AI5: Block 4 | AN5: Block 5 | AS5: Block 6
A6: Sequence Component 1 | B6: Time 1 | C6: Sequence Component 2 | D6: Time 2 | E6: Sequence Component 3 | F6: Time 3 | G6: Sequence Component 4 | H6: Time 4 | I6: Sequence Component 5 | J6: Time 5 | K6: Correct? 0=No 1=Yes | L6: Sequence | N6: Frequency | P6: Relative Frequency | Q6: Variability | T6: Frequency | V6: Relative Frequency | W6: Variability | Y6: Frequency | AA6: Relative Frequency | AB6: Variability | AD6: Frequency | AF6: Relative Frequency | AG6: Variability | AI6: Frequency | AK6: Relative Frequency | AL6: Variability | AN6: Frequency | AP6: Relative Frequency | AQ6: Variability | AS6: Frequency | AU6: Relative Frequency | AV6: Variability
A7: 12 | B7: 34 | C7: 24 | D7: 70 | E7: 13 | F7: 97 | K7: 0 | L7: 121 | N7: 111 | O7: =COUNTIF($L$7:$L$500,N7) -> 62 | P7: =O7/$Q$4 -> 0.4592592593 | Q7: =IF(P7=0,0,(P7*((LOG(P7))/LOG(2)))) -> -0.515573302 | T7: =N7 -> 111 | U7: =COUNTIF(L7:L29,T7) -> 7 | V7: =U7/(W4-U11) -> 0.35 | W7: =IF(V7=0,0,(V7*((LOG(V7))/LOG(2)))) -> -0.5301006105 | Y7: =N7 -> 111 | Z7: =COUNTIF(L30:L51,Y7) -> 8 | AA7: =Z7/(AB4-Z11) -> 0.5 | AB7: =IF(AA7=0,0,(AA7*((LOG(AA7))/LOG(2)))) -> -0.5 | AD7: =N7 -> 111 | AE7: =COUNTIF(L52:L74,AD7) -> 11 | AF7: =AE7/(AG4-AE11) -> 0.6875 | AG7: =IF(AF7=0,0,(AF7*((LOG(AF7))/LOG(2)))) -> -0.3716407622 | AI7: =N7 -> 111 | AJ7: =COUNTIF(L75:L96,AI7) -> 10 | AK7: =AJ7/(AL4-AJ11) -> 0.7142857143 | AL7: =IF(AK7=0,0,(AK7*((LOG(AK7))/LOG(2)))) -> -0.346733448 | AN7: =N7 -> 111 | AO7: =COUNTIF(L97:L119,AN7) -> 13 | AP7: =AO7/(AQ4-AO11) -> 0.7222222222 | AQ7: =IF(AP7=0,0,(AP7*((LOG(AP7))/LOG(2)))) -> -0.3390727046 | AS7: =N7 -> 111 | AT7: =COUNTIF(L120:L141,AS7) -> 13 | AU7: =AT7/(AV4-AT11) -> 0.9285714286 | AV7: =IF(AU7=0,0,(AU7*((LOG(AU7))/LOG(2)))) -> -0.09927840364
A8: 12 | B8: 205 | C8: 24 | D8: 217 | E8: 24 | F8: 225 | K8: 0 | L8: 122 | N8: 112 | O8: =COUNTIF($L$7:$L$500,N8) -> 3 | P8: =O8/$Q$4 -> 0.02222222222 | Q8: =IF(P8=0,0,(P8*((LOG(P8))/LOG(2)))) -> -0.1220411799 | T8: =N8 -> 112 | U8: =COUNTIF(L7:L29,T8) -> 1 | V8: =U8/(W4-U11) -> 0.05 | W8: =IF(V8=0,0,(V8*((LOG(V8))/LOG(2)))) -> -0.2160964047 | Y8: =N8 -> 112 | Z8: =COUNTIF(L30:L51,Y8) -> 0 | AA8: =Z8/(AB4-Z11) -> 0 | AB8: =IF(AA8=0,0,(AA8*((LOG(AA8))/LOG(2)))) -> 0 | AD8: =N8 -> 112 | AE8: =COUNTIF(L52:L74,AD8) -> 1 | AF8: =AE8/(AG4-AE11) -> 0.0625 | AG8: =IF(AF8=0,0,(AF8*((LOG(AF8))/LOG(2)))) -> -0.25 | AI8: =N8 -> 112 | AJ8: =COUNTIF(L75:L96,AI8) -> 0 | AK8: =AJ8/(AL4-AJ11) -> 0 | AL8: =IF(AK8=0,0,(AK8*((LOG(AK8))/LOG(2)))) -> 0 | AN8: =N8 -> 112 | AO8: =COUNTIF(L97:L119,AN8) -> 1 | AP8: =AO8/(AQ4-AO11) -> 0.05555555556 | AQ8: =IF(AP8=0,0,(AP8*((LOG(AP8))/LOG(2)))) -> -0.2316625001 | AS8: =N8 -> 112 | AT8: =COUNTIF(L120:L141,AS8) -> 0 | AU8: =AT8/(AV4-AT11) -> 0 | AV8: =IF(AU8=0,0,(AU8*((LOG(AU8))/LOG(2)))) -> 0
A9: 21 | B9: 329 | C9: 22 | D9: 352 | E9: 24 | F9: 360 | K9: 0 | L9: 222 | N9: 121 | O9: =COUNTIF($L$7:$L$500,N9) -> 11 | P9: =O9/$Q$4 -> 0.08148148148 | Q9: =IF(P9=0,0,(P9*((LOG(P9))/LOG(2)))) -> -0.2947498056 | T9: =N9 -> 121 | U9: =COUNTIF(L7:L29,T9) -> 3 | V9: =U9/(W4-U11) -> 0.15 | W9: =IF(V9=0,0,(V9*((LOG(V9))/LOG(2)))) -> -0.4105448391 | Y9: =N9 -> 121 | Z9: =COUNTIF(L30:L51,Y9) -> 3 | AA9: =Z9/(AB4-Z11) -> 0.1875 | AB9: =IF(AA9=0,0,(AA9*((LOG(AA9))/LOG(2)))) -> -0.4528195311 | AD9: =N9 -> 121 | AE9: =COUNTIF(L52:L74,AD9) -> 2 | AF9: =AE9/(AG4-AE11) -> 0.125 | AG9: =IF(AF9=0,0,(AF9*((LOG(AF9))/LOG(2)))) -> -0.375 | AI9: =N9 -> 121 | AJ9: =COUNTIF(L75:L96,AI9) -> 1 | AK9: =AJ9/(AL4-AJ11) -> 0.07142857143 | AL9: =IF(AK9=0,0,(AK9*((LOG(AK9))/LOG(2)))) -> -0.271953923 | AN9: =N9 -> 121 | AO9: =COUNTIF(L97:L119,AN9) -> 2 | AP9: =AO9/(AQ4-AO11) -> 0.1111111111 | AQ9: =IF(AP9=0,0,(AP9*((LOG(AP9))/LOG(2)))) -> -0.352213889 | AS9: =N9 -> 121 | AT9: =COUNTIF(L120:L141,AS9) -> 0 | AU9: =AT9/(AV4-AT11) -> 0 | AV9: =IF(AU9=0,0,(AU9*((LOG(AU9))/LOG(2)))) -> 0
A10: 21 | B10: 472 | C10: 22 | D10: 496 | E10: 13 | F10: 511 | K10: 0 | L10: 221 | N10: 122 | O10: =COUNTIF($L$7:$L$500,N10) -> 8 | P10: =O10/$Q$4 -> 0.05925925926 | Q10: =IF(P10=0,0,(P10*((LOG(P10))/LOG(2)))) -> -0.2415890724 | T10: =N10 -> 122 | U10: =COUNTIF(L7:L29,T10) -> 3 | V10: =U10/(W4-U11) -> 0.15 | W10: =IF(V10=0,0,(V10*((LOG(V10))/LOG(2)))) -> -0.4105448391 | Y10: =N10 -> 122 | Z10: =COUNTIF(L30:L51,Y10) -> 3 | AA10: =Z10/(AB4-Z11) -> 0.1875 | AB10: =IF(AA10=0,0,(AA10*((LOG(AA10))/LOG(2)))) -> -0.4528195311 | AD10: =N10 -> 122 | AE10: =COUNTIF(L52:L74,AD10) -> 0 | AF10: =AE10/(AG4-AE11) -> 0 | AG10: =IF(AF10=0,0,(AF10*((LOG(AF10))/LOG(2)))) -> 0 | AI10: =N10 -> 122 | AJ10: =COUNTIF(L75:L96,AI10) -> 2 | AK10: =AJ10/(AL4-AJ11) -> 0.1428571429 | AL10: =IF(AK10=0,0,(AK10*((LOG(AK10))/LOG(2)))) -> -0.4010507032 | AN10: =N10 -> 122 | AO10: =COUNTIF(L97:L119,AN10) -> 0 | AP10: =AO10/(AQ4-AO11) -> 0 | AQ10: =IF(AP10=0,0,(AP10*((LOG(AP10))/LOG(2)))) -> 0 | AS10: =N10 -> 122 | AT10: =COUNTIF(L120:L141,AS10) -> 0 | AU10: =AT10/(AV4-AT11) -> 0 | AV10: =IF(AU10=0,0,(AU10*((LOG(AU10))/LOG(2)))) -> 0
A11: 21 | B11: 625 | C11: 22 | D11: 633 | E11: 24 | F11: 641 | K11: 0 | L11: 222 | N11: 211 | O11: =COUNTIF($L$7:$L$500,N11) -> 37 | P11: =O11/$Q$4 -> 0.2740740741 | Q11: =IF(P11=0,0,(P11*((LOG(P11))/LOG(2)))) -> -0.5117955745 | T11: =N11 -> 211 | U11: =COUNTIF(L7:L29,T11) -> 3 | Y11: =N11 -> 211 | Z11: =COUNTIF(L30:L51,Y11) -> 6 | AD11: =N11 -> 211 | AE11: =COUNTIF(L52:L74,AD11) -> 7 | AI11: =N11 -> 211 | AJ11: =COUNTIF(L75:L96,AI11) -> 8 | AN11: =N11 -> 211 | AO11: =COUNTIF(L97:L119,AN11) -> 5 | AS11: =N11 -> 211 | AT11: =COUNTIF(L120:L141,AS11) -> 8
A12: 12 | B12: 744 | C12: 24 | D12: 757 | E12: 24 | F12: 766 | K12: 0 | L12: 122 | N12: 212 | O12: =COUNTIF($L$7:$L$500,N12) -> 5 | P12: =O12/$Q$4 -> 0.03703703704 | Q12: =IF(P12=0,0,(P12*((LOG(P12))/LOG(2)))) -> -0.1761069445 | T12: =N12 -> 212 | U12: =COUNTIF(L7:L29,T12) -> 1 | V12: =U12/(W4-U11) -> 0.05 | W12: =IF(V12=0,0,(V12*((LOG(V12))/LOG(2)))) -> -0.2160964047 | Y12: =N12 -> 212 | Z12: =COUNTIF(L30:L51,Y12) -> 0 | AA12: =Z12/(AB4-Z11) -> 0 | AB12: =IF(AA12=0,0,(AA12*((LOG(AA12))/LOG(2)))) -> 0 | AD12: =N12 -> 212 | AE12: =COUNTIF(L52:L74,AD12) -> 1 | AF12: =AE12/(AG4-AE11) -> 0.0625 | AG12: =IF(AF12=0,0,(AF12*((LOG(AF12))/LOG(2)))) -> -0.25 | AI12: =N12 -> 212 | AJ12: =COUNTIF(L75:L96,AI12) -> 1 | AK12: =AJ12/(AL4-AJ11) -> 0.07142857143 | AL12: =IF(AK12=0,0,(AK12*((LOG(AK12))/LOG(2)))) -> -0.271953923 | AN12: =N12 -> 212 | AO12: =COUNTIF(L97:L119,AN12) -> 1 | AP12: =AO12/(AQ4-AO11) -> 0.05555555556 | AQ12: =IF(AP12=0,0,(AP12*((LOG(AP12))/LOG(2)))) -> -0.2316625001 | AS12: =N12 -> 212 | AT12: =COUNTIF(L120:L141,AS12) -> 1 | AU12: =AT12/(AV4-AT11) -> 0.07142857143 | AV12: =IF(AU12=0,0,(AU12*((LOG(AU12))/LOG(2)))) -> -0.271953923
A13: 21 | B13: 872 | C13: 11 | D13: 896 | E13: 22 | F13: 917 | K13: 0 | L13: 212 | N13: 221 | O13: =COUNTIF($L$7:$L$500,N13) -> 6 | P13: =O13/$Q$4 -> 0.04444444444 | Q13: =IF(P13=0,0,(P13*((LOG(P13))/LOG(2)))) -> -0.1996379154 | T13: =N13 -> 221 | U13: =COUNTIF(L7:L29,T13) -> 3 | V13: =U13/(W4-U11) -> 0.15 | W13: =IF(V13=0,0,(V13*((LOG(V13))/LOG(2)))) -> -0.4105448391 | Y13: =N13 -> 221 | Z13: =COUNTIF(L30:L51,Y13) -> 2 | AA13: =Z13/(AB4-Z11) -> 0.125 | AB13: =IF(AA13=0,0,(AA13*((LOG(AA13))/LOG(2)))) -> -0.375 | AD13: =N13 -> 221 | AE13: =COUNTIF(L52:L74,AD13) -> 1 | AF13: =AE13/(AG4-AE11) -> 0.0625 | AG13: =IF(AF13=0,0,(AF13*((LOG(AF13))/LOG(2)))) -> -0.25 | AI13: =N13 -> 221 | AJ13: =COUNTIF(L75:L96,AI13) -> 0 | AK13: =AJ13/(AL4-AJ11) -> 0 | AL13: =IF(AK13=0,0,(AK13*((LOG(AK13))/LOG(2)))) -> 0 | AN13: =N13 -> 221 | AO13: =COUNTIF(L97:L119,AN13) -> 0 | AP13: =AO13/(AQ4-AO11) -> 0 | AQ13: =IF(AP13=0,0,(AP13*((LOG(AP13))/LOG(2)))) -> 0 | AS13: =N13 -> 221 | AT13: =COUNTIF(L120:L141,AS13) -> 0 | AU13: =AT13/(AV4-AT11) -> 0 | AV13: =IF(AU13=0,0,(AU13*((LOG(AU13))/LOG(2)))) -> 0
A14: 21 | B14: 1033 | C14: 22 | D14: 1038 | E14: 13 | F14: 1063 | K14: 0 | L14: 221 | N14: 222 | O14: =COUNTIF($L$7:$L$500,N14) -> 3 | P14: =O14/$Q$4 -> 0.02222222222 | Q14: =IF(P14=0,0,(P14*((LOG(P14))/LOG(2)))) -> -0.1220411799 | T14: =N14 -> 222 | U14: =COUNTIF(L7:L29,T14) -> 2 | V14: =U14/(W4-U11) -> 0.1 | W14: =IF(V14=0,0,(V14*((LOG(V14))/LOG(2)))) -> -0.3321928095 | Y14: =N14 -> 222 | Z14: =COUNTIF(L30:L51,Y14) -> 0 | AA14: =Z14/(AB4-Z11) -> 0 | AB14: =IF(AA14=0,0,(AA14*((LOG(AA14))/LOG(2)))) -> 0 | AD14: =N14 -> 222 | AE14: =COUNTIF(L52:L74,AD14) -> 0 | AF14: =AE14/(AG4-AE11) -> 0 | AG14: =IF(AF14=0,0,(AF14*((LOG(AF14))/LOG(2)))) -> 0 | AI14: =N14 -> 222 | AJ14: =COUNTIF(L75:L96,AI14) -> 0 | AK14: =AJ14/(AL4-AJ11) -> 0 | AL14: =IF(AK14=0,0,(AK14*((LOG(AK14))/LOG(2)))) -> 0 | AN14: =N14 -> 222 | AO14: =COUNTIF(L97:L119,AN14) -> 1 | AP14: =AO14/(AQ4-AO11) -> 0.05555555556 | AQ14: =IF(AP14=0,0,(AP14*((LOG(AP14))/LOG(2)))) -> -0.2316625001 | AS14: =N14 -> 222 | AT14: =COUNTIF(L120:L141,AS14) -> 0 | AU14: =AT14/(AV4-AT11) -> 0 | AV14: =IF(AU14=0,0,(AU14*((LOG(AU14))/LOG(2)))) -> 0
A15: 12 | B15: 1204 | C15: 24 | D15: 1222 | E15: 13 | F15: 1244 | K15: 0 | L15: 121 | P15: =SUM(P7:P14) -> 1 | Q15: =-SUM(Q7:Q14) -> 2.183534974 | V15: =SUM(V7:V14) -> 1 | W15: =-SUM(W7:W14) -> 2.526120747 | AA15: =SUM(AA7:AA14) -> 1 | AB15: =-SUM(AB7:AB14) -> 1.780639062 | AF15: =SUM(AF7:AF14) -> 1 | AG15: =-SUM(AG7:AG14) -> 1.496640762 | AK15: =SUM(AK7:AK14) -> 1 | AL15: =-SUM(AL7:AL14) -> 1.291691997 | AP15: =SUM(AP7:AP14) -> 1 | AQ15: =-SUM(AQ7:AQ14) -> 1.386274094 | AU15: =SUM(AU7:AU14) -> 1 | AV15: =-SUM(AV7:AV14) -> 0.3712323266
A16: 12 | B16: 1376 | C16: 24 | D16: 1389 | E16: 24 | F16: 1395 | K16: 0 | L16: 122 | P16: U= | Q16: =Q15/(LOG(Q4)/LOG(2)) -> 0.3085476715 | V16: U1= | W16: =W15/(LOG(W4)/LOG(2)) -> 0.5584361995 | AA16: U2= | AB16: =AB15/(LOG(AB4)/LOG(2)) -> 0.3992973129 | AF16: U3= | AG16: =AG15/(LOG(AG4)/LOG(2)) -> 0.3308544852 | AK16: U4= | AL16: =AL15/(LOG(AL4)/LOG(2)) -> 0.2896539531 | AP16: U5= | AQ16: =AQ15/(LOG(AQ4)/LOG(2)) -> 0.3064563075 | AU16: U6= | AV16: =AV15/(LOG(AV4)/LOG(2)) -> 0.0832465566
A17: 21 | B17: 1511 | C17: 22 | D17: 1520 | E17: 13 | F17: 1542 | K17: 0 | L17: 221
A18: 21 | B18: 1676 | C18: 11 | D18: 1703 | E18: 11 | F18: 1718 | K18: 0 | L18: 211
A19: 21 | B19: 1833 | C19: 11 | D19: 1853 | E19: 11 | F19: 1861 | K19: 0 | L19: 211 | N19: Total Target Seq
A20: 12 | B20: 1963 | C20: 13 | D20: 2007 | E20: 13 | F20: 2020 | K20: 0 | L20: 111 | N20: =COUNTIF(L7:L141,G3) -> 37 | P20: 23 | Q20: 22 | R20: 23 | S20: 22 | T20: 23 | U20: 22
A21: 12 | B21: 2134 | C21: 13 | D21: 2139 | E21: 13 | F21: 2151 | K21: 0 | L21: 111 | P21: % of reinforcement given in 6 equal intervals based on number of trials
A22: 21 | B22: 2268 | C22: 11 | D22: 2306 | E22: 11 | F22: 2326 | K22: 0 | L22: 211 | P22: %_1 | Q22: %_2 | R22: %_3 | S22: %_4 | T22: %_5 | U22: %_6
A23: 12 | B23: 2481 | C23: 13 | D23: 2500 | E23: 13 | F23: 2526 | K23: 0 | L23: 111 | O23: target sequence | P23: =$G$3 -> 211 | Q23: =$G$3 -> 211 | R23: =$G$3 -> 211 | S23: =$G$3 -> 211 | T23: =$G$3 -> 211 | U23: =$G$3 -> 211
A24: 12 | B24: 2627 | C24: 13 | D24: 2651 | E24: 13 | F24: 2667 | K24: 0 | L24: 111 | O24: total reinforcement | P24: =U11 -> 3 | Q24: =Z11 -> 6 | R24: =AE11 -> 7 | S24: =AJ11 -> 8 | T24: =AO11 -> 5 | U24: =AT11 -> 8
A25: 12 | B25: 2796 | C25: 13 | D25: 2804 | E25: 13 | F25: 2816 | K25: 0 | L25: 111 | O25: % target
A26: 12 | B26: 2918 | C26: 13 | D26: 2943 | E26: 24 | F26: 2957 | K26: 0 | L26: 112 | O26: CCRF
A27: 12 | B27: 3074 | C27: 24 | D27: 3081 | E27: 13 | F27: 3099 | K27: 0 | L27: 121 | O27: % CCRf
A28: 12 | B28: 3204 | C28: 13 | D28: 3229 | E28: 13 | F28: 3239 | K28: 0 | L28: 111 | O28: average response rate | P28: =F29/P20 -> 148.6521739 | Q28: =(F51-F29)/Q20 -> 158.4090909 | R28: =(F74-F51)/R20 -> 159.7826087 | S28: =(F96-F74)/S20 -> 147.5909091 | T28: =(F119-F96)/T20 -> 145.826087 | U28: =(F141-F119)/U20 -> 157.7272727
A29: 12 | B29: 3365 | C29: 13 | D29: 3380 | E29: 13 | F29: 3419 | K29: 0 | L29: 111
A30: 21 | B30: 3528 | C30: 22 | D30: 3534 | E30: 13 | F30: 3568 | K30: 0 | L30: 221
A31: 12 | B31: 3714 | C31: 13 | D31: 3731 | E31: 13 | F31: 3733 | K31: 0 | L31: 111
A32: 12 | B32: 3871 | C32: 24 | D32: 3882 | E32: 24 | F32: 3898 | K32: 0 | L32: 122
A33: 21 | B33: 4021 | C33: 11 | D33: 4054 | E33: 11 | F33: 4073 | K33: 0 | L33: 211
A34: 21 | B34: 4220 | C34: 11 | D34: 4250 | E34: 11 | F34: 4264 | K34: 0 | L34: 211
A35: 12 | B35: 4413 | C35: 13 | D35: 4439 | E35: 13 | F35: 4465 | K35: 0 | L35: 111
A36: 12 | B36: 4581 | C36: 13 | D36: 4594 | E36: 13 | F36: 4608 | K36: 0 | L36: 111
A37: 21 | B37: 4721 | C37: 11 | D37: 4746 | E37: 11 | F37: 4762 | K37: 0 | L37: 211
A38: 21 | B38: 4891 | C38: 11 | D38: 4912 | E38: 11 | F38: 4925 | K38: 0 | L38: 211
A39: 21 | B39: 5038 | C39: 11 | D39: 5070 | E39: 11 | F39: 5087 | K39: 0 | L39: 211
A40: 21 | B40: 5202 | C40: 11 | D40: 5221 | E40: 11 | F40: 5237 | K40: 0 | L40: 211
A41: 12 | B41: 5388 | C41: 13 | D41: 5401 | E41: 13 | F41: 5403 | K41: 0 | L41: 111
A42: 12 | B42: 5501 | C42: 13 | D42: 5522 | E42: 13 | F42: 5530 | K42: 0 | L42: 111
A43: 12 | B43: 5628 | C43: 24 | D43: 5639 | E43: 13 | F43: 5657 | K43: 0 | L43: 121
A44: 12 | B44: 5817 | C44: 13 | D44: 5836 | E44: 13 | F44: 5849 | K44: 0 | L44: 111
A45: 12 | B45: 5948 | C45: 13 | D45: 5974 | E45: 13 | F45: 6001 | K45: 0 | L45: 111
A46: 12 | B46: 6101 | C46: 24 | D46: 6111 | E46: 13 | F46: 6151 | K46: 0 | L46: 121
A47: 12 | B47: 6249 | C47: 24 | D47: 6259 | E47: 13 | F47: 6285 | K47: 0 | L47: 121
A48: 12 | B48: 6416 | C48: 24 | D48: 6429 | E48: 24 | F48: 6437 | K48: 0 | L48: 122
A49: 21 | B49: 6573 | C49: 22 | D49: 6580 | E49: 13 | F49: 6602 | K49: 0 | L49: 221
A50: 12 | B50: 6705 | C50: 24 | D50: 6713 | E50: 24 | F50: 6743 | K50: 0 | L50: 122
A51: 12 | B51: 6867 | C51: 13 | D51: 6886 | E51: 13 | F51: 6904 | K51: 0 | L51: 111
A52: 21 | B52: 7015 | C52: 11 | D52: 7048 | E52: 11 | F52: 7057 | K52: 0 | L52: 211
A53: 12 | B53: 7171 | C53: 13 | D53: 7190 | E53: 13 | F53: 7207 | K53: 0 | L53: 111
A54: 12 | B54: 7375 | C54: 13 | D54: 7402 | E54: 13 | F54: 7411 | K54: 0 | L54: 111
A55: 12 | B55: 7534 | C55: 24 | D55: 7547 | E55: 13 | F55: 7570 | K55: 0 | L55: 121
A56: 12 | B56: 7693 | C56: 13 | D56: 7721 | E56: 13 | F56: 7733 | K56: 0 | L56: 111
A57: 21 | B57: 7836 | C57: 11 | D57: 7849 | E57: 11 | F57: 7860 | K57: 0 | L57: 211
A58: 12 | B58: 7981 | C58: 13 | D58: 7992 | E58: 13 | F58: 8003 | K58: 0 | L58: 111
A59: 12 | B59: 8125 | C59: 13 | D59: 8136 | E59: 13 | F59: 8149 | K59: 0 | L59: 111
A60: 21 | B60: 8258 | C60: 11 | D60: 8285 | E60: 11 | F60: 8301 | K60: 0 | L60: 211
A61: 12 | B61: 8502 | C61: 13 | D61: 8515 | E61: 13 | F61: 8531 | K61: 0 | L61: 111
A62: 12 | B62: 8644 | C62: 13 | D62: 8652 | E62: 13 | F62: 8663 | K62: 0 | L62: 111
A63: 21 | B63: 8771 | C63: 11 | D63: 8792 | E63: 11 | F63: 8807 | K63: 0 | L63: 211
A64: 12 | B64: 8990 | C64: 13 | D64: 9002 | E64: 13 | F64: 9010 | K64: 0 | L64: 111
A65: 12 | B65: 9107 | C65: 13 | D65: 9156 | E65: 13 | F65: 9186 | K65: 0 | L65: 111
A66: 12 | B66: 9311 | C66: 13 | D66: 9328 | E66: 13 | F66: 9364 | K66: 0 | L66: 111
A67: 12 | B67: 9498 | C67: 13 | D67: 9507 | E67: 24 | F67: 9519 | K67: 0 | L67: 112
A68: 21 | B68: 9633 | C68: 22 | D68: 9638 | E68: 13 | F68: 9665 | K68: 0 | L68: 221
A69: 21 | B69: 9772 | C69: 11 | D69: 9792 | E69: 11 | F69: 9814 | K69: 0 | L69: 211
A70: 12 | B70: 9912 | C70: 24 | D70: 9958 | E70: 13 | F70: 9980 | K70: 0 | L70: 121
A71: 21 | B71: 10091 | C71: 11 | D71: 10105 | E71: 22 | F71: 10116 | K71: 0 | L71: 212
A72: 21 | B72: 10224 | C72: 11 | D72: 10251 | E72: 11 | F72: 10259 | K72: 0 | L72: 211
A73: 12 | B73: 10397 | C73: 13 | D73: 10421 | E73: 13 | F73: 10433 | K73: 0 | L73: 111
A74: 21 | B74: 10537 | C74: 11 | D74: 10568 | E74: 11 | F74: 10579 | K74: 0 | L74: 211
A75: 21 | B75: 10696 | C75: 11 | D75: 10709 | E75: 11 | F75: 10725 | K75: 0 | L75: 211
A76: 12 | B76: 10883 | C76: 13 | D76: 10895 | E76: 13 | F76: 10907 | K76: 0 | L76: 111
A77: 21 | B77: 11033 | C77: 11 | D77: 11051 | E77: 22 | F77: 11061 | K77: 0 | L77: 212
A78: 12 | B78: 11175 | C78: 13 | D78: 11183 | E78: 13 | F78: 11191 | K78: 0 | L78: 111
A79: 12 | B79: 11297 | C79: 24 | D79: 11307 | E79: 24 | F79: 11313 | K79: 0 | L79: 122
A80: 21 | B80: 11423 | C80: 11 | D80: 11433 | E80: 11 | F80: 11450 | K80: 0 | L80: 211
A81: 21 | B81: 11549 | C81: 11 | D81: 11578 | E81: 11 | F81: 11590 | K81: 0 | L81: 211
A82: 12 | B82: 11736 | C82: 13 | D82: 11765 | E82: 13 | F82: 11773 | K82: 0 | L82: 111
A83: 12 | B83: 11896 | C83: 13 | D83: 11917 | E83: 13 | F83: 11930 | K83: 0 | L83: 111
A84: 12 | B84: 12043 | C84: 13 | D84: 12059 | E84: 13 | F84: 12061 | K84: 0 | L84: 111
A85: 21 | B85: 12167 | C85: 11 | D85: 12184 | E85: 11 | F85: 12196 | K85: 0 | L85: 211
A86: 12 | B86: 12293 | C86: 24 | D86: 12305 | E86: 13 | F86: 12335 | K86: 0 | L86: 121
A87: 21 | B87: 12445 | C87: 11 | D87: 12458 | E87: 11 | F87: 12467 | K87: 0 | L87: 211
A88: 12 | B88: 12589 | C88: 24 | D88: 12600 | E88: 24 | F88: 12605 | K88: 0 | L88: 122
A89: 21 | B89: 12711 | C89: 11 | D89: 12721 | E89: 11 | F89: 12729 | K89: 0 | L89: 211
A90: 12 | B90: 12881 | C90: 13 | D90: 12890 | E90: 13 | F90: 12906 | K90: 0 | L90: 111
A91: 12 | B91: 13041 | C91: 13 | D91: 13048 | E91: 13 | F91: 13060 | K91: 0 | L91: 111
A92: 12 | B92: 13164 | C92: 13 | D92: 13186 | E92: 13 | F92: 13199 | K92: 0 | L92: 111
A93: 21 | B93: 13303 | C93: 11 | D93: 13321 | E93: 11 | F93: 13328 | K93: 0 | L93: 211
A94: 21 | B94: 13480 | C94: 11 | D94: 13515 | E94: 11 | F94: 13541 | K94: 0 | L94: 211
A95: 12 | B95: 13650 | C95: 13 | D95: 13667 | E95: 13 | F95: 13675 | K95: 0 | L95: 111
A96: 12 | B96: 13789 | C96: 13 | D96: 13819 | E96: 13 | F96: 13826 | K96: 0 | L96: 111
A97: 12 | B97: 13935 | C97: 13 | D97: 13937 | E97: 13 | F97: 13954 | K97: 0 | L97: 111
A98: 21 | B98: 14063 | C98: 11 | D98: 14083 | E98: 11 | F98: 14091 | K98: 0 | L98: 211
A99: 12 | B99: 14257 | C99: 24 | D99: 14269 | E99: 13 | F99: 14284 | K99: 0 | L99: 121
A100: 12 | B100: 14397 | C100: 13 | D100: 14411 | E100: 13 | F100: 14423 | K100: 0 | L100: 111
A101: 12 | B101: 14522 | C101: 13 | D101: 14545 | E101: 13 | F101: 14553 | K101: 0 | L101: 111
A102: 12 | B102: 14656 | C102: 13 | D102: 14694 | E102: 13 | F102: 14702 | K102: 0 | L102: 111
A103: 12 | B103: 14800 | C103: 13 | D103: 14802 | E103: 13 | F103: 14829 | K103: 0 | L103: 111
A104: 12 | B104: 14927 | C104: 13 | D104: 14949 | E104: 13 | F104: 14961 | K104: 0 | L104: 111
A105: 21 | B105: 15071 | C105: 11 | D105: 15095 | E105: 11 | F105: 15148 | K105: 0 | L105: 211
A106: 12 | B106: 15267 | C106: 13 | D106: 15276 | E106: 24 | F106: 15304 | K106: 0 | L106: 112
A107: 21 | B107: 15409 | C107: 11 | D107: 15420 | E107: 22 | F107: 15428 | K107: 0 | L107: 212
A108: 12 | B108: 15526 | C108: 13 | D108: 15531 | E108: 13 | F108: 15562 | K108: 0 | L108: 111
A109: 21 | B109: 15673 | C109: 11 | D109: 15693 | E109: 11 | F109: 15699 | K109: 0 | L109: 211
A110: 12 | B110: 15811 | C110: 13 | D110: 15821 | E110: 13 | F110: 15829 | K110: 0 | L110: 111
A111: 12 | B111: 15945 | C111: 13 | D111: 15970 | E111: 13 | F111: 15981 | K111: 0 | L111: 111
A112: 12 | B112: 16080 | C112: 13 | D112: 16112 | E112: 13 | F112: 16123 | K112: 0 | L112: 111
A113: 21 | B113: 16233 | C113: 11 | D113: 16259 | E113: 11 | F113: 16266 | K113: 0 | L113: 211
A114: 12 | B114: 16426 | C114: 13 | D114: 16451 | E114: 13 | F114: 16462 | K114: 0 | L114: 111
A115: 12 | B115: 16564 | C115: 13 | D115: 16578 | E115: 13 | F115: 16587 | K115: 0 | L115: 111
A116: 21 | B116: 16696 | C116: 11 | D116: 16726 | E116: 11 | F116: 16738 | K116: 0 | L116: 211
A117: 12 | B117: 16858 | C117: 24 | D117: 16883 | E117: 13 | F117: 16903 | K117: 0 | L117: 121
A118: 12 | B118: 17024 | C118: 13 | D118: 17037 | E118: 13 | F118: 17051 | K118: 0 | L118: 111
A119: 21 | B119: 17167 | C119: 22 | D119: 17173 | E119: 24 | F119: 17180 | K119: 0 | L119: 222
A120: 21 | B120: 17285 | C120: 11 | D120: 17320 | E120: 11 | F120: 17327 | K120: 0 | L120: 211
A121: 12 | B121: 17477 | C121: 13 | D121: 17497 | E121: 13 | F121: 17506 | K121: 0 | L121: 111
A122: 12 | B122: 17634 | C122: 13 | D122: 17648 | E122: 13 | F122: 17669 | K122: 0 | L122: 111
A123: 12 | B123: 17838 | C123: 13 | D123: 17848 | E123: 13 | F123: 17856 | K123: 0 | L123: 111
A124: 12 | B124: 18001 | C124: 13 | D124: 18008 | E124: 13 | F124: 18016 | K124: 0 | L124: 111
A125: 21 | B125: 18122 | C125: 11 | D125: 18135 | E125: 11 | F125: 18142 | K125: 0 | L125: 211
A126: 12 | B126: 18279 | C126: 13 | D126: 18286 | E126: 13 | F126: 18295 | K126: 0 | L126: 111
A127: 12 | B127: 18440 | C127: 13 | D127: 18451 | E127: 13 | F127: 18464 | K127: 0 | L127: 111
A128: 12 | B128: 18590 | C128: 13 | D128: 18598 | E128: 13 | F128: 18606 | K128: 0 | L128: 111
A129: 21 | B129: 18734 | C129: 11 | D129: 18745 | E129: 22 | F129: 18754 | K129: 0 | L129: 212
A130: 21 | B130: 18860 | C130: 11 | D130: 18881 | E130: 11 | F130: 18889 | K130: 0 | L130: 211
A131: 12 | B131: 19032 | C131: 13 | D131: 19043 | E131: 13 | F131: 19051 | K131: 0 | L131: 111
A132: 21 | B132: 19178 | C132: 11 | D132: 19197 | E132: 11 | F132: 19205 | K132: 0 | L132: 211
A133: 12 | B133: 19358 | C133: 13 | D133: 19363 | E133: 13 | F133: 19372 | K133: 0 | L133: 111
A134: 21 | B134: 19475 | C134: 11 | D134: 19491 | E134: 11 | F134: 19499 | K134: 0 | L134: 211
A135: 12 | B135: 19664 | C135: 13 | D135: 19693 | E135: 13 | F135: 19705 | K135: 0 | L135: 111
A136: 12 | B136: 19840 | C136: 13 | D136: 19855 | E136: 13 | F136: 19867 | K136: 0 | L136: 111
A137: 21 | B137: 20009 | C137: 11 | D137: 20037 | E137: 11 | F137: 20056 | K137: 0 | L137: 211
A138: 12 | B138: 20187 | C138: 13 | D138: 20207 | E138: 13 | F138: 20226 | K138: 0 | L138: 111
A139: 21 | B139: 20334 | C139: 11 | D139: 20367 | E139: 11 | F139: 20371 | K139: 0 | L139: 211
A140: 12 | B140: 20496 | C140: 13 | D140: 20505 | E140: 13 | F140: 20513 | K140: 0 | L140: 111
A141: 21 | B141: 20617 | C141: 11 | D141: 20642 | E141: 11 | F141: 20650 | K141: 1 | L141: 211

Sheet !2011-06-05_10h17m.Subject 53
A1: Report for:!2011-06-05_10h17m.Subject 53
A2: Date | B2: 2011-06-05 | F2: Group | G2: 0
A3: Hen | B3: 53 | F3: Correct Sequence | G3: =Start!J2 -> 211 | P3: Total Sequences in Data | Q3: =4994-COUNTBLANK(L7:L5000) -> 109 | V3: Total Sequences in Block Data | W3: =COUNTA(L7:L24) -> 18 | AA3: Total Sequences in Block Data | AB3: =COUNTA(L25:L42) -> 18 | AF3: Total Sequences in Block Data | AG3: =COUNTA(L43:L61) -> 19 | AK3: Total Sequences in Block Data | AL3: =COUNTA(L62:L79) -> 18 | AP3: Total Sequences in Block Data | AQ3: =COUNTA(L80:L97) -> 18 | AU3: Total Sequences in Block Data | AV3: =COUNTA(L98:L115) -> 18
A4: Program | B4: 0 | P4: Total Sequences in Summary | Q4: =SUM(O7:O14) -> 109 | V4: Total Sequences in Block Summary | W4: =SUM(U7:U14) -> 18 | AA4: Total Sequences in Block Summary | AB4: =SUM(Z7:Z14) -> 18 | AF4: Total Sequences in Block Summary | AG4: =SUM(AE7:AE14) -> 19 | AK4: Total Sequences in Block Summary | AL4: =SUM(AJ7:AJ14) -> 18 | AP4: Total Sequences in Block Summary | AQ4: =SUM(AO7:AO14) -> 18 | AU4: Total Sequences in Block Summary | AV4: =SUM(AT7:AT14) -> 18
T5: Block 1 | Y5: Block 2 | AD5: Block 3 | AI5: Block 4 | AN5: Block 5 | AS5: Block 6
A6: Sequence Component 1 | B6: Time 1 | C6: Sequence Component 2 | D6: Time 2 | E6: Sequence Component 3 | F6: Time 3 | G6: Sequence Component 4 | H6: Time 4 | I6: Sequence Component 5 | J6: Time 5 | K6: Correct? 0=No 1=Yes | L6: Sequence | N6: Frequency | P6: Relative Frequency | Q6: Variability | T6: Frequency | V6: Relative Frequency | W6: Variability | Y6: Frequency | AA6: Relative Frequency | AB6: Variability | AD6: Frequency | AF6: Relative Frequency | AG6: Variability | AI6: Frequency | AK6: Relative Frequency | AL6: Variability | AN6: Frequency | AP6: Relative Frequency | AQ6: Variability | AS6: Frequency | AU6: Relative Frequency | AV6: Variability
A7: 21 | B7: 21 | C7: 11 | D7: 56 | E7: 11 | F7: 57 | K7: 0 | L7: 211 | N7: 111 | O7: =COUNTIF($L$7:$L$500,N7) -> 34 | P7: =O7/$Q$4 -> 0.3119266055 | Q7: =IF(P7=0,0,(P7*((LOG(P7))/LOG(2)))) -> -0.5242617472 | T7: =N7 -> 111 | U7: =COUNTIF(L7:L24,T7) -> 6 | V7: =U7/(W4-U11) -> 0.6666666667 | W7: =IF(V7=0,0,(V7*((LOG(V7))/LOG(2)))) -> -0.3899750005 | Y7: =N7 -> 111 | Z7: =COUNTIF(L25:L42,Y7) -> 10 | AA7: =Z7/(AB4-Z11) -> 0.7692307692 | AB7: =IF(AA7=0,0,(AA7*((LOG(AA7))/LOG(2)))) -> -0.2911627871 | AD7: =N7 -> 111 | AE7: =COUNTIF(L43:L61,AD7) -> 7 | AF7: =AE7/(AG4-AE11) -> 0.5384615385 | AG7: =IF(AF7=0,0,(AF7*((LOG(AF7))/LOG(2)))) -> -0.4808918133 | AI7: =N7 -> 111 | AJ7: =COUNTIF(L62:L79,AI7) -> 6 | AK7: =AJ7/(AL4-AJ11) -> 0.4615384615 | AL7: =IF(AK7=0,0,(AK7*((LOG(AK7))/LOG(2)))) -> -0.5148356388 | AN7: =N7 -> 111 | AO7: =COUNTIF(L80:L97,AN7) -> 4 | AP7: =AO7/(AQ4-AO11) -> 0.2666666667 | AQ7: =IF(AP7=0,0,(AP7*((LOG(AP7))/LOG(2)))) -> -0.5085041588 | AS7: =N7 -> 111 | AT7: =COUNTIF(L98:L115,AS7) -> 1 | AU7: =AT7/(AV4-AT11) -> 0.09090909091 | AV7: =IF(AU7=0,0,(AU7*((LOG(AU7))/LOG(2)))) -> -0.3144937835
A8: 12 | B8: 179 | C8: 24 | D8: 189 | E8: 13 | F8: 204 | K8: 0 | L8: 121 | N8: 112 | O8: =COUNTIF($L$7:$L$500,N8) -> 6 | P8: =O8/$Q$4 -> 0.05504587156 | Q8: =IF(P8=0,0,(P8*((LOG(P8))/LOG(2)))) -> -0.2302690912 | T8: =N8 -> 112 | U8: =COUNTIF(L7:L24,T8) -> 0 | V8: =U8/(W4-U11) -> 0 | W8: =IF(V8=0,0,(V8*((LOG(V8))/LOG(2)))) -> 0 | Y8: =N8 -> 112 | Z8: =COUNTIF(L25:L42,Y8) -> 1 | AA8: =Z8/(AB4-Z11) -> 0.07692307692 | AB8: =IF(AA8=0,0,(AA8*((LOG(AA8))/LOG(2)))) -> -0.2846492091 | AD8: =N8 -> 112 | AE8: =COUNTIF(L43:L61,AD8) -> 1 | AF8: =AE8/(AG4-AE11) -> 0.07692307692 | AG8: =IF(AF8=0,0,(AF8*((LOG(AF8))/LOG(2)))) -> -0.2846492091 | AI8: =N8 -> 112 | AJ8: =COUNTIF(L62:L79,AI8) -> 1 | AK8: =AJ8/(AL4-AJ11) -> 0.07692307692 | AL8: =IF(AK8=0,0,(AK8*((LOG(AK8))/LOG(2)))) -> -0.2846492091 | AN8: =N8 -> 112 | AO8: =COUNTIF(L80:L97,AN8) -> 2 | AP8: =AO8/(AQ4-AO11) -> 0.1333333333 | AQ8: =IF(AP8=0,0,(AP8*((LOG(AP8))/LOG(2)))) -> -0.3875854127 | AS8: =N8 -> 112 | AT8: =COUNTIF(L98:L115,AS8) -> 1 | AU8: =AT8/(AV4-AT11) -> 0.09090909091 | AV8: =IF(AU8=0,0,(AU8*((LOG(AU8))/LOG(2)))) -> -0.3144937835
A9: 21 | B9: 322 | C9: 11 | D9: 374 | E9: 11 | F9: 390 | K9: 0 | L9: 211 | N9: 121 | O9: =COUNTIF($L$7:$L$500,N9) -> 15 | P9: =O9/$Q$4 -> 0.1376146789 | Q9: =IF(P9=0,0,(P9*((LOG(P9))/LOG(2)))) -> -0.3937560178 | T9: =N9 -> 121 | U9: =COUNTIF(L7:L24,T9) -> 1 | V9: =U9/(W4-U11) -> 0.1111111111 | W9: =IF(V9=0,0,(V9*((LOG(V9))/LOG(2)))) -> -0.352213889 | Y9: =N9 -> 121 | Z9: =COUNTIF(L25:L42,Y9) -> 1 | AA9: =Z9/(AB4-Z11) -> 0.07692307692 | AB9: =IF(AA9=0,0,(AA9*((LOG(AA9))/LOG(2)))) -> -0.2846492091 | AD9: =N9 -> 121 | AE9: =COUNTIF(L43:L61,AD9) -> 3 | AF9: =AE9/(AG4-AE11) -> 0.2307692308 | AG9: =IF(AF9=0,0,(AF9*((LOG(AF9))/LOG(2)))) -> -0.4881870502 | AI9: =N9 -> 121 | AJ9: =COUNTIF(L62:L79,AI9) -> 1 | AK9: =AJ9/(AL4-AJ11) -> 0.07692307692 | AL9: =IF(AK9=0,0,(AK9*((LOG(AK9))/LOG(2)))) -> -0.2846492091 | AN9: =N9 -> 121 | AO9: =COUNTIF(L80:L97,AN9) -> 6 | AP9: =AO9/(AQ4-AO11) -> 0.4 | AQ9: =IF(AP9=0,0,(AP9*((LOG(AP9))/LOG(2)))) -> -0.528771238 | AS9: =N9 -> 121 | AT9: =COUNTIF(L98:L115,AS9) -> 3 | AU9: =AT9/(AV4-AT11) -> 0.2727272727 | AV9: =IF(AU9=0,0,(AU9*((LOG(AU9))/LOG(2)))) -> -0.5112188503
A10: 21 | B10: 503 | C10: 11 | D10: 517 | E10: 22 | F10: 529 | K10: 0 | L10: 212 | N10: 122 | O10: =COUNTIF($L$7:$L$500,N10) -> 2 | P10: =O10/$Q$4 -> 0.01834862385 | Q10: =IF(P10=0,0,(P10*((LOG(P10))/LOG(2)))) -> -0.1058382445 | T10: =N10 -> 122 | U10: =COUNTIF(L7:L24,T10) -> 0 | V10: =U10/(W4-U11) -> 0 | W10: =IF(V10=0,0,(V10*((LOG(V10))/LOG(2)))) -> 0 | Y10: =N10 -> 122 | Z10: =COUNTIF(L25:L42,Y10) -> 1 | AA10: =Z10/(AB4-Z11) -> 0.07692307692 | AB10: =IF(AA10=0,0,(AA10*((LOG(AA10))/LOG(2)))) -> -0.2846492091 | AD10: =N10 -> 122 | AE10: =COUNTIF(L43:L61,AD10) -> 0 | AF10: =AE10/(AG4-AE11) -> 0 | AG10: =IF(AF10=0,0,(AF10*((LOG(AF10))/LOG(2)))) -> 0 | AI10: =N10 -> 122 | AJ10: =COUNTIF(L62:L79,AI10) -> 1 | AK10: =AJ10/(AL4-AJ11) -> 0.07692307692 | AL10: =IF(AK10=0,0,(AK10*((LOG(AK10))/LOG(2)))) -> -0.2846492091 | AN10: =N10 -> 122 | AO10: =COUNTIF(L80:L97,AN10) -> 0 | AP10: =AO10/(AQ4-AO11) -> 0 | AQ10: =IF(AP10=0,0,(AP10*((LOG(AP10))/LOG(2)))) -> 0 | AS10: =N10 -> 122 | AT10: =COUNTIF(L98:L115,AS10) -> 0 | AU10: =AT10/(AV4-AT11) -> 0 | AV10: =IF(AU10=0,0,(AU10*((LOG(AU10))/LOG(2)))) -> 0
A11: 12 | B11: 646 | C11: 13 | D11: 674 | E11: 13 | F11: 683 | K11: 0 | L11: 111 | N11: 211 | O11: =COUNTIF($L$7:$L$500,N11) -> 35 | P11: =O11/$Q$4 -> 0.3211009174 | Q11: =IF(P11=0,0,(P11*((LOG(P11))/LOG(2)))) -> -0.5262527135 | T11: =N11 -> 211 | U11: =COUNTIF(L7:L24,T11) -> 9 | Y11: =N11 -> 211 | Z11: =COUNTIF(L25:L42,Y11) -> 5 | AD11: =N11 -> 211 | AE11: =COUNTIF(L43:L61,AD11) -> 6 | AI11: =N11 -> 211 | AJ11: =COUNTIF(L62:L79,AI11) -> 5 | AN11: =N11 -> 211 | AO11: =COUNTIF(L80:L97,AN11) -> 3 | AS11: =N11 -> 211 | AT11: =COUNTIF(L98:L115,AS11) -> 7
A12: 21 | B12: 792 | C12: 22 | D12: 802 | E12: 13 | F12: 816 | K12: 0 | L12: 221 | N12: 212 | O12: =COUNTIF($L$7:$L$500,N12) -> 5 | P12: =O12/$Q$4 -> 0.04587155963 | Q12: =IF(P12=0,0,(P12*((LOG(P12))/LOG(2)))) -> -0.2039567078 | T12: =N12 -> 212 | U12: =COUNTIF(L7:L24,T12) -> 1 | V12: =U12/(W4-U11) -> 0.1111111111 | W12: =IF(V12=0,0,(V12*((LOG(V12))/LOG(2)))) -> -0.352213889 | Y12: =N12 -> 212 | Z12: =COUNTIF(L25:L42,Y12) -> 0 | AA12: =Z12/(AB4-Z11) -> 0 | AB12: =IF(AA12=0,0,(AA12*((LOG(AA12))/LOG(2)))) -> 0 | AD12: =N12 -> 212 | AE12: =COUNTIF(L43:L61,AD12) -> 0 | AF12: =AE12/(AG4-AE11) -> 0 | AG12: =IF(AF12=0,0,(AF12*((LOG(AF12))/LOG(2)))) -> 0 | AI12: =N12 -> 212 | AJ12: =COUNTIF(L62:L79,AI12) -> 1 | AK12: =AJ12/(AL4-AJ11) -> 0.07692307692 | AL12: =IF(AK12=0,0,(AK12*((LOG(AK12))/LOG(2)))) -> -0.2846492091 | AN12: =N12 -> 212 | AO12: =COUNTIF(L80:L97,AN12) -> 2 | AP12: =AO12/(AQ4-AO11) -> 0.1333333333 | AQ12: =IF(AP12=0,0,(AP12*((LOG(AP12))/LOG(2)))) -> -0.3875854127 | AS12: =N12 -> 212 | AT12: =COUNTIF(L98:L115,AS12) -> 1 | AU12: =AT12/(AV4-AT11) -> 0.09090909091 | AV12: =IF(AU12=0,0,(AU12*((LOG(AU12))/LOG(2)))) -> -0.3144937835
A13: 12 | B13: 920 | C13: 13 | D13: 929 | E13: 13 | F13: 937 | K13: 0 | L13: 111 | N13: 221 | O13: =COUNTIF($L$7:$L$500,N13) -> 8 | P13: =O13/$Q$4 -> 0.07339449541 | Q13: =IF(P13=0,0,(P13*((LOG(P13))/LOG(2)))) -> -0.2765639871 | T13: =N13 -> 221 | U13: =COUNTIF(L7:L24,T13) -> 1 | V13: =U13/(W4-U11) -> 0.1111111111 | W13: =IF(V13=0,0,(V13*((LOG(V13))/LOG(2)))) -> -0.352213889 | Y13: =N13 -> 221 | Z13: =COUNTIF(L25:L42,Y13) -> 0 | AA13: =Z13/(AB4-Z11) -> 0 | AB13: =IF(AA13=0,0,(AA13*((LOG(AA13))/LOG(2)))) -> 0 | AD13: =N13 -> 221 | AE13: =COUNTIF(L43:L61,AD13) -> 1 | AF13: =AE13/(AG4-AE11) -> 0.07692307692 | AG13: =IF(AF13=0,0,(AF13*((LOG(AF13))/LOG(2)))) -> -0.2846492091 | AI13: =N13 -> 221 | AJ13: =COUNTIF(L62:L79,AI13) -> 1 | AK13: =AJ13/(AL4-AJ11) -> 0.07692307692 | AL13: =IF(AK13=0,0,(AK13*((LOG(AK13))/LOG(2)))) -> -0.2846492091 | AN13: =N13 -> 221 | AO13: =COUNTIF(L80:L97,AN13) -> 1 | AP13: =AO13/(AQ4-AO11) -> 0.06666666667 | AQ13: =IF(AP13=0,0,(AP13*((LOG(AP13))/LOG(2)))) -> -0.260459373 | AS13: =N13 -> 221 | AT13: =COUNTIF(L98:L115,AS13) -> 4 | AU13: =AT13/(AV4-AT11) -> 0.3636363636 | AV13: =IF(AU13=0,0,(AU13*((LOG(AU13))/LOG(2)))) -> -0.5307024068
A14: 21 | B14: 1046 | C14: 11 | D14: 1057 | E14: 11 | F14: 1065 | K14: 0 | L14: 211 | N14: 222 | O14: =COUNTIF($L$7:$L$500,N14) -> 4 | P14: =O14/$Q$4 -> 0.03669724771 | Q14: =IF(P14=0,0,(P14*((LOG(P14))/LOG(2)))) -> -0.1749792413 | T14: =N14 -> 222 | U14: =COUNTIF(L7:L24,T14) -> 0 | V14: =U14/(W4-U11) -> 0 | W14: =IF(V14=0,0,(V14*((LOG(V14))/LOG(2)))) -> 0 | Y14: =N14 -> 222 | Z14: =COUNTIF(L25:L42,Y14) -> 0 | AA14: =Z14/(AB4-Z11) -> 0 | AB14: =IF(AA14=0,0,(AA14*((LOG(AA14))/LOG(2)))) -> 0 | AD14: =N14 -> 222 | AE14: =COUNTIF(L43:L61,AD14) -> 1 | AF14: =AE14/(AG4-AE11) -> 0.07692307692 | AG14: =IF(AF14=0,0,(AF14*((LOG(AF14))/LOG(2)))) -> -0.2846492091 | AI14: =N14 -> 222 | AJ14: =COUNTIF(L62:L79,AI14) -> 2 | AK14: =AJ14/(AL4-AJ11) -> 0.1538461538 | AL14: =IF(AK14=0,0,(AK14*((LOG(AK14))/LOG(2)))) -> -0.4154522643 | AN14: =N14 -> 222 | AO14: =COUNTIF(L80:L97,AN14) -> 0 | AP14: =AO14/(AQ4-AO11) -> 0 | AQ14: =IF(AP14=0,0,(AP14*((LOG(AP14))/LOG(2)))) -> 0 | AS14: =N14 -> 222 | AT14: =COUNTIF(L98:L115,AS14) -> 1 | AU14: =AT14/(AV4-AT11) -> 0.09090909091 | AV14: =IF(AU14=0,0,(AU14*((LOG(AU14))/LOG(2)))) -> -0.3144937835
A15: 21 | B15: 1176 | C15: 11 | D15: 1194 | E15: 11 | F15: 1201 | K15: 0 | L15: 211 | P15: =SUM(P7:P14) -> 1 | Q15: =-SUM(Q7:Q14) -> 2.43587775 | V15: =SUM(V7:V14) -> 1 | W15: =-SUM(W7:W14) -> 1.446616668 | AA15: =SUM(AA7:AA14) -> 1 | AB15: =-SUM(AB7:AB14) -> 1.145110414 | AF15: =SUM(AF7:AF14) -> 1 | AG15: =-SUM(AG7:AG14) -> 1.823026491 | AK15: =SUM(AK7:AK14) -> 1 | AL15: =-SUM(AL7:AL14) -> 2.353533949 | AP15: =SUM(AP7:AP14) -> 1 | AQ15: =-SUM(AQ7:AQ14) -> 2.072905595 | AU15: =SUM(AU7:AU14) -> 1 | AV15: =-SUM(AV7:AV14) -> 2.299896391
A16: 21 | B16: 1303 | C16: 11 | D16: 1314 | E16: 11 | F16: 1323 | K16: 0 | L16: 211 | P16: U= | Q16: =Q15/(LOG(Q4)/LOG(2)) -> 0.3599012133 | V16: U1= | W16: =W15/(LOG(W4)/LOG(2)) -> 0.3469167112 | AA16: U2= | AB16: =AB15/(LOG(AB4)/LOG(2)) -> 0.274611753 | AF16: U3= | AG16: =AG15/(LOG(AG4)/LOG(2)) -> 0.4291566852 | AK16: U4= | AL16: =AL15/(LOG(AL4)/LOG(2)) -> 0.5644067814 | AP16: U5= | AQ16: =AQ15/(LOG(AQ4)/LOG(2)) -> 0.4971086038 | AU16: U6= | AV16: =AV15/(LOG(AV4)/LOG(2)) -> 0.5515438264
A17: 12 | B17: 1428 | C17: 13 | D17: 1447 | E17: 13 | F17: 1458 | K17: 0 | L17: 111
A18: 21 | B18: 1573 | C18: 11 | D18: 1590 | E18: 11 | F18: 1598 | K18: 0 | L18: 211
A19: 21 | B19: 1702 | C19: 11 | D19: 1715 | E19: 11 | F19: 1720 | K19: 0 | L19: 211 | N19: Total Target Seq
A20: 21 | B20: 1832 | C20: 11 | D20: 1851 | E20: 11 | F20: 1859 | K20: 0 | L20: 211 | N20: =COUNTIF(L7:L115,G3) -> 35 | P20: 18 | Q20: 18 | R20: 19 | S20: 18 | T20: 18 | U20: 18
A21: 12 | B21: 1957 | C21: 13 | D21: 1980 | E21: 13 | F21: 1988 | K21: 0 | L21: 111 | P21: % of reinforcement given in 6 equal intervals based on number of trials
A22: 21 | B22: 2088 | C22: 11 | D22: 2101 | E22: 11 | F22: 2109 | K22: 0 | L22: 211 | P22: %_1 | Q22: %_2 | R22: %_3 | S22: %_4 | T22: %_5 | U22: %_6
A23: 12 | B23: 2213 | C23: 13 | D23: 2235 | E23: 13 | F23: 2243 | K23: 0 | L23: 111 | O23: target sequence | P23: =$G$3 -> 211 | Q23: =$G$3 -> 211 | R23: =$G$3 -> 211 | S23: =$G$3 -> 211 | T23: =$G$3 -> 211 | U23: =$G$3 -> 211
A24: 12 | B24: 2361 | C24: 13 | D24: 2369 | E24: 13 | F24: 2378 | K24: 0 | L24: 111 | O24: total reinforcement | P24: =U11 -> 9 | Q24: =Z11 -> 5 | R24: =AE11 -> 6 | S24: =AJ11 -> 5 | T24: =AO11 -> 3 | U24: =AT11 -> 7
A25: 12 | B25: 2496 | C25: 13 | D25: 2507 | E25: 13 | F25: 2519 | K25: 0 | L25: 111 | O25: % target
A26: 12 | B26: 2626 | C26: 13 | D26: 2660 | E26: 13 | F26: 2669 | K26: 0 | L26: 111 | O26: CCRF
A27: 21 | B27: 2784 | C27: 11 | D27: 2799 | E27: 11 | F27: 2807 | K27: 0 | L27: 211 | O27: % CCRf
A28: 12 | B28: 2907 | C28: 13 | D28: 2915 | E28: 13 | F28: 2928 | K28: 0 | L28: 111 | O28: average response rate | P28: =F24/P20 -> 132.1111111 | Q28: =(F42-F24)/Q20 -> 137.3888889 | R28: =(F61-F42)/R20 -> 137.6315789 | S28: =(F79-F61)/S20 -> 148.1111111 | T28: =(F97-F79)/T20 -> 140.3888889 | U28: =(F115-F97)/U20 -> 136.7777778
A29: 12 | B29: 3033 | C29: 13 | D29: 3053 | E29: 13 | F29: 3065 | K29: 0 | L29: 111
A30: 12 | B30: 3173 | C30: 13 | D30: 3180 | E30: 13 | F30: 3189 | K30: 0 | L30: 111
A31: 12 | B31: 3324 | C31: 13 | D31: 3331 | E31: 13 | F31: 3339 | K31: 0 | L31: 111
A32: 21 | B32: 3461 | C32: 11 | D32: 3494 | E32: 11 | F32: 3502 | K32: 0 | L32: 211
A33: 12 | B33: 3616 | C33: 13 | D33: 3624 | E33: 13 | F33: 3629 | K33: 0 | L33: 111
A34: 12 | B34: 3730 | C34: 13 | D34: 3737 | E34: 13 | F34: 3742 | K34: 0 | L34: 111
A35: 12 | B35: 3842 | C35: 24 | D35: 3856 | E35: 24 | F35: 3865 | K35: 0 | L35: 122
A36: 12 | B36: 3972 | C36: 13 | D36: 3978 | E36: 13 | F36: 3984 | K36: 0 | L36: 111
A37: 12 | B37: 4088 | C37: 13 | D37: 4105 | E37: 24 | F37: 4117 | K37: 0 | L37: 112
A38: 12 | B38: 4217 | C38: 24 | D38: 4227 | E38: 13 | F38: 4243 | K38: 0 | L38: 121
A39: 21 | B39: 4353 | C39: 11 | D39: 4367 | E39: 11 | F39: 4375 | K39: 0 | L39: 211
A40: 21 | B40: 4502 | C40: 11 | D40: 4520 | E40: 11 | F40: 4528 | K40: 0 | L40: 211
A41: 21 | B41: 4658 | C41: 11 | D41: 4674 | E41: 11 | F41: 4690 | K41: 0 | L41: 211
A42: 12 | B42: 4835 | C42: 13 | D42: 4840 | E42: 13 | F42: 4851 | K42: 0 | L42: 111
A43: 12 | B43: 4956 | C43: 13 | D43: 4978 | E43: 13 | F43: 4990 | K43: 0 | L43: 111
A44: 12 | B44: 5090 | C44: 24 | D44: 5100 | E44: 13 | F44: 5111 | K44: 0 | L44: 121
A45: 12 | B45: 5221 | C45: 13 | D45: 5228 | E45: 13 | F45: 5234 | K45: 0 | L45: 111
A46: 21 | B46: 5341 | C46: 11 | D46: 5354 | E46: 11 | F46: 5361 | K46: 0 | L46: 211
A47: 12 | B47: 5461 | C47: 13 | D47: 5466 | E47: 13 | F47: 5475 | K47: 0 | L47: 111
A48: 21 | B48: 5603 | C48: 11 | D48: 5619 | E48: 11 | F48: 5626 | K48: 0 | L48: 211
A49: 12 | B49: 5732 | C49: 24 | D49: 5739 | E49: 13 | F49: 5756 | K49: 0 | L49: 121
A50: 12 | B50: 5873 | C50: 13 | D50: 5901 | E50: 13 | F50: 5908 | K50: 0 | L50: 111
A51: 12 | B51: 6059 | C51: 13 | D51: 6066 | E51: 13 | F51: 6075 | K51: 0 | L51: 111
A52: 21 | B52: 6179 | C52: 22 | D52: 6204 | E52: 24 | F52: 6213 | K52: 0 | L52: 222
A53: 21 | B53: 6323 | C53: 11 | D53: 6340 | E53: 11 | F53: 6347 | K53: 0 | L53: 211
A54: 21 | B54: 6460 | C54: 11 | D54: 6473 | E54: 11 | F54: 6478 | K54: 0 | L54: 211
A55: 12 | B55: 6601 | C55: 24 | D55: 6613 | E55: 13 | F55: 6628 | K55: 0 | L55: 121
A56: 21 | B56: 6745 | C56: 11 | D56: 6756 | E56: 11 | F56: 6761 | K56: 0 | L56: 211
A57: 12 | B57: 6862 | C57: 13 | D57: 6896 | E57: 13 | F57: 6903 | K57: 0 | L57: 111
A58: 12 | B58: 7022 | C58: 13 | D58: 7034 | E58: 13 | F58: 7041 | K58: 0 | L58: 111
A59: 12 | B59: 7163 | C59: 13 | D59: 7171 | E59: 24 | F59: 7183 | K59: 0 | L59: 112
A60: 21 | B60: 7301 | C60: 22 | D60: 7306 | E60: 13 | F60: 7328 | K60: 0 | L60: 221
A61: 21 | B61: 7436 | C61: 11 | D61: 7458 | E61: 11 | F61: 7466 | K61: 0 | L61: 211
A62: 21 | B62: 7567 | C62: 22 | D62: 7602 | E62: 24 | F62: 7615 | K62: 0 | L62: 222
A63: 21 | B63: 7728 | C63: 11 | D63: 7745 | E63: 22 | F63: 7759 | K63: 0 | L63: 212
A64: 12 | B64: 7893 | C64: 13 | D64: 7909 | E64: 24 | F64: 7922 | K64: 0 | L64: 112
A65: 12 | B65: 8047 | C65: 13 | D65: 8064 | E65: 13 | F65: 8071 | K65: 0 | L65: 111
A66: 21 | B66: 8171 | C66: 22 | D66: 8177 | E66: 13 | F66: 8187 | K66: 0 | L66: 221
A67: 12 | B67: 8302 | C67: 24 | D67: 8311 | E67: 24 | F67: 8332 | K67: 0 | L67: 122
A68: 21 | B68: 8446 | C68: 22 | D68: 8463 | E68: 24 | F68: 8478 | K68: 0 | L68: 222
A69: 12 | B69: 8615 | C69: 13 | D69: 8663 | E69: 13 | F69: 8680 | K69: 0 | L69: 111
A70: 12 | B70: 8788 | C70: 13 | D70: 8799 | E70: 13 | F70: 8810 | K70: 0 | L70: 111
A71: 21 | B71: 8952 | C71: 11 | D71: 8973 | E71: 11 | F71: 8981 | K71: 0 | L71: 211
A72: 12 | B72: 9106 | C72: 13 | D72: 9118 | E72: 13 | F72: 9125 | K72: 0 | L72: 111
A73: 21 | B73: 9239 | C73: 11 | D73: 9252 | E73: 11 | F73: 9254 | K73: 0 | L73: 211
A74: 21 | B74: 9359 | C74: 11 | D74: 9377 | E74: 11 | F74: 9384 | K74: 0 | L74: 211
A75: 12 | B75: 9522 | C75: 13 | D75: 9533 | E75: 13 | F75: 9542 | K75: 0 | L75: 111
A76: 21 | B76: 9665 | C76: 11 | D76: 9681 | E76: 11 | F76: 9691 | K76: 0 | L76: 211
A77: 12 | B77: 9835 | C77: 13 | D77: 9843 | E77: 13 | F77: 9853 | K77: 0 | L77: 111
A78: 21 | B78: 9965 | C78: 11 | D78: 9975 | E78: 11 | F78: 9996 | K78: 0 | L78: 211
A79: 12 | B79: 10096 | C79: 24 | D79: 10105 | E79: 13 | F79: 10132 | K79: 0 | L79: 121
A80: 21 | B80: 10255 | C80: 22 | D80: 10265 | E80: 13 | F80: 10283 | K80: 0 | L80: 221
A81: 12 | B81: 10396 | C81: 13 | D81: 10414 | E81: 13 | F81: 10426 | K81: 0 | L81: 111
A82: 12 | B82: 10560 | C82: 13 | D82: 10572 | E82: 13 | F82: 10580 | K82: 0 | L82: 111
A83: 12 | B83: 10710 | C83: 13 | D83: 10725 | E83: 13 | F83: 10733 | K83: 0 | L83: 111
A84: 12 | B84: 10832 | C84: 24 | D84: 10851 | E84: 13 | F84: 10863 | K84: 0 | L84: 121
A85: 12 | B85: 10975 | C85: 13 | D85: 10982 | E85: 13 | F85: 10989 | K85: 0 | L85: 111
A86: 21 | B86: 11095 | C86: 11 | D86: 11109 | E86: 22 | F86: 11117 | K86: 0 | L86: 212
A87: 12 | B87: 11222 | C87: 24 | D87: 11230 | E87: 13 | F87: 11247 | K87: 0 | L87: 121
A88: 12 | B88: 11377 | C88: 24 | D88: 11389 | E88: 13 | F88: 11413 | K88: 0 | L88: 121
A89: 12 | B89: 11516 | C89: 24 | D89: 11524 | E89: 13 | F89: 11541 | K89: 0 | L89: 121
A90: 12 | B90: 11652 | C90: 24 | D90: 11661 | E90: 13 | F90: 11679 | K90: 0 | L90: 121
A91: 21 | B91: 11796 | C91: 11 | D91: 11814 | E91: 11 | F91: 11819 | K91: 0 | L91: 211
A92: 21 | B92: 11924 | C92: 11 | D92: 11938 | E92: 22 | F92: 11949 | K92: 0 | L92: 212
A93: 21 | B93: 12066 | C93: 11 | D93: 12078 | E93: 11 | F93: 12083 | K93: 0 | L93: 211
A94: 12 | B94: 12183 | C94: 13 | D94: 12213 | E94: 24 | F94: 12224 | K94: 0 | L94: 112
A95: 12 | B95: 12341 | C95: 24 | D95: 12350 | E95: 13 | F95: 12364 | K95: 0 | L95: 121
A96: 21 | B96: 12469 | C96: 11 | D96: 12491 | E96: 11 | F96: 12505 | K96: 0 | L96: 211
A97: 12 | B97: 12641 | C97: 13 | D97: 12649 | E97: 24 | F97: 12659 | K97: 0 | L97: 112
A98: 12 | B98: 12759 | C98: 24 | D98: 12777 | E98: 13 | F98: 12793 | K98: 0 | L98: 121
A99: 21 | B99: 12898 | C99: 22 | D99: 12913 | E99: 13 | F99: 12933 | K99: 0 | L99: 221
A100: 21 | B100: 13044 | C100: 11 | D100: 13064 | E100: 11 | F100: 13072 | K100: 0 | L100: 211
A101: 21 | B101: 13180 | C101: 22 | D101: 13185 | E101: 13 | F101: 13199 | K101: 0 | L101: 221
A102: 12 | B102: 13299 | C102: 24 | D102: 13308 | E102: 13 | F102: 13326 | K102: 0 | L102: 121
A103: 21 | B103: 13432 | C103: 22 | D103: 13440 | E103: 13 | F103: 13460 | K103: 0 | L103: 221
A104: 21 | B104: 13567 | C104: 11 | D104: 13583 | E104: 11 | F104: 13590 | K104: 0 | L104: 211
A105: 21 | B105: 13698 | C105: 11 | D105: 13713 | E105: 11 | F105: 13733 | K105: 0 | L105: 211
A106: 21 | B106: 13839 | C106: 11 | D106: 13851 | E106: 11 | F106: 13858 | K106: 0 | L106: 211
A107: 12 | B107: 13954 | C107: 13 | D107: 13966 | E107: 24 | F107: 13975 | K107: 0 | L107: 112
A108: 12 | B108: 14094 | C108: 13 | D108: 14096 | E108: 13 | F108: 14104 | K108: 0 | L108: 111
A109: 12 | B109: 14205 | C109: 24 | D109: 14213 | E109: 13 | F109: 14230 | K109: 0 | L109: 121
A110: 21 | B110: 14343 | C110: 22 | D110: 14348 | E110: 24 | F110: 14356 | K110: 0 | L110: 222
A111: 21 | B111: 14481 | C111: 11 | D111: 14490 | E111: 11 | F111: 14506 | K111: 0 | L111: 211
A112: 21 | B112: 14653 | C112: 11 | D112: 14663 | E112: 22 | F112: 14673 | K112: 0 | L112: 212
A113: 21 | B113: 14783 | C113: 22 | D113: 14827 | E113: 13 | F113: 14844 | K113: 0 | L113: 221
A114: 21 | B114: 14960 | C114: 11 | D114: 14974 | E114: 11 | F114: 14981 | K114: 0 | L114: 211
A115: 21 | B115: 15101 | C115: 11 | D115: 15113 | E115: 11 | F115: 15121 | K115: 1 | L115: 211

Sheet !2011-06-06_09h20m.Subject 53
A1: Report for:!2011-06-06_09h20m.Subject 53
A2: Date | B2: 2011-06-06 | F2: Group | G2: 0
A3: Hen | B3: 53 | F3: Correct Sequence | G3: =Start!J2 -> 211 | P3: Total Sequences in Data | Q3: =4994-COUNTBLANK(L7:L5000) -> 132 | V3: Total Sequences in Block Data | W3: =COUNTA(L7:L28) -> 22 | AA3: Total Sequences in Block Data | AB3: =COUNTA(L29:L50) -> 22 | AF3: Total Sequences in Block Data | AG3: =COUNTA(L51:L72) -> 22 | AK3: Total Sequences in Block Data | AL3: =COUNTA(L73:L94) -> 22 | AP3: Total Sequences in Block Data | AQ3: =COUNTA(L95:L116) -> 22 | AU3: Total Sequences in Block Data | AV3: =COUNTA(L117:L138) -> 22
A4: Program | B4: 0 | P4: Total Sequences in Summary | Q4: =SUM(O7:O14) -> 132 | V4: Total Sequences in Block Summary | W4: =SUM(U7:U14) -> 22 | AA4: Total Sequences in Block Summary | AB4: =SUM(Z7:Z14) -> 22 | AF4: Total Sequences in Block Summary | AG4: =SUM(AE7:AE14) -> 22 | AK4: Total Sequences in Block Summary | AL4: =SUM(AJ7:AJ14) -> 22 | AP4: Total Sequences in Block Summary | AQ4: =SUM(AO7:AO14) -> 22 | AU4: Total Sequences in Block Summary | AV4: =SUM(AT7:AT14) -> 22
T5: Block 1 | Y5: Block 2 | AD5: Block 3 | AI5: Block 4 | AN5: Block 5 | AS5: Block 6
A6: Sequence Component 1 | B6: Time 1 | C6: Sequence Component 2 | D6: Time 2 | E6: Sequence Component 3 | F6: Time 3 | G6: Sequence Component 4 | H6: Time 4 | I6: Sequence Component 5 | J6: Time 5 | K6: Correct? 0=No 1=Yes | L6: Sequence | N6: Frequency | P6: Relative Frequency | Q6: Variability | T6: Frequency | V6: Relative Frequency | W6: Variability | Y6: Frequency | AA6: Relative Frequency | AB6: Variability | AD6: Frequency | AF6: Relative Frequency | AG6: Variability | AI6: Frequency | AK6: Relative Frequency | AL6: Variability | AN6: Frequency | AP6: Relative Frequency | AQ6: Variability | AS6: Frequency | AU6: Relative Frequency | AV6: Variability
A7: 12 | B7: 39 | C7: 13 | D7: 49 | E7: 13 | F7: 58 | K7: 0 | L7: 111 | N7: 111 | O7: =COUNTIF($L$7:$L$500,N7) -> 75 | P7: =O7/$Q$4 -> 0.5681818182 | Q7: =IF(P7=0,0,(P7*((LOG(P7))/LOG(2)))) -> -0.46339513 | T7: =N7 -> 111 | U7: =COUNTIF(L7:L28,T7) -> 10 | V7: =U7/(W4-U11) -> 0.625 | W7: =IF(V7=0,0,(V7*((LOG(V7))/LOG(2)))) -> -0.4237949407 | Y7: =N7 -> 111 | Z7: =COUNTIF(L29:L50,Y7) -> 11 | AA7: =Z7/(AB4-Z11) -> 0.7857142857 | AB7: =IF(AA7=0,0,(AA7*((LOG(AA7))/LOG(2)))) -> -0.2733683098 | AD7: =N7 -> 111 | AE7: =COUNTIF(L51:L72,AD7) -> 13 | AF7: =AE7/(AG4-AE11) -> 0.8666666667 | AG7: =IF(AF7=0,0,(AF7*((LOG(AF7))/LOG(2)))) -> -0.1789240938 | AI7: =N7 -> 111 | AJ7: =COUNTIF(L73:L94,AI7) -> 14 | AK7: =AJ7/(AL4-AJ11) -> 0.9333333333 | AL7: =IF(AK7=0,0,(AK7*((LOG(AK7))/LOG(2)))) -> -0.09289996198 | AN7: =N7 -> 111 | AO7: =COUNTIF(L95:L116,AN7) -> 14 | AP7: =AO7/(AQ4-AO11) -> 0.7368421053 | AQ7: =IF(AP7=0,0,(AP7*((LOG(AP7))/LOG(2)))) -> -0.3246324358 | AS7: =N7 -> 111 | AT7: =COUNTIF(L117:L138,AS7) -> 13 | AU7: =AT7/(AV4-AT11) -> 0.8666666667 | AV7: =IF(AU7=0,0,(AU7*((LOG(AU7))/LOG(2)))) -> -0.1789240938
A8: 12 | B8: 189 | C8: 13 | D8: 197 | E8: 13 | F8: 202 | K8: 0 | L8: 111 | N8: 112 | O8: =COUNTIF($L$7:$L$500,N8) -> 2 | P8: =O8/$Q$4 -> 0.01515151515 | Q8: =IF(P8=0,0,(P8*((LOG(P8))/LOG(2)))) -> -0.09158172908 | T8: =N8 -> 112 | U8: =COUNTIF(L7:L28,T8) -> 1 | V8: =U8/(W4-U11) -> 0.0625 | W8: =IF(V8=0,0,(V8*((LOG(V8))/LOG(2)))) -> -0.25 | Y8: =N8 -> 112 | Z8: =COUNTIF(L29:L50,Y8) -> 0 | AA8: =Z8/(AB4-Z11) -> 0 | AB8: =IF(AA8=0,0,(AA8*((LOG(AA8))/LOG(2)))) -> 0 | AD8: =N8 -> 112 | AE8: =COUNTIF(L51:L72,AD8) -> 1 | AF8: =AE8/(AG4-AE11) -> 0.06666666667 | AG8: =IF(AF8=0,0,(AF8*((LOG(AF8))/LOG(2)))) -> -0.260459373 | AI8: =N8 -> 112 | AJ8: =COUNTIF(L73:L94,AI8) -> 0 | AK8: =AJ8/(AL4-AJ11) -> 0 | AL8: =IF(AK8=0,0,(AK8*((LOG(AK8))/LOG(2)))) -> 0 | AN8: =N8 -> 112 | AO8: =COUNTIF(L95:L116,AN8) -> 0 | AP8: =AO8/(AQ4-AO11) -> 0 | AQ8: =IF(AP8=0,0,(AP8*((LOG(AP8))/LOG(2)))) -> 0 | AS8: =N8 -> 112 | AT8: =COUNTIF(L117:L138,AS8) -> 0 | AU8: =AT8/(AV4-AT11) -> 0 | AV8: =IF(AU8=0,0,(AU8*((LOG(AU8))/LOG(2)))) -> 0
A9: 21 | B9: 318 | C9: 11 | D9: 345 | E9: 11 | F9: 360 | K9: 0 | L9: 211 | N9: 121 | O9: =COUNTIF($L$7:$L$500,N9) -> 7 | P9: =O9/$Q$4 -> 0.05303030303 | Q9: =IF(P9=0,0,(P9*((LOG(P9))/LOG(2)))) -> -0.2246914726 | T9: =N9 -> 121 | U9: =COUNTIF(L7:L28,T9) -> 2 | V9: =U9/(W4-U11) -> 0.125 | W9: =IF(V9=0,0,(V9*((LOG(V9))/LOG(2)))) -> -0.375 | Y9: =N9 -> 121 | Z9: =COUNTIF(L29:L50,Y9) -> 1 | AA9: =Z9/(AB4-Z11) -> 0.07142857143 | AB9: =IF(AA9=0,0,(AA9*((LOG(AA9))/LOG(2)))) -> -0.271953923 | AD9: =N9 -> 121 | AE9: =COUNTIF(L51:L72,AD9) -> 1 | AF9: =AE9/(AG4-AE11) -> 0.06666666667 | AG9: =IF(AF9=0,0,(AF9*((LOG(AF9))/LOG(2)))) -> -0.260459373 | AI9: =N9 -> 121 | AJ9: =COUNTIF(L73:L94,AI9) -> 1 | AK9: =AJ9/(AL4-AJ11) -> 0.06666666667 | AL9: =IF(AK9=0,0,(AK9*((LOG(AK9))/LOG(2)))) -> -0.260459373 | AN9: =N9 -> 121 | AO9: =COUNTIF(L95:L116,AN9) -> 0 | AP9: =AO9/(AQ4-AO11) -> 0 | AQ9: =IF(AP9=0,0,(AP9*((LOG(AP9))/LOG(2)))) -> 0 | AS9: =N9 -> 121 | AT9: =COUNTIF(L117:L138,AS9) -> 2 | AU9: =AT9/(AV4-AT11) -> 0.1333333333 | AV9: =IF(AU9=0,0,(AU9*((LOG(AU9))/LOG(2)))) -> -0.3875854127
A10: 12 | B10: 645 | C10: 13 | D10: 668 | E10: 13 | F10: 687 | K10: 0 | L10: 111 | N10: 122 | O10: =COUNTIF($L$7:$L$500,N10) -> 1 | P10: =O10/$Q$4 -> 0.007575757576 | Q10: =IF(P10=0,0,(P10*((LOG(P10))/LOG(2)))) -> -0.05336662212 | T10: =N10 -> 122 | U10: =COUNTIF(L7:L28,T10) -> 0 | V10: =U10/(W4-U11) -> 0 | W10: =IF(V10=0,0,(V10*((LOG(V10))/LOG(2)))) -> 0 | Y10: =N10 -> 122 | Z10: =COUNTIF(L29:L50,Y10) -> 0 | AA10: =Z10/(AB4-Z11) -> 0 | AB10: =IF(AA10=0,0,(AA10*((LOG(AA10))/LOG(2)))) -> 0 | AD10: =N10 -> 122 | AE10: =COUNTIF(L51:L72,AD10) -> 0 | AF10: =AE10/(AG4-AE11) -> 0 | AG10: =IF(AF10=0,0,(AF10*((LOG(AF10))/LOG(2)))) -> 0 | AI10: =N10 -> 122 | AJ10: =COUNTIF(L73:L94,AI10) -> 0 | AK10: =AJ10/(AL4-AJ11) -> 0 | AL10: =IF(AK10=0,0,(AK10*((LOG(AK10))/LOG(2)))) -> 0 | AN10: =N10 -> 122 | AO10: =COUNTIF(L95:L116,AN10) -> 1 | AP10: =AO10/(AQ4-AO11) -> 0.05263157895 | AQ10: =IF(AP10=0,0,(AP10*((LOG(AP10))/LOG(2)))) -> -0.2235751323 | AS10: =N10 -> 122 | AT10: =COUNTIF(L117:L138,AS10) -> 0 | AU10: =AT10/(AV4-AT11) -> 0 | AV10: =IF(AU10=0,0,(AU10*((LOG(AU10))/LOG(2)))) -> 0
A11: 21 | B11: 802 | C11: 11 | D11: 820 | E11: 11 | F11: 827 | K11: 0 | L11: 211 | N11: 211 | O11: =COUNTIF($L$7:$L$500,N11) -> 38 | P11: =O11/$Q$4 -> 0.2878787879 | Q11: =IF(P11=0,0,(P11*((LOG(P11))/LOG(2)))) -> -0.517164629 | T11: =N11 -> 211 | U11: =COUNTIF(L7:L28,T11) -> 6 | Y11: =N11 -> 211 | Z11: =COUNTIF(L29:L50,Y11) -> 8 | AD11: =N11 -> 211 | AE11: =COUNTIF(L51:L72,AD11) -> 7 | AI11: =N11 -> 211 | AJ11: =COUNTIF(L73:L94,AI11) -> 7 | AN11: =N11 -> 211 | AO11: =COUNTIF(L95:L116,AN11) -> 3 | AS11: =N11 -> 211 | AT11: =COUNTIF(L117:L138,AS11) -> 7
A12: 12 | B12: 1055 | C12: 13 | D12: 1063 | E12: 13 | F12: 1071 | K12: 0 | L12: 111 | N12: 212 | O12: =COUNTIF($L$7:$L$500,N12) -> 3 | P12: =O12/$Q$4 -> 0.02272727273 | Q12: =IF(P12=0,0,(P12*((LOG(P12))/LOG(2)))) -> -0.1240779913 | T12: =N12 -> 212 | U12: =COUNTIF(L7:L28,T12) -> 1 | V12: =U12/(W4-U11) -> 0.0625 | W12: =IF(V12=0,0,(V12*((LOG(V12))/LOG(2)))) -> -0.25 | Y12: =N12 -> 212 | Z12: =COUNTIF(L29:L50,Y12) -> 1 | AA12: =Z12/(AB4-Z11) -> 0.07142857143 | AB12: =IF(AA12=0,0,(AA12*((LOG(AA12))/LOG(2)))) -> -0.271953923 | AD12: =N12 -> 212 | AE12: =COUNTIF(L51:L72,AD12) -> 0 | AF12: =AE12/(AG4-AE11) -> 0 | AG12: =IF(AF12=0,0,(AF12*((LOG(AF12))/LOG(2)))) -> 0 | AI12: =N12 -> 212 | AJ12: =COUNTIF(L73:L94,AI12) -> 0 | AK12: =AJ12/(AL4-AJ11) -> 0 | AL12: =IF(AK12=0,0,(AK12*((LOG(AK12))/LOG(2)))) -> 0 | AN12: =N12 -> 212 | AO12: =COUNTIF(L95:L116,AN12) -> 1 | AP12: =AO12/(AQ4-AO11) -> 0.05263157895 | AQ12: =IF(AP12=0,0,(AP12*((LOG(AP12))/LOG(2)))) -> -0.2235751323 | AS12: =N12 -> 212 | AT12: =COUNTIF(L117:L138,AS12) -> 0 | AU12: =AT12/(AV4-AT11) -> 0 | AV12: =IF(AU12=0,0,(AU12*((LOG(AU12))/LOG(2)))) -> 0
A13: 12 | B13: 1175 | C13: 13 | D13: 1193 | E13: 13 | F13: 1204 | K13: 0 | L13: 111 | N13: 221 | O13: =COUNTIF($L$7:$L$500,N13) -> 5 | P13: =O13/$Q$4 -> 0.03787878788 | Q13: =IF(P13=0,0,(P13*((LOG(P13))/LOG(2)))) -> -0.1788812888 | T13: =N13 -> 221 | U13: =COUNTIF(L7:L28,T13) -> 2 | V13: =U13/(W4-U11) -> 0.125 | W13: =IF(V13=0,0,(V13*((LOG(V13))/LOG(2)))) -> -0.375 | Y13: =N13 -> 221 | Z13: =COUNTIF(L29:L50,Y13) -> 1 | AA13: =Z13/(AB4-Z11) -> 0.07142857143 | AB13: =IF(AA13=0,0,(AA13*((LOG(AA13))/LOG(2)))) -> -0.271953923 | AD13: =N13 -> 221 | AE13: =COUNTIF(L51:L72,AD13) -> 0 | AF13: =AE13/(AG4-AE11) -> 0 | AG13: =IF(AF13=0,0,(AF13*((LOG(AF13))/LOG(2)))) -> 0 | AI13: =N13 -> 221 | AJ13: =COUNTIF(L73:L94,AI13) -> 0 | AK13: =AJ13/(AL4-AJ11) -> 0 | AL13: =IF(AK13=0,0,(AK13*((LOG(AK13))/LOG(2)))) -> 0 | AN13: =N13 -> 221 | AO13: =COUNTIF(L95:L116,AN13) -> 2 | AP13: =AO13/(AQ4-AO11) -> 0.1052631579 | AQ13: =IF(AP13=0,0,(AP13*((LOG(AP13))/LOG(2)))) -> -0.3418871067 | AS13: =N13 -> 221 | AT13: =COUNTIF(L117:L138,AS13) -> 0 | AU13: =AT13/(AV4-AT11) -> 0 | AV13: =IF(AU13=0,0,(AU13*((LOG(AU13))/LOG(2)))) -> 0
A14: 12 | B14: 1314 | C14: 13 | D14: 1334 | E14: 13 | F14: 1339 | K14: 0 | L14: 111 | N14: 222 | O14: =COUNTIF($L$7:$L$500,N14) -> 1 | P14: =O14/$Q$4 -> 0.007575757576 | Q14: =IF(P14=0,0,(P14*((LOG(P14))/LOG(2)))) -> -0.05336662212 | T14: =N14 -> 222 | U14: =COUNTIF(L7:L28,T14) -> 0 | V14: =U14/(W4-U11) -> 0 | W14: =IF(V14=0,0,(V14*((LOG(V14))/LOG(2)))) -> 0 | Y14: =N14 -> 222 | Z14: =COUNTIF(L29:L50,Y14) -> 0 | AA14: =Z14/(AB4-Z11) -> 0 | AB14: =IF(AA14=0,0,(AA14*((LOG(AA14))/LOG(2)))) -> 0 | AD14: =N14 -> 222 | AE14: =COUNTIF(L51:L72,AD14) -> 0 | AF14: =AE14/(AG4-AE11) -> 0 | AG14: =IF(AF14=0,0,(AF14*((LOG(AF14))/LOG(2)))) -> 0 | AI14: =N14 -> 222 | AJ14: =COUNTIF(L73:L94,AI14) -> 0 | AK14: =AJ14/(AL4-AJ11) -> 0 | AL14: =IF(AK14=0,0,(AK14*((LOG(AK14))/LOG(2)))) -> 0 | AN14: =N14 -> 222 | AO14: =COUNTIF(L95:L116,AN14) -> 1 | AP14: =AO14/(AQ4-AO11) -> 0.05263157895 | AQ14: =IF(AP14=0,0,(AP14*((LOG(AP14))/LOG(2)))) -> -0.2235751323 | AS14: =N14 -> 222 | AT14: =COUNTIF(L117:L138,AS14) -> 0 | AU14: =AT14/(AV4-AT11) -> 0 | AV14: =IF(AU14=0,0,(AU14*((LOG(AU14))/LOG(2)))) -> 0
A15: 21 | B15: 1449 | C15: 11 | D15: 1465 | E15: 11 | F15: 1473 | K15: 0 | L15: 211 | P15: =SUM(P7:P14) -> 1 | Q15: =-SUM(Q7:Q14) -> 1.706525485 | V15: =SUM(V7:V14) -> 1 | W15: =-SUM(W7:W14) -> 1.673794941 | AA15: =SUM(AA7:AA14) -> 1 | AB15: =-SUM(AB7:AB14) -> 1.089230079 | AF15: =SUM(AF7:AF14) -> 1 | AG15: =-SUM(AG7:AG14) -> 0.6998428399 | AK15: =SUM(AK7:AK14) -> 1 | AL15: =-SUM(AL7:AL14) -> 0.353359335 | AP15: =SUM(AP7:AP14) -> 1 | AQ15: =-SUM(AQ7:AQ14) -> 1.337244939 | AU15: =SUM(AU7:AU14) -> 1 | AV15: =-SUM(AV7:AV14) -> 0.5665095066
A16: 12 | B16: 1629 | C16: 13 | D16: 1636 | E16: 13 | F16: 1641 | K16: 0 | L16: 111 | P16: U= | Q16: =Q15/(LOG(Q4)/LOG(2)) -> 0.2422529825 | V16: U1= | W16: =W15/(LOG(W4)/LOG(2)) -> 0.3753381785 | AA16: U2= | AB16: =AB15/(LOG(AB4)/LOG(2)) -> 0.2442531183 | AF16: U3= | AG16: =AG15/(LOG(AG4)/LOG(2)) -> 0.1569354348 | AK16: U4= | AL16: =AL15/(LOG(AL4)/LOG(2)) -> 0.07923864861 | AP16: U5= | AQ16: =AQ15/(LOG(AQ4)/LOG(2)) -> 0.2998689191 | AU16: U6= | AV16: =AV15/(LOG(AV4)/LOG(2)) -> 0.1270362582
A17: 12 | B17: 1783 | C17: 13 | D17: 1840 | E17: 13 | F17: 1852 | K17: 0 | L17: 111
A18: 12 | B18: 1956 | C18: 13 | D18: 1967 | E18: 13 | F18: 1969 | K18: 0 | L18: 111
A19: 21 | B19: 2078 | C19: 11 | D19: 2095 | E19: 11 | F19: 2103 | K19: 0 | L19: 211 | N19: Total Target Seq
A20: 12 | B20: 2248 | C20: 24 | D20: 2271 | E20: 13 | F20: 2297 | K20: 0 | L20: 121 | N20: =COUNTIF(L7:L138,G3) -> 38 | P20: 22 | Q20: 22 | R20: 22 | S20: 22 | T20: 22 | U20: 22
A21: 12 | B21: 2489 | C21: 24 | D21: 2501 | E21: 13 | F21: 2515 | K21: 0 | L21: 121 | P21: % of reinforcement given in 6 equal intervals based on number of trials
A22: 21 | B22: 2655 | C22: 22 | D22: 2656 | E22: 13 | F22: 2677 | K22: 0 | L22: 221 | P22: %_1 | Q22: %_2 | R22: %_3 | S22: %_4 | T22: %_5 | U22: %_6
A23: 21 | B23: 2786 | C23: 11 | D23: 2799 | E23: 22 | F23: 2809 | K23: 0 | L23: 212 | O23: target sequence | P23: =$G$3 -> 211 | Q23: =$G$3 -> 211 | R23: =$G$3 -> 211 | S23: =$G$3 -> 211 | T23: =$G$3 -> 211 | U23: =$G$3 -> 211
A24: 21 | B24: 2928 | C24: 11 | D24: 2942 | E24: 11 | F24: 2947 | K24: 0 | L24: 211 | O24: total reinforcement | P24: =U11 -> 6 | Q24: =Z11 -> 8 | R24: =AE11 -> 7 | S24: =AJ11 -> 7 | T24: =AO11 -> 3 | U24: =AT11 -> 7
A25: 12 | B25: 3224 | C25: 13 | D25: 3238 | E25: 13 | F25: 3243 | K25: 0 | L25: 111 | O25: % target
A26: 21 | B26: 3354 | C26: 22 | D26: 3362 | E26: 13 | F26: 3375 | K26: 0 | L26: 221 | O26: CCRF
A27: 21 | B27: 3477 | C27: 11 | D27: 3494 | E27: 11 | F27: 3501 | K27: 0 | L27: 211 | O27: % CCRf
A28: 12 | B28: 3784 | C28: 13 | D28: 3798 | E28: 24 | F28: 3812 | K28: 0 | L28: 112 | O28: average response rate | P28: =F28/P20 -> 173.2727273 | Q28: =(F50-F28)/Q20 -> 182.8181818 | R28: =(F72-F50)/R20 -> 168.8636364 | S28: =(F94-F72)/S20 -> 172.5909091 | T28: =(F116-F94)/T20 -> 141 | U28: =(F138-F116)/U20 -> 163.1363636
A29: 12 | B29: 4049 | C29: 13 | D29: 4069 | E29: 13 | F29: 4082 | K29: 0 | L29: 111
A30: 21 | B30: 4192 | C30: 11 | D30: 4211 | E30: 11 | F30: 4217 | K30: 0 | L30: 211
A31: 21 | B31: 4377 | C31: 11 | D31: 4390 | E31: 22 | F31: 4402 | K31: 0 | L31: 212
A32: 21 | B32: 4548 | C32: 11 | D32: 4557 | E32: 11 | F32: 4568 | K32: 0 | L32: 211
A33: 12 | B33: 4861 | C33: 13 | D33: 4872 | E33: 13 | F33: 4879 | K33: 0 | L33: 111
A34: 12 | B34: 4991 | C34: 13 | D34: 5010 | E34: 13 | F34: 5015 | K34: 0 | L34: 111
A35: 12 | B35: 5116 | C35: 13 | D35: 5136 | E35: 13 | F35: 5146 | K35: 0 | L35: 111
A36: 21 | B36: 5254 | C36: 11 | D36: 5270 | E36: 11 | F36: 5277 | K36: 0 | L36: 211
A37: 12 | B37: 5543 | C37: 13 | D37: 5548 | E37: 13 | F37: 5553 | K37: 0 | L37: 111
A38: 12 | B38: 5661 | C38: 13 | D38: 5663 | E38: 13 | F38: 5678 | K38: 0 | L38: 111
A39: 21 | B39: 5787 | C39: 11 | D39: 5800 | E39: 11 | F39: 5805 | K39: 0 | L39: 211
A40: 12 | B40: 5996 | C40: 24 | D40: 6006 | E40: 13 | F40: 6025 | K40: 0 | L40: 121
A41: 12 | B41: 6145 | C41: 13 | D41: 6153 | E41: 13 | F41: 6158 | K41: 0 | L41: 111
A42: 21 | B42: 6261 | C42: 22 | D42: 6271 | E42: 13 | F42: 6283 | K42: 0 | L42: 221
A43: 12 | B43: 6399 | C43: 13 | D43: 6407 | E43: 13 | F43: 6417 | K43: 0 | L43: 111
A44: 21 | B44: 6539 | C44: 11 | D44: 6556 | E44: 11 | F44: 6564 | K44: 0 | L44: 211
A45: 12 | B45: 6775 | C45: 13 | D45: 6783 | E45: 13 | F45: 6788 | K45: 0 | L45: 111
A46: 21 | B46: 6898 | C46: 11 | D46: 6911 | E46: 11 | F46: 6916 | K46: 0 | L46: 211
A47: 12 | B47: 7260 | C47: 13 | D47: 7265 | E47: 13 | F47: 7273 | K47: 0 | L47: 111
A48: 21 | B48: 7397 | C48: 11 | D48: 7412 | E48: 11 | F48: 7422 | K48: 0 | L48: 211
A49: 12 | B49: 7683 | C49: 13 | D49: 7692 | E49: 13 | F49: 7701 | K49: 0 | L49: 111
A50: 21 | B50: 7814 | C50: 11 | D50: 7827 | E50: 11 | F50: 7834 | K50: 0 | L50: 211
A51: 12 | B51: 8084 | C51: 13 | D51: 8092 | E51: 13 | F51: 8097 | K51: 0 | L51: 111
A52: 21 | B52: 8214 | C52: 11 | D52: 8226 | E52: 11 | F52: 8231 | K52: 0 | L52: 211
A53: 12 | B53: 8418 | C53: 13 | D53: 8426 | E53: 13 | F53: 8431 | K53: 0 | L53: 111
A54: 12 | B54: 8548 | C54: 13 | D54: 8550 | E54: 13 | F54: 8558 | K54: 0 | L54: 111
A55: 21 | B55: 8661 | C55: 11 | D55: 8670 | E55: 11 | F55: 8675 | K55: 0 | L55: 211
A56: 12 | B56: 8908 | C56: 13 | D56: 8916 | E56: 13 | F56: 8923 | K56: 0 | L56: 111
A57: 12 | B57: 9039 | C57: 13 | D57: 9044 | E57: 13 | F57: 9049 | K57: 0 | L57: 111
A58: 21 | B58: 9151 | C58: 11 | D58: 9162 | E58: 11 | F58: 9173 | K58: 0 | L58: 211
A59: 12 | B59: 9387 | C59: 13 | D59: 9392 | E59: 13 | F59: 9405 | K59: 0 | L59: 111
A60: 12 | B60: 9535 | C60: 13 | D60: 9559 | E60: 13 | F60: 9564 | K60: 0 | L60: 111
A61: 21 | B61: 9664 | C61: 11 | D61: 9677 | E61: 11 | F61: 9681 | K61: 0 | L61: 211
A62: 12 | B62: 9866 | C62: 13 | D62: 9872 | E62: 13 | F62: 9882 | K62: 0 | L62: 111
A63: 12 | B63: 9994 | C63: 13 | D63: 9998 | E63: 13 | F63: 10016 | K63: 0 | L63: 111
A64: 12 | B64: 10155 | C64: 13 | D64: 10160 | E64: 24 | F64: 10172 | K64: 0 | L64: 112
A65: 21 | B65: 10280 | C65: 11 | D65: 10306 | E65: 11 | F65: 10318 | K65: 0 | L65: 211
A66: 12 | B66: 10549 | C66: 13 | D66: 10555 | E66: 13 | F66: 10564 | K66: 0 | L66: 111
A67: 12 | B67: 10702 | C67: 13 | D67: 10710 | E67: 13 | F67: 10719 | K67: 0 | L67: 111
A68: 12 | B68: 10832 | C68: 13 | D68: 10837 | E68: 13 | F68: 10841 | K68: 0 | L68: 111
A69: 21 | B69: 10948 | C69: 11 | D69: 10965 | E69: 11 | F69: 10967 | K69: 0 | L69: 211
A70: 12 | B70: 11129 | C70: 24 | D70: 11138 | E70: 13 | F70: 11148 | K70: 0 | L70: 121
A71: 21 | B71: 11252 | C71: 11 | D71: 11268 | E71: 11 | F71: 11276 | K71: 0 | L71: 211
A72: 12 | B72: 11523 | C72: 13 | D72: 11534 | E72: 13 | F72: 11549 | K72: 0 | L72: 111
A73: 12 | B73: 11671 | C73: 13 | D73: 11679 | E73: 13 | F73: 11688 | K73: 0 | L73: 111
A74: 21 | B74: 11792 | C74: 11 | D74: 11806 | E74: 11 | F74: 11811 | K74: 0 | L74: 211
A75: 12 | B75: 12136 | C75: 13 | D75: 12140 | E75: 13 | F75: 12147 | K75: 0 | L75: 111
A76: 12 | B76: 12255 | C76: 13 | D76: 12267 | E76: 13 | F76: 12274 | K76: 0 | L76: 111
A77: 21 | B77: 12387 | C77: 11 | D77: 12400 | E77: 11 | F77: 12407 | K77: 0 | L77: 211
A78: 12 | B78: 12681 | C78: 13 | D78: 12688 | E78: 13 | F78: 12696 | K78: 0 | L78: 111
A79: 12 | B79: 12832 | C79: 24 | D79: 12856 | E79: 13 | F79: 12866 | K79: 0 | L79: 121
A80: 12 | B80: 12979 | C80: 13 | D80: 12984 | E80: 13 | F80: 12988 | K80: 0 | L80: 111
A81: 21 | B81: 13096 | C81: 11 | D81: 13112 | E81: 11 | F81: 13120 | K81: 0 | L81: 211
A82: 12 | B82: 13354 | C82: 13 | D82: 13361 | E82: 13 | F82: 13369 | K82: 0 | L82: 111
A83: 12 | B83: 13502 | C83: 13 | D83: 13513 | E83: 13 | F83: 13524 | K83: 0 | L83: 111
A84: 12 | B84: 13636 | C84: 13 | D84: 13644 | E84: 13 | F84: 13664 | K84: 0 | L84: 111
A85: 21 | B85: 13762 | C85: 11 | D85: 13777 | E85: 11 | F85: 13797 | K85: 0 | L85: 211
A86: 12 | B86: 13967 | C86: 13 | D86: 13975 | E86: 13 | F86: 13991 | K86: 0 | L86: 111
A87: 12 | B87: 14100 | C87: 13 | D87: 14109 | E87: 13 | F87: 14118 | K87: 0 | L87: 111
A88: 21 | B88: 14220 | C88: 11 | D88: 14238 | E88: 11 | F88: 14262 | K88: 0 | L88: 211
A89: 21 | B89: 14481 | C89: 11 | D89: 14491 | E89: 11 | F89: 14499 | K89: 0 | L89: 211
A90: 12 | B90: 14648 | C90: 13 | D90: 14656 | E90: 13 | F90: 14669 | K90: 0 | L90: 111
A91: 21 | B91: 14772 | C91: 11 | D91: 14800 | E91: 11 | F91: 14807 | K91: 0 | L91: 211
A92: 12 | B92: 15053 | C92: 13 | D92: 15062 | E92: 13 | F92: 15070 | K92: 0 | L92: 111
A93: 12 | B93: 15190 | C93: 13 | D93: 15194 | E93: 13 | F93: 15202 | K93: 0 | L93: 111
A94: 12 | B94: 15319 | C94: 13 | D94: 15341 | E94: 13 | F94: 15346 | K94: 0 | L94: 111
A95: 12 | B95: 15463 | C95: 13 | D95: 15468 | E95: 13 | F95: 15473 | K95: 0 | L95: 111
A96: 12 | B96: 15595 | C96: 13 | D96: 15602 | E96: 13 | F96: 15611 | K96: 0 | L96: 111
A97: 12 | B97: 15728 | C97: 13 | D97: 15735 | E97: 13 | F97: 15742 | K97: 0 | L97: 111
A98: 12 | B98: 15873 | C98: 13 | D98: 15882 | E98: 13 | F98: 15887 | K98: 0 | L98: 111
A99: 12 | B99: 16013 | C99: 13 | D99: 16024 | E99: 13 | F99: 16035 | K99: 0 | L99: 111
A100: 12 | B100: 16156 | C100: 13 | D100: 16162 | E100: 13 | F100: 16167 | K100: 0 | L100: 111
A101: 12 | B101: 16277 | C101: 13 | D101: 16285 | E101: 13 | F101: 16290 | K101: 0 | L101: 111
A102: 12 | B102: 16408 | C102: 13 | D102: 16416 | E102: 13 | F102: 16421 | K102: 0 | L102: 111
A103: 12 | B103: 16544 | C103: 13 | D103: 16551 | E103: 13 | F103: 16557 | K103: 0 | L103: 111
A104: 21 | B104: 16658 | C104: 11 | D104: 16671 | E104: 22 | F104: 16679 | K104: 0 | L104: 212
A105: 21 | B105: 16779 | C105: 22 | D105: 16784 | E105: 13 | F105: 16799 | K105: 0 | L105: 221
A106: 12 | B106: 16912 | C106: 13 | D106: 16917 | E106: 13 | F106: 16922 | K106: 0 | L106: 111
A107: 21 | B107: 17032 | C107: 11 | D107: 17050 | E107: 11 | F107: 17058 | K107: 0 | L107: 211
A108: 12 | B108: 17236 | C108: 13 | D108: 17244 | E108: 13 | F108: 17250 | K108: 0 | L108: 111
A109: 21 | B109: 17360 | C109: 22 | D109: 17365 | E109: 24 | F109: 17370 | K109: 0 | L109: 222
A110: 21 | B110: 17489 | C110: 11 | D110: 17499 | E110: 11 | F110: 17506 | K110: 0 | L110: 211
A111: 12 | B111: 17701 | C111: 24 | D111: 17719 | E111: 24 | F111: 17724 | K111: 0 | L111: 122
A112: 21 | B112: 17832 | C112: 22 | D112: 17834 | E112: 13 | F112: 17856 | K112: 0 | L112: 221
A113: 21 | B113: 17954 | C113: 11 | D113: 17965 | E113: 11 | F113: 17974 | K113: 0 | L113: 211
A114: 12 | B114: 18157 | C114: 13 | D114: 18180 | E114: 13 | F114: 18188 | K114: 0 | L114: 111
A115: 12 | B115: 18310 | C115: 13 | D115: 18315 | E115: 13 | F115: 18322 | K115: 0 | L115: 111
A116: 12 | B116: 18433 | C116: 13 | D116: 18440 | E116: 13 | F116: 18448 | K116: 0 | L116: 111
A117: 12 | B117: 18564 | C117: 13 | D117: 18571 | E117: 13 | F117: 18586 | K117: 0 | L117: 111
A118: 21 | B118: 18685 | C118: 11 | D118: 18702 | E118: 11 | F118: 18709 | K118: 0 | L118: 211
A119: 12 | B119: 18888 | C119: 24 | D119: 18923 | E119: 13 | F119: 18938 | K119: 0 | L119: 121
A120: 12 | B120: 19042 | C120: 13 | D120: 19050 | E120: 13 | F120: 19055 | K120: 0 | L120: 111
A121: 12 | B121: 19185 | C121: 13 | D121: 19192 | E121: 13 | F121: 19201 | K121: 0 | L121: 111
A122: 21 | B122: 19299 | C122: 11 | D122: 19310 | E122: 11 | F122: 19315 | K122: 0 | L122: 211
A123: 12 | B123: 19527 | C123: 13 | D123: 19537 | E123: 13 | F123: 19544 | K123: 0 | L123: 111
A124: 12 | B124: 19660 | C124: 13 | D124: 19668 | E124: 13 | F124: 19674 | K124: 0 | L124: 111
A125: 21 | B125: 19785 | C125: 11 | D125: 19795 | E125: 11 | F125: 19803 | K125: 0 | L125: 211
A126: 21 | B126: 20118 | C126: 11 | D126: 20130 | E126: 11 | F126: 20139 | K126: 0 | L126: 211
A127: 12 | B127: 20361 | C127: 13 | D127: 20368 | E127: 13 | F127: 20375 | K127: 0 | L127: 111
A128: 12 | B128: 20472 | C128: 13 | D128: 20502 | E128: 13 | F128: 20510 | K128: 0 | L128: 111
A129: 12 | B129: 20630 | C129: 13 | D129: 20637 | E129: 13 | F129: 20644 | K129: 0 | L129: 111
A130: 12 | B130: 20760 | C130: 13 | D130: 20768 | E130: 13 | F130: 20777 | K130: 0 | L130: 111
A131: 12 | B131: 20885 | C131: 13 | D131: 20892 | E131: 13 | F131: 20899 | K131: 0 | L131: 111
A132: 21 | B132: 21004 | C132: 11 | D132: 21029 | E132: 11 | F132: 21036 | K132: 0 | L132: 211
A133: 12 | B133: 21246 | C133: 24 | D133: 21263 | E133: 13 | F133: 21275 | K133: 0 | L133: 121
A134: 12 | B134: 21400 | C134: 13 | D134: 21408 | E134: 13 | F134: 21415 | K134: 0 | L134: 111
A135: 12 | B135: 21532 | C135: 13 | D135: 21540 | E135: 13 | F135: 21547 | K135: 0 | L135: 111
A136: 12 | B136: 21688 | C136: 13 | D136: 21696 | E136: 13 | F136: 21701 | K136: 0 | L136: 111
A137: 21 | B137: 21810 | C137: 11 | D137: 21820 | E137: 11 | F137: 21827 | K137: 0 | L137: 211
A138: 21 | B138: 22012 | C138: 11 | D138: 22025 | E138: 11 | F138: 22037 | K138: 1 | L138: 211

Sheet !2011-06-07_08h59m.Subject 53
A1: Report for:!2011-06-07_08h59m.Subject 53
A2: Date | B2: 2011-06-07 | F2: Group | G2: 0
A3: Hen | B3: 53 | F3: Correct Sequence | G3: =Start!J2 -> 211 | P3: Total Sequences in Data | Q3: =4994-COUNTBLANK(L7:L5000) -> 136 | V3: Total Sequences in Block Data | W3: =COUNTA(L7:L29) -> 23 | AA3: Total Sequences in Block Data | AB3: =COUNTA(L30:L51) -> 22 | AF3: Total Sequences in Block Data | AG3: =COUNTA(L52:L74) -> 23 | AK3: Total Sequences in Block Data | AL3: =COUNTA(L75:L97) -> 23 | AP3: Total Sequences in Block Data | AQ3: =COUNTA(L98:L119) -> 22 | AU3: Total Sequences in Block Data | AV3: =COUNTA(L120:L142) -> 23
A4: Program | B4: 0 | P4: Total Sequences in Summary | Q4: =SUM(O7:O14) -> 136 | V4: Total Sequences in Block Summary | W4: =SUM(U7:U14) -> 23 | AA4: Total Sequences in Block Summary | AB4: =SUM(Z7:Z14) -> 22 | AF4: Total Sequences in Block Summary | AG4: =SUM(AE7:AE14) -> 23 | AK4: Total Sequences in Block Summary | AL4: =SUM(AJ7:AJ14) -> 23 | AP4: Total Sequences in Block Summary | AQ4: =SUM(AO7:AO14) -> 22 | AU4: Total Sequences in Block Summary | AV4: =SUM(AT7:AT14) -> 23
T5: Block 1 | Y5: Block 2 | AD5: Block 3 | AI5: Block 4 | AN5: Block 5 | AS5: Block 6
A6: Sequence Component 1 | B6: Time 1 | C6: Sequence Component 2 | D6: Time 2 | E6: Sequence Component 3 | F6: Time 3 | G6: Sequence Component 4 | H6: Time 4 | I6: Sequence Component 5 | J6: Time 5 | K6: Correct? 0=No 1=Yes | L6: Sequence | N6: Frequency | P6: Relative Frequency | Q6: Variability | T6: Frequency | V6: Relative Frequency | W6: Variability | Y6: Frequency | AA6: Relative Frequency | AB6: Variability | AD6: Frequency | AF6: Relative Frequency | AG6: Variability | AI6: Frequency | AK6: Relative Frequency | AL6: Variability | AN6: Frequency | AP6: Relative Frequency | AQ6: Variability | AS6: Frequency | AU6: Relative Frequency | AV6: Variability
A7: 12 | B7: 41 | C7: 13 | D7: 60 | E7: 13 | F7: 69 | K7: 0 | L7: 111 | N7: 111 | O7: =COUNTIF($L$7:$L$500,N7) -> 79 | P7: =O7/$Q$4 -> 0.5808823529 | Q7: =IF(P7=0,0,(P7*((LOG(P7))/LOG(2)))) -> -0.4552270982 | T7: =N7 -> 111 | U7: =COUNTIF(L7:L29,T7) -> 14 | V7: =U7/(W4-U11) -> 0.8235294118 | W7: =IF(V7=0,0,(V7*((LOG(V7))/LOG(2)))) -> -0.2306771099 | Y7: =N7 -> 111 | Z7: =COUNTIF(L30:L51,Y7) -> 14 | AA7: =Z7/(AB4-Z11) -> 0.875 | AB7: =IF(AA7=0,0,(AA7*((LOG(AA7))/LOG(2)))) -> -0.1685644432 | AD7: =N7 -> 111 | AE7: =COUNTIF(L52:L74,AD7) -> 10 | AF7: =AE7/(AG4-AE11) -> 0.5882352941 | AG7: =IF(AF7=0,0,(AF7*((LOG(AF7))/LOG(2)))) -> -0.4503145567 | AI7: =N7 -> 111 | AJ7: =COUNTIF(L75:L97,AI7) -> 15 | AK7: =AJ7/(AL4-AJ11) -> 0.8823529412 | AL7: =IF(AK7=0,0,(AK7*((LOG(AK7))/LOG(2)))) -> -0.159328452 | AN7: =N7 -> 111 | AO7: =COUNTIF(L98:L119,AN7) -> 13 | AP7: =AO7/(AQ4-AO11) -> 0.7647058824 | AQ7: =IF(AP7=0,0,(AP7*((LOG(AP7))/LOG(2)))) -> -0.2959588588 | AS7: =N7 -> 111 | AT7: =COUNTIF(L120:L142,AS7) -> 13 | AU7: =AT7/(AV4-AT11) -> 0.6842105263 | AV7: =IF(AU7=0,0,(AU7*((LOG(AU7))/LOG(2)))) -> -0.3745969126
A8: 21 | B8: 180 | C8: 11 | D8: 190 | E8: 11 | F8: 209 | K8: 0 | L8: 211 | N8: 112 | O8: =COUNTIF($L$7:$L$500,N8) -> 5 | P8: =O8/$Q$4 -> 0.03676470588 | Q8: =IF(P8=0,0,(P8*((LOG(P8))/LOG(2)))) -> -0.1752034833 | T8: =N8 -> 112 | U8: =COUNTIF(L7:L29,T8) -> 1 | V8: =U8/(W4-U11) -> 0.05882352941 | W8: =IF(V8=0,0,(V8*((LOG(V8))/LOG(2)))) -> -0.2404389907 | Y8: =N8 -> 112 | Z8: =COUNTIF(L30:L51,Y8) -> 1 | AA8: =Z8/(AB4-Z11) -> 0.0625 | AB8: =IF(AA8=0,0,(AA8*((LOG(AA8))/LOG(2)))) -> -0.25 | AD8: =N8 -> 112 | AE8: =COUNTIF(L52:L74,AD8) -> 0 | AF8: =AE8/(AG4-AE11) -> 0 | AG8: =IF(AF8=0,0,(AF8*((LOG(AF8))/LOG(2)))) -> 0 | AI8: =N8 -> 112 | AJ8: =COUNTIF(L75:L97,AI8) -> 1 | AK8: =AJ8/(AL4-AJ11) -> 0.05882352941 | AL8: =IF(AK8=0,0,(AK8*((LOG(AK8))/LOG(2)))) -> -0.2404389907 | AN8: =N8 -> 112 | AO8: =COUNTIF(L98:L119,AN8) -> 1 | AP8: =AO8/(AQ4-AO11) -> 0.05882352941 | AQ8: =IF(AP8=0,0,(AP8*((LOG(AP8))/LOG(2)))) -> -0.2404389907 | AS8: =N8 -> 112 | AT8: =COUNTIF(L120:L142,AS8) -> 1 | AU8: =AT8/(AV4-AT11) -> 0.05263157895 | AV8: =IF(AU8=0,0,(AU8*((LOG(AU8))/LOG(2)))) -> -0.2235751323
A9: 12 | B9: 389 | C9: 13 | D9: 394 | E9: 13 | F9: 402 | K9: 0 | L9: 111 | N9: 121 | O9: =COUNTIF($L$7:$L$500,N9) -> 5 | P9: =O9/$Q$4 -> 0.03676470588 | Q9: =IF(P9=0,0,(P9*((LOG(P9))/LOG(2)))) -> -0.1752034833 | T9: =N9 -> 121 | U9: =COUNTIF(L7:L29,T9) -> 2 | V9: =U9/(W4-U11) -> 0.1176470588 | W9: =IF(V9=0,0,(V9*((LOG(V9))/LOG(2)))) -> -0.3632309225 | Y9: =N9 -> 121 | Z9: =COUNTIF(L30:L51,Y9) -> 0 | AA9: =Z9/(AB4-Z11) -> 0 | AB9: =IF(AA9=0,0,(AA9*((LOG(AA9))/LOG(2)))) -> 0 | AD9: =N9 -> 121 | AE9: =COUNTIF(L52:L74,AD9) -> 2 | AF9: =AE9/(AG4-AE11) -> 0.1176470588 | AG9: =IF(AF9=0,0,(AF9*((LOG(AF9))/LOG(2)))) -> -0.3632309225 | AI9: =N9 -> 121 | AJ9: =COUNTIF(L75:L97,AI9) -> 0 | AK9: =AJ9/(AL4-AJ11) -> 0 | AL9: =IF(AK9=0,0,(AK9*((LOG(AK9))/LOG(2)))) -> 0 | AN9: =N9 -> 121 | AO9: =COUNTIF(L98:L119,AN9) -> 0 | AP9: =AO9/(AQ4-AO11) -> 0 | AQ9: =IF(AP9=0,0,(AP9*((LOG(AP9))/LOG(2)))) -> 0 | AS9: =N9 -> 121 | AT9: =COUNTIF(L120:L142,AS9) -> 1 | AU9: =AT9/(AV4-AT11) -> 0.05263157895 | AV9: =IF(AU9=0,0,(AU9*((LOG(AU9))/LOG(2)))) -> -0.2235751323
A10: 12 | B10: 502 | C10: 24 | D10: 512 | E10: 13 | F10: 526 | K10: 0 | L10: 121 | N10: 122 | O10: =COUNTIF($L$7:$L$500,N10) -> 3 | P10: =O10/$Q$4 -> 0.02205882353 | Q10: =IF(P10=0,0,(P10*((LOG(P10))/LOG(2)))) -> -0.121378684 | T10: =N10 -> 122 | U10: =COUNTIF(L7:L29,T10) -> 0 | V10: =U10/(W4-U11) -> 0 | W10: =IF(V10=0,0,(V10*((LOG(V10))/LOG(2)))) -> 0 | Y10: =N10 -> 122 | Z10: =COUNTIF(L30:L51,Y10) -> 0 | AA10: =Z10/(AB4-Z11) -> 0 | AB10: =IF(AA10=0,0,(AA10*((LOG(AA10))/LOG(2)))) -> 0 | AD10: =N10 -> 122 | AE10: =COUNTIF(L52:L74,AD10) -> 1 | AF10: =AE10/(AG4-AE11) -> 0.05882352941 | AG10: =IF(AF10=0,0,(AF10*((LOG(AF10))/LOG(2)))) -> -0.2404389907 | AI10: =N10 -> 122 | AJ10: =COUNTIF(L75:L97,AI10) -> 0 | AK10: =AJ10/(AL4-AJ11) -> 0 | AL10: =IF(AK10=0,0,(AK10*((LOG(AK10))/LOG(2)))) -> 0 | AN10: =N10 -> 122 | AO10: =COUNTIF(L98:L119,AN10) -> 1 | AP10: =AO10/(AQ4-AO11) -> 0.05882352941 | AQ10: =IF(AP10=0,0,(AP10*((LOG(AP10))/LOG(2)))) -> -0.2404389907 | AS10: =N10 -> 122 | AT10: =COUNTIF(L120:L142,AS10) -> 1 | AU10: =AT10/(AV4-AT11) -> 0.05263157895 | AV10: =IF(AU10=0,0,(AU10*((LOG(AU10))/LOG(2)))) -> -0.2235751323
A11: 12 | B11: 636 | C11: 13 | D11: 641 | E11: 13 | F11: 649 | K11: 0 | L11: 111 | N11: 211 | O11: =COUNTIF($L$7:$L$500,N11) -> 33 | P11: =O11/$Q$4 -> 0.2426470588 | Q11: =IF(P11=0,0,(P11*((LOG(P11))/LOG(2)))) -> -0.4957446163 | T11: =N11 -> 211 | U11: =COUNTIF(L7:L29,T11) -> 6 | Y11: =N11 -> 211 | Z11: =COUNTIF(L30:L51,Y11) -> 6 | AD11: =N11 -> 211 | AE11: =COUNTIF(L52:L74,AD11) -> 6 | AI11: =N11 -> 211 | AJ11: =COUNTIF(L75:L97,AI11) -> 6 | AN11: =N11 -> 211 | AO11: =COUNTIF(L98:L119,AN11) -> 5 | AS11: =N11 -> 211 | AT11: =COUNTIF(L120:L142,AS11) -> 4
A12: 12 | B12: 765 | C12: 13 | D12: 780 | E12: 13 | F12: 793 | K12: 0 | L12: 111 | N12: 212 | O12: =COUNTIF($L$7:$L$500,N12) -> 3 | P12: =O12/$Q$4 -> 0.02205882353 | Q12: =IF(P12=0,0,(P12*((LOG(P12))/LOG(2)))) -> -0.121378684 | T12: =N12 -> 212 | U12: =COUNTIF(L7:L29,T12) -> 0 | V12: =U12/(W4-U11) -> 0 | W12: =IF(V12=0,0,(V12*((LOG(V12))/LOG(2)))) -> 0 | Y12: =N12 -> 212 | Z12: =COUNTIF(L30:L51,Y12) -> 1 | AA12: =Z12/(AB4-Z11) -> 0.0625 | AB12: =IF(AA12=0,0,(AA12*((LOG(AA12))/LOG(2)))) -> -0.25 | AD12: =N12 -> 212 | AE12: =COUNTIF(L52:L74,AD12) -> 1 | AF12: =AE12/(AG4-AE11) -> 0.05882352941 | AG12: =IF(AF12=0,0,(AF12*((LOG(AF12))/LOG(2)))) -> -0.2404389907 | AI12: =N12 -> 212 | AJ12: =COUNTIF(L75:L97,AI12) -> 1 | AK12: =AJ12/(AL4-AJ11) -> 0.05882352941 | AL12: =IF(AK12=0,0,(AK12*((LOG(AK12))/LOG(2)))) -> -0.2404389907 | AN12: =N12 -> 212 | AO12: =COUNTIF(L98:L119,AN12) -> 0 | AP12: =AO12/(AQ4-AO11) -> 0 | AQ12: =IF(AP12=0,0,(AP12*((LOG(AP12))/LOG(2)))) -> 0 | AS12: =N12 -> 212 | AT12: =COUNTIF(L120:L142,AS12) -> 0 | AU12: =AT12/(AV4-AT11) -> 0 | AV12: =IF(AU12=0,0,(AU12*((LOG(AU12))/LOG(2)))) -> 0
A13: 12 | B13: 907 | C13: 13 | D13: 909 | E13: 24 | F13: 931 | K13: 0 | L13: 112 | N13: 221 | O13: =COUNTIF($L$7:$L$500,N13) -> 5 | P13: =O13/$Q$4 -> 0.03676470588 | Q13: =IF(P13=0,0,(P13*((LOG(P13))/LOG(2)))) -> -0.1752034833 | T13: =N13 -> 221 | U13: =COUNTIF(L7:L29,T13) -> 0 | V13: =U13/(W4-U11) -> 0 | W13: =IF(V13=0,0,(V13*((LOG(V13))/LOG(2)))) -> 0 | Y13: =N13 -> 221 | Z13: =COUNTIF(L30:L51,Y13) -> 0 | AA13: =Z13/(AB4-Z11) -> 0 | AB13: =IF(AA13=0,0,(AA13*((LOG(AA13))/LOG(2)))) -> 0 | AD13: =N13 -> 221 | AE13: =COUNTIF(L52:L74,AD13) -> 3 | AF13: =AE13/(AG4-AE11) -> 0.1764705882 | AG13: =IF(AF13=0,0,(AF13*((LOG(AF13))/LOG(2)))) -> -0.4416177072 | AI13: =N13 -> 221 | AJ13: =COUNTIF(L75:L97,AI13) -> 0 | AK13: =AJ13/(AL4-AJ11) -> 0 | AL13: =IF(AK13=0,0,(AK13*((LOG(AK13))/LOG(2)))) -> 0 | AN13: =N13 -> 221 | AO13: =COUNTIF(L98:L119,AN13) -> 1 | AP13: =AO13/(AQ4-AO11) -> 0.05882352941 | AQ13: =IF(AP13=0,0,(AP13*((LOG(AP13))/LOG(2)))) -> -0.2404389907 | AS13: =N13 -> 221 | AT13: =COUNTIF(L120:L142,AS13) -> 1 | AU13: =AT13/(AV4-AT11) -> 0.05263157895 | AV13: =IF(AU13=0,0,(AU13*((LOG(AU13))/LOG(2)))) -> -0.2235751323
A14: 12 | B14: 1262 | C14: 13 | D14: 1270 | E14: 13 | F14: 1287 | K14: 0 | L14: 111 | N14: 222 | O14: =COUNTIF($L$7:$L$500,N14) -> 3 | P14: =O14/$Q$4 -> 0.02205882353 | Q14: =IF(P14=0,0,(P14*((LOG(P14))/LOG(2)))) -> -0.121378684 | T14: =N14 -> 222 | U14: =COUNTIF(L7:L29,T14) -> 0 | V14: =U14/(W4-U11) -> 0 | W14: =IF(V14=0,0,(V14*((LOG(V14))/LOG(2)))) -> 0 | Y14: =N14 -> 222 | Z14: =COUNTIF(L30:L51,Y14) -> 0 | AA14: =Z14/(AB4-Z11) -> 0 | AB14: =IF(AA14=0,0,(AA14*((LOG(AA14))/LOG(2)))) -> 0 | AD14: =N14 -> 222 | AE14: =COUNTIF(L52:L74,AD14) -> 0 | AF14: =AE14/(AG4-AE11) -> 0 | AG14: =IF(AF14=0,0,(AF14*((LOG(AF14))/LOG(2)))) -> 0 | AI14: =N14 -> 222 | AJ14: =COUNTIF(L75:L97,AI14) -> 0 | AK14: =AJ14/(AL4-AJ11) -> 0 | AL14: =IF(AK14=0,0,(AK14*((LOG(AK14))/LOG(2)))) -> 0 | AN14: =N14 -> 222 | AO14: =COUNTIF(L98:L119,AN14) -> 1 | AP14: =AO14/(AQ4-AO11) -> 0.05882352941 | AQ14: =IF(AP14=0,0,(AP14*((LOG(AP14))/LOG(2)))) -> -0.2404389907 | AS14: =N14 -> 222 | AT14: =COUNTIF(L120:L142,AS14) -> 2 | AU14: =AT14/(AV4-AT11) -> 0.1052631579 | AV14: =IF(AU14=0,0,(AU14*((LOG(AU14))/LOG(2)))) -> -0.3418871067
A15: 12 | B15: 1386 | C15: 13 | D15: 1400 | E15: 13 | F15: 1405 | K15: 0 | L15: 111 | P15: =SUM(P7:P14) -> 1 | Q15: =-SUM(Q7:Q14) -> 1.840718216 | V15: =SUM(V7:V14) -> 1 | W15: =-SUM(W7:W14) -> 0.8343470231 | AA15: =SUM(AA7:AA14) -> 1 | AB15: =-SUM(AB7:AB14) -> 0.6685644432 | AF15: =SUM(AF7:AF14) -> 1 | AG15: =-SUM(AG7:AG14) -> 1.736041168 | AK15: =SUM(AK7:AK14) -> 1 | AL15: =-SUM(AL7:AL14) -> 0.6402064334 | AP15: =SUM(AP7:AP14) -> 1 | AQ15: =-SUM(AQ7:AQ14) -> 1.257714821 | AU15: =SUM(AU7:AU14) -> 1 | AV15: =-SUM(AV7:AV14) -> 1.610784548
A16: 21 | B16: 1510 | C16: 11 | D16: 1526 | E16: 11 | F16: 1533 | K16: 0 | L16: 211 | P16: U= | Q16: =Q15/(LOG(Q4)/LOG(2)) -> 0.2597146902 | V16: U1= | W16: =W15/(LOG(W4)/LOG(2)) -> 0.1844446989 | AA16: U2= | AB16: =AB15/(LOG(AB4)/LOG(2)) -> 0.1499214475 | AF16: U3= | AG16: =AG15/(LOG(AG4)/LOG(2)) -> 0.3837774711 | AK16: U4= | AL16: =AL15/(LOG(AL4)/LOG(2)) -> 0.141527062 | AP16: U5= | AQ16: =AQ15/(LOG(AQ4)/LOG(2)) -> 0.2820347813 | AU16: U6= | AV16: =AV15/(LOG(AV4)/LOG(2)) -> 0.3560876504
A17: 21 | B17: 1747 | C17: 11 | D17: 1761 | E17: 11 | F17: 1769 | K17: 0 | L17: 211
A18: 12 | B18: 1955 | C18: 24 | D18: 1993 | E18: 13 | F18: 2002 | K18: 0 | L18: 121
A19: 12 | B19: 2119 | C19: 13 | D19: 2129 | E19: 13 | F19: 2134 | K19: 0 | L19: 111 | N19: Total Target Seq
A20: 12 | B20: 2233 | C20: 13 | D20: 2252 | E20: 13 | F20: 2259 | K20: 0 | L20: 111 | N20: =COUNTIF(L7:L142,G3) -> 33 | P20: 23 | Q20: 22 | R20: 23 | S20: 23 | T20: 22 | U20: 23
A21: 12 | B21: 2373 | C21: 13 | D21: 2378 | E21: 13 | F21: 2382 | K21: 0 | L21: 111 | P21: % of reinforcement given in 6 equal intervals based on number of trials
A22: 21 | B22: 2485 | C22: 11 | D22: 2501 | E22: 11 | F22: 2509 | K22: 0 | L22: 211 | P22: %_1 | Q22: %_2 | R22: %_3 | S22: %_4 | T22: %_5 | U22: %_6
A23: 12 | B23: 2724 | C23: 13 | D23: 2731 | E23: 13 | F23: 2736 | K23: 0 | L23: 111 | O23: target sequence | P23: =$G$3 -> 211 | Q23: =$G$3 -> 211 | R23: =$G$3 -> 211 | S23: =$G$3 -> 211 | T23: =$G$3 -> 211 | U23: =$G$3 -> 211
A24: 12 | B24: 2847 | C24: 13 | D24: 2852 | E24: 13 | F24: 2856 | K24: 0 | L24: 111 | O24: total reinforcement | P24: =U11 -> 6 | Q24: =Z11 -> 6 | R24: =AE11 -> 6 | S24: =AJ11 -> 6 | T24: =AO11 -> 5 | U24: =AT11 -> 4
A25: 21 | B25: 2959 | C25: 11 | D25: 2968 | E25: 11 | F25: 2973 | K25: 0 | L25: 211 | O25: % target
A26: 21 | B26: 3275 | C26: 11 | D26: 3288 | E26: 11 | F26: 3304 | K26: 0 | L26: 211 | O26: CCRF
A27: 12 | B27: 3443 | C27: 13 | D27: 3512 | E27: 13 | F27: 3517 | K27: 0 | L27: 111 | O27: % CCRf
A28: 12 | B28: 3624 | C28: 13 | D28: 3629 | E28: 13 | F28: 3634 | K28: 0 | L28: 111 | O28: average response rate | P28: =F29/P20 -> 163.3478261 | Q28: =(F51-F29)/Q20 -> 161.6818182 | R28: =(F74-F51)/R20 -> 166.6521739 | S28: =(F97-F74)/S20 -> 152.1304348 | T28: =(F119-F97)/T20 -> 161.6818182 | U28: =(F142-F119)/U20 -> 168.9130435
A29: 12 | B29: 3745 | C29: 13 | D29: 3752 | E29: 13 | F29: 3757 | K29: 0 | L29: 111
A30: 21 | B30: 3866 | C30: 11 | D30: 3878 | E30: 11 | F30: 3884 | K30: 0 | L30: 211
A31: 12 | B31: 4155 | C31: 13 | D31: 4159 | E31: 13 | F31: 4164 | K31: 0 | L31: 111
A32: 21 | B32: 4270 | C32: 11 | D32: 4281 | E32: 11 | F32: 4286 | K32: 0 | L32: 211
A33: 12 | B33: 4497 | C33: 13 | D33: 4502 | E33: 13 | F33: 4506 | K33: 0 | L33: 111
A34: 12 | B34: 4613 | C34: 13 | D34: 4617 | E34: 13 | F34: 4623 | K34: 0 | L34: 111
A35: 12 | B35: 4741 | C35: 13 | D35: 4747 | E35: 13 | F35: 4752 | K35: 0 | L35: 111
A36: 21 | B36: 4860 | C36: 11 | D36: 4876 | E36: 11 | F36: 4880 | K36: 0 | L36: 211
A37: 12 | B37: 5077 | C37: 13 | D37: 5099 | E37: 13 | F37: 5104 | K37: 0 | L37: 111
A38: 12 | B38: 5214 | C38: 13 | D38: 5223 | E38: 13 | F38: 5231 | K38: 0 | L38: 111
A39: 12 | B39: 5347 | C39: 13 | D39: 5351 | E39: 13 | F39: 5359 | K39: 0 | L39: 111
A40: 12 | B40: 5477 | C40: 13 | D40: 5485 | E40: 13 | F40: 5494 | K40: 0 | L40: 111
A41: 12 | B41: 5616 | C41: 13 | D41: 5621 | E41: 13 | F41: 5625 | K41: 0 | L41: 111
A42: 21 | B42: 5731 | C42: 11 | D42: 5755 | E42: 11 | F42: 5763 | K42: 0 | L42: 211
A43: 12 | B43: 5956 | C43: 13 | D43: 5965 | E43: 13 | F43: 5974 | K43: 0 | L43: 111
A44: 21 | B44: 6084 | C44: 11 | D44: 6096 | E44: 11 | F44: 6101 | K44: 0 | L44: 211
A45: 21 | B45: 6323 | C45: 11 | D45: 6335 | E45: 22 | F45: 6351 | K45: 0 | L45: 212
A46: 21 | B46: 6477 | C46: 11 | D46: 6493 | E46: 11 | F46: 6500 | K46: 0 | L46: 211
A47: 12 | B47: 6743 | C47: 13 | D47: 6751 | E47: 13 | F47: 6759 | K47: 0 | L47: 111
A48: 12 | B48: 6887 | C48: 13 | D48: 6895 | E48: 13 | F48: 6900 | K48: 0 | L48: 111
A49: 12 | B49: 7009 | C49: 13 | D49: 7014 | E49: 13 | F49: 7022 | K49: 0 | L49: 111
A50: 12 | B50: 7132 | C50: 13 | D50: 7140 | E50: 24 | F50: 7186 | K50: 0 | L50: 112
A51: 12 | B51: 7301 | C51: 13 | D51: 7307 | E51: 13 | F51: 7314 | K51: 0 | L51: 111
A52: 12 | B52: 7439 | C52: 13 | D52: 7448 | E52: 13 | F52: 7455 | K52: 0 | L52: 111
A53: 21 | B53: 7558 | C53: 22 | D53: 7585 | E53: 13 | F53: 7604 | K53: 0 | L53: 221
A54: 12 | B54: 7824 | C54: 24 | D54: 7833 | E54: 13 | F54: 7845 | K54: 0 | L54: 121
A55: 12 | B55: 7956 | C55: 13 | D55: 7964 | E55: 13 | F55: 7970 | K55: 0 | L55: 111
A56: 21 | B56: 8072 | C56: 22 | D56: 8102 | E56: 13 | F56: 8115 | K56: 0 | L56: 221
A57: 21 | B57: 8217 | C57: 11 | D57: 8235 | E57: 11 | F57: 8243 | K57: 0 | L57: 211
A58: 12 | B58: 8501 | C58: 13 | D58: 8522 | E58: 13 | F58: 8527 | K58: 0 | L58: 111
A59: 21 | B59: 8627 | C59: 22 | D59: 8651 | E59: 13 | F59: 8665 | K59: 0 | L59: 221
A60: 21 | B60: 8769 | C60: 11 | D60: 8782 | E60: 22 | F60: 8795 | K60: 0 | L60: 212
A61: 21 | B61: 8907 | C61: 11 | D61: 8918 | E61: 11 | F61: 8925 | K61: 0 | L61: 211
A62: 12 | B62: 9156 | C62: 24 | D62: 9171 | E62: 13 | F62: 9186 | K62: 0 | L62: 121
A63: 12 | B63: 9294 | C63: 24 | D63: 9306 | E63: 24 | F63: 9308 | K63: 0 | L63: 122
A64: 21 | B64: 9414 | C64: 11 | D64: 9427 | E64: 11 | F64: 9434 | K64: 0 | L64: 211
A65: 12 | B65: 9623 | C65: 13 | D65: 9631 | E65: 13 | F65: 9639 | K65: 0 | L65: 111
A66: 21 | B66: 9747 | C66: 11 | D66: 9764 | E66: 11 | F66: 9768 | K66: 0 | L66: 211
A67: 21 | B67: 9992 | C67: 11 | D67: 10004 | E67: 11 | F67: 10009 | K67: 0 | L67: 211
A68: 12 | B68: 10210 | C68: 13 | D68: 10245 | E68: 13 | F68: 10249 | K68: 0 | L68: 111
A69: 21 | B69: 10354 | C69: 11 | D69: 10374 | E69: 11 | F69: 10389 | K69: 0 | L69: 211
A70: 12 | B70: 10614 | C70: 13 | D70: 10621 | E70: 13 | F70: 10626 | K70: 0 | L70: 111
A71: 12 | B71: 10735 | C71: 13 | D71: 10742 | E71: 13 | F71: 10749 | K71: 0 | L71: 111
A72: 12 | B72: 10858 | C72: 13 | D72: 10866 | E72: 13 | F72: 10873 | K72: 0 | L72: 111
A73: 12 | B73: 11002 | C73: 13 | D73: 11009 | E73: 13 | F73: 11014 | K73: 0 | L73: 111
A74: 12 | B74: 11134 | C74: 13 | D74: 11142 | E74: 13 | F74: 11147 | K74: 0 | L74: 111
A75: 12 | B75: 11259 | C75: 13 | D75: 11266 | E75: 13 | F75: 11273 | K75: 0 | L75: 111
A76: 12 | B76: 11387 | C76: 13 | D76: 11394 | E76: 13 | F76: 11399 | K76: 0 | L76: 111
A77: 12 | B77: 11508 | C77: 13 | D77: 11514 | E77: 13 | F77: 11522 | K77: 0 | L77: 111
A78: 12 | B78: 11638 | C78: 13 | D78: 11643 | E78: 13 | F78: 11650 | K78: 0 | L78: 111
A79: 12 | B79: 11762 | C79: 13 | D79: 11767 | E79: 13 | F79: 11771 | K79: 0 | L79: 111
A80: 12 | B80: 11880 | C80: 13 | D80: 11885 | E80: 13 | F80: 11889 | K80: 0 | L80: 111
A81: 12 | B81: 11998 | C81: 13 | D81: 12007 | E81: 13 | F81: 12015 | K81: 0 | L81: 111
A82: 21 | B82: 12114 | C82: 11 | D82: 12125 | E82: 11 | F82: 12129 | K82: 0 | L82: 211
A83: 12 | B83: 12308 | C83: 13 | D83: 12317 | E83: 13 | F83: 12328 | K83: 0 | L83: 111
A84: 21 | B84: 12452 | C84: 11 | D84: 12469 | E84: 11 | F84: 12490 | K84: 0 | L84: 211
A85: 12 | B85: 12629 | C85: 13 | D85: 12638 | E85: 13 | F85: 12665 | K85: 0 | L85: 111
A86: 12 | B86: 12817 | C86: 13 | D86: 12821 | E86: 13 | F86: 12831 | K86: 0 | L86: 111
A87: 12 | B87: 12944 | C87: 13 | D87: 12952 | E87: 13 | F87: 12957 | K87: 0 | L87: 111
A88: 21 | B88: 13056 | C88: 11 | D88: 13085 | E88: 11 | F88: 13092 | K88: 0 | L88: 211
A89: 21 | B89: 13309 | C89: 11 | D89: 13326 | E89: 11 | F89: 13334 | K89: 0 | L89: 211
A90: 12 | B90: 13573 | C90: 13 | D90: 13578 | E90: 13 | F90: 13583 | K90: 0 | L90: 111
A91: 21 | B91: 13687 | C91: 11 | D91: 13698 | E91: 11 | F91: 13705 | K91: 0 | L91: 211
A92: 12 | B92: 13947 | C92: 13 | D92: 13956 | E92: 13 | F92: 13965 | K92: 0 | L92: 111
A93: 12 | B93: 14082 | C93: 13 | D93: 14090 | E93: 13 | F93: 14096 | K93: 0 | L93: 111
A94: 12 | B94: 14224 | C94: 13 | D94: 14231 | E94: 13 | F94: 14236 | K94: 0 | L94: 111
A95: 12 | B95: 14344 | C95: 13 | D95: 14352 | E95: 24 | F95: 14372 | K95: 0 | L95: 112
A96: 21 | B96: 14473 | C96: 11 | D96: 14491 | E96: 22 | F96: 14530 | K96: 0 | L96: 212
A97: 21 | B97: 14629 | C97: 11 | D97: 14641 | E97: 11 | F97: 14646 | K97: 0 | L97: 211
A98: 12 | B98: 14820 | C98: 13 | D98: 14831 | E98: 13 | F98: 14838 | K98: 0 | L98: 111
A99: 12 | B99: 14959 | C99: 13 | D99: 14967 | E99: 13 | F99: 14974 | K99: 0 | L99: 111
A100: 12 | B100: 15086 | C100: 13 | D100: 15092 | E100: 13 | F100: 15097 | K100: 0 | L100: 111
A101: 12 | B101: 15205 | C101: 13 | D101: 15210 | E101: 13 | F101: 15216 | K101: 0 | L101: 111
A102: 12 | B102: 15335 | C102: 13 | D102: 15360 | E102: 13 | F102: 15368 | K102: 0 | L102: 111
A103: 12 | B103: 15477 | C103: 13 | D103: 15483 | E103: 13 | F103: 15488 | K103: 0 | L103: 111
A104: 12 | B104: 15606 | C104: 13 | D104: 15611 | E104: 13 | F104: 15616 | K104: 0 | L104: 111
A105: 12 | B105: 15713 | C105: 24 | D105: 15721 | E105: 24 | F105: 15749 | K105: 0 | L105: 122
A106: 12 | B106: 15861 | C106: 13 | D106: 15871 | E106: 13 | F106: 15883 | K106: 0 | L106: 111
A107: 21 | B107: 16003 | C107: 11 | D107: 16011 | E107: 11 | F107: 16018 | K107: 0 | L107: 211
A108: 12 | B108: 16248 | C108: 13 | D108: 16256 | E108: 13 | F108: 16261 | K108: 0 | L108: 111
A109: 21 | B109: 16396 | C109: 22 | D109: 16404 | E109: 13 | F109: 16416 | K109: 0 | L109: 221
A110: 12 | B110: 16533 | C110: 13 | D110: 16541 | E110: 13 | F110: 16549 | K110: 0 | L110: 111
A111: 12 | B111: 16661 | C111: 13 | D111: 16672 | E111: 24 | F111: 16692 | K111: 0 | L111: 112
A112: 21 | B112: 16820 | C112: 11 | D112: 16836 | E112: 11 | F112: 16842 | K112: 0 | L112: 211
A113: 21 | B113: 17075 | C113: 11 | D113: 17087 | E113: 11 | F113: 17092 | K113: 0 | L113: 211
A114: 21 | B114: 17347 | C114: 11 | D114: 17360 | E114: 11 | F114: 17372 | K114: 0 | L114: 211
A115: 21 | B115: 17550 | C115: 11 | D115: 17559 | E115: 11 | F115: 17566 | K115: 0 | L115: 211
A116: 12 | B116: 17788 | C116: 13 | D116: 17793 | E116: 13 | F116: 17802 | K116: 0 | L116: 111
A117: 12 | B117: 17921 | C117: 13 | D117: 17929 | E117: 13 | F117: 17933 | K117: 0 | L117: 111
A118: 12 | B118: 18047 | C118: 13 | D118: 18054 | E118: 13 | F118: 18063 | K118: 0 | L118: 111
A119: 21 | B119: 18188 | C119: 22 | D119: 18198 | E119: 24 | F119: 18203 | K119: 0 | L119: 222
A120: 12 | B120: 18403 | C120: 13 | D120: 18434 | E120: 13 | F120: 18438 | K120: 0 | L120: 111
A121: 12 | B121: 18569 | C121: 13 | D121: 18578 | E121: 13 | F121: 18583 | K121: 0 | L121: 111
A122: 12 | B122: 18691 | C122: 13 | D122: 18697 | E122: 13 | F122: 18704 | K122: 0 | L122: 111
A123: 21 | B123: 18804 | C123: 22 | D123: 18808 | E123: 13 | F123: 18822 | K123: 0 | L123: 221
A124: 12 | B124: 19066 | C124: 13 | D124: 19075 | E124: 13 | F124: 19082 | K124: 0 | L124: 111
A125: 12 | B125: 19198 | C125: 13 | D125: 19204 | E125: 13 | F125: 19210 | K125: 0 | L125: 111
A126: 12 | B126: 19325 | C126: 13 | D126: 19332 | E126: 13 | F126: 19337 | K126: 0 | L126: 111
A127: 12 | B127: 19462 | C127: 13 | D127: 19467 | E127: 13 | F127: 19474 | K127: 0 | L127: 111
A128: 21 | B128: 19577 | C128: 22 | D128: 19584 | E128: 24 | F128: 19589 | K128: 0 | L128: 222
A129: 12 | B129: 19767 | C129: 13 | D129: 19775 | E129: 13 | F129: 19781 | K129: 0 | L129: 111
A130: 12 | B130: 19889 | C130: 13 | D130: 19895 | E130: 13 | F130: 19903 | K130: 0 | L130: 111
A131: 21 | B131: 20010 | C131: 11 | D131: 20025 | E131: 11 | F131: 20033 | K131: 0 | L131: 211
A132: 21 | B132: 20238 | C132: 11 | D132: 20250 | E132: 11 | F132: 20259 | K132: 0 | L132: 211
A133: 12 | B133: 20438 | C133: 24 | D133: 20462 | E133: 24 | F133: 20469 | K133: 0 | L133: 122
A134: 12 | B134: 20676 | C134: 13 | D134: 20683 | E134: 13 | F134: 20691 | K134: 0 | L134: 111
A135: 21 | B135: 20788 | C135: 22 | D135: 20795 | E135: 24 | F135: 20805 | K135: 0 | L135: 222
A136: 21 | B136: 20933 | C136: 11 | D136: 20947 | E136: 11 | F136: 20955 | K136: 0 | L136: 211
A137: 12 | B137: 21260 | C137: 13 | D137: 21267 | E137: 13 | F137: 21276 | K137: 0 | L137: 111
A138: 21 | B138: 21382 | C138: 11 | D138: 21395 | E138: 11 | F138: 21402 | K138: 0 | L138: 211
A139: 12 | B139: 21637 | C139: 13 | D139: 21645 | E139: 13 | F139: 21652 | K139: 0 | L139: 111
A140: 12 | B140: 21771 | C140: 13 | D140: 21778 | E140: 24 | F140: 21800 | K140: 0 | L140: 112
A141: 12 | B141: 21910 | C141: 13 | D141: 21918 | E141: 13 | F141: 21926 | K141: 0 | L141: 111
A142: 12 | B142: 22034 | C142: 24 | D142: 22069 | E142: 13 | F142: 22088 | K142: 1 | L142: 121

Sheet !2011-06-08_08h28m.Subject 53
A1: Report for:!2011-06-08_08h28m.Subject 53
A2: Date | B2: 2011-06-08 | F2: Group | G2: 0
A3: Hen | B3: 53 | F3: Correct Sequence | G3: =Start!J2 -> 211 | P3: Total Sequences in Data | Q3: =4994-COUNTBLANK(L7:L5000) -> 153 | V3: Total Sequences in Block Data | W3: =COUNTA(L7:L32) -> 26 | AA3: Total Sequences in Block Data | AB3: =COUNTA(L33:L57) -> 25 | AF3: Total Sequences in Block Data | AG3: =COUNTA(L58:L83) -> 26 | AK3: Total Sequences in Block Data | AL3: =COUNTA(L84:L108) -> 25 | AP3: Total Sequences in Block Data | AQ3: =COUNTA(L109:L134) -> 26 | AU3: Total Sequences in Block Data | AV3: =COUNTA(L135:L159) -> 25
A4: Program | B4: 0 | P4: Total Sequences in Summary | Q4: =SUM(O7:O14) -> 153 | V4: Total Sequences in Block Summary | W4: =SUM(U7:U14) -> 26 | AA4: Total Sequences in Block Summary | AB4: =SUM(Z7:Z14) -> 25 | AF4: Total Sequences in Block Summary | AG4: =SUM(AE7:AE14) -> 26 | AK4: Total Sequences in Block Summary | AL4: =SUM(AJ7:AJ14) -> 25 | AP4: Total Sequences in Block Summary | AQ4: =SUM(AO7:AO14) -> 26 | AU4: Total Sequences in Block Summary | AV4: =SUM(AT7:AT14) -> 25
T5: Block 1 | Y5: Block 2 | AD5: Block 3 | AI5: Block 4 | AN5: Block 5 | AS5: Block 6
